Workbook

Sheet Table of Content
C9: Table of Content
C13: SPYM Financial Planner
C28: SPYM Personal Finances Tool
C41: SPYM Financial Assistant 2016
B42: Copyright © 2016 Stress Proof Your Money

Sheet Disclaimer (hidden)
C9: DISCLAIMER
A12: These spreadsheet examples are provided as profesional information for educational purposes only. The spreadsheet examples are a nonvalidated calculation tool for which there is absolutely no guarantee or warranty of fitness for a particular purpose or any purpose expressed or implied. Any user of information contained herein assumes any and all responsibility and liability for use of the information including any misunderstanding, misuse or misapplication of the information.
A20: Any use of these spreadsheet examples is "as is" and should only follow the user's independent confirmation that it produces valid results for the user before results are used for any purpose whatsoever.
A24: In no event shall the authors or stressproofyourmoney.com be liable for any incorrect or invalid results that are obtained by any use of the spreadsheet examples nor shall the authors or stressproofyourmoney.com be liable for any loss of data, or profits or special incidential, indirect or consequantial damages arising out of or in connection with the use of performance of this spreadsheet file.

Sheet Present Value (hidden)
A9: Present Value | E9: Period | F9: Present Value | G9: Added Value | H9: Total Added Value | I9: Future Value
E10: 0 | I10: =B14 -> 318630.8177
A11: Discount Rate per Period | B11: 10 | E11: =IF(I10=B12,"",1) -> 1 | F11: =IF(E11="","",lookup!J3) -> 318630.8177 | G11: =IF(E11="","",lookup!K3-lookup!J3) -> 31863.08177 | H11: =IF(E11="","",H10+G11) -> 31863.08177 | I11: =IF(E11="","",IF(lookup!K3<0,0,lookup!K3)) -> 350493.8995
A12: Future Value | B12: 1000000 | E12: =IF(I11="","",IF(B$13<E11+1,"",IF(I11=B$14,"",lookup!I4))) -> 2 | F12: =IF(E12="","",lookup!J4) -> 350493.8995 | G12: =IF(E12="","",lookup!K4-lookup!J4) -> 35049.38995 | H12: 66912.47172 | I12: =IF(E12="","",IF(lookup!K4<0,0,lookup!K4)) -> 385543.2894
A13: No of Periods | B13: 12 | E13: =IF(I12="","",IF(B$13<E12+1,"",IF(I12=B$14,"",lookup!I5))) -> 3 | F13: =IF(E13="","",lookup!J5) -> 385543.2894 | G13: =IF(E13="","",lookup!K5-lookup!J5) -> 38554.32894 | H13: 105466.8007 | I13: =IF(E13="","",IF(lookup!K5<0,0,lookup!K5)) -> 424097.6184
A14: Present Value | B14: =B12/(1+B11/100)^B13 -> 318630.8177 | E14: =IF(I13="","",IF(B$13<E13+1,"",IF(I13=B$14,"",lookup!I6))) -> 4 | F14: =IF(E14="","",lookup!J6) -> 424097.6184 | G14: =IF(E14="","",lookup!K6-lookup!J6) -> 42409.76184 | H14: 147876.5625 | I14: =IF(E14="","",IF(lookup!K6<0,0,lookup!K6)) -> 466507.3802
E15: =IF(I14="","",IF(B$13<E14+1,"",IF(I14=B$14,"",lookup!I7))) -> 5 | F15: =IF(E15="","",lookup!J7) -> 466507.3802 | G15: =IF(E15="","",lookup!K7-lookup!J7) -> 46650.73802 | H15: 194527.3005 | I15: =IF(E15="","",IF(lookup!K7<0,0,lookup!K7)) -> 513158.1182
E16: =IF(I15="","",IF(B$13<E15+1,"",IF(I15=B$14,"",lookup!I8))) -> 6 | F16: =IF(E16="","",lookup!J8) -> 513158.1182 | G16: =IF(E16="","",lookup!K8-lookup!J8) -> 51315.81182 | H16: 245843.1123 | I16: =IF(E16="","",IF(lookup!K8<0,0,lookup!K8)) -> 564473.9301
E17: =IF(I16="","",IF(B$13<E16+1,"",IF(I16=B$14,"",lookup!I9))) -> 7 | F17: =IF(E17="","",lookup!J9) -> 564473.9301 | G17: =IF(E17="","",lookup!K9-lookup!J9) -> 56447.39301 | H17: 302290.5053 | I17: =IF(E17="","",IF(lookup!K9<0,0,lookup!K9)) -> 620921.3231
E18: =IF(I17="","",IF(B$13<E17+1,"",IF(I17=B$14,"",lookup!I10))) -> 8 | F18: =IF(E18="","",lookup!J10) -> 620921.3231 | G18: =IF(E18="","",lookup!K10-lookup!J10) -> 62092.13231 | H18: 364382.6377 | I18: =IF(E18="","",IF(lookup!K10<0,0,lookup!K10)) -> 683013.4554
E19: =IF(I18="","",IF(B$13<E18+1,"",IF(I18=B$14,"",lookup!I11))) -> 9 | F19: =IF(E19="","",lookup!J11) -> 683013.4554 | G19: =IF(E19="","",lookup!K11-lookup!J11) -> 68301.34554 | H19: 432683.9832 | I19: =IF(E19="","",IF(lookup!K11<0,0,lookup!K11)) -> 751314.8009
E20: =IF(I19="","",IF(B$13<E19+1,"",IF(I19=B$14,"",lookup!I12))) -> 10 | F20: =IF(E20="","",lookup!J12) -> 751314.8009 | G20: =IF(E20="","",lookup!K12-lookup!J12) -> 75131.48009 | H20: 507815.4633 | I20: =IF(E20="","",IF(lookup!K12<0,0,lookup!K12)) -> 826446.281
E21: =IF(I20="","",IF(B$13<E20+1,"",IF(I20=B$14,"",lookup!I13))) -> 11 | F21: =IF(E21="","",lookup!J13) -> 826446.281 | G21: =IF(E21="","",lookup!K13-lookup!J13) -> 82644.6281 | H21: 590460.0914 | I21: =IF(E21="","",IF(lookup!K13<0,0,lookup!K13)) -> 909090.9091
E22: =IF(I21="","",IF(B$13<E21+1,"",IF(I21=B$14,"",lookup!I14))) -> 12 | F22: =IF(E22="","",lookup!J14) -> 909090.9091 | G22: =IF(E22="","",lookup!K14-lookup!J14) -> 90909.09091 | H22: 681369.1823 | I22: =IF(E22="","",IF(lookup!K14<0,0,lookup!K14)) -> 1000000
E23: =IF(I22="","",IF(B$13<E22+1,"",IF(I22=B$14,"",lookup!I15))) ->  | F23: =IF(E23="","",lookup!J15) ->  | G23: =IF(E23="","",lookup!K15-lookup!J15) ->  | I23: =IF(E23="","",IF(lookup!K15<0,0,lookup!K15)) -> 
E24: =IF(I23="","",IF(B$13<E23+1,"",IF(I23=B$14,"",lookup!I16))) ->  | F24: =IF(E24="","",lookup!J16) ->  | G24: =IF(E24="","",lookup!K16-lookup!J16) ->  | I24: =IF(E24="","",IF(lookup!K16<0,0,lookup!K16)) -> 
E25: =IF(I24="","",IF(B$13<E24+1,"",IF(I24=B$14,"",lookup!I17))) ->  | F25: =IF(E25="","",lookup!J17) ->  | G25: =IF(E25="","",lookup!K17-lookup!J17) ->  | I25: =IF(E25="","",IF(lookup!K17<0,0,lookup!K17)) -> 
E26: =IF(I25="","",IF(B$13<E25+1,"",IF(I25=B$14,"",lookup!I18))) ->  | F26: =IF(E26="","",lookup!J18) ->  | G26: =IF(E26="","",lookup!K18-lookup!J18) ->  | I26: =IF(E26="","",IF(lookup!K18<0,0,lookup!K18)) -> 
E27: =IF(I26="","",IF(B$13<E26+1,"",IF(I26=B$14,"",lookup!I19))) ->  | F27: =IF(E27="","",lookup!J19) ->  | G27: =IF(E27="","",lookup!K19-lookup!J19) ->  | I27: =IF(E27="","",IF(lookup!K19<0,0,lookup!K19)) -> 
E28: =IF(I27="","",IF(B$13<E27+1,"",IF(I27=B$14,"",lookup!I20))) ->  | F28: =IF(E28="","",lookup!J20) ->  | G28: =IF(E28="","",lookup!K20-lookup!J20) ->  | I28: =IF(E28="","",IF(lookup!K20<0,0,lookup!K20)) -> 
E29: =IF(I28="","",IF(B$13<E28+1,"",IF(I28=B$14,"",lookup!I21))) ->  | F29: =IF(E29="","",lookup!J21) ->  | G29: =IF(E29="","",lookup!K21-lookup!J21) ->  | I29: =IF(E29="","",IF(lookup!K21<0,0,lookup!K21)) -> 
E30: =IF(I29="","",IF(B$13<E29+1,"",IF(I29=B$14,"",lookup!I22))) ->  | F30: =IF(E30="","",lookup!J22) ->  | G30: =IF(E30="","",lookup!K22-lookup!J22) ->  | I30: =IF(E30="","",IF(lookup!K22<0,0,lookup!K22)) -> 
E31: =IF(I30="","",IF(B$13<E30+1,"",IF(I30=B$14,"",lookup!I23))) ->  | F31: =IF(E31="","",lookup!J23) ->  | G31: =IF(E31="","",lookup!K23-lookup!J23) ->  | I31: =IF(E31="","",IF(lookup!K23<0,0,lookup!K23)) -> 
E32: =IF(I31="","",IF(B$13<E31+1,"",IF(I31=B$14,"",lookup!I24))) ->  | F32: =IF(E32="","",lookup!J24) ->  | G32: =IF(E32="","",lookup!K24-lookup!J24) ->  | I32: =IF(E32="","",IF(lookup!K24<0,0,lookup!K24)) -> 
E33: =IF(I32="","",IF(B$13<E32+1,"",IF(I32=B$14,"",lookup!I25))) ->  | F33: =IF(E33="","",lookup!J25) ->  | G33: =IF(E33="","",lookup!K25-lookup!J25) ->  | I33: =IF(E33="","",IF(lookup!K25<0,0,lookup!K25)) -> 
E34: =IF(I33="","",IF(B$13<E33+1,"",IF(I33=B$14,"",lookup!I26))) ->  | F34: =IF(E34="","",lookup!J26) ->  | G34: =IF(E34="","",lookup!K26-lookup!J26) ->  | I34: =IF(E34="","",IF(lookup!K26<0,0,lookup!K26)) -> 
E35: =IF(I34="","",IF(B$13<E34+1,"",IF(I34=B$14,"",lookup!I27))) ->  | F35: =IF(E35="","",lookup!J27) ->  | G35: =IF(E35="","",lookup!K27-lookup!J27) ->  | I35: =IF(E35="","",IF(lookup!K27<0,0,lookup!K27)) -> 
E36: =IF(I35="","",IF(B$13<E35+1,"",IF(I35=B$14,"",lookup!I28))) ->  | F36: =IF(E36="","",lookup!J28) ->  | G36: =IF(E36="","",lookup!K28-lookup!J28) ->  | I36: =IF(E36="","",IF(lookup!K28<0,0,lookup!K28)) -> 
E37: =IF(I36="","",IF(B$13<E36+1,"",IF(I36=B$14,"",lookup!I29))) ->  | F37: =IF(E37="","",lookup!J29) ->  | G37: =IF(E37="","",lookup!K29-lookup!J29) ->  | I37: =IF(E37="","",IF(lookup!K29<0,0,lookup!K29)) -> 
E38: =IF(I37="","",IF(B$13<E37+1,"",IF(I37=B$14,"",lookup!I30))) ->  | F38: =IF(E38="","",lookup!J30) ->  | G38: =IF(E38="","",lookup!K30-lookup!J30) ->  | I38: =IF(E38="","",IF(lookup!K30<0,0,lookup!K30)) -> 
E39: =IF(I38="","",IF(B$13<E38+1,"",IF(I38=B$14,"",lookup!I31))) ->  | F39: =IF(E39="","",lookup!J31) ->  | G39: =IF(E39="","",lookup!K31-lookup!J31) ->  | I39: =IF(E39="","",IF(lookup!K31<0,0,lookup!K31)) -> 
E40: =IF(I39="","",IF(B$13<E39+1,"",IF(I39=B$14,"",lookup!I32))) ->  | F40: =IF(E40="","",lookup!J32) ->  | G40: =IF(E40="","",lookup!K32-lookup!J32) ->  | I40: =IF(E40="","",IF(lookup!K32<0,0,lookup!K32)) -> 
E41: =IF(I40="","",IF(B$13<E40+1,"",IF(I40=B$14,"",lookup!I33))) ->  | F41: =IF(E41="","",lookup!J33) ->  | G41: =IF(E41="","",lookup!K33-lookup!J33) ->  | I41: =IF(E41="","",IF(lookup!K33<0,0,lookup!K33)) -> 
E42: =IF(I41="","",IF(B$13<E41+1,"",IF(I41=B$14,"",lookup!I34))) ->  | F42: =IF(E42="","",lookup!J34) ->  | G42: =IF(E42="","",lookup!K34-lookup!J34) ->  | I42: =IF(E42="","",IF(lookup!K34<0,0,lookup!K34)) -> 
E43: =IF(I42="","",IF(B$13<E42+1,"",IF(I42=B$14,"",lookup!I35))) ->  | F43: =IF(E43="","",lookup!J35) ->  | G43: =IF(E43="","",lookup!K35-lookup!J35) ->  | I43: =IF(E43="","",IF(lookup!K35<0,0,lookup!K35)) -> 
E44: =IF(I43="","",IF(B$13<E43+1,"",IF(I43=B$14,"",lookup!I36))) ->  | F44: =IF(E44="","",lookup!J36) ->  | G44: =IF(E44="","",lookup!K36-lookup!J36) ->  | I44: =IF(E44="","",IF(lookup!K36<0,0,lookup!K36)) -> 
E45: =IF(I44="","",IF(B$13<E44+1,"",IF(I44=B$14,"",lookup!I37))) ->  | F45: =IF(E45="","",lookup!J37) ->  | G45: =IF(E45="","",lookup!K37-lookup!J37) ->  | I45: =IF(E45="","",IF(lookup!K37<0,0,lookup!K37)) -> 
E46: =IF(I45="","",IF(B$13<E45+1,"",IF(I45=B$14,"",lookup!I38))) ->  | F46: =IF(E46="","",lookup!J38) ->  | G46: =IF(E46="","",lookup!K38-lookup!J38) ->  | I46: =IF(E46="","",IF(lookup!K38<0,0,lookup!K38)) -> 
E47: =IF(I46="","",IF(B$13<E46+1,"",IF(I46=B$14,"",lookup!I39))) ->  | F47: =IF(E47="","",lookup!J39) ->  | G47: =IF(E47="","",lookup!K39-lookup!J39) ->  | I47: =IF(E47="","",IF(lookup!K39<0,0,lookup!K39)) -> 
E48: =IF(I47="","",IF(B$13<E47+1,"",IF(I47=B$14,"",lookup!I40))) ->  | F48: =IF(E48="","",lookup!J40) ->  | G48: =IF(E48="","",lookup!K40-lookup!J40) ->  | I48: =IF(E48="","",IF(lookup!K40<0,0,lookup!K40)) -> 
E49: =IF(I48="","",IF(B$13<E48+1,"",IF(I48=B$14,"",lookup!I41))) ->  | F49: =IF(E49="","",lookup!J41) ->  | G49: =IF(E49="","",lookup!K41-lookup!J41) ->  | I49: =IF(E49="","",IF(lookup!K41<0,0,lookup!K41)) -> 
E50: =IF(I49="","",IF(B$13<E49+1,"",IF(I49=B$14,"",lookup!I42))) ->  | F50: =IF(E50="","",lookup!J42) ->  | G50: =IF(E50="","",lookup!K42-lookup!J42) ->  | I50: =IF(E50="","",IF(lookup!K42<0,0,lookup!K42)) -> 
E51: =IF(I50="","",IF(B$13<E50+1,"",IF(I50=B$14,"",lookup!I43))) ->  | F51: =IF(E51="","",lookup!J43) ->  | G51: =IF(E51="","",lookup!K43-lookup!J43) ->  | I51: =IF(E51="","",IF(lookup!K43<0,0,lookup!K43)) -> 
E52: =IF(I51="","",IF(B$13<E51+1,"",IF(I51=B$14,"",lookup!I44))) ->  | F52: =IF(E52="","",lookup!J44) ->  | G52: =IF(E52="","",lookup!K44-lookup!J44) ->  | I52: =IF(E52="","",IF(lookup!K44<0,0,lookup!K44)) -> 
E53: =IF(I52="","",IF(B$13<E52+1,"",IF(I52=B$14,"",lookup!I45))) ->  | F53: =IF(E53="","",lookup!J45) ->  | G53: =IF(E53="","",lookup!K45-lookup!J45) ->  | I53: =IF(E53="","",IF(lookup!K45<0,0,lookup!K45)) -> 
E54: =IF(I53="","",IF(B$13<E53+1,"",IF(I53=B$14,"",lookup!I46))) ->  | F54: =IF(E54="","",lookup!J46) ->  | G54: =IF(E54="","",lookup!K46-lookup!J46) ->  | I54: =IF(E54="","",IF(lookup!K46<0,0,lookup!K46)) -> 
E55: =IF(I54="","",IF(B$13<E54+1,"",IF(I54=B$14,"",lookup!I47))) ->  | F55: =IF(E55="","",lookup!J47) ->  | G55: =IF(E55="","",lookup!K47-lookup!J47) ->  | I55: =IF(E55="","",IF(lookup!K47<0,0,lookup!K47)) -> 
E56: =IF(I55="","",IF(B$13<E55+1,"",IF(I55=B$14,"",lookup!I48))) ->  | F56: =IF(E56="","",lookup!J48) ->  | G56: =IF(E56="","",lookup!K48-lookup!J48) ->  | I56: =IF(E56="","",IF(lookup!K48<0,0,lookup!K48)) -> 
E57: =IF(I56="","",IF(B$13<E56+1,"",IF(I56=B$14,"",lookup!I49))) ->  | F57: =IF(E57="","",lookup!J49) ->  | G57: =IF(E57="","",lookup!K49-lookup!J49) ->  | I57: =IF(E57="","",IF(lookup!K49<0,0,lookup!K49)) -> 
E58: =IF(I57="","",IF(B$13<E57+1,"",IF(I57=B$14,"",lookup!I50))) ->  | F58: =IF(E58="","",lookup!J50) ->  | G58: =IF(E58="","",lookup!K50-lookup!J50) ->  | I58: =IF(E58="","",IF(lookup!K50<0,0,lookup!K50)) -> 
E59: =IF(I58="","",IF(B$13<E58+1,"",IF(I58=B$14,"",lookup!I51))) ->  | F59: =IF(E59="","",lookup!J51) ->  | G59: =IF(E59="","",lookup!K51-lookup!J51) ->  | I59: =IF(E59="","",IF(lookup!K51<0,0,lookup!K51)) -> 
E60: =IF(I59="","",IF(B$13<E59+1,"",IF(I59=B$14,"",lookup!I52))) ->  | F60: =IF(E60="","",lookup!J52) ->  | G60: =IF(E60="","",lookup!K52-lookup!J52) ->  | I60: =IF(E60="","",IF(lookup!K52<0,0,lookup!K52)) -> 
E61: =IF(I60="","",IF(B$13<E60+1,"",IF(I60=B$14,"",lookup!I53))) ->  | F61: =IF(E61="","",lookup!J53) ->  | G61: =IF(E61="","",lookup!K53-lookup!J53) ->  | I61: =IF(E61="","",IF(lookup!K53<0,0,lookup!K53)) -> 
E62: =IF(I61="","",IF(B$13<E61+1,"",IF(I61=B$14,"",lookup!I54))) ->  | F62: =IF(E62="","",lookup!J54) ->  | G62: =IF(E62="","",lookup!K54-lookup!J54) ->  | I62: =IF(E62="","",IF(lookup!K54<0,0,lookup!K54)) -> 
E63: =IF(I62="","",IF(B$13<E62+1,"",IF(I62=B$14,"",lookup!I55))) ->  | F63: =IF(E63="","",lookup!J55) ->  | G63: =IF(E63="","",lookup!K55-lookup!J55) ->  | I63: =IF(E63="","",IF(lookup!K55<0,0,lookup!K55)) -> 
E64: =IF(I63="","",IF(B$13<E63+1,"",IF(I63=B$14,"",lookup!I56))) ->  | F64: =IF(E64="","",lookup!J56) ->  | G64: =IF(E64="","",lookup!K56-lookup!J56) ->  | I64: =IF(E64="","",IF(lookup!K56<0,0,lookup!K56)) -> 
E65: =IF(I64="","",IF(B$13<E64+1,"",IF(I64=B$14,"",lookup!I57))) ->  | F65: =IF(E65="","",lookup!J57) ->  | G65: =IF(E65="","",lookup!K57-lookup!J57) ->  | I65: =IF(E65="","",IF(lookup!K57<0,0,lookup!K57)) -> 
E66: =IF(I65="","",IF(B$13<E65+1,"",IF(I65=B$14,"",lookup!I58))) ->  | F66: =IF(E66="","",lookup!J58) ->  | G66: =IF(E66="","",lookup!K58-lookup!J58) ->  | I66: =IF(E66="","",IF(lookup!K58<0,0,lookup!K58)) -> 
E67: =IF(I66="","",IF(B$13<E66+1,"",IF(I66=B$14,"",lookup!I59))) ->  | F67: =IF(E67="","",lookup!J59) ->  | G67: =IF(E67="","",lookup!K59-lookup!J59) ->  | I67: =IF(E67="","",IF(lookup!K59<0,0,lookup!K59)) -> 
E68: =IF(I67="","",IF(B$13<E67+1,"",IF(I67=B$14,"",lookup!I60))) ->  | F68: =IF(E68="","",lookup!J60) ->  | G68: =IF(E68="","",lookup!K60-lookup!J60) ->  | I68: =IF(E68="","",IF(lookup!K60<0,0,lookup!K60)) -> 
E69: =IF(I68="","",IF(B$13<E68+1,"",IF(I68=B$14,"",lookup!I61))) ->  | F69: =IF(E69="","",lookup!J61) ->  | G69: =IF(E69="","",lookup!K61-lookup!J61) ->  | I69: =IF(E69="","",IF(lookup!K61<0,0,lookup!K61)) -> 
E70: =IF(I69="","",IF(B$13<E69+1,"",IF(I69=B$14,"",lookup!I62))) ->  | F70: =IF(E70="","",lookup!J62) ->  | G70: =IF(E70="","",lookup!K62-lookup!J62) ->  | I70: =IF(E70="","",IF(lookup!K62<0,0,lookup!K62)) -> 
E71: =IF(I70="","",IF(B$13<E70+1,"",IF(I70=B$14,"",lookup!I63))) ->  | F71: =IF(E71="","",lookup!J63) ->  | G71: =IF(E71="","",lookup!K63-lookup!J63) ->  | I71: =IF(E71="","",IF(lookup!K63<0,0,lookup!K63)) -> 
E72: =IF(I71="","",IF(B$13<E71+1,"",IF(I71=B$14,"",lookup!I64))) ->  | F72: =IF(E72="","",lookup!J64) ->  | G72: =IF(E72="","",lookup!K64-lookup!J64) ->  | I72: =IF(E72="","",IF(lookup!K64<0,0,lookup!K64)) -> 
E73: =IF(I72="","",IF(B$13<E72+1,"",IF(I72=B$14,"",lookup!I65))) ->  | F73: =IF(E73="","",lookup!J65) ->  | G73: =IF(E73="","",lookup!K65-lookup!J65) ->  | I73: =IF(E73="","",IF(lookup!K65<0,0,lookup!K65)) -> 
E74: =IF(I73="","",IF(B$13<E73+1,"",IF(I73=B$14,"",lookup!I66))) ->  | F74: =IF(E74="","",lookup!J66) ->  | G74: =IF(E74="","",lookup!K66-lookup!J66) ->  | I74: =IF(E74="","",IF(lookup!K66<0,0,lookup!K66)) -> 
E75: =IF(I74="","",IF(B$13<E74+1,"",IF(I74=B$14,"",lookup!I67))) ->  | F75: =IF(E75="","",lookup!J67) ->  | G75: =IF(E75="","",lookup!K67-lookup!J67) ->  | H75: =IF(E75="","",H74+G75) ->  | I75: =IF(E75="","",IF(lookup!K67<0,0,lookup!K67)) -> 
E76: =IF(I75="","",IF(B$13<E75+1,"",IF(I75=B$14,"",lookup!I68))) ->  | F76: =IF(E76="","",lookup!J68) ->  | G76: =IF(E76="","",lookup!K68-lookup!J68) ->  | I76: =IF(E76="","",IF(lookup!K68<0,0,lookup!K68)) -> 
E77: =IF(I76="","",IF(B$13<E76+1,"",IF(I76=B$14,"",lookup!I69))) ->  | F77: =IF(E77="","",lookup!J69) ->  | G77: =IF(E77="","",lookup!K69-lookup!J69) ->  | I77: =IF(E77="","",IF(lookup!K69<0,0,lookup!K69)) -> 
E78: =IF(I77="","",IF(B$13<E77+1,"",IF(I77=B$14,"",lookup!I70))) ->  | F78: =IF(E78="","",lookup!J70) ->  | G78: =IF(E78="","",lookup!K70-lookup!J70) ->  | I78: =IF(E78="","",IF(lookup!K70<0,0,lookup!K70)) -> 
E79: =IF(I78="","",IF(B$13<E78+1,"",IF(I78=B$14,"",lookup!I71))) ->  | F79: =IF(E79="","",lookup!J71) ->  | G79: =IF(E79="","",lookup!K71-lookup!J71) ->  | I79: =IF(E79="","",IF(lookup!K71<0,0,lookup!K71)) -> 
E80: =IF(I79="","",IF(B$13<E79+1,"",IF(I79=B$14,"",lookup!I72))) ->  | F80: =IF(E80="","",lookup!J72) ->  | G80: =IF(E80="","",lookup!K72-lookup!J72) ->  | I80: =IF(E80="","",IF(lookup!K72<0,0,lookup!K72)) -> 
E81: =IF(I80="","",IF(B$13<E80+1,"",IF(I80=B$14,"",lookup!I73))) ->  | F81: =IF(E81="","",lookup!J73) ->  | G81: =IF(E81="","",lookup!K73-lookup!J73) ->  | I81: =IF(E81="","",IF(lookup!K73<0,0,lookup!K73)) -> 
E82: =IF(I81="","",IF(B$13<E81+1,"",IF(I81=B$14,"",lookup!I74))) ->  | F82: =IF(E82="","",lookup!J74) ->  | G82: =IF(E82="","",lookup!K74-lookup!J74) ->  | I82: =IF(E82="","",IF(lookup!K74<0,0,lookup!K74)) -> 
E83: =IF(I82="","",IF(B$13<E82+1,"",IF(I82=B$14,"",lookup!I75))) ->  | F83: =IF(E83="","",lookup!J75) ->  | G83: =IF(E83="","",lookup!K75-lookup!J75) ->  | I83: =IF(E83="","",IF(lookup!K75<0,0,lookup!K75)) -> 
E84: =IF(I83="","",IF(B$13<E83+1,"",IF(I83=B$14,"",lookup!I76))) ->  | F84: =IF(E84="","",lookup!J76) ->  | G84: =IF(E84="","",lookup!K76-lookup!J76) ->  | I84: =IF(E84="","",IF(lookup!K76<0,0,lookup!K76)) -> 
E85: =IF(I84="","",IF(B$13<E84+1,"",IF(I84=B$14,"",lookup!I77))) ->  | F85: =IF(E85="","",lookup!J77) ->  | G85: =IF(E85="","",lookup!K77-lookup!J77) ->  | I85: =IF(E85="","",IF(lookup!K77<0,0,lookup!K77)) -> 
E86: =IF(I85="","",IF(B$13<E85+1,"",IF(I85=B$14,"",lookup!I78))) ->  | F86: =IF(E86="","",lookup!J78) ->  | G86: =IF(E86="","",lookup!K78-lookup!J78) ->  | I86: =IF(E86="","",IF(lookup!K78<0,0,lookup!K78)) -> 
E87: =IF(I86="","",IF(B$13<E86+1,"",IF(I86=B$14,"",lookup!I79))) ->  | F87: =IF(E87="","",lookup!J79) ->  | G87: =IF(E87="","",lookup!K79-lookup!J79) ->  | I87: =IF(E87="","",IF(lookup!K79<0,0,lookup!K79)) -> 
E88: =IF(I87="","",IF(B$13<E87+1,"",IF(I87=B$14,"",lookup!I80))) ->  | F88: =IF(E88="","",lookup!J80) ->  | G88: =IF(E88="","",lookup!K80-lookup!J80) ->  | I88: =IF(E88="","",IF(lookup!K80<0,0,lookup!K80)) -> 
E89: =IF(I88="","",IF(B$13<E88+1,"",IF(I88=B$14,"",lookup!I81))) ->  | F89: =IF(E89="","",lookup!J81) ->  | G89: =IF(E89="","",lookup!K81-lookup!J81) ->  | I89: =IF(E89="","",IF(lookup!K81<0,0,lookup!K81)) -> 
E90: =IF(I89="","",IF(B$13<E89+1,"",IF(I89=B$14,"",lookup!I82))) ->  | F90: =IF(E90="","",lookup!J82) ->  | G90: =IF(E90="","",lookup!K82-lookup!J82) ->  | I90: =IF(E90="","",IF(lookup!K82<0,0,lookup!K82)) -> 
E91: =IF(I90="","",IF(B$13<E90+1,"",IF(I90=B$14,"",lookup!I83))) ->  | F91: =IF(E91="","",lookup!J83) ->  | G91: =IF(E91="","",lookup!K83-lookup!J83) ->  | I91: =IF(E91="","",IF(lookup!K83<0,0,lookup!K83)) -> 
E92: =IF(I91="","",IF(B$13<E91+1,"",IF(I91=B$14,"",lookup!I84))) ->  | F92: =IF(E92="","",lookup!J84) ->  | G92: =IF(E92="","",lookup!K84-lookup!J84) ->  | I92: =IF(E92="","",IF(lookup!K84<0,0,lookup!K84)) -> 
E93: =IF(I92="","",IF(B$13<E92+1,"",IF(I92=B$14,"",lookup!I85))) ->  | F93: =IF(E93="","",lookup!J85) ->  | G93: =IF(E93="","",lookup!K85-lookup!J85) ->  | I93: =IF(E93="","",IF(lookup!K85<0,0,lookup!K85)) -> 
E94: =IF(I93="","",IF(B$13<E93+1,"",IF(I93=B$14,"",lookup!I86))) ->  | F94: =IF(E94="","",lookup!J86) ->  | G94: =IF(E94="","",lookup!K86-lookup!J86) ->  | I94: =IF(E94="","",IF(lookup!K86<0,0,lookup!K86)) -> 
E95: =IF(I94="","",IF(B$13<E94+1,"",IF(I94=B$14,"",lookup!I87))) ->  | F95: =IF(E95="","",lookup!J87) ->  | G95: =IF(E95="","",lookup!K87-lookup!J87) ->  | I95: =IF(E95="","",IF(lookup!K87<0,0,lookup!K87)) -> 
E96: =IF(I95="","",IF(B$13<E95+1,"",IF(I95=B$14,"",lookup!I88))) ->  | F96: =IF(E96="","",lookup!J88) ->  | G96: =IF(E96="","",lookup!K88-lookup!J88) ->  | I96: =IF(E96="","",IF(lookup!K88<0,0,lookup!K88)) -> 
E97: =IF(I96="","",IF(B$13<E96+1,"",IF(I96=B$14,"",lookup!I89))) ->  | F97: =IF(E97="","",lookup!J89) ->  | G97: =IF(E97="","",lookup!K89-lookup!J89) ->  | I97: =IF(E97="","",IF(lookup!K89<0,0,lookup!K89)) -> 
E98: =IF(I97="","",IF(B$13<E97+1,"",IF(I97=B$14,"",lookup!I90))) ->  | F98: =IF(E98="","",lookup!J90) ->  | G98: =IF(E98="","",lookup!K90-lookup!J90) ->  | I98: =IF(E98="","",IF(lookup!K90<0,0,lookup!K90)) -> 
E99: =IF(I98="","",IF(B$13<E98+1,"",IF(I98=B$14,"",lookup!I91))) ->  | F99: =IF(E99="","",lookup!J91) ->  | G99: =IF(E99="","",lookup!K91-lookup!J91) ->  | I99: =IF(E99="","",IF(lookup!K91<0,0,lookup!K91)) -> 
E100: =IF(I99="","",IF(B$13<E99+1,"",IF(I99=B$14,"",lookup!I92))) ->  | F100: =IF(E100="","",lookup!J92) ->  | G100: =IF(E100="","",lookup!K92-lookup!J92) ->  | I100: =IF(E100="","",IF(lookup!K92<0,0,lookup!K92)) -> 
E101: =IF(I100="","",IF(B$13<E100+1,"",IF(I100=B$14,"",lookup!I93))) ->  | F101: =IF(E101="","",lookup!J93) ->  | G101: =IF(E101="","",lookup!K93-lookup!J93) ->  | I101: =IF(E101="","",IF(lookup!K93<0,0,lookup!K93)) -> 
E102: =IF(I101="","",IF(B$13<E101+1,"",IF(I101=B$14,"",lookup!I94))) ->  | F102: =IF(E102="","",lookup!J94) ->  | G102: =IF(E102="","",lookup!K94-lookup!J94) ->  | I102: =IF(E102="","",IF(lookup!K94<0,0,lookup!K94)) -> 
E103: =IF(I102="","",IF(B$13<E102+1,"",IF(I102=B$14,"",lookup!I95))) ->  | F103: =IF(E103="","",lookup!J95) ->  | G103: =IF(E103="","",lookup!K95-lookup!J95) ->  | I103: =IF(E103="","",IF(lookup!K95<0,0,lookup!K95)) -> 
E104: =IF(I103="","",IF(B$13<E103+1,"",IF(I103=B$14,"",lookup!I96))) ->  | F104: =IF(E104="","",lookup!J96) ->  | G104: =IF(E104="","",lookup!K96-lookup!J96) ->  | I104: =IF(E104="","",IF(lookup!K96<0,0,lookup!K96)) -> 
E105: =IF(I104="","",IF(B$13<E104+1,"",IF(I104=B$14,"",lookup!I97))) ->  | F105: =IF(E105="","",lookup!J97) ->  | G105: =IF(E105="","",lookup!K97-lookup!J97) ->  | I105: =IF(E105="","",IF(lookup!K97<0,0,lookup!K97)) -> 
E106: =IF(I105="","",IF(B$13<E105+1,"",IF(I105=B$14,"",lookup!I98))) ->  | F106: =IF(E106="","",lookup!J98) ->  | G106: =IF(E106="","",lookup!K98-lookup!J98) ->  | I106: =IF(E106="","",IF(lookup!K98<0,0,lookup!K98)) -> 
E107: =IF(I106="","",IF(B$13<E106+1,"",IF(I106=B$14,"",lookup!I99))) ->  | F107: =IF(E107="","",lookup!J99) ->  | G107: =IF(E107="","",lookup!K99-lookup!J99) ->  | I107: =IF(E107="","",IF(lookup!K99<0,0,lookup!K99)) -> 
E108: =IF(I107="","",IF(B$13<E107+1,"",IF(I107=B$14,"",lookup!I100))) ->  | F108: =IF(E108="","",lookup!J100) ->  | G108: =IF(E108="","",lookup!K100-lookup!J100) ->  | I108: =IF(E108="","",IF(lookup!K100<0,0,lookup!K100)) -> 
E109: =IF(I108="","",IF(B$13<E108+1,"",IF(I108=B$14,"",lookup!I101))) ->  | F109: =IF(E109="","",lookup!J101) ->  | G109: =IF(E109="","",lookup!K101-lookup!J101) ->  | I109: =IF(E109="","",IF(lookup!K101<0,0,lookup!K101)) -> 
E110: =IF(I109="","",IF(B$13<E109+1,"",IF(I109=B$14,"",lookup!I102))) ->  | F110: =IF(E110="","",lookup!J102) ->  | G110: =IF(E110="","",lookup!K102-lookup!J102) ->  | I110: =IF(E110="","",IF(lookup!K102<0,0,lookup!K102)) -> 
E111: =IF(I110="","",IF(B$13<E110+1,"",IF(I110=B$14,"",lookup!I103))) ->  | F111: =IF(E111="","",lookup!J103) ->  | G111: =IF(E111="","",lookup!K103-lookup!J103) ->  | I111: =IF(E111="","",IF(lookup!K103<0,0,lookup!K103)) -> 
E112: =IF(I111="","",IF(B$13<E111+1,"",IF(I111=B$14,"",lookup!I104))) ->  | F112: =IF(E112="","",lookup!J104) ->  | G112: =IF(E112="","",lookup!K104-lookup!J104) ->  | I112: =IF(E112="","",IF(lookup!K104<0,0,lookup!K104)) -> 
E113: =IF(I112="","",IF(B$13<E112+1,"",IF(I112=B$14,"",lookup!I105))) ->  | F113: =IF(E113="","",lookup!J105) ->  | G113: =IF(E113="","",lookup!K105-lookup!J105) ->  | I113: =IF(E113="","",IF(lookup!K105<0,0,lookup!K105)) -> 
E114: =IF(I113="","",IF(B$13<E113+1,"",IF(I113=B$14,"",lookup!I106))) ->  | F114: =IF(E114="","",lookup!J106) ->  | G114: =IF(E114="","",lookup!K106-lookup!J106) ->  | I114: =IF(E114="","",IF(lookup!K106<0,0,lookup!K106)) -> 
E115: =IF(I114="","",IF(B$13<E114+1,"",IF(I114=B$14,"",lookup!I107))) ->  | F115: =IF(E115="","",lookup!J107) ->  | G115: =IF(E115="","",lookup!K107-lookup!J107) ->  | I115: =IF(E115="","",IF(lookup!K107<0,0,lookup!K107)) -> 
E116: =IF(I115="","",IF(B$13<E115+1,"",IF(I115=B$14,"",lookup!I108))) ->  | F116: =IF(E116="","",lookup!J108) ->  | G116: =IF(E116="","",lookup!K108-lookup!J108) ->  | I116: =IF(E116="","",IF(lookup!K108<0,0,lookup!K108)) -> 
E117: =IF(I116="","",IF(B$13<E116+1,"",IF(I116=B$14,"",lookup!I109))) ->  | F117: =IF(E117="","",lookup!J109) ->  | G117: =IF(E117="","",lookup!K109-lookup!J109) ->  | I117: =IF(E117="","",IF(lookup!K109<0,0,lookup!K109)) -> 
E118: =IF(I117="","",IF(B$13<E117+1,"",IF(I117=B$14,"",lookup!I110))) ->  | F118: =IF(E118="","",lookup!J110) ->  | G118: =IF(E118="","",lookup!K110-lookup!J110) ->  | I118: =IF(E118="","",IF(lookup!K110<0,0,lookup!K110)) -> 
E119: =IF(I118="","",IF(B$13<E118+1,"",IF(I118=B$14,"",lookup!I111))) ->  | F119: =IF(E119="","",lookup!J111) ->  | G119: =IF(E119="","",lookup!K111-lookup!J111) ->  | I119: =IF(E119="","",IF(lookup!K111<0,0,lookup!K111)) -> 
E120: =IF(I119="","",IF(B$13<E119+1,"",IF(I119=B$14,"",lookup!I112))) ->  | F120: =IF(E120="","",lookup!J112) ->  | G120: =IF(E120="","",lookup!K112-lookup!J112) ->  | I120: =IF(E120="","",IF(lookup!K112<0,0,lookup!K112)) -> 
E121: =IF(I120="","",IF(B$13<E120+1,"",IF(I120=B$14,"",lookup!I113))) ->  | F121: =IF(E121="","",lookup!J113) ->  | G121: =IF(E121="","",lookup!K113-lookup!J113) ->  | I121: =IF(E121="","",IF(lookup!K113<0,0,lookup!K113)) -> 
E122: =IF(I121="","",IF(B$13<E121+1,"",IF(I121=B$14,"",lookup!I114))) ->  | F122: =IF(E122="","",lookup!J114) ->  | G122: =IF(E122="","",lookup!K114-lookup!J114) ->  | I122: =IF(E122="","",IF(lookup!K114<0,0,lookup!K114)) -> 
E123: =IF(I122="","",IF(B$13<E122+1,"",IF(I122=B$14,"",lookup!I115))) ->  | F123: =IF(E123="","",lookup!J115) ->  | G123: =IF(E123="","",lookup!K115-lookup!J115) ->  | I123: =IF(E123="","",IF(lookup!K115<0,0,lookup!K115)) -> 
E124: =IF(I123="","",IF(B$13<E123+1,"",IF(I123=B$14,"",lookup!I116))) ->  | F124: =IF(E124="","",lookup!J116) ->  | G124: =IF(E124="","",lookup!K116-lookup!J116) ->  | I124: =IF(E124="","",IF(lookup!K116<0,0,lookup!K116)) -> 
E125: =IF(I124="","",IF(B$13<E124+1,"",IF(I124=B$14,"",lookup!I117))) ->  | F125: =IF(E125="","",lookup!J117) ->  | G125: =IF(E125="","",lookup!K117-lookup!J117) ->  | I125: =IF(E125="","",IF(lookup!K117<0,0,lookup!K117)) -> 
E126: =IF(I125="","",IF(B$13<E125+1,"",IF(I125=B$14,"",lookup!I118))) ->  | F126: =IF(E126="","",lookup!J118) ->  | G126: =IF(E126="","",lookup!K118-lookup!J118) ->  | I126: =IF(E126="","",IF(lookup!K118<0,0,lookup!K118)) -> 
E127: =IF(I126="","",IF(B$13<E126+1,"",IF(I126=B$14,"",lookup!I119))) ->  | F127: =IF(E127="","",lookup!J119) ->  | G127: =IF(E127="","",lookup!K119-lookup!J119) ->  | I127: =IF(E127="","",IF(lookup!K119<0,0,lookup!K119)) -> 
E128: =IF(I127="","",IF(B$13<E127+1,"",IF(I127=B$14,"",lookup!I120))) ->  | F128: =IF(E128="","",lookup!J120) ->  | G128: =IF(E128="","",lookup!K120-lookup!J120) ->  | I128: =IF(E128="","",IF(lookup!K120<0,0,lookup!K120)) -> 
E129: =IF(I128="","",IF(B$13<E128+1,"",IF(I128=B$14,"",lookup!I121))) ->  | F129: =IF(E129="","",lookup!J121) ->  | G129: =IF(E129="","",lookup!K121-lookup!J121) ->  | I129: =IF(E129="","",IF(lookup!K121<0,0,lookup!K121)) -> 
E130: =IF(I129="","",IF(B$13<E129+1,"",IF(I129=B$14,"",lookup!I122))) ->  | F130: =IF(E130="","",lookup!J122) ->  | G130: =IF(E130="","",lookup!K122-lookup!J122) ->  | I130: =IF(E130="","",IF(lookup!K122<0,0,lookup!K122)) -> 
E131: =IF(I130="","",IF(B$13<E130+1,"",IF(I130=B$14,"",lookup!I123))) ->  | F131: =IF(E131="","",lookup!J123) ->  | G131: =IF(E131="","",lookup!K123-lookup!J123) ->  | I131: =IF(E131="","",IF(lookup!K123<0,0,lookup!K123)) -> 
E132: =IF(I131="","",IF(B$13<E131+1,"",IF(I131=B$14,"",lookup!I124))) ->  | F132: =IF(E132="","",lookup!J124) ->  | G132: =IF(E132="","",lookup!K124-lookup!J124) ->  | I132: =IF(E132="","",IF(lookup!K124<0,0,lookup!K124)) -> 
E133: =IF(I132="","",IF(B$13<E132+1,"",IF(I132=B$14,"",lookup!I125))) ->  | F133: =IF(E133="","",lookup!J125) ->  | G133: =IF(E133="","",lookup!K125-lookup!J125) ->  | I133: =IF(E133="","",IF(lookup!K125<0,0,lookup!K125)) -> 
E134: =IF(I133="","",IF(B$13<E133+1,"",IF(I133=B$14,"",lookup!I126))) ->  | F134: =IF(E134="","",lookup!J126) ->  | G134: =IF(E134="","",lookup!K126-lookup!J126) ->  | I134: =IF(E134="","",IF(lookup!K126<0,0,lookup!K126)) -> 
E135: =IF(I134="","",IF(B$13<E134+1,"",IF(I134=B$14,"",lookup!I127))) ->  | F135: =IF(E135="","",lookup!J127) ->  | G135: =IF(E135="","",lookup!K127-lookup!J127) ->  | I135: =IF(E135="","",IF(lookup!K127<0,0,lookup!K127)) -> 
E136: =IF(I135="","",IF(B$13<E135+1,"",IF(I135=B$14,"",lookup!I128))) ->  | F136: =IF(E136="","",lookup!J128) ->  | G136: =IF(E136="","",lookup!K128-lookup!J128) ->  | I136: =IF(E136="","",IF(lookup!K128<0,0,lookup!K128)) -> 
E137: =IF(I136="","",IF(B$13<E136+1,"",IF(I136=B$14,"",lookup!I129))) ->  | F137: =IF(E137="","",lookup!J129) ->  | G137: =IF(E137="","",lookup!K129-lookup!J129) ->  | I137: =IF(E137="","",IF(lookup!K129<0,0,lookup!K129)) -> 
E138: =IF(I137="","",IF(B$13<E137+1,"",IF(I137=B$14,"",lookup!I130))) ->  | F138: =IF(E138="","",lookup!J130) ->  | G138: =IF(E138="","",lookup!K130-lookup!J130) ->  | I138: =IF(E138="","",IF(lookup!K130<0,0,lookup!K130)) -> 
E139: =IF(I138="","",IF(B$13<E138+1,"",IF(I138=B$14,"",lookup!I131))) ->  | F139: =IF(E139="","",lookup!J131) ->  | G139: =IF(E139="","",lookup!K131-lookup!J131) ->  | H139: =IF(E139="","",H138+G139) ->  | I139: =IF(E139="","",IF(lookup!K131<0,0,lookup!K131)) -> 
E140: =IF(I139="","",IF(B$13<E139+1,"",IF(I139=B$14,"",lookup!I132))) ->  | F140: =IF(E140="","",lookup!J132) ->  | G140: =IF(E140="","",lookup!K132-lookup!J132) ->  | I140: =IF(E140="","",IF(lookup!K132<0,0,lookup!K132)) -> 
E141: =IF(I140="","",IF(B$13<E140+1,"",IF(I140=B$14,"",lookup!I133))) ->  | F141: =IF(E141="","",lookup!J133) ->  | G141: =IF(E141="","",lookup!K133-lookup!J133) ->  | I141: =IF(E141="","",IF(lookup!K133<0,0,lookup!K133)) -> 
E142: =IF(I141="","",IF(B$13<E141+1,"",IF(I141=B$14,"",lookup!I134))) ->  | F142: =IF(E142="","",lookup!J134) ->  | G142: =IF(E142="","",lookup!K134-lookup!J134) ->  | I142: =IF(E142="","",IF(lookup!K134<0,0,lookup!K134)) -> 
E143: =IF(I142="","",IF(B$13<E142+1,"",IF(I142=B$14,"",lookup!I135))) ->  | F143: =IF(E143="","",lookup!J135) ->  | G143: =IF(E143="","",lookup!K135-lookup!J135) ->  | I143: =IF(E143="","",IF(lookup!K135<0,0,lookup!K135)) -> 
E144: =IF(I143="","",IF(B$13<E143+1,"",IF(I143=B$14,"",lookup!I136))) ->  | F144: =IF(E144="","",lookup!J136) ->  | G144: =IF(E144="","",lookup!K136-lookup!J136) ->  | I144: =IF(E144="","",IF(lookup!K136<0,0,lookup!K136)) -> 
E145: =IF(I144="","",IF(B$13<E144+1,"",IF(I144=B$14,"",lookup!I137))) ->  | F145: =IF(E145="","",lookup!J137) ->  | G145: =IF(E145="","",lookup!K137-lookup!J137) ->  | I145: =IF(E145="","",IF(lookup!K137<0,0,lookup!K137)) -> 
E146: =IF(I145="","",IF(B$13<E145+1,"",IF(I145=B$14,"",lookup!I138))) ->  | F146: =IF(E146="","",lookup!J138) ->  | G146: =IF(E146="","",lookup!K138-lookup!J138) ->  | I146: =IF(E146="","",IF(lookup!K138<0,0,lookup!K138)) -> 
E147: =IF(I146="","",IF(B$13<E146+1,"",IF(I146=B$14,"",lookup!I139))) ->  | F147: =IF(E147="","",lookup!J139) ->  | G147: =IF(E147="","",lookup!K139-lookup!J139) ->  | I147: =IF(E147="","",IF(lookup!K139<0,0,lookup!K139)) -> 
E148: =IF(I147="","",IF(B$13<E147+1,"",IF(I147=B$14,"",lookup!I140))) ->  | F148: =IF(E148="","",lookup!J140) ->  | G148: =IF(E148="","",lookup!K140-lookup!J140) ->  | I148: =IF(E148="","",IF(lookup!K140<0,0,lookup!K140)) -> 
E149: =IF(I148="","",IF(B$13<E148+1,"",IF(I148=B$14,"",lookup!I141))) ->  | F149: =IF(E149="","",lookup!J141) ->  | G149: =IF(E149="","",lookup!K141-lookup!J141) ->  | I149: =IF(E149="","",IF(lookup!K141<0,0,lookup!K141)) -> 
E150: =IF(I149="","",IF(B$13<E149+1,"",IF(I149=B$14,"",lookup!I142))) ->  | F150: =IF(E150="","",lookup!J142) ->  | G150: =IF(E150="","",lookup!K142-lookup!J142) ->  | I150: =IF(E150="","",IF(lookup!K142<0,0,lookup!K142)) -> 
E151: =IF(I150="","",IF(B$13<E150+1,"",IF(I150=B$14,"",lookup!I143))) ->  | F151: =IF(E151="","",lookup!J143) ->  | G151: =IF(E151="","",lookup!K143-lookup!J143) ->  | I151: =IF(E151="","",IF(lookup!K143<0,0,lookup!K143)) -> 
E152: =IF(I151="","",IF(B$13<E151+1,"",IF(I151=B$14,"",lookup!I144))) ->  | F152: =IF(E152="","",lookup!J144) ->  | G152: =IF(E152="","",lookup!K144-lookup!J144) ->  | I152: =IF(E152="","",IF(lookup!K144<0,0,lookup!K144)) -> 
E153: =IF(I152="","",IF(B$13<E152+1,"",IF(I152=B$14,"",lookup!I145))) ->  | F153: =IF(E153="","",lookup!J145) ->  | G153: =IF(E153="","",lookup!K145-lookup!J145) ->  | I153: =IF(E153="","",IF(lookup!K145<0,0,lookup!K145)) -> 
E154: =IF(I153="","",IF(B$13<E153+1,"",IF(I153=B$14,"",lookup!I146))) ->  | F154: =IF(E154="","",lookup!J146) ->  | G154: =IF(E154="","",lookup!K146-lookup!J146) ->  | I154: =IF(E154="","",IF(lookup!K146<0,0,lookup!K146)) -> 
E155: =IF(I154="","",IF(B$13<E154+1,"",IF(I154=B$14,"",lookup!I147))) ->  | F155: =IF(E155="","",lookup!J147) ->  | G155: =IF(E155="","",lookup!K147-lookup!J147) ->  | I155: =IF(E155="","",IF(lookup!K147<0,0,lookup!K147)) -> 
E156: =IF(I155="","",IF(B$13<E155+1,"",IF(I155=B$14,"",lookup!I148))) ->  | F156: =IF(E156="","",lookup!J148) ->  | G156: =IF(E156="","",lookup!K148-lookup!J148) ->  | I156: =IF(E156="","",IF(lookup!K148<0,0,lookup!K148)) -> 
E157: =IF(I156="","",IF(B$13<E156+1,"",IF(I156=B$14,"",lookup!I149))) ->  | F157: =IF(E157="","",lookup!J149) ->  | G157: =IF(E157="","",lookup!K149-lookup!J149) ->  | I157: =IF(E157="","",IF(lookup!K149<0,0,lookup!K149)) -> 
E158: =IF(I157="","",IF(B$13<E157+1,"",IF(I157=B$14,"",lookup!I150))) ->  | F158: =IF(E158="","",lookup!J150) ->  | G158: =IF(E158="","",lookup!K150-lookup!J150) ->  | I158: =IF(E158="","",IF(lookup!K150<0,0,lookup!K150)) -> 
E159: =IF(I158="","",IF(B$13<E158+1,"",IF(I158=B$14,"",lookup!I151))) ->  | F159: =IF(E159="","",lookup!J151) ->  | G159: =IF(E159="","",lookup!K151-lookup!J151) ->  | I159: =IF(E159="","",IF(lookup!K151<0,0,lookup!K151)) -> 
E160: =IF(I159="","",IF(B$13<E159+1,"",IF(I159=B$14,"",lookup!I152))) ->  | F160: =IF(E160="","",lookup!J152) ->  | G160: =IF(E160="","",lookup!K152-lookup!J152) ->  | I160: =IF(E160="","",IF(lookup!K152<0,0,lookup!K152)) -> 
E161: =IF(I160="","",IF(B$13<E160+1,"",IF(I160=B$14,"",lookup!I153))) ->  | F161: =IF(E161="","",lookup!J153) ->  | G161: =IF(E161="","",lookup!K153-lookup!J153) ->  | I161: =IF(E161="","",IF(lookup!K153<0,0,lookup!K153)) -> 
E162: =IF(I161="","",IF(B$13<E161+1,"",IF(I161=B$14,"",lookup!I154))) ->  | F162: =IF(E162="","",lookup!J154) ->  | G162: =IF(E162="","",lookup!K154-lookup!J154) ->  | I162: =IF(E162="","",IF(lookup!K154<0,0,lookup!K154)) -> 
E163: =IF(I162="","",IF(B$13<E162+1,"",IF(I162=B$14,"",lookup!I155))) ->  | F163: =IF(E163="","",lookup!J155) ->  | G163: =IF(E163="","",lookup!K155-lookup!J155) ->  | I163: =IF(E163="","",IF(lookup!K155<0,0,lookup!K155)) -> 
E164: =IF(I163="","",IF(B$13<E163+1,"",IF(I163=B$14,"",lookup!I156))) ->  | F164: =IF(E164="","",lookup!J156) ->  | G164: =IF(E164="","",lookup!K156-lookup!J156) ->  | I164: =IF(E164="","",IF(lookup!K156<0,0,lookup!K156)) -> 
E165: =IF(I164="","",IF(B$13<E164+1,"",IF(I164=B$14,"",lookup!I157))) ->  | F165: =IF(E165="","",lookup!J157) ->  | G165: =IF(E165="","",lookup!K157-lookup!J157) ->  | I165: =IF(E165="","",IF(lookup!K157<0,0,lookup!K157)) -> 
E166: =IF(I165="","",IF(B$13<E165+1,"",IF(I165=B$14,"",lookup!I158))) ->  | F166: =IF(E166="","",lookup!J158) ->  | G166: =IF(E166="","",lookup!K158-lookup!J158) ->  | I166: =IF(E166="","",IF(lookup!K158<0,0,lookup!K158)) -> 
E167: =IF(I166="","",IF(B$13<E166+1,"",IF(I166=B$14,"",lookup!I159))) ->  | F167: =IF(E167="","",lookup!J159) ->  | G167: =IF(E167="","",lookup!K159-lookup!J159) ->  | I167: =IF(E167="","",IF(lookup!K159<0,0,lookup!K159)) -> 
E168: =IF(I167="","",IF(B$13<E167+1,"",IF(I167=B$14,"",lookup!I160))) ->  | F168: =IF(E168="","",lookup!J160) ->  | G168: =IF(E168="","",lookup!K160-lookup!J160) ->  | I168: =IF(E168="","",IF(lookup!K160<0,0,lookup!K160)) -> 
E169: =IF(I168="","",IF(B$13<E168+1,"",IF(I168=B$14,"",lookup!I161))) ->  | F169: =IF(E169="","",lookup!J161) ->  | G169: =IF(E169="","",lookup!K161-lookup!J161) ->  | I169: =IF(E169="","",IF(lookup!K161<0,0,lookup!K161)) -> 
E170: =IF(I169="","",IF(B$13<E169+1,"",IF(I169=B$14,"",lookup!I162))) ->  | F170: =IF(E170="","",lookup!J162) ->  | G170: =IF(E170="","",lookup!K162-lookup!J162) ->  | I170: =IF(E170="","",IF(lookup!K162<0,0,lookup!K162)) -> 
E171: =IF(I170="","",IF(B$13<E170+1,"",IF(I170=B$14,"",lookup!I163))) ->  | F171: =IF(E171="","",lookup!J163) ->  | G171: =IF(E171="","",lookup!K163-lookup!J163) ->  | I171: =IF(E171="","",IF(lookup!K163<0,0,lookup!K163)) -> 
E172: =IF(I171="","",IF(B$13<E171+1,"",IF(I171=B$14,"",lookup!I164))) ->  | F172: =IF(E172="","",lookup!J164) ->  | G172: =IF(E172="","",lookup!K164-lookup!J164) ->  | I172: =IF(E172="","",IF(lookup!K164<0,0,lookup!K164)) -> 
E173: =IF(I172="","",IF(B$13<E172+1,"",IF(I172=B$14,"",lookup!I165))) ->  | F173: =IF(E173="","",lookup!J165) ->  | G173: =IF(E173="","",lookup!K165-lookup!J165) ->  | I173: =IF(E173="","",IF(lookup!K165<0,0,lookup!K165)) -> 
E174: =IF(I173="","",IF(B$13<E173+1,"",IF(I173=B$14,"",lookup!I166))) ->  | F174: =IF(E174="","",lookup!J166) ->  | G174: =IF(E174="","",lookup!K166-lookup!J166) ->  | I174: =IF(E174="","",IF(lookup!K166<0,0,lookup!K166)) -> 
E175: =IF(I174="","",IF(B$13<E174+1,"",IF(I174=B$14,"",lookup!I167))) ->  | F175: =IF(E175="","",lookup!J167) ->  | G175: =IF(E175="","",lookup!K167-lookup!J167) ->  | I175: =IF(E175="","",IF(lookup!K167<0,0,lookup!K167)) -> 
E176: =IF(I175="","",IF(B$13<E175+1,"",IF(I175=B$14,"",lookup!I168))) ->  | F176: =IF(E176="","",lookup!J168) ->  | G176: =IF(E176="","",lookup!K168-lookup!J168) ->  | I176: =IF(E176="","",IF(lookup!K168<0,0,lookup!K168)) -> 
E177: =IF(I176="","",IF(B$13<E176+1,"",IF(I176=B$14,"",lookup!I169))) ->  | F177: =IF(E177="","",lookup!J169) ->  | G177: =IF(E177="","",lookup!K169-lookup!J169) ->  | I177: =IF(E177="","",IF(lookup!K169<0,0,lookup!K169)) -> 
E178: =IF(I177="","",IF(B$13<E177+1,"",IF(I177=B$14,"",lookup!I170))) ->  | F178: =IF(E178="","",lookup!J170) ->  | G178: =IF(E178="","",lookup!K170-lookup!J170) ->  | I178: =IF(E178="","",IF(lookup!K170<0,0,lookup!K170)) -> 
E179: =IF(I178="","",IF(B$13<E178+1,"",IF(I178=B$14,"",lookup!I171))) ->  | F179: =IF(E179="","",lookup!J171) ->  | G179: =IF(E179="","",lookup!K171-lookup!J171) ->  | I179: =IF(E179="","",IF(lookup!K171<0,0,lookup!K171)) -> 
E180: =IF(I179="","",IF(B$13<E179+1,"",IF(I179=B$14,"",lookup!I172))) ->  | F180: =IF(E180="","",lookup!J172) ->  | G180: =IF(E180="","",lookup!K172-lookup!J172) ->  | I180: =IF(E180="","",IF(lookup!K172<0,0,lookup!K172)) -> 
E181: =IF(I180="","",IF(B$13<E180+1,"",IF(I180=B$14,"",lookup!I173))) ->  | F181: =IF(E181="","",lookup!J173) ->  | G181: =IF(E181="","",lookup!K173-lookup!J173) ->  | I181: =IF(E181="","",IF(lookup!K173<0,0,lookup!K173)) -> 
E182: =IF(I181="","",IF(B$13<E181+1,"",IF(I181=B$14,"",lookup!I174))) ->  | F182: =IF(E182="","",lookup!J174) ->  | G182: =IF(E182="","",lookup!K174-lookup!J174) ->  | I182: =IF(E182="","",IF(lookup!K174<0,0,lookup!K174)) -> 
E183: =IF(I182="","",IF(B$13<E182+1,"",IF(I182=B$14,"",lookup!I175))) ->  | F183: =IF(E183="","",lookup!J175) ->  | G183: =IF(E183="","",lookup!K175-lookup!J175) ->  | I183: =IF(E183="","",IF(lookup!K175<0,0,lookup!K175)) -> 
E184: =IF(I183="","",IF(B$13<E183+1,"",IF(I183=B$14,"",lookup!I176))) ->  | F184: =IF(E184="","",lookup!J176) ->  | G184: =IF(E184="","",lookup!K176-lookup!J176) ->  | I184: =IF(E184="","",IF(lookup!K176<0,0,lookup!K176)) -> 
E185: =IF(I184="","",IF(B$13<E184+1,"",IF(I184=B$14,"",lookup!I177))) ->  | F185: =IF(E185="","",lookup!J177) ->  | G185: =IF(E185="","",lookup!K177-lookup!J177) ->  | I185: =IF(E185="","",IF(lookup!K177<0,0,lookup!K177)) -> 
E186: =IF(I185="","",IF(B$13<E185+1,"",IF(I185=B$14,"",lookup!I178))) ->  | F186: =IF(E186="","",lookup!J178) ->  | G186: =IF(E186="","",lookup!K178-lookup!J178) ->  | I186: =IF(E186="","",IF(lookup!K178<0,0,lookup!K178)) -> 
E187: =IF(I186="","",IF(B$13<E186+1,"",IF(I186=B$14,"",lookup!I179))) ->  | F187: =IF(E187="","",lookup!J179) ->  | G187: =IF(E187="","",lookup!K179-lookup!J179) ->  | I187: =IF(E187="","",IF(lookup!K179<0,0,lookup!K179)) -> 
E188: =IF(I187="","",IF(B$13<E187+1,"",IF(I187=B$14,"",lookup!I180))) ->  | F188: =IF(E188="","",lookup!J180) ->  | G188: =IF(E188="","",lookup!K180-lookup!J180) ->  | I188: =IF(E188="","",IF(lookup!K180<0,0,lookup!K180)) -> 
E189: =IF(I188="","",IF(B$13<E188+1,"",IF(I188=B$14,"",lookup!I181))) ->  | F189: =IF(E189="","",lookup!J181) ->  | G189: =IF(E189="","",lookup!K181-lookup!J181) ->  | I189: =IF(E189="","",IF(lookup!K181<0,0,lookup!K181)) -> 
E190: =IF(I189="","",IF(B$13<E189+1,"",IF(I189=B$14,"",lookup!I182))) ->  | F190: =IF(E190="","",lookup!J182) ->  | G190: =IF(E190="","",lookup!K182-lookup!J182) ->  | I190: =IF(E190="","",IF(lookup!K182<0,0,lookup!K182)) -> 
E191: =IF(I190="","",IF(B$13<E190+1,"",IF(I190=B$14,"",lookup!I183))) ->  | F191: =IF(E191="","",lookup!J183) ->  | G191: =IF(E191="","",lookup!K183-lookup!J183) ->  | I191: =IF(E191="","",IF(lookup!K183<0,0,lookup!K183)) -> 
E192: =IF(I191="","",IF(B$13<E191+1,"",IF(I191=B$14,"",lookup!I184))) ->  | F192: =IF(E192="","",lookup!J184) ->  | G192: =IF(E192="","",lookup!K184-lookup!J184) ->  | I192: =IF(E192="","",IF(lookup!K184<0,0,lookup!K184)) -> 
E193: =IF(I192="","",IF(B$13<E192+1,"",IF(I192=B$14,"",lookup!I185))) ->  | F193: =IF(E193="","",lookup!J185) ->  | G193: =IF(E193="","",lookup!K185-lookup!J185) ->  | I193: =IF(E193="","",IF(lookup!K185<0,0,lookup!K185)) -> 
E194: =IF(I193="","",IF(B$13<E193+1,"",IF(I193=B$14,"",lookup!I186))) ->  | F194: =IF(E194="","",lookup!J186) ->  | G194: =IF(E194="","",lookup!K186-lookup!J186) ->  | I194: =IF(E194="","",IF(lookup!K186<0,0,lookup!K186)) -> 
E195: =IF(I194="","",IF(B$13<E194+1,"",IF(I194=B$14,"",lookup!I187))) ->  | F195: =IF(E195="","",lookup!J187) ->  | G195: =IF(E195="","",lookup!K187-lookup!J187) ->  | I195: =IF(E195="","",IF(lookup!K187<0,0,lookup!K187)) -> 
E196: =IF(I195="","",IF(B$13<E195+1,"",IF(I195=B$14,"",lookup!I188))) ->  | F196: =IF(E196="","",lookup!J188) ->  | G196: =IF(E196="","",lookup!K188-lookup!J188) ->  | I196: =IF(E196="","",IF(lookup!K188<0,0,lookup!K188)) -> 
E197: =IF(I196="","",IF(B$13<E196+1,"",IF(I196=B$14,"",lookup!I189))) ->  | F197: =IF(E197="","",lookup!J189) ->  | G197: =IF(E197="","",lookup!K189-lookup!J189) ->  | I197: =IF(E197="","",IF(lookup!K189<0,0,lookup!K189)) -> 
E198: =IF(I197="","",IF(B$13<E197+1,"",IF(I197=B$14,"",lookup!I190))) ->  | F198: =IF(E198="","",lookup!J190) ->  | G198: =IF(E198="","",lookup!K190-lookup!J190) ->  | I198: =IF(E198="","",IF(lookup!K190<0,0,lookup!K190)) -> 
E199: =IF(I198="","",IF(B$13<E198+1,"",IF(I198=B$14,"",lookup!I191))) ->  | F199: =IF(E199="","",lookup!J191) ->  | G199: =IF(E199="","",lookup!K191-lookup!J191) ->  | I199: =IF(E199="","",IF(lookup!K191<0,0,lookup!K191)) -> 
E200: =IF(I199="","",IF(B$13<E199+1,"",IF(I199=B$14,"",lookup!I192))) ->  | F200: =IF(E200="","",lookup!J192) ->  | G200: =IF(E200="","",lookup!K192-lookup!J192) ->  | I200: =IF(E200="","",IF(lookup!K192<0,0,lookup!K192)) -> 
E201: =IF(I200="","",IF(B$13<E200+1,"",IF(I200=B$14,"",lookup!I193))) ->  | F201: =IF(E201="","",lookup!J193) ->  | G201: =IF(E201="","",lookup!K193-lookup!J193) ->  | I201: =IF(E201="","",IF(lookup!K193<0,0,lookup!K193)) -> 
E202: =IF(I201="","",IF(B$13<E201+1,"",IF(I201=B$14,"",lookup!I194))) ->  | F202: =IF(E202="","",lookup!J194) ->  | G202: =IF(E202="","",lookup!K194-lookup!J194) ->  | I202: =IF(E202="","",IF(lookup!K194<0,0,lookup!K194)) -> 
E203: =IF(I202="","",IF(B$13<E202+1,"",IF(I202=B$14,"",lookup!I195))) ->  | F203: =IF(E203="","",lookup!J195) ->  | G203: =IF(E203="","",lookup!K195-lookup!J195) ->  | H203: =IF(E203="","",H202+G203) ->  | I203: =IF(E203="","",IF(lookup!K195<0,0,lookup!K195)) -> 
E204: =IF(I203="","",IF(B$13<E203+1,"",IF(I203=B$14,"",lookup!I196))) ->  | F204: =IF(E204="","",lookup!J196) ->  | G204: =IF(E204="","",lookup!K196-lookup!J196) ->  | I204: =IF(E204="","",IF(lookup!K196<0,0,lookup!K196)) -> 
E205: =IF(I204="","",IF(B$13<E204+1,"",IF(I204=B$14,"",lookup!I197))) ->  | F205: =IF(E205="","",lookup!J197) ->  | G205: =IF(E205="","",lookup!K197-lookup!J197) ->  | I205: =IF(E205="","",IF(lookup!K197<0,0,lookup!K197)) -> 
E206: =IF(I205="","",IF(B$13<E205+1,"",IF(I205=B$14,"",lookup!I198))) ->  | F206: =IF(E206="","",lookup!J198) ->  | G206: =IF(E206="","",lookup!K198-lookup!J198) ->  | I206: =IF(E206="","",IF(lookup!K198<0,0,lookup!K198)) -> 
E207: =IF(I206="","",IF(B$13<E206+1,"",IF(I206=B$14,"",lookup!I199))) ->  | F207: =IF(E207="","",lookup!J199) ->  | G207: =IF(E207="","",lookup!K199-lookup!J199) ->  | I207: =IF(E207="","",IF(lookup!K199<0,0,lookup!K199)) -> 
E208: =IF(I207="","",IF(B$13<E207+1,"",IF(I207=B$14,"",lookup!I200))) ->  | F208: =IF(E208="","",lookup!J200) ->  | G208: =IF(E208="","",lookup!K200-lookup!J200) ->  | I208: =IF(E208="","",IF(lookup!K200<0,0,lookup!K200)) -> 
... 402 more rows

Sheet Future Value (hidden)
A9: Future Value | E9: Period | F9: Present Value | G9: Added Value | H9: Total Added Value | I9: Future Value
E10: 0 | I10: =B12 -> 100
A11: Interest Rate per Period | B11: 10 | E11: =IF(B13=0,"",1) -> 1 | F11: =IF(E11="","",lookup!N3) -> 100 | G11: =IF(E11="","",lookup!O3-lookup!N3) -> 10 | H11: =IF(E11="","",H10+G11) -> 10 | I11: =IF(E11="","",IF(lookup!O3<0,0,lookup!O3)) -> 110
A12: Present Value | B12: 100 | E12: =IF(I11="","",IF(B$13<E11+1,"",IF(I11=B$14,"",lookup!M4))) -> 2 | F12: =IF(E12="","",lookup!N4) -> 110 | G12: =IF(E12="","",lookup!O4-lookup!N4) -> 11 | H12: =IF(E12="","",H11+G12) -> 21 | I12: =IF(E12="","",IF(lookup!O4<0,0,lookup!O4)) -> 121
A13: No of Periods | B13: 60 | E13: =IF(I12="","",IF(B$13<E12+1,"",IF(I12=B$14,"",lookup!M5))) -> 3 | F13: =IF(E13="","",lookup!N5) -> 121 | G13: =IF(E13="","",lookup!O5-lookup!N5) -> 12.1 | H13: =IF(E13="","",H12+G13) -> 33.1 | I13: =IF(E13="","",IF(lookup!O5<0,0,lookup!O5)) -> 133.1
A14: Future Value | B14: =B12*(1+B11/100)^B13 -> 30448.16395 | E14: =IF(I13="","",IF(B$13<E13+1,"",IF(I13=B$14,"",lookup!M6))) -> 4 | F14: =IF(E14="","",lookup!N6) -> 133.1 | G14: =IF(E14="","",lookup!O6-lookup!N6) -> 13.31 | H14: 46.41 | I14: =IF(E14="","",IF(lookup!O6<0,0,lookup!O6)) -> 146.41
E15: =IF(I14="","",IF(B$13<E14+1,"",IF(I14=B$14,"",lookup!M7))) -> 5 | F15: =IF(E15="","",lookup!N7) -> 146.41 | G15: =IF(E15="","",lookup!O7-lookup!N7) -> 14.641 | H15: 61.051 | I15: =IF(E15="","",IF(lookup!O7<0,0,lookup!O7)) -> 161.051
E16: =IF(I15="","",IF(B$13<E15+1,"",IF(I15=B$14,"",lookup!M8))) -> 6 | F16: =IF(E16="","",lookup!N8) -> 161.051 | G16: =IF(E16="","",lookup!O8-lookup!N8) -> 16.1051 | H16: 77.1561 | I16: =IF(E16="","",IF(lookup!O8<0,0,lookup!O8)) -> 177.1561
E17: =IF(I16="","",IF(B$13<E16+1,"",IF(I16=B$14,"",lookup!M9))) -> 7 | F17: =IF(E17="","",lookup!N9) -> 177.1561 | G17: =IF(E17="","",lookup!O9-lookup!N9) -> 17.71561 | H17: 94.87171 | I17: =IF(E17="","",IF(lookup!O9<0,0,lookup!O9)) -> 194.87171
E18: =IF(I17="","",IF(B$13<E17+1,"",IF(I17=B$14,"",lookup!M10))) -> 8 | F18: =IF(E18="","",lookup!N10) -> 194.87171 | G18: =IF(E18="","",lookup!O10-lookup!N10) -> 19.487171 | H18: 114.358881 | I18: =IF(E18="","",IF(lookup!O10<0,0,lookup!O10)) -> 214.358881
E19: =IF(I18="","",IF(B$13<E18+1,"",IF(I18=B$14,"",lookup!M11))) -> 9 | F19: =IF(E19="","",lookup!N11) -> 214.358881 | G19: =IF(E19="","",lookup!O11-lookup!N11) -> 21.4358881 | H19: 135.7947691 | I19: =IF(E19="","",IF(lookup!O11<0,0,lookup!O11)) -> 235.7947691
E20: =IF(I19="","",IF(B$13<E19+1,"",IF(I19=B$14,"",lookup!M12))) -> 10 | F20: =IF(E20="","",lookup!N12) -> 235.7947691 | G20: =IF(E20="","",lookup!O12-lookup!N12) -> 23.57947691 | H20: 159.374246 | I20: =IF(E20="","",IF(lookup!O12<0,0,lookup!O12)) -> 259.374246
E21: =IF(I20="","",IF(B$13<E20+1,"",IF(I20=B$14,"",lookup!M13))) -> 11 | F21: =IF(E21="","",lookup!N13) -> 259.374246 | G21: =IF(E21="","",lookup!O13-lookup!N13) -> 25.9374246 | H21: 185.3116706 | I21: =IF(E21="","",IF(lookup!O13<0,0,lookup!O13)) -> 285.3116706
E22: =IF(I21="","",IF(B$13<E21+1,"",IF(I21=B$14,"",lookup!M14))) -> 12 | F22: =IF(E22="","",lookup!N14) -> 285.3116706 | G22: =IF(E22="","",lookup!O14-lookup!N14) -> 28.53116706 | H22: 213.8428377 | I22: =IF(E22="","",IF(lookup!O14<0,0,lookup!O14)) -> 313.8428377
E23: =IF(I22="","",IF(B$13<E22+1,"",IF(I22=B$14,"",lookup!M15))) -> 13 | F23: =IF(E23="","",lookup!N15) -> 313.8428377 | G23: =IF(E23="","",lookup!O15-lookup!N15) -> 31.38428377 | H23: 245.2271214 | I23: =IF(E23="","",IF(lookup!O15<0,0,lookup!O15)) -> 345.2271214
E24: =IF(I23="","",IF(B$13<E23+1,"",IF(I23=B$14,"",lookup!M16))) -> 14 | F24: =IF(E24="","",lookup!N16) -> 345.2271214 | G24: =IF(E24="","",lookup!O16-lookup!N16) -> 34.52271214 | H24: 279.7498336 | I24: =IF(E24="","",IF(lookup!O16<0,0,lookup!O16)) -> 379.7498336
E25: =IF(I24="","",IF(B$13<E24+1,"",IF(I24=B$14,"",lookup!M17))) -> 15 | F25: =IF(E25="","",lookup!N17) -> 379.7498336 | G25: =IF(E25="","",lookup!O17-lookup!N17) -> 37.97498336 | H25: 317.7248169 | I25: =IF(E25="","",IF(lookup!O17<0,0,lookup!O17)) -> 417.7248169
E26: =IF(I25="","",IF(B$13<E25+1,"",IF(I25=B$14,"",lookup!M18))) -> 16 | F26: =IF(E26="","",lookup!N18) -> 417.7248169 | G26: =IF(E26="","",lookup!O18-lookup!N18) -> 41.77248169 | H26: 359.4972986 | I26: =IF(E26="","",IF(lookup!O18<0,0,lookup!O18)) -> 459.4972986
E27: =IF(I26="","",IF(B$13<E26+1,"",IF(I26=B$14,"",lookup!M19))) -> 17 | F27: =IF(E27="","",lookup!N19) -> 459.4972986 | G27: =IF(E27="","",lookup!O19-lookup!N19) -> 45.94972986 | H27: 405.4470285 | I27: =IF(E27="","",IF(lookup!O19<0,0,lookup!O19)) -> 505.4470285
E28: =IF(I27="","",IF(B$13<E27+1,"",IF(I27=B$14,"",lookup!M20))) -> 18 | F28: =IF(E28="","",lookup!N20) -> 505.4470285 | G28: =IF(E28="","",lookup!O20-lookup!N20) -> 50.54470285 | H28: 455.9917313 | I28: =IF(E28="","",IF(lookup!O20<0,0,lookup!O20)) -> 555.9917313
E29: =IF(I28="","",IF(B$13<E28+1,"",IF(I28=B$14,"",lookup!M21))) -> 19 | F29: =IF(E29="","",lookup!N21) -> 555.9917313 | G29: =IF(E29="","",lookup!O21-lookup!N21) -> 55.59917313 | H29: 511.5909045 | I29: =IF(E29="","",IF(lookup!O21<0,0,lookup!O21)) -> 611.5909045
E30: =IF(I29="","",IF(B$13<E29+1,"",IF(I29=B$14,"",lookup!M22))) -> 20 | F30: =IF(E30="","",lookup!N22) -> 611.5909045 | G30: =IF(E30="","",lookup!O22-lookup!N22) -> 61.15909045 | H30: 572.7499949 | I30: =IF(E30="","",IF(lookup!O22<0,0,lookup!O22)) -> 672.7499949
E31: =IF(I30="","",IF(B$13<E30+1,"",IF(I30=B$14,"",lookup!M23))) -> 21 | F31: =IF(E31="","",lookup!N23) -> 672.7499949 | G31: =IF(E31="","",lookup!O23-lookup!N23) -> 67.27499949 | H31: 640.0249944 | I31: =IF(E31="","",IF(lookup!O23<0,0,lookup!O23)) -> 740.0249944
E32: =IF(I31="","",IF(B$13<E31+1,"",IF(I31=B$14,"",lookup!M24))) -> 22 | F32: =IF(E32="","",lookup!N24) -> 740.0249944 | G32: =IF(E32="","",lookup!O24-lookup!N24) -> 74.00249944 | H32: 714.0274939 | I32: =IF(E32="","",IF(lookup!O24<0,0,lookup!O24)) -> 814.0274939
E33: =IF(I32="","",IF(B$13<E32+1,"",IF(I32=B$14,"",lookup!M25))) -> 23 | F33: =IF(E33="","",lookup!N25) -> 814.0274939 | G33: =IF(E33="","",lookup!O25-lookup!N25) -> 81.40274939 | H33: 795.4302433 | I33: =IF(E33="","",IF(lookup!O25<0,0,lookup!O25)) -> 895.4302433
E34: =IF(I33="","",IF(B$13<E33+1,"",IF(I33=B$14,"",lookup!M26))) -> 24 | F34: =IF(E34="","",lookup!N26) -> 895.4302433 | G34: =IF(E34="","",lookup!O26-lookup!N26) -> 89.54302433 | H34: 884.9732676 | I34: =IF(E34="","",IF(lookup!O26<0,0,lookup!O26)) -> 984.9732676
E35: =IF(I34="","",IF(B$13<E34+1,"",IF(I34=B$14,"",lookup!M27))) -> 25 | F35: =IF(E35="","",lookup!N27) -> 984.9732676 | G35: =IF(E35="","",lookup!O27-lookup!N27) -> 98.49732676 | H35: 983.4705943 | I35: =IF(E35="","",IF(lookup!O27<0,0,lookup!O27)) -> 1083.470594
E36: =IF(I35="","",IF(B$13<E35+1,"",IF(I35=B$14,"",lookup!M28))) -> 26 | F36: =IF(E36="","",lookup!N28) -> 1083.470594 | G36: =IF(E36="","",lookup!O28-lookup!N28) -> 108.3470594 | H36: 1091.817654 | I36: =IF(E36="","",IF(lookup!O28<0,0,lookup!O28)) -> 1191.817654
E37: =IF(I36="","",IF(B$13<E36+1,"",IF(I36=B$14,"",lookup!M29))) -> 27 | F37: =IF(E37="","",lookup!N29) -> 1191.817654 | G37: =IF(E37="","",lookup!O29-lookup!N29) -> 119.1817654 | H37: 1210.999419 | I37: =IF(E37="","",IF(lookup!O29<0,0,lookup!O29)) -> 1310.999419
E38: =IF(I37="","",IF(B$13<E37+1,"",IF(I37=B$14,"",lookup!M30))) -> 28 | F38: =IF(E38="","",lookup!N30) -> 1310.999419 | G38: =IF(E38="","",lookup!O30-lookup!N30) -> 131.0999419 | H38: 1342.099361 | I38: =IF(E38="","",IF(lookup!O30<0,0,lookup!O30)) -> 1442.099361
E39: =IF(I38="","",IF(B$13<E38+1,"",IF(I38=B$14,"",lookup!M31))) -> 29 | F39: =IF(E39="","",lookup!N31) -> 1442.099361 | G39: =IF(E39="","",lookup!O31-lookup!N31) -> 144.2099361 | H39: 1486.309297 | I39: =IF(E39="","",IF(lookup!O31<0,0,lookup!O31)) -> 1586.309297
E40: =IF(I39="","",IF(B$13<E39+1,"",IF(I39=B$14,"",lookup!M32))) -> 30 | F40: =IF(E40="","",lookup!N32) -> 1586.309297 | G40: =IF(E40="","",lookup!O32-lookup!N32) -> 158.6309297 | H40: 1644.940227 | I40: =IF(E40="","",IF(lookup!O32<0,0,lookup!O32)) -> 1744.940227
E41: =IF(I40="","",IF(B$13<E40+1,"",IF(I40=B$14,"",lookup!M33))) -> 31 | F41: =IF(E41="","",lookup!N33) -> 1744.940227 | G41: =IF(E41="","",lookup!O33-lookup!N33) -> 174.4940227 | H41: 1819.43425 | I41: =IF(E41="","",IF(lookup!O33<0,0,lookup!O33)) -> 1919.43425
E42: =IF(I41="","",IF(B$13<E41+1,"",IF(I41=B$14,"",lookup!M34))) -> 32 | F42: =IF(E42="","",lookup!N34) -> 1919.43425 | G42: =IF(E42="","",lookup!O34-lookup!N34) -> 191.943425 | H42: 2011.377675 | I42: =IF(E42="","",IF(lookup!O34<0,0,lookup!O34)) -> 2111.377675
E43: =IF(I42="","",IF(B$13<E42+1,"",IF(I42=B$14,"",lookup!M35))) -> 33 | F43: =IF(E43="","",lookup!N35) -> 2111.377675 | G43: =IF(E43="","",lookup!O35-lookup!N35) -> 211.1377675 | H43: 2222.515442 | I43: =IF(E43="","",IF(lookup!O35<0,0,lookup!O35)) -> 2322.515442
E44: =IF(I43="","",IF(B$13<E43+1,"",IF(I43=B$14,"",lookup!M36))) -> 34 | F44: =IF(E44="","",lookup!N36) -> 2322.515442 | G44: =IF(E44="","",lookup!O36-lookup!N36) -> 232.2515442 | H44: 2454.766986 | I44: =IF(E44="","",IF(lookup!O36<0,0,lookup!O36)) -> 2554.766986
E45: =IF(I44="","",IF(B$13<E44+1,"",IF(I44=B$14,"",lookup!M37))) -> 35 | F45: =IF(E45="","",lookup!N37) -> 2554.766986 | G45: =IF(E45="","",lookup!O37-lookup!N37) -> 255.4766986 | H45: 2710.243685 | I45: =IF(E45="","",IF(lookup!O37<0,0,lookup!O37)) -> 2810.243685
E46: =IF(I45="","",IF(B$13<E45+1,"",IF(I45=B$14,"",lookup!M38))) -> 36 | F46: =IF(E46="","",lookup!N38) -> 2810.243685 | G46: =IF(E46="","",lookup!O38-lookup!N38) -> 281.0243685 | H46: 2991.268053 | I46: =IF(E46="","",IF(lookup!O38<0,0,lookup!O38)) -> 3091.268053
E47: =IF(I46="","",IF(B$13<E46+1,"",IF(I46=B$14,"",lookup!M39))) -> 37 | F47: =IF(E47="","",lookup!N39) -> 3091.268053 | G47: =IF(E47="","",lookup!O39-lookup!N39) -> 309.1268053 | H47: 3300.394859 | I47: =IF(E47="","",IF(lookup!O39<0,0,lookup!O39)) -> 3400.394859
E48: =IF(I47="","",IF(B$13<E47+1,"",IF(I47=B$14,"",lookup!M40))) -> 38 | F48: =IF(E48="","",lookup!N40) -> 3400.394859 | G48: =IF(E48="","",lookup!O40-lookup!N40) -> 340.0394859 | H48: 3640.434344 | I48: =IF(E48="","",IF(lookup!O40<0,0,lookup!O40)) -> 3740.434344
E49: =IF(I48="","",IF(B$13<E48+1,"",IF(I48=B$14,"",lookup!M41))) -> 39 | F49: =IF(E49="","",lookup!N41) -> 3740.434344 | G49: =IF(E49="","",lookup!O41-lookup!N41) -> 374.0434344 | H49: 4014.477779 | I49: =IF(E49="","",IF(lookup!O41<0,0,lookup!O41)) -> 4114.477779
E50: =IF(I49="","",IF(B$13<E49+1,"",IF(I49=B$14,"",lookup!M42))) -> 40 | F50: =IF(E50="","",lookup!N42) -> 4114.477779 | G50: =IF(E50="","",lookup!O42-lookup!N42) -> 411.4477779 | H50: 4425.925557 | I50: =IF(E50="","",IF(lookup!O42<0,0,lookup!O42)) -> 4525.925557
E51: =IF(I50="","",IF(B$13<E50+1,"",IF(I50=B$14,"",lookup!M43))) -> 41 | F51: =IF(E51="","",lookup!N43) -> 4525.925557 | G51: =IF(E51="","",lookup!O43-lookup!N43) -> 452.5925557 | H51: 4878.518112 | I51: =IF(E51="","",IF(lookup!O43<0,0,lookup!O43)) -> 4978.518112
E52: =IF(I51="","",IF(B$13<E51+1,"",IF(I51=B$14,"",lookup!M44))) -> 42 | F52: =IF(E52="","",lookup!N44) -> 4978.518112 | G52: =IF(E52="","",lookup!O44-lookup!N44) -> 497.8518112 | H52: 5376.369924 | I52: =IF(E52="","",IF(lookup!O44<0,0,lookup!O44)) -> 5476.369924
E53: =IF(I52="","",IF(B$13<E52+1,"",IF(I52=B$14,"",lookup!M45))) -> 43 | F53: =IF(E53="","",lookup!N45) -> 5476.369924 | G53: =IF(E53="","",lookup!O45-lookup!N45) -> 547.6369924 | H53: 5924.006916 | I53: =IF(E53="","",IF(lookup!O45<0,0,lookup!O45)) -> 6024.006916
E54: =IF(I53="","",IF(B$13<E53+1,"",IF(I53=B$14,"",lookup!M46))) -> 44 | F54: =IF(E54="","",lookup!N46) -> 6024.006916 | G54: =IF(E54="","",lookup!O46-lookup!N46) -> 602.4006916 | H54: 6526.407608 | I54: =IF(E54="","",IF(lookup!O46<0,0,lookup!O46)) -> 6626.407608
E55: =IF(I54="","",IF(B$13<E54+1,"",IF(I54=B$14,"",lookup!M47))) -> 45 | F55: =IF(E55="","",lookup!N47) -> 6626.407608 | G55: =IF(E55="","",lookup!O47-lookup!N47) -> 662.6407608 | H55: 7189.048369 | I55: =IF(E55="","",IF(lookup!O47<0,0,lookup!O47)) -> 7289.048369
E56: =IF(I55="","",IF(B$13<E55+1,"",IF(I55=B$14,"",lookup!M48))) -> 46 | F56: =IF(E56="","",lookup!N48) -> 7289.048369 | G56: =IF(E56="","",lookup!O48-lookup!N48) -> 728.9048369 | H56: 7917.953205 | I56: =IF(E56="","",IF(lookup!O48<0,0,lookup!O48)) -> 8017.953205
E57: =IF(I56="","",IF(B$13<E56+1,"",IF(I56=B$14,"",lookup!M49))) -> 47 | F57: =IF(E57="","",lookup!N49) -> 8017.953205 | G57: =IF(E57="","",lookup!O49-lookup!N49) -> 801.7953205 | H57: 8719.748526 | I57: =IF(E57="","",IF(lookup!O49<0,0,lookup!O49)) -> 8819.748526
E58: =IF(I57="","",IF(B$13<E57+1,"",IF(I57=B$14,"",lookup!M50))) -> 48 | F58: =IF(E58="","",lookup!N50) -> 8819.748526 | G58: =IF(E58="","",lookup!O50-lookup!N50) -> 881.9748526 | H58: 9601.723378 | I58: =IF(E58="","",IF(lookup!O50<0,0,lookup!O50)) -> 9701.723378
E59: =IF(I58="","",IF(B$13<E58+1,"",IF(I58=B$14,"",lookup!M51))) -> 49 | F59: =IF(E59="","",lookup!N51) -> 9701.723378 | G59: =IF(E59="","",lookup!O51-lookup!N51) -> 970.1723378 | H59: 10571.89572 | I59: =IF(E59="","",IF(lookup!O51<0,0,lookup!O51)) -> 10671.89572
E60: =IF(I59="","",IF(B$13<E59+1,"",IF(I59=B$14,"",lookup!M52))) -> 50 | F60: =IF(E60="","",lookup!N52) -> 10671.89572 | G60: =IF(E60="","",lookup!O52-lookup!N52) -> 1067.189572 | H60: 11639.08529 | I60: =IF(E60="","",IF(lookup!O52<0,0,lookup!O52)) -> 11739.08529
E61: =IF(I60="","",IF(B$13<E60+1,"",IF(I60=B$14,"",lookup!M53))) -> 51 | F61: =IF(E61="","",lookup!N53) -> 11739.08529 | G61: =IF(E61="","",lookup!O53-lookup!N53) -> 1173.908529 | H61: 12812.99382 | I61: =IF(E61="","",IF(lookup!O53<0,0,lookup!O53)) -> 12912.99382
E62: =IF(I61="","",IF(B$13<E61+1,"",IF(I61=B$14,"",lookup!M54))) -> 52 | F62: =IF(E62="","",lookup!N54) -> 12912.99382 | G62: =IF(E62="","",lookup!O54-lookup!N54) -> 1291.299382 | H62: 14104.2932 | I62: =IF(E62="","",IF(lookup!O54<0,0,lookup!O54)) -> 14204.2932
E63: =IF(I62="","",IF(B$13<E62+1,"",IF(I62=B$14,"",lookup!M55))) -> 53 | F63: =IF(E63="","",lookup!N55) -> 14204.2932 | G63: =IF(E63="","",lookup!O55-lookup!N55) -> 1420.42932 | H63: 15524.72252 | I63: =IF(E63="","",IF(lookup!O55<0,0,lookup!O55)) -> 15624.72252
E64: =IF(I63="","",IF(B$13<E63+1,"",IF(I63=B$14,"",lookup!M56))) -> 54 | F64: =IF(E64="","",lookup!N56) -> 15624.72252 | G64: =IF(E64="","",lookup!O56-lookup!N56) -> 1562.472252 | H64: 17087.19477 | I64: =IF(E64="","",IF(lookup!O56<0,0,lookup!O56)) -> 17187.19477
E65: =IF(I64="","",IF(B$13<E64+1,"",IF(I64=B$14,"",lookup!M57))) -> 55 | F65: =IF(E65="","",lookup!N57) -> 17187.19477 | G65: =IF(E65="","",lookup!O57-lookup!N57) -> 1718.719477 | H65: 18805.91425 | I65: =IF(E65="","",IF(lookup!O57<0,0,lookup!O57)) -> 18905.91425
E66: =IF(I65="","",IF(B$13<E65+1,"",IF(I65=B$14,"",lookup!M58))) -> 56 | F66: =IF(E66="","",lookup!N58) -> 18905.91425 | G66: =IF(E66="","",lookup!O58-lookup!N58) -> 1890.591425 | H66: 20696.50567 | I66: =IF(E66="","",IF(lookup!O58<0,0,lookup!O58)) -> 20796.50567
E67: =IF(I66="","",IF(B$13<E66+1,"",IF(I66=B$14,"",lookup!M59))) -> 57 | F67: =IF(E67="","",lookup!N59) -> 20796.50567 | G67: =IF(E67="","",lookup!O59-lookup!N59) -> 2079.650567 | H67: 22776.15624 | I67: =IF(E67="","",IF(lookup!O59<0,0,lookup!O59)) -> 22876.15624
E68: =IF(I67="","",IF(B$13<E67+1,"",IF(I67=B$14,"",lookup!M60))) -> 58 | F68: =IF(E68="","",lookup!N60) -> 22876.15624 | G68: =IF(E68="","",lookup!O60-lookup!N60) -> 2287.615624 | H68: 25063.77186 | I68: =IF(E68="","",IF(lookup!O60<0,0,lookup!O60)) -> 25163.77186
E69: =IF(I68="","",IF(B$13<E68+1,"",IF(I68=B$14,"",lookup!M61))) -> 59 | F69: =IF(E69="","",lookup!N61) -> 25163.77186 | G69: =IF(E69="","",lookup!O61-lookup!N61) -> 2516.377186 | H69: 27580.14905 | I69: =IF(E69="","",IF(lookup!O61<0,0,lookup!O61)) -> 27680.14905
E70: =IF(I69="","",IF(B$13<E69+1,"",IF(I69=B$14,"",lookup!M62))) -> 60 | F70: =IF(E70="","",lookup!N62) -> 27680.14905 | G70: =IF(E70="","",lookup!O62-lookup!N62) -> 2768.014905 | H70: 30348.16395 | I70: =IF(E70="","",IF(lookup!O62<0,0,lookup!O62)) -> 30448.16395
E71: =IF(I70="","",IF(B$13<E70+1,"",IF(I70=B$14,"",lookup!M63))) ->  | F71: =IF(E71="","",lookup!N63) ->  | G71: =IF(E71="","",lookup!O63-lookup!N63) ->  | I71: =IF(E71="","",IF(lookup!O63<0,0,lookup!O63)) -> 
E72: =IF(I71="","",IF(B$13<E71+1,"",IF(I71=B$14,"",lookup!M64))) ->  | F72: =IF(E72="","",lookup!N64) ->  | G72: =IF(E72="","",lookup!O64-lookup!N64) ->  | I72: =IF(E72="","",IF(lookup!O64<0,0,lookup!O64)) -> 
E73: =IF(I72="","",IF(B$13<E72+1,"",IF(I72=B$14,"",lookup!M65))) ->  | F73: =IF(E73="","",lookup!N65) ->  | G73: =IF(E73="","",lookup!O65-lookup!N65) ->  | I73: =IF(E73="","",IF(lookup!O65<0,0,lookup!O65)) -> 
E74: =IF(I73="","",IF(B$13<E73+1,"",IF(I73=B$14,"",lookup!M66))) ->  | F74: =IF(E74="","",lookup!N66) ->  | G74: =IF(E74="","",lookup!O66-lookup!N66) ->  | I74: =IF(E74="","",IF(lookup!O66<0,0,lookup!O66)) -> 
E75: =IF(I74="","",IF(B$13<E74+1,"",IF(I74=B$14,"",lookup!M67))) ->  | F75: =IF(E75="","",lookup!N67) ->  | G75: =IF(E75="","",lookup!O67-lookup!N67) ->  | I75: =IF(E75="","",IF(lookup!O67<0,0,lookup!O67)) -> 
E76: =IF(I75="","",IF(B$13<E75+1,"",IF(I75=B$14,"",lookup!M68))) ->  | F76: =IF(E76="","",lookup!N68) ->  | G76: =IF(E76="","",lookup!O68-lookup!N68) ->  | I76: =IF(E76="","",IF(lookup!O68<0,0,lookup!O68)) -> 
E77: =IF(I76="","",IF(B$13<E76+1,"",IF(I76=B$14,"",lookup!M69))) ->  | F77: =IF(E77="","",lookup!N69) ->  | G77: =IF(E77="","",lookup!O69-lookup!N69) ->  | H77: =IF(E77="","",H76+G77) ->  | I77: =IF(E77="","",IF(lookup!O69<0,0,lookup!O69)) -> 
E78: =IF(I77="","",IF(B$13<E77+1,"",IF(I77=B$14,"",lookup!M70))) ->  | F78: =IF(E78="","",lookup!N70) ->  | G78: =IF(E78="","",lookup!O70-lookup!N70) ->  | I78: =IF(E78="","",IF(lookup!O70<0,0,lookup!O70)) -> 
E79: =IF(I78="","",IF(B$13<E78+1,"",IF(I78=B$14,"",lookup!M71))) ->  | F79: =IF(E79="","",lookup!N71) ->  | G79: =IF(E79="","",lookup!O71-lookup!N71) ->  | I79: =IF(E79="","",IF(lookup!O71<0,0,lookup!O71)) -> 
E80: =IF(I79="","",IF(B$13<E79+1,"",IF(I79=B$14,"",lookup!M72))) ->  | F80: =IF(E80="","",lookup!N72) ->  | G80: =IF(E80="","",lookup!O72-lookup!N72) ->  | I80: =IF(E80="","",IF(lookup!O72<0,0,lookup!O72)) -> 
E81: =IF(I80="","",IF(B$13<E80+1,"",IF(I80=B$14,"",lookup!M73))) ->  | F81: =IF(E81="","",lookup!N73) ->  | G81: =IF(E81="","",lookup!O73-lookup!N73) ->  | I81: =IF(E81="","",IF(lookup!O73<0,0,lookup!O73)) -> 
E82: =IF(I81="","",IF(B$13<E81+1,"",IF(I81=B$14,"",lookup!M74))) ->  | F82: =IF(E82="","",lookup!N74) ->  | G82: =IF(E82="","",lookup!O74-lookup!N74) ->  | I82: =IF(E82="","",IF(lookup!O74<0,0,lookup!O74)) -> 
E83: =IF(I82="","",IF(B$13<E82+1,"",IF(I82=B$14,"",lookup!M75))) ->  | F83: =IF(E83="","",lookup!N75) ->  | G83: =IF(E83="","",lookup!O75-lookup!N75) ->  | I83: =IF(E83="","",IF(lookup!O75<0,0,lookup!O75)) -> 
E84: =IF(I83="","",IF(B$13<E83+1,"",IF(I83=B$14,"",lookup!M76))) ->  | F84: =IF(E84="","",lookup!N76) ->  | G84: =IF(E84="","",lookup!O76-lookup!N76) ->  | I84: =IF(E84="","",IF(lookup!O76<0,0,lookup!O76)) -> 
E85: =IF(I84="","",IF(B$13<E84+1,"",IF(I84=B$14,"",lookup!M77))) ->  | F85: =IF(E85="","",lookup!N77) ->  | G85: =IF(E85="","",lookup!O77-lookup!N77) ->  | I85: =IF(E85="","",IF(lookup!O77<0,0,lookup!O77)) -> 
E86: =IF(I85="","",IF(B$13<E85+1,"",IF(I85=B$14,"",lookup!M78))) ->  | F86: =IF(E86="","",lookup!N78) ->  | G86: =IF(E86="","",lookup!O78-lookup!N78) ->  | I86: =IF(E86="","",IF(lookup!O78<0,0,lookup!O78)) -> 
E87: =IF(I86="","",IF(B$13<E86+1,"",IF(I86=B$14,"",lookup!M79))) ->  | F87: =IF(E87="","",lookup!N79) ->  | G87: =IF(E87="","",lookup!O79-lookup!N79) ->  | I87: =IF(E87="","",IF(lookup!O79<0,0,lookup!O79)) -> 
E88: =IF(I87="","",IF(B$13<E87+1,"",IF(I87=B$14,"",lookup!M80))) ->  | F88: =IF(E88="","",lookup!N80) ->  | G88: =IF(E88="","",lookup!O80-lookup!N80) ->  | I88: =IF(E88="","",IF(lookup!O80<0,0,lookup!O80)) -> 
E89: =IF(I88="","",IF(B$13<E88+1,"",IF(I88=B$14,"",lookup!M81))) ->  | F89: =IF(E89="","",lookup!N81) ->  | G89: =IF(E89="","",lookup!O81-lookup!N81) ->  | I89: =IF(E89="","",IF(lookup!O81<0,0,lookup!O81)) -> 
E90: =IF(I89="","",IF(B$13<E89+1,"",IF(I89=B$14,"",lookup!M82))) ->  | F90: =IF(E90="","",lookup!N82) ->  | G90: =IF(E90="","",lookup!O82-lookup!N82) ->  | I90: =IF(E90="","",IF(lookup!O82<0,0,lookup!O82)) -> 
E91: =IF(I90="","",IF(B$13<E90+1,"",IF(I90=B$14,"",lookup!M83))) ->  | F91: =IF(E91="","",lookup!N83) ->  | G91: =IF(E91="","",lookup!O83-lookup!N83) ->  | I91: =IF(E91="","",IF(lookup!O83<0,0,lookup!O83)) -> 
E92: =IF(I91="","",IF(B$13<E91+1,"",IF(I91=B$14,"",lookup!M84))) ->  | F92: =IF(E92="","",lookup!N84) ->  | G92: =IF(E92="","",lookup!O84-lookup!N84) ->  | I92: =IF(E92="","",IF(lookup!O84<0,0,lookup!O84)) -> 
E93: =IF(I92="","",IF(B$13<E92+1,"",IF(I92=B$14,"",lookup!M85))) ->  | F93: =IF(E93="","",lookup!N85) ->  | G93: =IF(E93="","",lookup!O85-lookup!N85) ->  | I93: =IF(E93="","",IF(lookup!O85<0,0,lookup!O85)) -> 
E94: =IF(I93="","",IF(B$13<E93+1,"",IF(I93=B$14,"",lookup!M86))) ->  | F94: =IF(E94="","",lookup!N86) ->  | G94: =IF(E94="","",lookup!O86-lookup!N86) ->  | I94: =IF(E94="","",IF(lookup!O86<0,0,lookup!O86)) -> 
E95: =IF(I94="","",IF(B$13<E94+1,"",IF(I94=B$14,"",lookup!M87))) ->  | F95: =IF(E95="","",lookup!N87) ->  | G95: =IF(E95="","",lookup!O87-lookup!N87) ->  | I95: =IF(E95="","",IF(lookup!O87<0,0,lookup!O87)) -> 
E96: =IF(I95="","",IF(B$13<E95+1,"",IF(I95=B$14,"",lookup!M88))) ->  | F96: =IF(E96="","",lookup!N88) ->  | G96: =IF(E96="","",lookup!O88-lookup!N88) ->  | I96: =IF(E96="","",IF(lookup!O88<0,0,lookup!O88)) -> 
E97: =IF(I96="","",IF(B$13<E96+1,"",IF(I96=B$14,"",lookup!M89))) ->  | F97: =IF(E97="","",lookup!N89) ->  | G97: =IF(E97="","",lookup!O89-lookup!N89) ->  | I97: =IF(E97="","",IF(lookup!O89<0,0,lookup!O89)) -> 
E98: =IF(I97="","",IF(B$13<E97+1,"",IF(I97=B$14,"",lookup!M90))) ->  | F98: =IF(E98="","",lookup!N90) ->  | G98: =IF(E98="","",lookup!O90-lookup!N90) ->  | I98: =IF(E98="","",IF(lookup!O90<0,0,lookup!O90)) -> 
E99: =IF(I98="","",IF(B$13<E98+1,"",IF(I98=B$14,"",lookup!M91))) ->  | F99: =IF(E99="","",lookup!N91) ->  | G99: =IF(E99="","",lookup!O91-lookup!N91) ->  | I99: =IF(E99="","",IF(lookup!O91<0,0,lookup!O91)) -> 
E100: =IF(I99="","",IF(B$13<E99+1,"",IF(I99=B$14,"",lookup!M92))) ->  | F100: =IF(E100="","",lookup!N92) ->  | G100: =IF(E100="","",lookup!O92-lookup!N92) ->  | I100: =IF(E100="","",IF(lookup!O92<0,0,lookup!O92)) -> 
E101: =IF(I100="","",IF(B$13<E100+1,"",IF(I100=B$14,"",lookup!M93))) ->  | F101: =IF(E101="","",lookup!N93) ->  | G101: =IF(E101="","",lookup!O93-lookup!N93) ->  | I101: =IF(E101="","",IF(lookup!O93<0,0,lookup!O93)) -> 
E102: =IF(I101="","",IF(B$13<E101+1,"",IF(I101=B$14,"",lookup!M94))) ->  | F102: =IF(E102="","",lookup!N94) ->  | G102: =IF(E102="","",lookup!O94-lookup!N94) ->  | I102: =IF(E102="","",IF(lookup!O94<0,0,lookup!O94)) -> 
E103: =IF(I102="","",IF(B$13<E102+1,"",IF(I102=B$14,"",lookup!M95))) ->  | F103: =IF(E103="","",lookup!N95) ->  | G103: =IF(E103="","",lookup!O95-lookup!N95) ->  | I103: =IF(E103="","",IF(lookup!O95<0,0,lookup!O95)) -> 
E104: =IF(I103="","",IF(B$13<E103+1,"",IF(I103=B$14,"",lookup!M96))) ->  | F104: =IF(E104="","",lookup!N96) ->  | G104: =IF(E104="","",lookup!O96-lookup!N96) ->  | I104: =IF(E104="","",IF(lookup!O96<0,0,lookup!O96)) -> 
E105: =IF(I104="","",IF(B$13<E104+1,"",IF(I104=B$14,"",lookup!M97))) ->  | F105: =IF(E105="","",lookup!N97) ->  | G105: =IF(E105="","",lookup!O97-lookup!N97) ->  | I105: =IF(E105="","",IF(lookup!O97<0,0,lookup!O97)) -> 
E106: =IF(I105="","",IF(B$13<E105+1,"",IF(I105=B$14,"",lookup!M98))) ->  | F106: =IF(E106="","",lookup!N98) ->  | G106: =IF(E106="","",lookup!O98-lookup!N98) ->  | I106: =IF(E106="","",IF(lookup!O98<0,0,lookup!O98)) -> 
E107: =IF(I106="","",IF(B$13<E106+1,"",IF(I106=B$14,"",lookup!M99))) ->  | F107: =IF(E107="","",lookup!N99) ->  | G107: =IF(E107="","",lookup!O99-lookup!N99) ->  | I107: =IF(E107="","",IF(lookup!O99<0,0,lookup!O99)) -> 
E108: =IF(I107="","",IF(B$13<E107+1,"",IF(I107=B$14,"",lookup!M100))) ->  | F108: =IF(E108="","",lookup!N100) ->  | G108: =IF(E108="","",lookup!O100-lookup!N100) ->  | I108: =IF(E108="","",IF(lookup!O100<0,0,lookup!O100)) -> 
E109: =IF(I108="","",IF(B$13<E108+1,"",IF(I108=B$14,"",lookup!M101))) ->  | F109: =IF(E109="","",lookup!N101) ->  | G109: =IF(E109="","",lookup!O101-lookup!N101) ->  | I109: =IF(E109="","",IF(lookup!O101<0,0,lookup!O101)) -> 
E110: =IF(I109="","",IF(B$13<E109+1,"",IF(I109=B$14,"",lookup!M102))) ->  | F110: =IF(E110="","",lookup!N102) ->  | G110: =IF(E110="","",lookup!O102-lookup!N102) ->  | I110: =IF(E110="","",IF(lookup!O102<0,0,lookup!O102)) -> 
E111: =IF(I110="","",IF(B$13<E110+1,"",IF(I110=B$14,"",lookup!M103))) ->  | F111: =IF(E111="","",lookup!N103) ->  | G111: =IF(E111="","",lookup!O103-lookup!N103) ->  | I111: =IF(E111="","",IF(lookup!O103<0,0,lookup!O103)) -> 
E112: =IF(I111="","",IF(B$13<E111+1,"",IF(I111=B$14,"",lookup!M104))) ->  | F112: =IF(E112="","",lookup!N104) ->  | G112: =IF(E112="","",lookup!O104-lookup!N104) ->  | I112: =IF(E112="","",IF(lookup!O104<0,0,lookup!O104)) -> 
E113: =IF(I112="","",IF(B$13<E112+1,"",IF(I112=B$14,"",lookup!M105))) ->  | F113: =IF(E113="","",lookup!N105) ->  | G113: =IF(E113="","",lookup!O105-lookup!N105) ->  | I113: =IF(E113="","",IF(lookup!O105<0,0,lookup!O105)) -> 
E114: =IF(I113="","",IF(B$13<E113+1,"",IF(I113=B$14,"",lookup!M106))) ->  | F114: =IF(E114="","",lookup!N106) ->  | G114: =IF(E114="","",lookup!O106-lookup!N106) ->  | I114: =IF(E114="","",IF(lookup!O106<0,0,lookup!O106)) -> 
E115: =IF(I114="","",IF(B$13<E114+1,"",IF(I114=B$14,"",lookup!M107))) ->  | F115: =IF(E115="","",lookup!N107) ->  | G115: =IF(E115="","",lookup!O107-lookup!N107) ->  | I115: =IF(E115="","",IF(lookup!O107<0,0,lookup!O107)) -> 
E116: =IF(I115="","",IF(B$13<E115+1,"",IF(I115=B$14,"",lookup!M108))) ->  | F116: =IF(E116="","",lookup!N108) ->  | G116: =IF(E116="","",lookup!O108-lookup!N108) ->  | I116: =IF(E116="","",IF(lookup!O108<0,0,lookup!O108)) -> 
E117: =IF(I116="","",IF(B$13<E116+1,"",IF(I116=B$14,"",lookup!M109))) ->  | F117: =IF(E117="","",lookup!N109) ->  | G117: =IF(E117="","",lookup!O109-lookup!N109) ->  | I117: =IF(E117="","",IF(lookup!O109<0,0,lookup!O109)) -> 
E118: =IF(I117="","",IF(B$13<E117+1,"",IF(I117=B$14,"",lookup!M110))) ->  | F118: =IF(E118="","",lookup!N110) ->  | G118: =IF(E118="","",lookup!O110-lookup!N110) ->  | I118: =IF(E118="","",IF(lookup!O110<0,0,lookup!O110)) -> 
E119: =IF(I118="","",IF(B$13<E118+1,"",IF(I118=B$14,"",lookup!M111))) ->  | F119: =IF(E119="","",lookup!N111) ->  | G119: =IF(E119="","",lookup!O111-lookup!N111) ->  | I119: =IF(E119="","",IF(lookup!O111<0,0,lookup!O111)) -> 
E120: =IF(I119="","",IF(B$13<E119+1,"",IF(I119=B$14,"",lookup!M112))) ->  | F120: =IF(E120="","",lookup!N112) ->  | G120: =IF(E120="","",lookup!O112-lookup!N112) ->  | I120: =IF(E120="","",IF(lookup!O112<0,0,lookup!O112)) -> 
E121: =IF(I120="","",IF(B$13<E120+1,"",IF(I120=B$14,"",lookup!M113))) ->  | F121: =IF(E121="","",lookup!N113) ->  | G121: =IF(E121="","",lookup!O113-lookup!N113) ->  | I121: =IF(E121="","",IF(lookup!O113<0,0,lookup!O113)) -> 
E122: =IF(I121="","",IF(B$13<E121+1,"",IF(I121=B$14,"",lookup!M114))) ->  | F122: =IF(E122="","",lookup!N114) ->  | G122: =IF(E122="","",lookup!O114-lookup!N114) ->  | I122: =IF(E122="","",IF(lookup!O114<0,0,lookup!O114)) -> 
E123: =IF(I122="","",IF(B$13<E122+1,"",IF(I122=B$14,"",lookup!M115))) ->  | F123: =IF(E123="","",lookup!N115) ->  | G123: =IF(E123="","",lookup!O115-lookup!N115) ->  | I123: =IF(E123="","",IF(lookup!O115<0,0,lookup!O115)) -> 
E124: =IF(I123="","",IF(B$13<E123+1,"",IF(I123=B$14,"",lookup!M116))) ->  | F124: =IF(E124="","",lookup!N116) ->  | G124: =IF(E124="","",lookup!O116-lookup!N116) ->  | I124: =IF(E124="","",IF(lookup!O116<0,0,lookup!O116)) -> 
E125: =IF(I124="","",IF(B$13<E124+1,"",IF(I124=B$14,"",lookup!M117))) ->  | F125: =IF(E125="","",lookup!N117) ->  | G125: =IF(E125="","",lookup!O117-lookup!N117) ->  | I125: =IF(E125="","",IF(lookup!O117<0,0,lookup!O117)) -> 
E126: =IF(I125="","",IF(B$13<E125+1,"",IF(I125=B$14,"",lookup!M118))) ->  | F126: =IF(E126="","",lookup!N118) ->  | G126: =IF(E126="","",lookup!O118-lookup!N118) ->  | I126: =IF(E126="","",IF(lookup!O118<0,0,lookup!O118)) -> 
E127: =IF(I126="","",IF(B$13<E126+1,"",IF(I126=B$14,"",lookup!M119))) ->  | F127: =IF(E127="","",lookup!N119) ->  | G127: =IF(E127="","",lookup!O119-lookup!N119) ->  | I127: =IF(E127="","",IF(lookup!O119<0,0,lookup!O119)) -> 
E128: =IF(I127="","",IF(B$13<E127+1,"",IF(I127=B$14,"",lookup!M120))) ->  | F128: =IF(E128="","",lookup!N120) ->  | G128: =IF(E128="","",lookup!O120-lookup!N120) ->  | I128: =IF(E128="","",IF(lookup!O120<0,0,lookup!O120)) -> 
E129: =IF(I128="","",IF(B$13<E128+1,"",IF(I128=B$14,"",lookup!M121))) ->  | F129: =IF(E129="","",lookup!N121) ->  | G129: =IF(E129="","",lookup!O121-lookup!N121) ->  | I129: =IF(E129="","",IF(lookup!O121<0,0,lookup!O121)) -> 
E130: =IF(I129="","",IF(B$13<E129+1,"",IF(I129=B$14,"",lookup!M122))) ->  | F130: =IF(E130="","",lookup!N122) ->  | G130: =IF(E130="","",lookup!O122-lookup!N122) ->  | I130: =IF(E130="","",IF(lookup!O122<0,0,lookup!O122)) -> 
E131: =IF(I130="","",IF(B$13<E130+1,"",IF(I130=B$14,"",lookup!M123))) ->  | F131: =IF(E131="","",lookup!N123) ->  | G131: =IF(E131="","",lookup!O123-lookup!N123) ->  | I131: =IF(E131="","",IF(lookup!O123<0,0,lookup!O123)) -> 
E132: =IF(I131="","",IF(B$13<E131+1,"",IF(I131=B$14,"",lookup!M124))) ->  | F132: =IF(E132="","",lookup!N124) ->  | G132: =IF(E132="","",lookup!O124-lookup!N124) ->  | I132: =IF(E132="","",IF(lookup!O124<0,0,lookup!O124)) -> 
E133: =IF(I132="","",IF(B$13<E132+1,"",IF(I132=B$14,"",lookup!M125))) ->  | F133: =IF(E133="","",lookup!N125) ->  | G133: =IF(E133="","",lookup!O125-lookup!N125) ->  | I133: =IF(E133="","",IF(lookup!O125<0,0,lookup!O125)) -> 
E134: =IF(I133="","",IF(B$13<E133+1,"",IF(I133=B$14,"",lookup!M126))) ->  | F134: =IF(E134="","",lookup!N126) ->  | G134: =IF(E134="","",lookup!O126-lookup!N126) ->  | I134: =IF(E134="","",IF(lookup!O126<0,0,lookup!O126)) -> 
E135: =IF(I134="","",IF(B$13<E134+1,"",IF(I134=B$14,"",lookup!M127))) ->  | F135: =IF(E135="","",lookup!N127) ->  | G135: =IF(E135="","",lookup!O127-lookup!N127) ->  | I135: =IF(E135="","",IF(lookup!O127<0,0,lookup!O127)) -> 
E136: =IF(I135="","",IF(B$13<E135+1,"",IF(I135=B$14,"",lookup!M128))) ->  | F136: =IF(E136="","",lookup!N128) ->  | G136: =IF(E136="","",lookup!O128-lookup!N128) ->  | I136: =IF(E136="","",IF(lookup!O128<0,0,lookup!O128)) -> 
E137: =IF(I136="","",IF(B$13<E136+1,"",IF(I136=B$14,"",lookup!M129))) ->  | F137: =IF(E137="","",lookup!N129) ->  | G137: =IF(E137="","",lookup!O129-lookup!N129) ->  | I137: =IF(E137="","",IF(lookup!O129<0,0,lookup!O129)) -> 
E138: =IF(I137="","",IF(B$13<E137+1,"",IF(I137=B$14,"",lookup!M130))) ->  | F138: =IF(E138="","",lookup!N130) ->  | G138: =IF(E138="","",lookup!O130-lookup!N130) ->  | I138: =IF(E138="","",IF(lookup!O130<0,0,lookup!O130)) -> 
E139: =IF(I138="","",IF(B$13<E138+1,"",IF(I138=B$14,"",lookup!M131))) ->  | F139: =IF(E139="","",lookup!N131) ->  | G139: =IF(E139="","",lookup!O131-lookup!N131) ->  | I139: =IF(E139="","",IF(lookup!O131<0,0,lookup!O131)) -> 
E140: =IF(I139="","",IF(B$13<E139+1,"",IF(I139=B$14,"",lookup!M132))) ->  | F140: =IF(E140="","",lookup!N132) ->  | G140: =IF(E140="","",lookup!O132-lookup!N132) ->  | I140: =IF(E140="","",IF(lookup!O132<0,0,lookup!O132)) -> 
E141: =IF(I140="","",IF(B$13<E140+1,"",IF(I140=B$14,"",lookup!M133))) ->  | F141: =IF(E141="","",lookup!N133) ->  | G141: =IF(E141="","",lookup!O133-lookup!N133) ->  | H141: =IF(E141="","",H140+G141) ->  | I141: =IF(E141="","",IF(lookup!O133<0,0,lookup!O133)) -> 
E142: =IF(I141="","",IF(B$13<E141+1,"",IF(I141=B$14,"",lookup!M134))) ->  | F142: =IF(E142="","",lookup!N134) ->  | G142: =IF(E142="","",lookup!O134-lookup!N134) ->  | I142: =IF(E142="","",IF(lookup!O134<0,0,lookup!O134)) -> 
E143: =IF(I142="","",IF(B$13<E142+1,"",IF(I142=B$14,"",lookup!M135))) ->  | F143: =IF(E143="","",lookup!N135) ->  | G143: =IF(E143="","",lookup!O135-lookup!N135) ->  | I143: =IF(E143="","",IF(lookup!O135<0,0,lookup!O135)) -> 
E144: =IF(I143="","",IF(B$13<E143+1,"",IF(I143=B$14,"",lookup!M136))) ->  | F144: =IF(E144="","",lookup!N136) ->  | G144: =IF(E144="","",lookup!O136-lookup!N136) ->  | I144: =IF(E144="","",IF(lookup!O136<0,0,lookup!O136)) -> 
E145: =IF(I144="","",IF(B$13<E144+1,"",IF(I144=B$14,"",lookup!M137))) ->  | F145: =IF(E145="","",lookup!N137) ->  | G145: =IF(E145="","",lookup!O137-lookup!N137) ->  | I145: =IF(E145="","",IF(lookup!O137<0,0,lookup!O137)) -> 
E146: =IF(I145="","",IF(B$13<E145+1,"",IF(I145=B$14,"",lookup!M138))) ->  | F146: =IF(E146="","",lookup!N138) ->  | G146: =IF(E146="","",lookup!O138-lookup!N138) ->  | I146: =IF(E146="","",IF(lookup!O138<0,0,lookup!O138)) -> 
E147: =IF(I146="","",IF(B$13<E146+1,"",IF(I146=B$14,"",lookup!M139))) ->  | F147: =IF(E147="","",lookup!N139) ->  | G147: =IF(E147="","",lookup!O139-lookup!N139) ->  | I147: =IF(E147="","",IF(lookup!O139<0,0,lookup!O139)) -> 
E148: =IF(I147="","",IF(B$13<E147+1,"",IF(I147=B$14,"",lookup!M140))) ->  | F148: =IF(E148="","",lookup!N140) ->  | G148: =IF(E148="","",lookup!O140-lookup!N140) ->  | I148: =IF(E148="","",IF(lookup!O140<0,0,lookup!O140)) -> 
E149: =IF(I148="","",IF(B$13<E148+1,"",IF(I148=B$14,"",lookup!M141))) ->  | F149: =IF(E149="","",lookup!N141) ->  | G149: =IF(E149="","",lookup!O141-lookup!N141) ->  | I149: =IF(E149="","",IF(lookup!O141<0,0,lookup!O141)) -> 
E150: =IF(I149="","",IF(B$13<E149+1,"",IF(I149=B$14,"",lookup!M142))) ->  | F150: =IF(E150="","",lookup!N142) ->  | G150: =IF(E150="","",lookup!O142-lookup!N142) ->  | I150: =IF(E150="","",IF(lookup!O142<0,0,lookup!O142)) -> 
E151: =IF(I150="","",IF(B$13<E150+1,"",IF(I150=B$14,"",lookup!M143))) ->  | F151: =IF(E151="","",lookup!N143) ->  | G151: =IF(E151="","",lookup!O143-lookup!N143) ->  | I151: =IF(E151="","",IF(lookup!O143<0,0,lookup!O143)) -> 
E152: =IF(I151="","",IF(B$13<E151+1,"",IF(I151=B$14,"",lookup!M144))) ->  | F152: =IF(E152="","",lookup!N144) ->  | G152: =IF(E152="","",lookup!O144-lookup!N144) ->  | I152: =IF(E152="","",IF(lookup!O144<0,0,lookup!O144)) -> 
E153: =IF(I152="","",IF(B$13<E152+1,"",IF(I152=B$14,"",lookup!M145))) ->  | F153: =IF(E153="","",lookup!N145) ->  | G153: =IF(E153="","",lookup!O145-lookup!N145) ->  | I153: =IF(E153="","",IF(lookup!O145<0,0,lookup!O145)) -> 
E154: =IF(I153="","",IF(B$13<E153+1,"",IF(I153=B$14,"",lookup!M146))) ->  | F154: =IF(E154="","",lookup!N146) ->  | G154: =IF(E154="","",lookup!O146-lookup!N146) ->  | I154: =IF(E154="","",IF(lookup!O146<0,0,lookup!O146)) -> 
E155: =IF(I154="","",IF(B$13<E154+1,"",IF(I154=B$14,"",lookup!M147))) ->  | F155: =IF(E155="","",lookup!N147) ->  | G155: =IF(E155="","",lookup!O147-lookup!N147) ->  | I155: =IF(E155="","",IF(lookup!O147<0,0,lookup!O147)) -> 
E156: =IF(I155="","",IF(B$13<E155+1,"",IF(I155=B$14,"",lookup!M148))) ->  | F156: =IF(E156="","",lookup!N148) ->  | G156: =IF(E156="","",lookup!O148-lookup!N148) ->  | I156: =IF(E156="","",IF(lookup!O148<0,0,lookup!O148)) -> 
E157: =IF(I156="","",IF(B$13<E156+1,"",IF(I156=B$14,"",lookup!M149))) ->  | F157: =IF(E157="","",lookup!N149) ->  | G157: =IF(E157="","",lookup!O149-lookup!N149) ->  | I157: =IF(E157="","",IF(lookup!O149<0,0,lookup!O149)) -> 
E158: =IF(I157="","",IF(B$13<E157+1,"",IF(I157=B$14,"",lookup!M150))) ->  | F158: =IF(E158="","",lookup!N150) ->  | G158: =IF(E158="","",lookup!O150-lookup!N150) ->  | I158: =IF(E158="","",IF(lookup!O150<0,0,lookup!O150)) -> 
E159: =IF(I158="","",IF(B$13<E158+1,"",IF(I158=B$14,"",lookup!M151))) ->  | F159: =IF(E159="","",lookup!N151) ->  | G159: =IF(E159="","",lookup!O151-lookup!N151) ->  | I159: =IF(E159="","",IF(lookup!O151<0,0,lookup!O151)) -> 
E160: =IF(I159="","",IF(B$13<E159+1,"",IF(I159=B$14,"",lookup!M152))) ->  | F160: =IF(E160="","",lookup!N152) ->  | G160: =IF(E160="","",lookup!O152-lookup!N152) ->  | I160: =IF(E160="","",IF(lookup!O152<0,0,lookup!O152)) -> 
E161: =IF(I160="","",IF(B$13<E160+1,"",IF(I160=B$14,"",lookup!M153))) ->  | F161: =IF(E161="","",lookup!N153) ->  | G161: =IF(E161="","",lookup!O153-lookup!N153) ->  | I161: =IF(E161="","",IF(lookup!O153<0,0,lookup!O153)) -> 
E162: =IF(I161="","",IF(B$13<E161+1,"",IF(I161=B$14,"",lookup!M154))) ->  | F162: =IF(E162="","",lookup!N154) ->  | G162: =IF(E162="","",lookup!O154-lookup!N154) ->  | I162: =IF(E162="","",IF(lookup!O154<0,0,lookup!O154)) -> 
E163: =IF(I162="","",IF(B$13<E162+1,"",IF(I162=B$14,"",lookup!M155))) ->  | F163: =IF(E163="","",lookup!N155) ->  | G163: =IF(E163="","",lookup!O155-lookup!N155) ->  | I163: =IF(E163="","",IF(lookup!O155<0,0,lookup!O155)) -> 
E164: =IF(I163="","",IF(B$13<E163+1,"",IF(I163=B$14,"",lookup!M156))) ->  | F164: =IF(E164="","",lookup!N156) ->  | G164: =IF(E164="","",lookup!O156-lookup!N156) ->  | I164: =IF(E164="","",IF(lookup!O156<0,0,lookup!O156)) -> 
E165: =IF(I164="","",IF(B$13<E164+1,"",IF(I164=B$14,"",lookup!M157))) ->  | F165: =IF(E165="","",lookup!N157) ->  | G165: =IF(E165="","",lookup!O157-lookup!N157) ->  | I165: =IF(E165="","",IF(lookup!O157<0,0,lookup!O157)) -> 
E166: =IF(I165="","",IF(B$13<E165+1,"",IF(I165=B$14,"",lookup!M158))) ->  | F166: =IF(E166="","",lookup!N158) ->  | G166: =IF(E166="","",lookup!O158-lookup!N158) ->  | I166: =IF(E166="","",IF(lookup!O158<0,0,lookup!O158)) -> 
E167: =IF(I166="","",IF(B$13<E166+1,"",IF(I166=B$14,"",lookup!M159))) ->  | F167: =IF(E167="","",lookup!N159) ->  | G167: =IF(E167="","",lookup!O159-lookup!N159) ->  | I167: =IF(E167="","",IF(lookup!O159<0,0,lookup!O159)) -> 
E168: =IF(I167="","",IF(B$13<E167+1,"",IF(I167=B$14,"",lookup!M160))) ->  | F168: =IF(E168="","",lookup!N160) ->  | G168: =IF(E168="","",lookup!O160-lookup!N160) ->  | I168: =IF(E168="","",IF(lookup!O160<0,0,lookup!O160)) -> 
E169: =IF(I168="","",IF(B$13<E168+1,"",IF(I168=B$14,"",lookup!M161))) ->  | F169: =IF(E169="","",lookup!N161) ->  | G169: =IF(E169="","",lookup!O161-lookup!N161) ->  | I169: =IF(E169="","",IF(lookup!O161<0,0,lookup!O161)) -> 
E170: =IF(I169="","",IF(B$13<E169+1,"",IF(I169=B$14,"",lookup!M162))) ->  | F170: =IF(E170="","",lookup!N162) ->  | G170: =IF(E170="","",lookup!O162-lookup!N162) ->  | I170: =IF(E170="","",IF(lookup!O162<0,0,lookup!O162)) -> 
E171: =IF(I170="","",IF(B$13<E170+1,"",IF(I170=B$14,"",lookup!M163))) ->  | F171: =IF(E171="","",lookup!N163) ->  | G171: =IF(E171="","",lookup!O163-lookup!N163) ->  | I171: =IF(E171="","",IF(lookup!O163<0,0,lookup!O163)) -> 
E172: =IF(I171="","",IF(B$13<E171+1,"",IF(I171=B$14,"",lookup!M164))) ->  | F172: =IF(E172="","",lookup!N164) ->  | G172: =IF(E172="","",lookup!O164-lookup!N164) ->  | I172: =IF(E172="","",IF(lookup!O164<0,0,lookup!O164)) -> 
E173: =IF(I172="","",IF(B$13<E172+1,"",IF(I172=B$14,"",lookup!M165))) ->  | F173: =IF(E173="","",lookup!N165) ->  | G173: =IF(E173="","",lookup!O165-lookup!N165) ->  | I173: =IF(E173="","",IF(lookup!O165<0,0,lookup!O165)) -> 
E174: =IF(I173="","",IF(B$13<E173+1,"",IF(I173=B$14,"",lookup!M166))) ->  | F174: =IF(E174="","",lookup!N166) ->  | G174: =IF(E174="","",lookup!O166-lookup!N166) ->  | I174: =IF(E174="","",IF(lookup!O166<0,0,lookup!O166)) -> 
E175: =IF(I174="","",IF(B$13<E174+1,"",IF(I174=B$14,"",lookup!M167))) ->  | F175: =IF(E175="","",lookup!N167) ->  | G175: =IF(E175="","",lookup!O167-lookup!N167) ->  | I175: =IF(E175="","",IF(lookup!O167<0,0,lookup!O167)) -> 
E176: =IF(I175="","",IF(B$13<E175+1,"",IF(I175=B$14,"",lookup!M168))) ->  | F176: =IF(E176="","",lookup!N168) ->  | G176: =IF(E176="","",lookup!O168-lookup!N168) ->  | I176: =IF(E176="","",IF(lookup!O168<0,0,lookup!O168)) -> 
E177: =IF(I176="","",IF(B$13<E176+1,"",IF(I176=B$14,"",lookup!M169))) ->  | F177: =IF(E177="","",lookup!N169) ->  | G177: =IF(E177="","",lookup!O169-lookup!N169) ->  | I177: =IF(E177="","",IF(lookup!O169<0,0,lookup!O169)) -> 
E178: =IF(I177="","",IF(B$13<E177+1,"",IF(I177=B$14,"",lookup!M170))) ->  | F178: =IF(E178="","",lookup!N170) ->  | G178: =IF(E178="","",lookup!O170-lookup!N170) ->  | I178: =IF(E178="","",IF(lookup!O170<0,0,lookup!O170)) -> 
E179: =IF(I178="","",IF(B$13<E178+1,"",IF(I178=B$14,"",lookup!M171))) ->  | F179: =IF(E179="","",lookup!N171) ->  | G179: =IF(E179="","",lookup!O171-lookup!N171) ->  | I179: =IF(E179="","",IF(lookup!O171<0,0,lookup!O171)) -> 
E180: =IF(I179="","",IF(B$13<E179+1,"",IF(I179=B$14,"",lookup!M172))) ->  | F180: =IF(E180="","",lookup!N172) ->  | G180: =IF(E180="","",lookup!O172-lookup!N172) ->  | I180: =IF(E180="","",IF(lookup!O172<0,0,lookup!O172)) -> 
E181: =IF(I180="","",IF(B$13<E180+1,"",IF(I180=B$14,"",lookup!M173))) ->  | F181: =IF(E181="","",lookup!N173) ->  | G181: =IF(E181="","",lookup!O173-lookup!N173) ->  | I181: =IF(E181="","",IF(lookup!O173<0,0,lookup!O173)) -> 
E182: =IF(I181="","",IF(B$13<E181+1,"",IF(I181=B$14,"",lookup!M174))) ->  | F182: =IF(E182="","",lookup!N174) ->  | G182: =IF(E182="","",lookup!O174-lookup!N174) ->  | I182: =IF(E182="","",IF(lookup!O174<0,0,lookup!O174)) -> 
E183: =IF(I182="","",IF(B$13<E182+1,"",IF(I182=B$14,"",lookup!M175))) ->  | F183: =IF(E183="","",lookup!N175) ->  | G183: =IF(E183="","",lookup!O175-lookup!N175) ->  | I183: =IF(E183="","",IF(lookup!O175<0,0,lookup!O175)) -> 
E184: =IF(I183="","",IF(B$13<E183+1,"",IF(I183=B$14,"",lookup!M176))) ->  | F184: =IF(E184="","",lookup!N176) ->  | G184: =IF(E184="","",lookup!O176-lookup!N176) ->  | I184: =IF(E184="","",IF(lookup!O176<0,0,lookup!O176)) -> 
E185: =IF(I184="","",IF(B$13<E184+1,"",IF(I184=B$14,"",lookup!M177))) ->  | F185: =IF(E185="","",lookup!N177) ->  | G185: =IF(E185="","",lookup!O177-lookup!N177) ->  | I185: =IF(E185="","",IF(lookup!O177<0,0,lookup!O177)) -> 
E186: =IF(I185="","",IF(B$13<E185+1,"",IF(I185=B$14,"",lookup!M178))) ->  | F186: =IF(E186="","",lookup!N178) ->  | G186: =IF(E186="","",lookup!O178-lookup!N178) ->  | I186: =IF(E186="","",IF(lookup!O178<0,0,lookup!O178)) -> 
E187: =IF(I186="","",IF(B$13<E186+1,"",IF(I186=B$14,"",lookup!M179))) ->  | F187: =IF(E187="","",lookup!N179) ->  | G187: =IF(E187="","",lookup!O179-lookup!N179) ->  | I187: =IF(E187="","",IF(lookup!O179<0,0,lookup!O179)) -> 
E188: =IF(I187="","",IF(B$13<E187+1,"",IF(I187=B$14,"",lookup!M180))) ->  | F188: =IF(E188="","",lookup!N180) ->  | G188: =IF(E188="","",lookup!O180-lookup!N180) ->  | I188: =IF(E188="","",IF(lookup!O180<0,0,lookup!O180)) -> 
E189: =IF(I188="","",IF(B$13<E188+1,"",IF(I188=B$14,"",lookup!M181))) ->  | F189: =IF(E189="","",lookup!N181) ->  | G189: =IF(E189="","",lookup!O181-lookup!N181) ->  | I189: =IF(E189="","",IF(lookup!O181<0,0,lookup!O181)) -> 
E190: =IF(I189="","",IF(B$13<E189+1,"",IF(I189=B$14,"",lookup!M182))) ->  | F190: =IF(E190="","",lookup!N182) ->  | G190: =IF(E190="","",lookup!O182-lookup!N182) ->  | I190: =IF(E190="","",IF(lookup!O182<0,0,lookup!O182)) -> 
E191: =IF(I190="","",IF(B$13<E190+1,"",IF(I190=B$14,"",lookup!M183))) ->  | F191: =IF(E191="","",lookup!N183) ->  | G191: =IF(E191="","",lookup!O183-lookup!N183) ->  | I191: =IF(E191="","",IF(lookup!O183<0,0,lookup!O183)) -> 
E192: =IF(I191="","",IF(B$13<E191+1,"",IF(I191=B$14,"",lookup!M184))) ->  | F192: =IF(E192="","",lookup!N184) ->  | G192: =IF(E192="","",lookup!O184-lookup!N184) ->  | I192: =IF(E192="","",IF(lookup!O184<0,0,lookup!O184)) -> 
E193: =IF(I192="","",IF(B$13<E192+1,"",IF(I192=B$14,"",lookup!M185))) ->  | F193: =IF(E193="","",lookup!N185) ->  | G193: =IF(E193="","",lookup!O185-lookup!N185) ->  | I193: =IF(E193="","",IF(lookup!O185<0,0,lookup!O185)) -> 
E194: =IF(I193="","",IF(B$13<E193+1,"",IF(I193=B$14,"",lookup!M186))) ->  | F194: =IF(E194="","",lookup!N186) ->  | G194: =IF(E194="","",lookup!O186-lookup!N186) ->  | I194: =IF(E194="","",IF(lookup!O186<0,0,lookup!O186)) -> 
E195: =IF(I194="","",IF(B$13<E194+1,"",IF(I194=B$14,"",lookup!M187))) ->  | F195: =IF(E195="","",lookup!N187) ->  | G195: =IF(E195="","",lookup!O187-lookup!N187) ->  | I195: =IF(E195="","",IF(lookup!O187<0,0,lookup!O187)) -> 
E196: =IF(I195="","",IF(B$13<E195+1,"",IF(I195=B$14,"",lookup!M188))) ->  | F196: =IF(E196="","",lookup!N188) ->  | G196: =IF(E196="","",lookup!O188-lookup!N188) ->  | I196: =IF(E196="","",IF(lookup!O188<0,0,lookup!O188)) -> 
E197: =IF(I196="","",IF(B$13<E196+1,"",IF(I196=B$14,"",lookup!M189))) ->  | F197: =IF(E197="","",lookup!N189) ->  | G197: =IF(E197="","",lookup!O189-lookup!N189) ->  | I197: =IF(E197="","",IF(lookup!O189<0,0,lookup!O189)) -> 
E198: =IF(I197="","",IF(B$13<E197+1,"",IF(I197=B$14,"",lookup!M190))) ->  | F198: =IF(E198="","",lookup!N190) ->  | G198: =IF(E198="","",lookup!O190-lookup!N190) ->  | I198: =IF(E198="","",IF(lookup!O190<0,0,lookup!O190)) -> 
E199: =IF(I198="","",IF(B$13<E198+1,"",IF(I198=B$14,"",lookup!M191))) ->  | F199: =IF(E199="","",lookup!N191) ->  | G199: =IF(E199="","",lookup!O191-lookup!N191) ->  | I199: =IF(E199="","",IF(lookup!O191<0,0,lookup!O191)) -> 
E200: =IF(I199="","",IF(B$13<E199+1,"",IF(I199=B$14,"",lookup!M192))) ->  | F200: =IF(E200="","",lookup!N192) ->  | G200: =IF(E200="","",lookup!O192-lookup!N192) ->  | I200: =IF(E200="","",IF(lookup!O192<0,0,lookup!O192)) -> 
E201: =IF(I200="","",IF(B$13<E200+1,"",IF(I200=B$14,"",lookup!M193))) ->  | F201: =IF(E201="","",lookup!N193) ->  | G201: =IF(E201="","",lookup!O193-lookup!N193) ->  | I201: =IF(E201="","",IF(lookup!O193<0,0,lookup!O193)) -> 
E202: =IF(I201="","",IF(B$13<E201+1,"",IF(I201=B$14,"",lookup!M194))) ->  | F202: =IF(E202="","",lookup!N194) ->  | G202: =IF(E202="","",lookup!O194-lookup!N194) ->  | I202: =IF(E202="","",IF(lookup!O194<0,0,lookup!O194)) -> 
E203: =IF(I202="","",IF(B$13<E202+1,"",IF(I202=B$14,"",lookup!M195))) ->  | F203: =IF(E203="","",lookup!N195) ->  | G203: =IF(E203="","",lookup!O195-lookup!N195) ->  | I203: =IF(E203="","",IF(lookup!O195<0,0,lookup!O195)) -> 
E204: =IF(I203="","",IF(B$13<E203+1,"",IF(I203=B$14,"",lookup!M196))) ->  | F204: =IF(E204="","",lookup!N196) ->  | G204: =IF(E204="","",lookup!O196-lookup!N196) ->  | I204: =IF(E204="","",IF(lookup!O196<0,0,lookup!O196)) -> 
E205: =IF(I204="","",IF(B$13<E204+1,"",IF(I204=B$14,"",lookup!M197))) ->  | F205: =IF(E205="","",lookup!N197) ->  | G205: =IF(E205="","",lookup!O197-lookup!N197) ->  | H205: =IF(E205="","",H204+G205) ->  | I205: =IF(E205="","",IF(lookup!O197<0,0,lookup!O197)) -> 
E206: =IF(I205="","",IF(B$13<E205+1,"",IF(I205=B$14,"",lookup!M198))) ->  | F206: =IF(E206="","",lookup!N198) ->  | G206: =IF(E206="","",lookup!O198-lookup!N198) ->  | I206: =IF(E206="","",IF(lookup!O198<0,0,lookup!O198)) -> 
E207: =IF(I206="","",IF(B$13<E206+1,"",IF(I206=B$14,"",lookup!M199))) ->  | F207: =IF(E207="","",lookup!N199) ->  | G207: =IF(E207="","",lookup!O199-lookup!N199) ->  | I207: =IF(E207="","",IF(lookup!O199<0,0,lookup!O199)) -> 
E208: =IF(I207="","",IF(B$13<E207+1,"",IF(I207=B$14,"",lookup!M200))) ->  | F208: =IF(E208="","",lookup!N200) ->  | G208: =IF(E208="","",lookup!O200-lookup!N200) ->  | I208: =IF(E208="","",IF(lookup!O200<0,0,lookup!O200)) -> 
... 402 more rows

Sheet Annuity Value (hidden)
A9: Annuity Value | E9: Period | F9: Present Value | G9: Added Value | H9: Payout | I9: Future Value
E10: 0 | I10: =B13 -> 1000000
A11: Annuties | B11: Ordinary | E11: =IF(B14=0,"",1) -> 1 | F11: =IF(E11="","",IF(B$11="Ordinary",lookup!D3-G11,lookup!F3)) -> 1000000 | G11: =IF(E11="","",IF(B$11="Ordinary",lookup!D3-lookup!E$1,lookup!F4-lookup!G3)) -> 5000 | H11: =IF(E11="","",lookup!E$2) -> 5264.047939 | I11: =IF(E11="","",lookup!E3) -> 999735.9521
A12: Interest Rate per Period | B12: 0.5 | E12: =IF(I11="","",IF(B$14<E11+1,"",IF(I11=B$15,"",lookup!C4))) -> 2 | F12: =IF(E12="","",IF(B$11="Ordinary",lookup!D4-G12,lookup!F4)) -> 999735.9521 | G12: =IF(E12="","",IF(B$11="Ordinary",lookup!D4-lookup!E3,lookup!F5-lookup!G4)) -> 4998.67976 | H12: =IF(E12="","",lookup!E$2) -> 5264.047939 | I12: =IF(E12="","",lookup!E4) -> 999470.5839
A13: Present Value (Principal) | B13: 1000000 | E13: =IF(I12="","",IF(B$14<E12+1,"",IF(I12=B$15,"",lookup!C5))) -> 3 | F13: =IF(E13="","",IF(B$11="Ordinary",lookup!D5-G13,lookup!F5)) -> 999470.5839 | G13: =IF(E13="","",IF(B$11="Ordinary",lookup!D5-lookup!E4,lookup!F6-lookup!G5)) -> 4997.352919 | H13: =IF(E13="","",lookup!E$2) -> 5264.047939 | I13: =IF(E13="","",lookup!E5) -> 999203.8889
A14: No of Periods | B14: 600 | E14: =IF(I13="","",IF(B$14<E13+1,"",IF(I13=B$15,"",lookup!C6))) -> 4 | F14: =IF(E14="","",IF(B$11="Ordinary",lookup!D6-G14,lookup!F6)) -> 999203.8889 | G14: =IF(E14="","",IF(B$11="Ordinary",lookup!D6-lookup!E5,lookup!F7-lookup!G6)) -> 4996.019444 | H14: =IF(E14="","",lookup!E$2) -> 5264.047939 | I14: =IF(E14="","",lookup!E6) -> 998935.8604
A15: Payment | B15: =IF('Annuity Value'!B11="Ordinary",B13*(B12/100)*(1+B12/100)^(B14)/((1+B12/100)^B14-1),B13*(B12/100)*(1+B12/100)^(B14-1)/((1+B12/100)^B14-1)) -> 5264.047939 | E15: =IF(I14="","",IF(B$14<E14+1,"",IF(I14=B$15,"",lookup!C7))) -> 5 | F15: =IF(E15="","",IF(B$11="Ordinary",lookup!D7-G15,lookup!F7)) -> 998935.8604 | G15: =IF(E15="","",IF(B$11="Ordinary",lookup!D7-lookup!E6,lookup!F8-lookup!G7)) -> 4994.679302 | H15: =IF(E15="","",lookup!E$2) -> 5264.047939 | I15: =IF(E15="","",lookup!E7) -> 998666.4917
E16: =IF(I15="","",IF(B$14<E15+1,"",IF(I15=B$15,"",lookup!C8))) -> 6 | F16: =IF(E16="","",IF(B$11="Ordinary",lookup!D8-G16,lookup!F8)) -> 998666.4917 | G16: =IF(E16="","",IF(B$11="Ordinary",lookup!D8-lookup!E7,lookup!F9-lookup!G8)) -> 4993.332459 | H16: =IF(E16="","",lookup!E$2) -> 5264.047939 | I16: =IF(E16="","",lookup!E8) -> 998395.7763
E17: =IF(I16="","",IF(B$14<E16+1,"",IF(I16=B$15,"",lookup!C9))) -> 7 | F17: =IF(E17="","",IF(B$11="Ordinary",lookup!D9-G17,lookup!F9)) -> 998395.7763 | G17: =IF(E17="","",IF(B$11="Ordinary",lookup!D9-lookup!E8,lookup!F10-lookup!G9)) -> 4991.978881 | H17: =IF(E17="","",lookup!E$2) -> 5264.047939 | I17: =IF(E17="","",lookup!E9) -> 998123.7072
E18: =IF(I17="","",IF(B$14<E17+1,"",IF(I17=B$15,"",lookup!C10))) -> 8 | F18: =IF(E18="","",IF(B$11="Ordinary",lookup!D10-G18,lookup!F10)) -> 998123.7072 | G18: =IF(E18="","",IF(B$11="Ordinary",lookup!D10-lookup!E9,lookup!F11-lookup!G10)) -> 4990.618536 | H18: =IF(E18="","",lookup!E$2) -> 5264.047939 | I18: =IF(E18="","",lookup!E10) -> 997850.2778
E19: =IF(I18="","",IF(B$14<E18+1,"",IF(I18=B$15,"",lookup!C11))) -> 9 | F19: =IF(E19="","",IF(B$11="Ordinary",lookup!D11-G19,lookup!F11)) -> 997850.2778 | G19: =IF(E19="","",IF(B$11="Ordinary",lookup!D11-lookup!E10,lookup!F12-lookup!G11)) -> 4989.251389 | H19: =IF(E19="","",lookup!E$2) -> 5264.047939 | I19: =IF(E19="","",lookup!E11) -> 997575.4812
E20: =IF(I19="","",IF(B$14<E19+1,"",IF(I19=B$15,"",lookup!C12))) -> 10 | F20: =IF(E20="","",IF(B$11="Ordinary",lookup!D12-G20,lookup!F12)) -> 997575.4812 | G20: =IF(E20="","",IF(B$11="Ordinary",lookup!D12-lookup!E11,lookup!F13-lookup!G12)) -> 4987.877406 | H20: =IF(E20="","",lookup!E$2) -> 5264.047939 | I20: =IF(E20="","",lookup!E12) -> 997299.3107
E21: =IF(I20="","",IF(B$14<E20+1,"",IF(I20=B$15,"",lookup!C13))) -> 11 | F21: =IF(E21="","",IF(B$11="Ordinary",lookup!D13-G21,lookup!F13)) -> 997299.3107 | G21: =IF(E21="","",IF(B$11="Ordinary",lookup!D13-lookup!E12,lookup!F14-lookup!G13)) -> 4986.496554 | H21: =IF(E21="","",lookup!E$2) -> 5264.047939 | I21: =IF(E21="","",lookup!E13) -> 997021.7593
E22: =IF(I21="","",IF(B$14<E21+1,"",IF(I21=B$15,"",lookup!C14))) -> 12 | F22: =IF(E22="","",IF(B$11="Ordinary",lookup!D14-G22,lookup!F14)) -> 997021.7593 | G22: =IF(E22="","",IF(B$11="Ordinary",lookup!D14-lookup!E13,lookup!F15-lookup!G14)) -> 4985.108797 | H22: =IF(E22="","",lookup!E$2) -> 5264.047939 | I22: =IF(E22="","",lookup!E14) -> 996742.8202
E23: =IF(I22="","",IF(B$14<E22+1,"",IF(I22=B$15,"",lookup!C15))) -> 13 | F23: =IF(E23="","",IF(B$11="Ordinary",lookup!D15-G23,lookup!F15)) -> 996742.8202 | G23: =IF(E23="","",IF(B$11="Ordinary",lookup!D15-lookup!E14,lookup!F16-lookup!G15)) -> 4983.714101 | H23: =IF(E23="","",lookup!E$2) -> 5264.047939 | I23: =IF(E23="","",lookup!E15) -> 996462.4863
E24: =IF(I23="","",IF(B$14<E23+1,"",IF(I23=B$15,"",lookup!C16))) -> 14 | F24: =IF(E24="","",IF(B$11="Ordinary",lookup!D16-G24,lookup!F16)) -> 996462.4863 | G24: =IF(E24="","",IF(B$11="Ordinary",lookup!D16-lookup!E15,lookup!F17-lookup!G16)) -> 4982.312432 | H24: =IF(E24="","",lookup!E$2) -> 5264.047939 | I24: =IF(E24="","",lookup!E16) -> 996180.7508
E25: =IF(I24="","",IF(B$14<E24+1,"",IF(I24=B$15,"",lookup!C17))) -> 15 | F25: =IF(E25="","",IF(B$11="Ordinary",lookup!D17-G25,lookup!F17)) -> 996180.7508 | G25: =IF(E25="","",IF(B$11="Ordinary",lookup!D17-lookup!E16,lookup!F18-lookup!G17)) -> 4980.903754 | H25: =IF(E25="","",lookup!E$2) -> 5264.047939 | I25: =IF(E25="","",lookup!E17) -> 995897.6067
E26: =IF(I25="","",IF(B$14<E25+1,"",IF(I25=B$15,"",lookup!C18))) -> 16 | F26: =IF(E26="","",IF(B$11="Ordinary",lookup!D18-G26,lookup!F18)) -> 995897.6067 | G26: =IF(E26="","",IF(B$11="Ordinary",lookup!D18-lookup!E17,lookup!F19-lookup!G18)) -> 4979.488033 | H26: =IF(E26="","",lookup!E$2) -> 5264.047939 | I26: =IF(E26="","",lookup!E18) -> 995613.0467
E27: =IF(I26="","",IF(B$14<E26+1,"",IF(I26=B$15,"",lookup!C19))) -> 17 | F27: =IF(E27="","",IF(B$11="Ordinary",lookup!D19-G27,lookup!F19)) -> 995613.0467 | G27: =IF(E27="","",IF(B$11="Ordinary",lookup!D19-lookup!E18,lookup!F20-lookup!G19)) -> 4978.065234 | H27: =IF(E27="","",lookup!E$2) -> 5264.047939 | I27: =IF(E27="","",lookup!E19) -> 995327.064
E28: =IF(I27="","",IF(B$14<E27+1,"",IF(I27=B$15,"",lookup!C20))) -> 18 | F28: =IF(E28="","",IF(B$11="Ordinary",lookup!D20-G28,lookup!F20)) -> 995327.064 | G28: =IF(E28="","",IF(B$11="Ordinary",lookup!D20-lookup!E19,lookup!F21-lookup!G20)) -> 4976.63532 | H28: =IF(E28="","",lookup!E$2) -> 5264.047939 | I28: =IF(E28="","",lookup!E20) -> 995039.6514
E29: =IF(I28="","",IF(B$14<E28+1,"",IF(I28=B$15,"",lookup!C21))) -> 19 | F29: =IF(E29="","",IF(B$11="Ordinary",lookup!D21-G29,lookup!F21)) -> 995039.6514 | G29: =IF(E29="","",IF(B$11="Ordinary",lookup!D21-lookup!E20,lookup!F22-lookup!G21)) -> 4975.198257 | H29: =IF(E29="","",lookup!E$2) -> 5264.047939 | I29: =IF(E29="","",lookup!E21) -> 994750.8017
E30: =IF(I29="","",IF(B$14<E29+1,"",IF(I29=B$15,"",lookup!C22))) -> 20 | F30: =IF(E30="","",IF(B$11="Ordinary",lookup!D22-G30,lookup!F22)) -> 994750.8017 | G30: =IF(E30="","",IF(B$11="Ordinary",lookup!D22-lookup!E21,lookup!F23-lookup!G22)) -> 4973.754009 | H30: =IF(E30="","",lookup!E$2) -> 5264.047939 | I30: =IF(E30="","",lookup!E22) -> 994460.5078
E31: =IF(I30="","",IF(B$14<E30+1,"",IF(I30=B$15,"",lookup!C23))) -> 21 | F31: =IF(E31="","",IF(B$11="Ordinary",lookup!D23-G31,lookup!F23)) -> 994460.5078 | G31: =IF(E31="","",IF(B$11="Ordinary",lookup!D23-lookup!E22,lookup!F24-lookup!G23)) -> 4972.302539 | H31: =IF(E31="","",lookup!E$2) -> 5264.047939 | I31: =IF(E31="","",lookup!E23) -> 994168.7624
E32: =IF(I31="","",IF(B$14<E31+1,"",IF(I31=B$15,"",lookup!C24))) -> 22 | F32: =IF(E32="","",IF(B$11="Ordinary",lookup!D24-G32,lookup!F24)) -> 994168.7624 | G32: =IF(E32="","",IF(B$11="Ordinary",lookup!D24-lookup!E23,lookup!F25-lookup!G24)) -> 4970.843812 | H32: =IF(E32="","",lookup!E$2) -> 5264.047939 | I32: =IF(E32="","",lookup!E24) -> 993875.5583
E33: =IF(I32="","",IF(B$14<E32+1,"",IF(I32=B$15,"",lookup!C25))) -> 23 | F33: =IF(E33="","",IF(B$11="Ordinary",lookup!D25-G33,lookup!F25)) -> 993875.5583 | G33: =IF(E33="","",IF(B$11="Ordinary",lookup!D25-lookup!E24,lookup!F26-lookup!G25)) -> 4969.377791 | H33: =IF(E33="","",lookup!E$2) -> 5264.047939 | I33: =IF(E33="","",lookup!E25) -> 993580.8881
E34: =IF(I33="","",IF(B$14<E33+1,"",IF(I33=B$15,"",lookup!C26))) -> 24 | F34: =IF(E34="","",IF(B$11="Ordinary",lookup!D26-G34,lookup!F26)) -> 993580.8881 | G34: =IF(E34="","",IF(B$11="Ordinary",lookup!D26-lookup!E25,lookup!F27-lookup!G26)) -> 4967.904441 | H34: =IF(E34="","",lookup!E$2) -> 5264.047939 | I34: =IF(E34="","",lookup!E26) -> 993284.7446
E35: =IF(I34="","",IF(B$14<E34+1,"",IF(I34=B$15,"",lookup!C27))) -> 25 | F35: =IF(E35="","",IF(B$11="Ordinary",lookup!D27-G35,lookup!F27)) -> 993284.7446 | G35: =IF(E35="","",IF(B$11="Ordinary",lookup!D27-lookup!E26,lookup!F28-lookup!G27)) -> 4966.423723 | H35: =IF(E35="","",lookup!E$2) -> 5264.047939 | I35: =IF(E35="","",lookup!E27) -> 992987.1204
E36: =IF(I35="","",IF(B$14<E35+1,"",IF(I35=B$15,"",lookup!C28))) -> 26 | F36: =IF(E36="","",IF(B$11="Ordinary",lookup!D28-G36,lookup!F28)) -> 992987.1204 | G36: =IF(E36="","",IF(B$11="Ordinary",lookup!D28-lookup!E27,lookup!F29-lookup!G28)) -> 4964.935602 | H36: =IF(E36="","",lookup!E$2) -> 5264.047939 | I36: =IF(E36="","",lookup!E28) -> 992688.0081
E37: =IF(I36="","",IF(B$14<E36+1,"",IF(I36=B$15,"",lookup!C29))) -> 27 | F37: =IF(E37="","",IF(B$11="Ordinary",lookup!D29-G37,lookup!F29)) -> 992688.0081 | G37: =IF(E37="","",IF(B$11="Ordinary",lookup!D29-lookup!E28,lookup!F30-lookup!G29)) -> 4963.44004 | H37: =IF(E37="","",lookup!E$2) -> 5264.047939 | I37: =IF(E37="","",lookup!E29) -> 992387.4002
E38: =IF(I37="","",IF(B$14<E37+1,"",IF(I37=B$15,"",lookup!C30))) -> 28 | F38: =IF(E38="","",IF(B$11="Ordinary",lookup!D30-G38,lookup!F30)) -> 992387.4002 | G38: =IF(E38="","",IF(B$11="Ordinary",lookup!D30-lookup!E29,lookup!F31-lookup!G30)) -> 4961.937001 | H38: =IF(E38="","",lookup!E$2) -> 5264.047939 | I38: =IF(E38="","",lookup!E30) -> 992085.2892
E39: =IF(I38="","",IF(B$14<E38+1,"",IF(I38=B$15,"",lookup!C31))) -> 29 | F39: =IF(E39="","",IF(B$11="Ordinary",lookup!D31-G39,lookup!F31)) -> 992085.2892 | G39: =IF(E39="","",IF(B$11="Ordinary",lookup!D31-lookup!E30,lookup!F32-lookup!G31)) -> 4960.426446 | H39: =IF(E39="","",lookup!E$2) -> 5264.047939 | I39: =IF(E39="","",lookup!E31) -> 991781.6678
E40: =IF(I39="","",IF(B$14<E39+1,"",IF(I39=B$15,"",lookup!C32))) -> 30 | F40: =IF(E40="","",IF(B$11="Ordinary",lookup!D32-G40,lookup!F32)) -> 991781.6678 | G40: =IF(E40="","",IF(B$11="Ordinary",lookup!D32-lookup!E31,lookup!F33-lookup!G32)) -> 4958.908339 | H40: =IF(E40="","",lookup!E$2) -> 5264.047939 | I40: =IF(E40="","",lookup!E32) -> 991476.5282
E41: =IF(I40="","",IF(B$14<E40+1,"",IF(I40=B$15,"",lookup!C33))) -> 31 | F41: =IF(E41="","",IF(B$11="Ordinary",lookup!D33-G41,lookup!F33)) -> 991476.5282 | G41: =IF(E41="","",IF(B$11="Ordinary",lookup!D33-lookup!E32,lookup!F34-lookup!G33)) -> 4957.382641 | H41: =IF(E41="","",lookup!E$2) -> 5264.047939 | I41: =IF(E41="","",lookup!E33) -> 991169.8629
E42: =IF(I41="","",IF(B$14<E41+1,"",IF(I41=B$15,"",lookup!C34))) -> 32 | F42: =IF(E42="","",IF(B$11="Ordinary",lookup!D34-G42,lookup!F34)) -> 991169.8629 | G42: =IF(E42="","",IF(B$11="Ordinary",lookup!D34-lookup!E33,lookup!F35-lookup!G34)) -> 4955.849314 | H42: =IF(E42="","",lookup!E$2) -> 5264.047939 | I42: =IF(E42="","",lookup!E34) -> 990861.6642
E43: =IF(I42="","",IF(B$14<E42+1,"",IF(I42=B$15,"",lookup!C35))) -> 33 | F43: =IF(E43="","",IF(B$11="Ordinary",lookup!D35-G43,lookup!F35)) -> 990861.6642 | G43: =IF(E43="","",IF(B$11="Ordinary",lookup!D35-lookup!E34,lookup!F36-lookup!G35)) -> 4954.308321 | H43: =IF(E43="","",lookup!E$2) -> 5264.047939 | I43: =IF(E43="","",lookup!E35) -> 990551.9246
E44: =IF(I43="","",IF(B$14<E43+1,"",IF(I43=B$15,"",lookup!C36))) -> 34 | F44: =IF(E44="","",IF(B$11="Ordinary",lookup!D36-G44,lookup!F36)) -> 990551.9246 | G44: =IF(E44="","",IF(B$11="Ordinary",lookup!D36-lookup!E35,lookup!F37-lookup!G36)) -> 4952.759623 | H44: =IF(E44="","",lookup!E$2) -> 5264.047939 | I44: =IF(E44="","",lookup!E36) -> 990240.6363
E45: =IF(I44="","",IF(B$14<E44+1,"",IF(I44=B$15,"",lookup!C37))) -> 35 | F45: =IF(E45="","",IF(B$11="Ordinary",lookup!D37-G45,lookup!F37)) -> 990240.6363 | G45: =IF(E45="","",IF(B$11="Ordinary",lookup!D37-lookup!E36,lookup!F38-lookup!G37)) -> 4951.203181 | H45: =IF(E45="","",lookup!E$2) -> 5264.047939 | I45: =IF(E45="","",lookup!E37) -> 989927.7915
E46: =IF(I45="","",IF(B$14<E45+1,"",IF(I45=B$15,"",lookup!C38))) -> 36 | F46: =IF(E46="","",IF(B$11="Ordinary",lookup!D38-G46,lookup!F38)) -> 989927.7915 | G46: =IF(E46="","",IF(B$11="Ordinary",lookup!D38-lookup!E37,lookup!F39-lookup!G38)) -> 4949.638958 | H46: =IF(E46="","",lookup!E$2) -> 5264.047939 | I46: =IF(E46="","",lookup!E38) -> 989613.3826
E47: =IF(I46="","",IF(B$14<E46+1,"",IF(I46=B$15,"",lookup!C39))) -> 37 | F47: =IF(E47="","",IF(B$11="Ordinary",lookup!D39-G47,lookup!F39)) -> 989613.3826 | G47: =IF(E47="","",IF(B$11="Ordinary",lookup!D39-lookup!E38,lookup!F40-lookup!G39)) -> 4948.066913 | H47: =IF(E47="","",lookup!E$2) -> 5264.047939 | I47: =IF(E47="","",lookup!E39) -> 989297.4015
E48: =IF(I47="","",IF(B$14<E47+1,"",IF(I47=B$15,"",lookup!C40))) -> 38 | F48: =IF(E48="","",IF(B$11="Ordinary",lookup!D40-G48,lookup!F40)) -> 989297.4015 | G48: =IF(E48="","",IF(B$11="Ordinary",lookup!D40-lookup!E39,lookup!F41-lookup!G40)) -> 4946.487008 | H48: =IF(E48="","",lookup!E$2) -> 5264.047939 | I48: =IF(E48="","",lookup!E40) -> 988979.8406
E49: =IF(I48="","",IF(B$14<E48+1,"",IF(I48=B$15,"",lookup!C41))) -> 39 | F49: =IF(E49="","",IF(B$11="Ordinary",lookup!D41-G49,lookup!F41)) -> 988979.8406 | G49: =IF(E49="","",IF(B$11="Ordinary",lookup!D41-lookup!E40,lookup!F42-lookup!G41)) -> 4944.899203 | H49: =IF(E49="","",lookup!E$2) -> 5264.047939 | I49: =IF(E49="","",lookup!E41) -> 988660.6919
E50: =IF(I49="","",IF(B$14<E49+1,"",IF(I49=B$15,"",lookup!C42))) -> 40 | F50: =IF(E50="","",IF(B$11="Ordinary",lookup!D42-G50,lookup!F42)) -> 988660.6919 | G50: =IF(E50="","",IF(B$11="Ordinary",lookup!D42-lookup!E41,lookup!F43-lookup!G42)) -> 4943.303459 | H50: =IF(E50="","",lookup!E$2) -> 5264.047939 | I50: =IF(E50="","",lookup!E42) -> 988339.9474
E51: =IF(I50="","",IF(B$14<E50+1,"",IF(I50=B$15,"",lookup!C43))) -> 41 | F51: =IF(E51="","",IF(B$11="Ordinary",lookup!D43-G51,lookup!F43)) -> 988339.9474 | G51: =IF(E51="","",IF(B$11="Ordinary",lookup!D43-lookup!E42,lookup!F44-lookup!G43)) -> 4941.699737 | H51: =IF(E51="","",lookup!E$2) -> 5264.047939 | I51: =IF(E51="","",lookup!E43) -> 988017.5992
E52: =IF(I51="","",IF(B$14<E51+1,"",IF(I51=B$15,"",lookup!C44))) -> 42 | F52: =IF(E52="","",IF(B$11="Ordinary",lookup!D44-G52,lookup!F44)) -> 988017.5992 | G52: =IF(E52="","",IF(B$11="Ordinary",lookup!D44-lookup!E43,lookup!F45-lookup!G44)) -> 4940.087996 | H52: =IF(E52="","",lookup!E$2) -> 5264.047939 | I52: =IF(E52="","",lookup!E44) -> 987693.6392
E53: =IF(I52="","",IF(B$14<E52+1,"",IF(I52=B$15,"",lookup!C45))) -> 43 | F53: =IF(E53="","",IF(B$11="Ordinary",lookup!D45-G53,lookup!F45)) -> 987693.6392 | G53: =IF(E53="","",IF(B$11="Ordinary",lookup!D45-lookup!E44,lookup!F46-lookup!G45)) -> 4938.468196 | H53: =IF(E53="","",lookup!E$2) -> 5264.047939 | I53: =IF(E53="","",lookup!E45) -> 987368.0595
E54: =IF(I53="","",IF(B$14<E53+1,"",IF(I53=B$15,"",lookup!C46))) -> 44 | F54: =IF(E54="","",IF(B$11="Ordinary",lookup!D46-G54,lookup!F46)) -> 987368.0595 | G54: =IF(E54="","",IF(B$11="Ordinary",lookup!D46-lookup!E45,lookup!F47-lookup!G46)) -> 4936.840298 | H54: =IF(E54="","",lookup!E$2) -> 5264.047939 | I54: =IF(E54="","",lookup!E46) -> 987040.8519
E55: =IF(I54="","",IF(B$14<E54+1,"",IF(I54=B$15,"",lookup!C47))) -> 45 | F55: =IF(E55="","",IF(B$11="Ordinary",lookup!D47-G55,lookup!F47)) -> 987040.8519 | G55: =IF(E55="","",IF(B$11="Ordinary",lookup!D47-lookup!E46,lookup!F48-lookup!G47)) -> 4935.204259 | H55: =IF(E55="","",lookup!E$2) -> 5264.047939 | I55: =IF(E55="","",lookup!E47) -> 986712.0082
E56: =IF(I55="","",IF(B$14<E55+1,"",IF(I55=B$15,"",lookup!C48))) -> 46 | F56: =IF(E56="","",IF(B$11="Ordinary",lookup!D48-G56,lookup!F48)) -> 986712.0082 | G56: =IF(E56="","",IF(B$11="Ordinary",lookup!D48-lookup!E47,lookup!F49-lookup!G48)) -> 4933.560041 | H56: =IF(E56="","",lookup!E$2) -> 5264.047939 | I56: =IF(E56="","",lookup!E48) -> 986381.5203
E57: =IF(I56="","",IF(B$14<E56+1,"",IF(I56=B$15,"",lookup!C49))) -> 47 | F57: =IF(E57="","",IF(B$11="Ordinary",lookup!D49-G57,lookup!F49)) -> 986381.5203 | G57: =IF(E57="","",IF(B$11="Ordinary",lookup!D49-lookup!E48,lookup!F50-lookup!G49)) -> 4931.907601 | H57: =IF(E57="","",lookup!E$2) -> 5264.047939 | I57: =IF(E57="","",lookup!E49) -> 986049.3799
E58: =IF(I57="","",IF(B$14<E57+1,"",IF(I57=B$15,"",lookup!C50))) -> 48 | F58: =IF(E58="","",IF(B$11="Ordinary",lookup!D50-G58,lookup!F50)) -> 986049.3799 | G58: =IF(E58="","",IF(B$11="Ordinary",lookup!D50-lookup!E49,lookup!F51-lookup!G50)) -> 4930.2469 | H58: =IF(E58="","",lookup!E$2) -> 5264.047939 | I58: =IF(E58="","",lookup!E50) -> 985715.5789
E59: =IF(I58="","",IF(B$14<E58+1,"",IF(I58=B$15,"",lookup!C51))) -> 49 | F59: =IF(E59="","",IF(B$11="Ordinary",lookup!D51-G59,lookup!F51)) -> 985715.5789 | G59: =IF(E59="","",IF(B$11="Ordinary",lookup!D51-lookup!E50,lookup!F52-lookup!G51)) -> 4928.577895 | H59: =IF(E59="","",lookup!E$2) -> 5264.047939 | I59: =IF(E59="","",lookup!E51) -> 985380.1089
E60: =IF(I59="","",IF(B$14<E59+1,"",IF(I59=B$15,"",lookup!C52))) -> 50 | F60: =IF(E60="","",IF(B$11="Ordinary",lookup!D52-G60,lookup!F52)) -> 985380.1089 | G60: =IF(E60="","",IF(B$11="Ordinary",lookup!D52-lookup!E51,lookup!F53-lookup!G52)) -> 4926.900544 | H60: =IF(E60="","",lookup!E$2) -> 5264.047939 | I60: =IF(E60="","",lookup!E52) -> 985042.9615
E61: =IF(I60="","",IF(B$14<E60+1,"",IF(I60=B$15,"",lookup!C53))) -> 51 | F61: =IF(E61="","",IF(B$11="Ordinary",lookup!D53-G61,lookup!F53)) -> 985042.9615 | G61: =IF(E61="","",IF(B$11="Ordinary",lookup!D53-lookup!E52,lookup!F54-lookup!G53)) -> 4925.214807 | H61: =IF(E61="","",lookup!E$2) -> 5264.047939 | I61: =IF(E61="","",lookup!E53) -> 984704.1283
E62: =IF(I61="","",IF(B$14<E61+1,"",IF(I61=B$15,"",lookup!C54))) -> 52 | F62: =IF(E62="","",IF(B$11="Ordinary",lookup!D54-G62,lookup!F54)) -> 984704.1283 | G62: =IF(E62="","",IF(B$11="Ordinary",lookup!D54-lookup!E53,lookup!F55-lookup!G54)) -> 4923.520642 | H62: =IF(E62="","",lookup!E$2) -> 5264.047939 | I62: =IF(E62="","",lookup!E54) -> 984363.601
E63: =IF(I62="","",IF(B$14<E62+1,"",IF(I62=B$15,"",lookup!C55))) -> 53 | F63: =IF(E63="","",IF(B$11="Ordinary",lookup!D55-G63,lookup!F55)) -> 984363.601 | G63: =IF(E63="","",IF(B$11="Ordinary",lookup!D55-lookup!E54,lookup!F56-lookup!G55)) -> 4921.818005 | H63: =IF(E63="","",lookup!E$2) -> 5264.047939 | I63: =IF(E63="","",lookup!E55) -> 984021.3711
E64: =IF(I63="","",IF(B$14<E63+1,"",IF(I63=B$15,"",lookup!C56))) -> 54 | F64: =IF(E64="","",IF(B$11="Ordinary",lookup!D56-G64,lookup!F56)) -> 984021.3711 | G64: =IF(E64="","",IF(B$11="Ordinary",lookup!D56-lookup!E55,lookup!F57-lookup!G56)) -> 4920.106856 | H64: =IF(E64="","",lookup!E$2) -> 5264.047939 | I64: =IF(E64="","",lookup!E56) -> 983677.43
E65: =IF(I64="","",IF(B$14<E64+1,"",IF(I64=B$15,"",lookup!C57))) -> 55 | F65: =IF(E65="","",IF(B$11="Ordinary",lookup!D57-G65,lookup!F57)) -> 983677.43 | G65: =IF(E65="","",IF(B$11="Ordinary",lookup!D57-lookup!E56,lookup!F58-lookup!G57)) -> 4918.38715 | H65: =IF(E65="","",lookup!E$2) -> 5264.047939 | I65: =IF(E65="","",lookup!E57) -> 983331.7692
E66: =IF(I65="","",IF(B$14<E65+1,"",IF(I65=B$15,"",lookup!C58))) -> 56 | F66: =IF(E66="","",IF(B$11="Ordinary",lookup!D58-G66,lookup!F58)) -> 983331.7692 | G66: =IF(E66="","",IF(B$11="Ordinary",lookup!D58-lookup!E57,lookup!F59-lookup!G58)) -> 4916.658846 | H66: =IF(E66="","",lookup!E$2) -> 5264.047939 | I66: =IF(E66="","",lookup!E58) -> 982984.3801
E67: =IF(I66="","",IF(B$14<E66+1,"",IF(I66=B$15,"",lookup!C59))) -> 57 | F67: =IF(E67="","",IF(B$11="Ordinary",lookup!D59-G67,lookup!F59)) -> 982984.3801 | G67: =IF(E67="","",IF(B$11="Ordinary",lookup!D59-lookup!E58,lookup!F60-lookup!G59)) -> 4914.921901 | H67: =IF(E67="","",lookup!E$2) -> 5264.047939 | I67: =IF(E67="","",lookup!E59) -> 982635.2541
E68: =IF(I67="","",IF(B$14<E67+1,"",IF(I67=B$15,"",lookup!C60))) -> 58 | F68: =IF(E68="","",IF(B$11="Ordinary",lookup!D60-G68,lookup!F60)) -> 982635.2541 | G68: =IF(E68="","",IF(B$11="Ordinary",lookup!D60-lookup!E59,lookup!F61-lookup!G60)) -> 4913.176271 | H68: =IF(E68="","",lookup!E$2) -> 5264.047939 | I68: =IF(E68="","",lookup!E60) -> 982284.3824
E69: =IF(I68="","",IF(B$14<E68+1,"",IF(I68=B$15,"",lookup!C61))) -> 59 | F69: =IF(E69="","",IF(B$11="Ordinary",lookup!D61-G69,lookup!F61)) -> 982284.3824 | G69: =IF(E69="","",IF(B$11="Ordinary",lookup!D61-lookup!E60,lookup!F62-lookup!G61)) -> 4911.421912 | H69: =IF(E69="","",lookup!E$2) -> 5264.047939 | I69: =IF(E69="","",lookup!E61) -> 981931.7564
E70: =IF(I69="","",IF(B$14<E69+1,"",IF(I69=B$15,"",lookup!C62))) -> 60 | F70: =IF(E70="","",IF(B$11="Ordinary",lookup!D62-G70,lookup!F62)) -> 981931.7564 | G70: =IF(E70="","",IF(B$11="Ordinary",lookup!D62-lookup!E61,lookup!F63-lookup!G62)) -> 4909.658782 | H70: =IF(E70="","",lookup!E$2) -> 5264.047939 | I70: =IF(E70="","",lookup!E62) -> 981577.3672
E71: =IF(I70="","",IF(B$14<E70+1,"",IF(I70=B$15,"",lookup!C63))) -> 61 | F71: =IF(E71="","",IF(B$11="Ordinary",lookup!D63-G71,lookup!F63)) -> 981577.3672 | G71: =IF(E71="","",IF(B$11="Ordinary",lookup!D63-lookup!E62,lookup!F64-lookup!G63)) -> 4907.886836 | H71: =IF(E71="","",lookup!E$2) -> 5264.047939 | I71: =IF(E71="","",lookup!E63) -> 981221.2061
E72: =IF(I71="","",IF(B$14<E71+1,"",IF(I71=B$15,"",lookup!C64))) -> 62 | F72: =IF(E72="","",IF(B$11="Ordinary",lookup!D64-G72,lookup!F64)) -> 981221.2061 | G72: =IF(E72="","",IF(B$11="Ordinary",lookup!D64-lookup!E63,lookup!F65-lookup!G64)) -> 4906.106031 | H72: =IF(E72="","",lookup!E$2) -> 5264.047939 | I72: =IF(E72="","",lookup!E64) -> 980863.2642
E73: =IF(I72="","",IF(B$14<E72+1,"",IF(I72=B$15,"",lookup!C65))) -> 63 | F73: =IF(E73="","",IF(B$11="Ordinary",lookup!D65-G73,lookup!F65)) -> 980863.2642 | G73: =IF(E73="","",IF(B$11="Ordinary",lookup!D65-lookup!E64,lookup!F66-lookup!G65)) -> 4904.316321 | H73: =IF(E73="","",lookup!E$2) -> 5264.047939 | I73: =IF(E73="","",lookup!E65) -> 980503.5326
E74: =IF(I73="","",IF(B$14<E73+1,"",IF(I73=B$15,"",lookup!C66))) -> 64 | F74: =IF(E74="","",IF(B$11="Ordinary",lookup!D66-G74,lookup!F66)) -> 980503.5326 | G74: =IF(E74="","",IF(B$11="Ordinary",lookup!D66-lookup!E65,lookup!F67-lookup!G66)) -> 4902.517663 | H74: =IF(E74="","",lookup!E$2) -> 5264.047939 | I74: =IF(E74="","",lookup!E66) -> 980142.0023
E75: =IF(I74="","",IF(B$14<E74+1,"",IF(I74=B$15,"",lookup!C67))) -> 65 | F75: =IF(E75="","",IF(B$11="Ordinary",lookup!D67-G75,lookup!F67)) -> 980142.0023 | G75: =IF(E75="","",IF(B$11="Ordinary",lookup!D67-lookup!E66,lookup!F68-lookup!G67)) -> 4900.710012 | H75: =IF(E75="","",lookup!E$2) -> 5264.047939 | I75: =IF(E75="","",lookup!E67) -> 979778.6644
E76: =IF(I75="","",IF(B$14<E75+1,"",IF(I75=B$15,"",lookup!C68))) -> 66 | F76: =IF(E76="","",IF(B$11="Ordinary",lookup!D68-G76,lookup!F68)) -> 979778.6644 | G76: =IF(E76="","",IF(B$11="Ordinary",lookup!D68-lookup!E67,lookup!F69-lookup!G68)) -> 4898.893322 | H76: =IF(E76="","",lookup!E$2) -> 5264.047939 | I76: =IF(E76="","",lookup!E68) -> 979413.5098
E77: =IF(I76="","",IF(B$14<E76+1,"",IF(I76=B$15,"",lookup!C69))) -> 67 | F77: =IF(E77="","",IF(B$11="Ordinary",lookup!D69-G77,lookup!F69)) -> 979413.5098 | G77: =IF(E77="","",IF(B$11="Ordinary",lookup!D69-lookup!E68,lookup!F70-lookup!G69)) -> 4897.067549 | H77: =IF(E77="","",lookup!E$2) -> 5264.047939 | I77: =IF(E77="","",lookup!E69) -> 979046.5294
E78: =IF(I77="","",IF(B$14<E77+1,"",IF(I77=B$15,"",lookup!C70))) -> 68 | F78: =IF(E78="","",IF(B$11="Ordinary",lookup!D70-G78,lookup!F70)) -> 979046.5294 | G78: =IF(E78="","",IF(B$11="Ordinary",lookup!D70-lookup!E69,lookup!F71-lookup!G70)) -> 4895.232647 | H78: =IF(E78="","",lookup!E$2) -> 5264.047939 | I78: =IF(E78="","",lookup!E70) -> 978677.7141
E79: =IF(I78="","",IF(B$14<E78+1,"",IF(I78=B$15,"",lookup!C71))) -> 69 | F79: =IF(E79="","",IF(B$11="Ordinary",lookup!D71-G79,lookup!F71)) -> 978677.7141 | G79: =IF(E79="","",IF(B$11="Ordinary",lookup!D71-lookup!E70,lookup!F72-lookup!G71)) -> 4893.388571 | H79: =IF(E79="","",lookup!E$2) -> 5264.047939 | I79: =IF(E79="","",lookup!E71) -> 978307.0548
E80: =IF(I79="","",IF(B$14<E79+1,"",IF(I79=B$15,"",lookup!C72))) -> 70 | F80: =IF(E80="","",IF(B$11="Ordinary",lookup!D72-G80,lookup!F72)) -> 978307.0548 | G80: =IF(E80="","",IF(B$11="Ordinary",lookup!D72-lookup!E71,lookup!F73-lookup!G72)) -> 4891.535274 | H80: =IF(E80="","",lookup!E$2) -> 5264.047939 | I80: =IF(E80="","",lookup!E72) -> 977934.5421
E81: =IF(I80="","",IF(B$14<E80+1,"",IF(I80=B$15,"",lookup!C73))) -> 71 | F81: =IF(E81="","",IF(B$11="Ordinary",lookup!D73-G81,lookup!F73)) -> 977934.5421 | G81: =IF(E81="","",IF(B$11="Ordinary",lookup!D73-lookup!E72,lookup!F74-lookup!G73)) -> 4889.67271 | H81: =IF(E81="","",lookup!E$2) -> 5264.047939 | I81: =IF(E81="","",lookup!E73) -> 977560.1669
E82: =IF(I81="","",IF(B$14<E81+1,"",IF(I81=B$15,"",lookup!C74))) -> 72 | F82: =IF(E82="","",IF(B$11="Ordinary",lookup!D74-G82,lookup!F74)) -> 977560.1669 | G82: =IF(E82="","",IF(B$11="Ordinary",lookup!D74-lookup!E73,lookup!F75-lookup!G74)) -> 4887.800834 | H82: =IF(E82="","",lookup!E$2) -> 5264.047939 | I82: =IF(E82="","",lookup!E74) -> 977183.9198
E83: =IF(I82="","",IF(B$14<E82+1,"",IF(I82=B$15,"",lookup!C75))) -> 73 | F83: =IF(E83="","",IF(B$11="Ordinary",lookup!D75-G83,lookup!F75)) -> 977183.9198 | G83: =IF(E83="","",IF(B$11="Ordinary",lookup!D75-lookup!E74,lookup!F76-lookup!G75)) -> 4885.919599 | H83: =IF(E83="","",lookup!E$2) -> 5264.047939 | I83: =IF(E83="","",lookup!E75) -> 976805.7914
E84: =IF(I83="","",IF(B$14<E83+1,"",IF(I83=B$15,"",lookup!C76))) -> 74 | F84: =IF(E84="","",IF(B$11="Ordinary",lookup!D76-G84,lookup!F76)) -> 976805.7914 | G84: =IF(E84="","",IF(B$11="Ordinary",lookup!D76-lookup!E75,lookup!F77-lookup!G76)) -> 4884.028957 | H84: =IF(E84="","",lookup!E$2) -> 5264.047939 | I84: =IF(E84="","",lookup!E76) -> 976425.7724
E85: =IF(I84="","",IF(B$14<E84+1,"",IF(I84=B$15,"",lookup!C77))) -> 75 | F85: =IF(E85="","",IF(B$11="Ordinary",lookup!D77-G85,lookup!F77)) -> 976425.7724 | G85: =IF(E85="","",IF(B$11="Ordinary",lookup!D77-lookup!E76,lookup!F78-lookup!G77)) -> 4882.128862 | H85: =IF(E85="","",lookup!E$2) -> 5264.047939 | I85: =IF(E85="","",lookup!E77) -> 976043.8534
E86: =IF(I85="","",IF(B$14<E85+1,"",IF(I85=B$15,"",lookup!C78))) -> 76 | F86: =IF(E86="","",IF(B$11="Ordinary",lookup!D78-G86,lookup!F78)) -> 976043.8534 | G86: =IF(E86="","",IF(B$11="Ordinary",lookup!D78-lookup!E77,lookup!F79-lookup!G78)) -> 4880.219267 | H86: =IF(E86="","",lookup!E$2) -> 5264.047939 | I86: =IF(E86="","",lookup!E78) -> 975660.0247
E87: =IF(I86="","",IF(B$14<E86+1,"",IF(I86=B$15,"",lookup!C79))) -> 77 | F87: =IF(E87="","",IF(B$11="Ordinary",lookup!D79-G87,lookup!F79)) -> 975660.0247 | G87: =IF(E87="","",IF(B$11="Ordinary",lookup!D79-lookup!E78,lookup!F80-lookup!G79)) -> 4878.300123 | H87: =IF(E87="","",lookup!E$2) -> 5264.047939 | I87: =IF(E87="","",lookup!E79) -> 975274.2769
E88: =IF(I87="","",IF(B$14<E87+1,"",IF(I87=B$15,"",lookup!C80))) -> 78 | F88: =IF(E88="","",IF(B$11="Ordinary",lookup!D80-G88,lookup!F80)) -> 975274.2769 | G88: =IF(E88="","",IF(B$11="Ordinary",lookup!D80-lookup!E79,lookup!F81-lookup!G80)) -> 4876.371384 | H88: =IF(E88="","",lookup!E$2) -> 5264.047939 | I88: =IF(E88="","",lookup!E80) -> 974886.6003
E89: =IF(I88="","",IF(B$14<E88+1,"",IF(I88=B$15,"",lookup!C81))) -> 79 | F89: =IF(E89="","",IF(B$11="Ordinary",lookup!D81-G89,lookup!F81)) -> 974886.6003 | G89: =IF(E89="","",IF(B$11="Ordinary",lookup!D81-lookup!E80,lookup!F82-lookup!G81)) -> 4874.433002 | H89: =IF(E89="","",lookup!E$2) -> 5264.047939 | I89: =IF(E89="","",lookup!E81) -> 974496.9854
E90: =IF(I89="","",IF(B$14<E89+1,"",IF(I89=B$15,"",lookup!C82))) -> 80 | F90: =IF(E90="","",IF(B$11="Ordinary",lookup!D82-G90,lookup!F82)) -> 974496.9854 | G90: =IF(E90="","",IF(B$11="Ordinary",lookup!D82-lookup!E81,lookup!F83-lookup!G82)) -> 4872.484927 | H90: =IF(E90="","",lookup!E$2) -> 5264.047939 | I90: =IF(E90="","",lookup!E82) -> 974105.4224
E91: =IF(I90="","",IF(B$14<E90+1,"",IF(I90=B$15,"",lookup!C83))) -> 81 | F91: =IF(E91="","",IF(B$11="Ordinary",lookup!D83-G91,lookup!F83)) -> 974105.4224 | G91: =IF(E91="","",IF(B$11="Ordinary",lookup!D83-lookup!E82,lookup!F84-lookup!G83)) -> 4870.527112 | H91: =IF(E91="","",lookup!E$2) -> 5264.047939 | I91: =IF(E91="","",lookup!E83) -> 973711.9015
E92: =IF(I91="","",IF(B$14<E91+1,"",IF(I91=B$15,"",lookup!C84))) -> 82 | F92: =IF(E92="","",IF(B$11="Ordinary",lookup!D84-G92,lookup!F84)) -> 973711.9015 | G92: =IF(E92="","",IF(B$11="Ordinary",lookup!D84-lookup!E83,lookup!F85-lookup!G84)) -> 4868.559508 | H92: =IF(E92="","",lookup!E$2) -> 5264.047939 | I92: =IF(E92="","",lookup!E84) -> 973316.4131
E93: =IF(I92="","",IF(B$14<E92+1,"",IF(I92=B$15,"",lookup!C85))) -> 83 | F93: =IF(E93="","",IF(B$11="Ordinary",lookup!D85-G93,lookup!F85)) -> 973316.4131 | G93: =IF(E93="","",IF(B$11="Ordinary",lookup!D85-lookup!E84,lookup!F86-lookup!G85)) -> 4866.582066 | H93: =IF(E93="","",lookup!E$2) -> 5264.047939 | I93: =IF(E93="","",lookup!E85) -> 972918.9472
E94: =IF(I93="","",IF(B$14<E93+1,"",IF(I93=B$15,"",lookup!C86))) -> 84 | F94: =IF(E94="","",IF(B$11="Ordinary",lookup!D86-G94,lookup!F86)) -> 972918.9472 | G94: =IF(E94="","",IF(B$11="Ordinary",lookup!D86-lookup!E85,lookup!F87-lookup!G86)) -> 4864.594736 | H94: =IF(E94="","",lookup!E$2) -> 5264.047939 | I94: =IF(E94="","",lookup!E86) -> 972519.494
E95: =IF(I94="","",IF(B$14<E94+1,"",IF(I94=B$15,"",lookup!C87))) -> 85 | F95: =IF(E95="","",IF(B$11="Ordinary",lookup!D87-G95,lookup!F87)) -> 972519.494 | G95: =IF(E95="","",IF(B$11="Ordinary",lookup!D87-lookup!E86,lookup!F88-lookup!G87)) -> 4862.59747 | H95: =IF(E95="","",lookup!E$2) -> 5264.047939 | I95: =IF(E95="","",lookup!E87) -> 972118.0436
E96: =IF(I95="","",IF(B$14<E95+1,"",IF(I95=B$15,"",lookup!C88))) -> 86 | F96: =IF(E96="","",IF(B$11="Ordinary",lookup!D88-G96,lookup!F88)) -> 972118.0436 | G96: =IF(E96="","",IF(B$11="Ordinary",lookup!D88-lookup!E87,lookup!F89-lookup!G88)) -> 4860.590218 | H96: =IF(E96="","",lookup!E$2) -> 5264.047939 | I96: =IF(E96="","",lookup!E88) -> 971714.5858
E97: =IF(I96="","",IF(B$14<E96+1,"",IF(I96=B$15,"",lookup!C89))) -> 87 | F97: =IF(E97="","",IF(B$11="Ordinary",lookup!D89-G97,lookup!F89)) -> 971714.5858 | G97: =IF(E97="","",IF(B$11="Ordinary",lookup!D89-lookup!E88,lookup!F90-lookup!G89)) -> 4858.572929 | H97: =IF(E97="","",lookup!E$2) -> 5264.047939 | I97: =IF(E97="","",lookup!E89) -> 971309.1108
E98: =IF(I97="","",IF(B$14<E97+1,"",IF(I97=B$15,"",lookup!C90))) -> 88 | F98: =IF(E98="","",IF(B$11="Ordinary",lookup!D90-G98,lookup!F90)) -> 971309.1108 | G98: =IF(E98="","",IF(B$11="Ordinary",lookup!D90-lookup!E89,lookup!F91-lookup!G90)) -> 4856.545554 | H98: =IF(E98="","",lookup!E$2) -> 5264.047939 | I98: =IF(E98="","",lookup!E90) -> 970901.6084
E99: =IF(I98="","",IF(B$14<E98+1,"",IF(I98=B$15,"",lookup!C91))) -> 89 | F99: =IF(E99="","",IF(B$11="Ordinary",lookup!D91-G99,lookup!F91)) -> 970901.6084 | G99: =IF(E99="","",IF(B$11="Ordinary",lookup!D91-lookup!E90,lookup!F92-lookup!G91)) -> 4854.508042 | H99: =IF(E99="","",lookup!E$2) -> 5264.047939 | I99: =IF(E99="","",lookup!E91) -> 970492.0685
E100: =IF(I99="","",IF(B$14<E99+1,"",IF(I99=B$15,"",lookup!C92))) -> 90 | F100: =IF(E100="","",IF(B$11="Ordinary",lookup!D92-G100,lookup!F92)) -> 970492.0685 | G100: =IF(E100="","",IF(B$11="Ordinary",lookup!D92-lookup!E91,lookup!F93-lookup!G92)) -> 4852.460343 | H100: =IF(E100="","",lookup!E$2) -> 5264.047939 | I100: =IF(E100="","",lookup!E92) -> 970080.481
E101: =IF(I100="","",IF(B$14<E100+1,"",IF(I100=B$15,"",lookup!C93))) -> 91 | F101: =IF(E101="","",IF(B$11="Ordinary",lookup!D93-G101,lookup!F93)) -> 970080.481 | G101: =IF(E101="","",IF(B$11="Ordinary",lookup!D93-lookup!E92,lookup!F94-lookup!G93)) -> 4850.402405 | H101: =IF(E101="","",lookup!E$2) -> 5264.047939 | I101: =IF(E101="","",lookup!E93) -> 969666.8354
E102: =IF(I101="","",IF(B$14<E101+1,"",IF(I101=B$15,"",lookup!C94))) -> 92 | F102: =IF(E102="","",IF(B$11="Ordinary",lookup!D94-G102,lookup!F94)) -> 969666.8354 | G102: =IF(E102="","",IF(B$11="Ordinary",lookup!D94-lookup!E93,lookup!F95-lookup!G94)) -> 4848.334177 | H102: =IF(E102="","",lookup!E$2) -> 5264.047939 | I102: =IF(E102="","",lookup!E94) -> 969251.1217
E103: =IF(I102="","",IF(B$14<E102+1,"",IF(I102=B$15,"",lookup!C95))) -> 93 | F103: =IF(E103="","",IF(B$11="Ordinary",lookup!D95-G103,lookup!F95)) -> 969251.1217 | G103: =IF(E103="","",IF(B$11="Ordinary",lookup!D95-lookup!E94,lookup!F96-lookup!G95)) -> 4846.255608 | H103: =IF(E103="","",lookup!E$2) -> 5264.047939 | I103: =IF(E103="","",lookup!E95) -> 968833.3293
E104: =IF(I103="","",IF(B$14<E103+1,"",IF(I103=B$15,"",lookup!C96))) -> 94 | F104: =IF(E104="","",IF(B$11="Ordinary",lookup!D96-G104,lookup!F96)) -> 968833.3293 | G104: =IF(E104="","",IF(B$11="Ordinary",lookup!D96-lookup!E95,lookup!F97-lookup!G96)) -> 4844.166647 | H104: =IF(E104="","",lookup!E$2) -> 5264.047939 | I104: =IF(E104="","",lookup!E96) -> 968413.448
E105: =IF(I104="","",IF(B$14<E104+1,"",IF(I104=B$15,"",lookup!C97))) -> 95 | F105: =IF(E105="","",IF(B$11="Ordinary",lookup!D97-G105,lookup!F97)) -> 968413.448 | G105: =IF(E105="","",IF(B$11="Ordinary",lookup!D97-lookup!E96,lookup!F98-lookup!G97)) -> 4842.06724 | H105: =IF(E105="","",lookup!E$2) -> 5264.047939 | I105: =IF(E105="","",lookup!E97) -> 967991.4673
E106: =IF(I105="","",IF(B$14<E105+1,"",IF(I105=B$15,"",lookup!C98))) -> 96 | F106: =IF(E106="","",IF(B$11="Ordinary",lookup!D98-G106,lookup!F98)) -> 967991.4673 | G106: =IF(E106="","",IF(B$11="Ordinary",lookup!D98-lookup!E97,lookup!F99-lookup!G98)) -> 4839.957337 | H106: =IF(E106="","",lookup!E$2) -> 5264.047939 | I106: =IF(E106="","",lookup!E98) -> 967567.3767
E107: =IF(I106="","",IF(B$14<E106+1,"",IF(I106=B$15,"",lookup!C99))) -> 97 | F107: =IF(E107="","",IF(B$11="Ordinary",lookup!D99-G107,lookup!F99)) -> 967567.3767 | G107: =IF(E107="","",IF(B$11="Ordinary",lookup!D99-lookup!E98,lookup!F100-lookup!G99)) -> 4837.836884 | H107: =IF(E107="","",lookup!E$2) -> 5264.047939 | I107: =IF(E107="","",lookup!E99) -> 967141.1657
E108: =IF(I107="","",IF(B$14<E107+1,"",IF(I107=B$15,"",lookup!C100))) -> 98 | F108: =IF(E108="","",IF(B$11="Ordinary",lookup!D100-G108,lookup!F100)) -> 967141.1657 | G108: =IF(E108="","",IF(B$11="Ordinary",lookup!D100-lookup!E99,lookup!F101-lookup!G100)) -> 4835.705828 | H108: =IF(E108="","",lookup!E$2) -> 5264.047939 | I108: =IF(E108="","",lookup!E100) -> 966712.8236
E109: =IF(I108="","",IF(B$14<E108+1,"",IF(I108=B$15,"",lookup!C101))) -> 99 | F109: =IF(E109="","",IF(B$11="Ordinary",lookup!D101-G109,lookup!F101)) -> 966712.8236 | G109: =IF(E109="","",IF(B$11="Ordinary",lookup!D101-lookup!E100,lookup!F102-lookup!G101)) -> 4833.564118 | H109: =IF(E109="","",lookup!E$2) -> 5264.047939 | I109: =IF(E109="","",lookup!E101) -> 966282.3397
E110: =IF(I109="","",IF(B$14<E109+1,"",IF(I109=B$15,"",lookup!C102))) -> 100 | F110: =IF(E110="","",IF(B$11="Ordinary",lookup!D102-G110,lookup!F102)) -> 966282.3397 | G110: =IF(E110="","",IF(B$11="Ordinary",lookup!D102-lookup!E101,lookup!F103-lookup!G102)) -> 4831.411699 | H110: =IF(E110="","",lookup!E$2) -> 5264.047939 | I110: =IF(E110="","",lookup!E102) -> 965849.7035
E111: =IF(I110="","",IF(B$14<E110+1,"",IF(I110=B$15,"",lookup!C103))) -> 101 | F111: =IF(E111="","",IF(B$11="Ordinary",lookup!D103-G111,lookup!F103)) -> 965849.7035 | G111: =IF(E111="","",IF(B$11="Ordinary",lookup!D103-lookup!E102,lookup!F104-lookup!G103)) -> 4829.248518 | H111: =IF(E111="","",lookup!E$2) -> 5264.047939 | I111: =IF(E111="","",lookup!E103) -> 965414.9041
E112: =IF(I111="","",IF(B$14<E111+1,"",IF(I111=B$15,"",lookup!C104))) -> 102 | F112: =IF(E112="","",IF(B$11="Ordinary",lookup!D104-G112,lookup!F104)) -> 965414.9041 | G112: =IF(E112="","",IF(B$11="Ordinary",lookup!D104-lookup!E103,lookup!F105-lookup!G104)) -> 4827.07452 | H112: =IF(E112="","",lookup!E$2) -> 5264.047939 | I112: =IF(E112="","",lookup!E104) -> 964977.9307
E113: =IF(I112="","",IF(B$14<E112+1,"",IF(I112=B$15,"",lookup!C105))) -> 103 | F113: =IF(E113="","",IF(B$11="Ordinary",lookup!D105-G113,lookup!F105)) -> 964977.9307 | G113: =IF(E113="","",IF(B$11="Ordinary",lookup!D105-lookup!E104,lookup!F106-lookup!G105)) -> 4824.889653 | H113: =IF(E113="","",lookup!E$2) -> 5264.047939 | I113: =IF(E113="","",lookup!E105) -> 964538.7724
E114: =IF(I113="","",IF(B$14<E113+1,"",IF(I113=B$15,"",lookup!C106))) -> 104 | F114: =IF(E114="","",IF(B$11="Ordinary",lookup!D106-G114,lookup!F106)) -> 964538.7724 | G114: =IF(E114="","",IF(B$11="Ordinary",lookup!D106-lookup!E105,lookup!F107-lookup!G106)) -> 4822.693862 | H114: =IF(E114="","",lookup!E$2) -> 5264.047939 | I114: =IF(E114="","",lookup!E106) -> 964097.4183
E115: =IF(I114="","",IF(B$14<E114+1,"",IF(I114=B$15,"",lookup!C107))) -> 105 | F115: =IF(E115="","",IF(B$11="Ordinary",lookup!D107-G115,lookup!F107)) -> 964097.4183 | G115: =IF(E115="","",IF(B$11="Ordinary",lookup!D107-lookup!E106,lookup!F108-lookup!G107)) -> 4820.487092 | H115: =IF(E115="","",lookup!E$2) -> 5264.047939 | I115: =IF(E115="","",lookup!E107) -> 963653.8575
E116: =IF(I115="","",IF(B$14<E115+1,"",IF(I115=B$15,"",lookup!C108))) -> 106 | F116: =IF(E116="","",IF(B$11="Ordinary",lookup!D108-G116,lookup!F108)) -> 963653.8575 | G116: =IF(E116="","",IF(B$11="Ordinary",lookup!D108-lookup!E107,lookup!F109-lookup!G108)) -> 4818.269287 | H116: =IF(E116="","",lookup!E$2) -> 5264.047939 | I116: =IF(E116="","",lookup!E108) -> 963208.0788
E117: =IF(I116="","",IF(B$14<E116+1,"",IF(I116=B$15,"",lookup!C109))) -> 107 | F117: =IF(E117="","",IF(B$11="Ordinary",lookup!D109-G117,lookup!F109)) -> 963208.0788 | G117: =IF(E117="","",IF(B$11="Ordinary",lookup!D109-lookup!E108,lookup!F110-lookup!G109)) -> 4816.040394 | H117: =IF(E117="","",lookup!E$2) -> 5264.047939 | I117: =IF(E117="","",lookup!E109) -> 962760.0713
E118: =IF(I117="","",IF(B$14<E117+1,"",IF(I117=B$15,"",lookup!C110))) -> 108 | F118: =IF(E118="","",IF(B$11="Ordinary",lookup!D110-G118,lookup!F110)) -> 962760.0713 | G118: =IF(E118="","",IF(B$11="Ordinary",lookup!D110-lookup!E109,lookup!F111-lookup!G110)) -> 4813.800356 | H118: =IF(E118="","",lookup!E$2) -> 5264.047939 | I118: =IF(E118="","",lookup!E110) -> 962309.8237
E119: =IF(I118="","",IF(B$14<E118+1,"",IF(I118=B$15,"",lookup!C111))) -> 109 | F119: =IF(E119="","",IF(B$11="Ordinary",lookup!D111-G119,lookup!F111)) -> 962309.8237 | G119: =IF(E119="","",IF(B$11="Ordinary",lookup!D111-lookup!E110,lookup!F112-lookup!G111)) -> 4811.549118 | H119: =IF(E119="","",lookup!E$2) -> 5264.047939 | I119: =IF(E119="","",lookup!E111) -> 961857.3249
E120: =IF(I119="","",IF(B$14<E119+1,"",IF(I119=B$15,"",lookup!C112))) -> 110 | F120: =IF(E120="","",IF(B$11="Ordinary",lookup!D112-G120,lookup!F112)) -> 961857.3249 | G120: =IF(E120="","",IF(B$11="Ordinary",lookup!D112-lookup!E111,lookup!F113-lookup!G112)) -> 4809.286624 | H120: =IF(E120="","",lookup!E$2) -> 5264.047939 | I120: =IF(E120="","",lookup!E112) -> 961402.5635
E121: =IF(I120="","",IF(B$14<E120+1,"",IF(I120=B$15,"",lookup!C113))) -> 111 | F121: =IF(E121="","",IF(B$11="Ordinary",lookup!D113-G121,lookup!F113)) -> 961402.5635 | G121: =IF(E121="","",IF(B$11="Ordinary",lookup!D113-lookup!E112,lookup!F114-lookup!G113)) -> 4807.012818 | H121: =IF(E121="","",lookup!E$2) -> 5264.047939 | I121: =IF(E121="","",lookup!E113) -> 960945.5284
E122: =IF(I121="","",IF(B$14<E121+1,"",IF(I121=B$15,"",lookup!C114))) -> 112 | F122: =IF(E122="","",IF(B$11="Ordinary",lookup!D114-G122,lookup!F114)) -> 960945.5284 | G122: =IF(E122="","",IF(B$11="Ordinary",lookup!D114-lookup!E113,lookup!F115-lookup!G114)) -> 4804.727642 | H122: =IF(E122="","",lookup!E$2) -> 5264.047939 | I122: =IF(E122="","",lookup!E114) -> 960486.2081
E123: =IF(I122="","",IF(B$14<E122+1,"",IF(I122=B$15,"",lookup!C115))) -> 113 | F123: =IF(E123="","",IF(B$11="Ordinary",lookup!D115-G123,lookup!F115)) -> 960486.2081 | G123: =IF(E123="","",IF(B$11="Ordinary",lookup!D115-lookup!E114,lookup!F116-lookup!G115)) -> 4802.431041 | H123: =IF(E123="","",lookup!E$2) -> 5264.047939 | I123: =IF(E123="","",lookup!E115) -> 960024.5912
E124: =IF(I123="","",IF(B$14<E123+1,"",IF(I123=B$15,"",lookup!C116))) -> 114 | F124: =IF(E124="","",IF(B$11="Ordinary",lookup!D116-G124,lookup!F116)) -> 960024.5912 | G124: =IF(E124="","",IF(B$11="Ordinary",lookup!D116-lookup!E115,lookup!F117-lookup!G116)) -> 4800.122956 | H124: =IF(E124="","",lookup!E$2) -> 5264.047939 | I124: =IF(E124="","",lookup!E116) -> 959560.6662
E125: =IF(I124="","",IF(B$14<E124+1,"",IF(I124=B$15,"",lookup!C117))) -> 115 | F125: =IF(E125="","",IF(B$11="Ordinary",lookup!D117-G125,lookup!F117)) -> 959560.6662 | G125: =IF(E125="","",IF(B$11="Ordinary",lookup!D117-lookup!E116,lookup!F118-lookup!G117)) -> 4797.803331 | H125: =IF(E125="","",lookup!E$2) -> 5264.047939 | I125: =IF(E125="","",lookup!E117) -> 959094.4216
E126: =IF(I125="","",IF(B$14<E125+1,"",IF(I125=B$15,"",lookup!C118))) -> 116 | F126: =IF(E126="","",IF(B$11="Ordinary",lookup!D118-G126,lookup!F118)) -> 959094.4216 | G126: =IF(E126="","",IF(B$11="Ordinary",lookup!D118-lookup!E117,lookup!F119-lookup!G118)) -> 4795.472108 | H126: =IF(E126="","",lookup!E$2) -> 5264.047939 | I126: =IF(E126="","",lookup!E118) -> 958625.8458
E127: =IF(I126="","",IF(B$14<E126+1,"",IF(I126=B$15,"",lookup!C119))) -> 117 | F127: =IF(E127="","",IF(B$11="Ordinary",lookup!D119-G127,lookup!F119)) -> 958625.8458 | G127: =IF(E127="","",IF(B$11="Ordinary",lookup!D119-lookup!E118,lookup!F120-lookup!G119)) -> 4793.129229 | H127: =IF(E127="","",lookup!E$2) -> 5264.047939 | I127: =IF(E127="","",lookup!E119) -> 958154.9271
E128: =IF(I127="","",IF(B$14<E127+1,"",IF(I127=B$15,"",lookup!C120))) -> 118 | F128: =IF(E128="","",IF(B$11="Ordinary",lookup!D120-G128,lookup!F120)) -> 958154.9271 | G128: =IF(E128="","",IF(B$11="Ordinary",lookup!D120-lookup!E119,lookup!F121-lookup!G120)) -> 4790.774635 | H128: =IF(E128="","",lookup!E$2) -> 5264.047939 | I128: =IF(E128="","",lookup!E120) -> 957681.6538
E129: =IF(I128="","",IF(B$14<E128+1,"",IF(I128=B$15,"",lookup!C121))) -> 119 | F129: =IF(E129="","",IF(B$11="Ordinary",lookup!D121-G129,lookup!F121)) -> 957681.6538 | G129: =IF(E129="","",IF(B$11="Ordinary",lookup!D121-lookup!E120,lookup!F122-lookup!G121)) -> 4788.408269 | H129: =IF(E129="","",lookup!E$2) -> 5264.047939 | I129: =IF(E129="","",lookup!E121) -> 957206.0141
E130: =IF(I129="","",IF(B$14<E129+1,"",IF(I129=B$15,"",lookup!C122))) -> 120 | F130: =IF(E130="","",IF(B$11="Ordinary",lookup!D122-G130,lookup!F122)) -> 957206.0141 | G130: =IF(E130="","",IF(B$11="Ordinary",lookup!D122-lookup!E121,lookup!F123-lookup!G122)) -> 4786.030071 | H130: =IF(E130="","",lookup!E$2) -> 5264.047939 | I130: =IF(E130="","",lookup!E122) -> 956727.9963
E131: =IF(I130="","",IF(B$14<E130+1,"",IF(I130=B$15,"",lookup!C123))) -> 121 | F131: =IF(E131="","",IF(B$11="Ordinary",lookup!D123-G131,lookup!F123)) -> 956727.9963 | G131: =IF(E131="","",IF(B$11="Ordinary",lookup!D123-lookup!E122,lookup!F124-lookup!G123)) -> 4783.639981 | H131: =IF(E131="","",lookup!E$2) -> 5264.047939 | I131: =IF(E131="","",lookup!E123) -> 956247.5883
E132: =IF(I131="","",IF(B$14<E131+1,"",IF(I131=B$15,"",lookup!C124))) -> 122 | F132: =IF(E132="","",IF(B$11="Ordinary",lookup!D124-G132,lookup!F124)) -> 956247.5883 | G132: =IF(E132="","",IF(B$11="Ordinary",lookup!D124-lookup!E123,lookup!F125-lookup!G124)) -> 4781.237941 | H132: =IF(E132="","",lookup!E$2) -> 5264.047939 | I132: =IF(E132="","",lookup!E124) -> 955764.7783
E133: =IF(I132="","",IF(B$14<E132+1,"",IF(I132=B$15,"",lookup!C125))) -> 123 | F133: =IF(E133="","",IF(B$11="Ordinary",lookup!D125-G133,lookup!F125)) -> 955764.7783 | G133: =IF(E133="","",IF(B$11="Ordinary",lookup!D125-lookup!E124,lookup!F126-lookup!G125)) -> 4778.823891 | H133: =IF(E133="","",lookup!E$2) -> 5264.047939 | I133: =IF(E133="","",lookup!E125) -> 955279.5543
E134: =IF(I133="","",IF(B$14<E133+1,"",IF(I133=B$15,"",lookup!C126))) -> 124 | F134: =IF(E134="","",IF(B$11="Ordinary",lookup!D126-G134,lookup!F126)) -> 955279.5543 | G134: =IF(E134="","",IF(B$11="Ordinary",lookup!D126-lookup!E125,lookup!F127-lookup!G126)) -> 4776.397771 | H134: =IF(E134="","",lookup!E$2) -> 5264.047939 | I134: =IF(E134="","",lookup!E126) -> 954791.9041
E135: =IF(I134="","",IF(B$14<E134+1,"",IF(I134=B$15,"",lookup!C127))) -> 125 | F135: =IF(E135="","",IF(B$11="Ordinary",lookup!D127-G135,lookup!F127)) -> 954791.9041 | G135: =IF(E135="","",IF(B$11="Ordinary",lookup!D127-lookup!E126,lookup!F128-lookup!G127)) -> 4773.95952 | H135: =IF(E135="","",lookup!E$2) -> 5264.047939 | I135: =IF(E135="","",lookup!E127) -> 954301.8157
E136: =IF(I135="","",IF(B$14<E135+1,"",IF(I135=B$15,"",lookup!C128))) -> 126 | F136: =IF(E136="","",IF(B$11="Ordinary",lookup!D128-G136,lookup!F128)) -> 954301.8157 | G136: =IF(E136="","",IF(B$11="Ordinary",lookup!D128-lookup!E127,lookup!F129-lookup!G128)) -> 4771.509078 | H136: =IF(E136="","",lookup!E$2) -> 5264.047939 | I136: =IF(E136="","",lookup!E128) -> 953809.2768
E137: =IF(I136="","",IF(B$14<E136+1,"",IF(I136=B$15,"",lookup!C129))) -> 127 | F137: =IF(E137="","",IF(B$11="Ordinary",lookup!D129-G137,lookup!F129)) -> 953809.2768 | G137: =IF(E137="","",IF(B$11="Ordinary",lookup!D129-lookup!E128,lookup!F130-lookup!G129)) -> 4769.046384 | H137: =IF(E137="","",lookup!E$2) -> 5264.047939 | I137: =IF(E137="","",lookup!E129) -> 953314.2752
E138: =IF(I137="","",IF(B$14<E137+1,"",IF(I137=B$15,"",lookup!C130))) -> 128 | F138: =IF(E138="","",IF(B$11="Ordinary",lookup!D130-G138,lookup!F130)) -> 953314.2752 | G138: =IF(E138="","",IF(B$11="Ordinary",lookup!D130-lookup!E129,lookup!F131-lookup!G130)) -> 4766.571376 | H138: =IF(E138="","",lookup!E$2) -> 5264.047939 | I138: =IF(E138="","",lookup!E130) -> 952816.7987
E139: =IF(I138="","",IF(B$14<E138+1,"",IF(I138=B$15,"",lookup!C131))) -> 129 | F139: =IF(E139="","",IF(B$11="Ordinary",lookup!D131-G139,lookup!F131)) -> 952816.7987 | G139: =IF(E139="","",IF(B$11="Ordinary",lookup!D131-lookup!E130,lookup!F132-lookup!G131)) -> 4764.083993 | H139: =IF(E139="","",lookup!E$2) -> 5264.047939 | I139: =IF(E139="","",lookup!E131) -> 952316.8347
E140: =IF(I139="","",IF(B$14<E139+1,"",IF(I139=B$15,"",lookup!C132))) -> 130 | F140: =IF(E140="","",IF(B$11="Ordinary",lookup!D132-G140,lookup!F132)) -> 952316.8347 | G140: =IF(E140="","",IF(B$11="Ordinary",lookup!D132-lookup!E131,lookup!F133-lookup!G132)) -> 4761.584174 | H140: =IF(E140="","",lookup!E$2) -> 5264.047939 | I140: =IF(E140="","",lookup!E132) -> 951814.371
E141: =IF(I140="","",IF(B$14<E140+1,"",IF(I140=B$15,"",lookup!C133))) -> 131 | F141: =IF(E141="","",IF(B$11="Ordinary",lookup!D133-G141,lookup!F133)) -> 951814.371 | G141: =IF(E141="","",IF(B$11="Ordinary",lookup!D133-lookup!E132,lookup!F134-lookup!G133)) -> 4759.071855 | H141: =IF(E141="","",lookup!E$2) -> 5264.047939 | I141: =IF(E141="","",lookup!E133) -> 951309.3949
E142: =IF(I141="","",IF(B$14<E141+1,"",IF(I141=B$15,"",lookup!C134))) -> 132 | F142: =IF(E142="","",IF(B$11="Ordinary",lookup!D134-G142,lookup!F134)) -> 951309.3949 | G142: =IF(E142="","",IF(B$11="Ordinary",lookup!D134-lookup!E133,lookup!F135-lookup!G134)) -> 4756.546974 | H142: =IF(E142="","",lookup!E$2) -> 5264.047939 | I142: =IF(E142="","",lookup!E134) -> 950801.8939
E143: =IF(I142="","",IF(B$14<E142+1,"",IF(I142=B$15,"",lookup!C135))) -> 133 | F143: =IF(E143="","",IF(B$11="Ordinary",lookup!D135-G143,lookup!F135)) -> 950801.8939 | G143: =IF(E143="","",IF(B$11="Ordinary",lookup!D135-lookup!E134,lookup!F136-lookup!G135)) -> 4754.00947 | H143: =IF(E143="","",lookup!E$2) -> 5264.047939 | I143: =IF(E143="","",lookup!E135) -> 950291.8555
E144: =IF(I143="","",IF(B$14<E143+1,"",IF(I143=B$15,"",lookup!C136))) -> 134 | F144: =IF(E144="","",IF(B$11="Ordinary",lookup!D136-G144,lookup!F136)) -> 950291.8555 | G144: =IF(E144="","",IF(B$11="Ordinary",lookup!D136-lookup!E135,lookup!F137-lookup!G136)) -> 4751.459277 | H144: =IF(E144="","",lookup!E$2) -> 5264.047939 | I144: =IF(E144="","",lookup!E136) -> 949779.2668
E145: =IF(I144="","",IF(B$14<E144+1,"",IF(I144=B$15,"",lookup!C137))) -> 135 | F145: =IF(E145="","",IF(B$11="Ordinary",lookup!D137-G145,lookup!F137)) -> 949779.2668 | G145: =IF(E145="","",IF(B$11="Ordinary",lookup!D137-lookup!E136,lookup!F138-lookup!G137)) -> 4748.896334 | H145: =IF(E145="","",lookup!E$2) -> 5264.047939 | I145: =IF(E145="","",lookup!E137) -> 949264.1152
E146: =IF(I145="","",IF(B$14<E145+1,"",IF(I145=B$15,"",lookup!C138))) -> 136 | F146: =IF(E146="","",IF(B$11="Ordinary",lookup!D138-G146,lookup!F138)) -> 949264.1152 | G146: =IF(E146="","",IF(B$11="Ordinary",lookup!D138-lookup!E137,lookup!F139-lookup!G138)) -> 4746.320576 | H146: =IF(E146="","",lookup!E$2) -> 5264.047939 | I146: =IF(E146="","",lookup!E138) -> 948746.3878
E147: =IF(I146="","",IF(B$14<E146+1,"",IF(I146=B$15,"",lookup!C139))) -> 137 | F147: =IF(E147="","",IF(B$11="Ordinary",lookup!D139-G147,lookup!F139)) -> 948746.3878 | G147: =IF(E147="","",IF(B$11="Ordinary",lookup!D139-lookup!E138,lookup!F140-lookup!G139)) -> 4743.731939 | H147: =IF(E147="","",lookup!E$2) -> 5264.047939 | I147: =IF(E147="","",lookup!E139) -> 948226.0718
E148: =IF(I147="","",IF(B$14<E147+1,"",IF(I147=B$15,"",lookup!C140))) -> 138 | F148: =IF(E148="","",IF(B$11="Ordinary",lookup!D140-G148,lookup!F140)) -> 948226.0718 | G148: =IF(E148="","",IF(B$11="Ordinary",lookup!D140-lookup!E139,lookup!F141-lookup!G140)) -> 4741.130359 | H148: =IF(E148="","",lookup!E$2) -> 5264.047939 | I148: =IF(E148="","",lookup!E140) -> 947703.1542
E149: =IF(I148="","",IF(B$14<E148+1,"",IF(I148=B$15,"",lookup!C141))) -> 139 | F149: =IF(E149="","",IF(B$11="Ordinary",lookup!D141-G149,lookup!F141)) -> 947703.1542 | G149: =IF(E149="","",IF(B$11="Ordinary",lookup!D141-lookup!E140,lookup!F142-lookup!G141)) -> 4738.515771 | H149: =IF(E149="","",lookup!E$2) -> 5264.047939 | I149: =IF(E149="","",lookup!E141) -> 947177.6221
E150: =IF(I149="","",IF(B$14<E149+1,"",IF(I149=B$15,"",lookup!C142))) -> 140 | F150: =IF(E150="","",IF(B$11="Ordinary",lookup!D142-G150,lookup!F142)) -> 947177.6221 | G150: =IF(E150="","",IF(B$11="Ordinary",lookup!D142-lookup!E141,lookup!F143-lookup!G142)) -> 4735.88811 | H150: =IF(E150="","",lookup!E$2) -> 5264.047939 | I150: =IF(E150="","",lookup!E142) -> 946649.4623
E151: =IF(I150="","",IF(B$14<E150+1,"",IF(I150=B$15,"",lookup!C143))) -> 141 | F151: =IF(E151="","",IF(B$11="Ordinary",lookup!D143-G151,lookup!F143)) -> 946649.4623 | G151: =IF(E151="","",IF(B$11="Ordinary",lookup!D143-lookup!E142,lookup!F144-lookup!G143)) -> 4733.247311 | H151: =IF(E151="","",lookup!E$2) -> 5264.047939 | I151: =IF(E151="","",lookup!E143) -> 946118.6616
E152: =IF(I151="","",IF(B$14<E151+1,"",IF(I151=B$15,"",lookup!C144))) -> 142 | F152: =IF(E152="","",IF(B$11="Ordinary",lookup!D144-G152,lookup!F144)) -> 946118.6616 | G152: =IF(E152="","",IF(B$11="Ordinary",lookup!D144-lookup!E143,lookup!F145-lookup!G144)) -> 4730.593308 | H152: =IF(E152="","",lookup!E$2) -> 5264.047939 | I152: =IF(E152="","",lookup!E144) -> 945585.207
E153: =IF(I152="","",IF(B$14<E152+1,"",IF(I152=B$15,"",lookup!C145))) -> 143 | F153: =IF(E153="","",IF(B$11="Ordinary",lookup!D145-G153,lookup!F145)) -> 945585.207 | G153: =IF(E153="","",IF(B$11="Ordinary",lookup!D145-lookup!E144,lookup!F146-lookup!G145)) -> 4727.926035 | H153: =IF(E153="","",lookup!E$2) -> 5264.047939 | I153: =IF(E153="","",lookup!E145) -> 945049.0851
E154: =IF(I153="","",IF(B$14<E153+1,"",IF(I153=B$15,"",lookup!C146))) -> 144 | F154: =IF(E154="","",IF(B$11="Ordinary",lookup!D146-G154,lookup!F146)) -> 945049.0851 | G154: =IF(E154="","",IF(B$11="Ordinary",lookup!D146-lookup!E145,lookup!F147-lookup!G146)) -> 4725.245425 | H154: =IF(E154="","",lookup!E$2) -> 5264.047939 | I154: =IF(E154="","",lookup!E146) -> 944510.2826
E155: =IF(I154="","",IF(B$14<E154+1,"",IF(I154=B$15,"",lookup!C147))) -> 145 | F155: =IF(E155="","",IF(B$11="Ordinary",lookup!D147-G155,lookup!F147)) -> 944510.2826 | G155: =IF(E155="","",IF(B$11="Ordinary",lookup!D147-lookup!E146,lookup!F148-lookup!G147)) -> 4722.551413 | H155: =IF(E155="","",lookup!E$2) -> 5264.047939 | I155: =IF(E155="","",lookup!E147) -> 943968.7861
E156: =IF(I155="","",IF(B$14<E155+1,"",IF(I155=B$15,"",lookup!C148))) -> 146 | F156: =IF(E156="","",IF(B$11="Ordinary",lookup!D148-G156,lookup!F148)) -> 943968.7861 | G156: =IF(E156="","",IF(B$11="Ordinary",lookup!D148-lookup!E147,lookup!F149-lookup!G148)) -> 4719.84393 | H156: =IF(E156="","",lookup!E$2) -> 5264.047939 | I156: =IF(E156="","",lookup!E148) -> 943424.582
E157: =IF(I156="","",IF(B$14<E156+1,"",IF(I156=B$15,"",lookup!C149))) -> 147 | F157: =IF(E157="","",IF(B$11="Ordinary",lookup!D149-G157,lookup!F149)) -> 943424.582 | G157: =IF(E157="","",IF(B$11="Ordinary",lookup!D149-lookup!E148,lookup!F150-lookup!G149)) -> 4717.12291 | H157: =IF(E157="","",lookup!E$2) -> 5264.047939 | I157: =IF(E157="","",lookup!E149) -> 942877.657
E158: =IF(I157="","",IF(B$14<E157+1,"",IF(I157=B$15,"",lookup!C150))) -> 148 | F158: =IF(E158="","",IF(B$11="Ordinary",lookup!D150-G158,lookup!F150)) -> 942877.657 | G158: =IF(E158="","",IF(B$11="Ordinary",lookup!D150-lookup!E149,lookup!F151-lookup!G150)) -> 4714.388285 | H158: =IF(E158="","",lookup!E$2) -> 5264.047939 | I158: =IF(E158="","",lookup!E150) -> 942327.9974
E159: =IF(I158="","",IF(B$14<E158+1,"",IF(I158=B$15,"",lookup!C151))) -> 149 | F159: =IF(E159="","",IF(B$11="Ordinary",lookup!D151-G159,lookup!F151)) -> 942327.9974 | G159: =IF(E159="","",IF(B$11="Ordinary",lookup!D151-lookup!E150,lookup!F152-lookup!G151)) -> 4711.639987 | H159: =IF(E159="","",lookup!E$2) -> 5264.047939 | I159: =IF(E159="","",lookup!E151) -> 941775.5894
E160: =IF(I159="","",IF(B$14<E159+1,"",IF(I159=B$15,"",lookup!C152))) -> 150 | F160: =IF(E160="","",IF(B$11="Ordinary",lookup!D152-G160,lookup!F152)) -> 941775.5894 | G160: =IF(E160="","",IF(B$11="Ordinary",lookup!D152-lookup!E151,lookup!F153-lookup!G152)) -> 4708.877947 | H160: =IF(E160="","",lookup!E$2) -> 5264.047939 | I160: =IF(E160="","",lookup!E152) -> 941220.4194
E161: =IF(I160="","",IF(B$14<E160+1,"",IF(I160=B$15,"",lookup!C153))) -> 151 | F161: =IF(E161="","",IF(B$11="Ordinary",lookup!D153-G161,lookup!F153)) -> 941220.4194 | G161: =IF(E161="","",IF(B$11="Ordinary",lookup!D153-lookup!E152,lookup!F154-lookup!G153)) -> 4706.102097 | H161: =IF(E161="","",lookup!E$2) -> 5264.047939 | I161: =IF(E161="","",lookup!E153) -> 940662.4736
E162: =IF(I161="","",IF(B$14<E161+1,"",IF(I161=B$15,"",lookup!C154))) -> 152 | F162: =IF(E162="","",IF(B$11="Ordinary",lookup!D154-G162,lookup!F154)) -> 940662.4736 | G162: =IF(E162="","",IF(B$11="Ordinary",lookup!D154-lookup!E153,lookup!F155-lookup!G154)) -> 4703.312368 | H162: =IF(E162="","",lookup!E$2) -> 5264.047939 | I162: =IF(E162="","",lookup!E154) -> 940101.738
E163: =IF(I162="","",IF(B$14<E162+1,"",IF(I162=B$15,"",lookup!C155))) -> 153 | F163: =IF(E163="","",IF(B$11="Ordinary",lookup!D155-G163,lookup!F155)) -> 940101.738 | G163: =IF(E163="","",IF(B$11="Ordinary",lookup!D155-lookup!E154,lookup!F156-lookup!G155)) -> 4700.50869 | H163: =IF(E163="","",lookup!E$2) -> 5264.047939 | I163: =IF(E163="","",lookup!E155) -> 939538.1988
E164: =IF(I163="","",IF(B$14<E163+1,"",IF(I163=B$15,"",lookup!C156))) -> 154 | F164: =IF(E164="","",IF(B$11="Ordinary",lookup!D156-G164,lookup!F156)) -> 939538.1988 | G164: =IF(E164="","",IF(B$11="Ordinary",lookup!D156-lookup!E155,lookup!F157-lookup!G156)) -> 4697.690994 | H164: =IF(E164="","",lookup!E$2) -> 5264.047939 | I164: =IF(E164="","",lookup!E156) -> 938971.8418
E165: =IF(I164="","",IF(B$14<E164+1,"",IF(I164=B$15,"",lookup!C157))) -> 155 | F165: =IF(E165="","",IF(B$11="Ordinary",lookup!D157-G165,lookup!F157)) -> 938971.8418 | G165: =IF(E165="","",IF(B$11="Ordinary",lookup!D157-lookup!E156,lookup!F158-lookup!G157)) -> 4694.859209 | H165: =IF(E165="","",lookup!E$2) -> 5264.047939 | I165: =IF(E165="","",lookup!E157) -> 938402.6531
E166: =IF(I165="","",IF(B$14<E165+1,"",IF(I165=B$15,"",lookup!C158))) -> 156 | F166: =IF(E166="","",IF(B$11="Ordinary",lookup!D158-G166,lookup!F158)) -> 938402.6531 | G166: =IF(E166="","",IF(B$11="Ordinary",lookup!D158-lookup!E157,lookup!F159-lookup!G158)) -> 4692.013265 | H166: =IF(E166="","",lookup!E$2) -> 5264.047939 | I166: =IF(E166="","",lookup!E158) -> 937830.6184
E167: =IF(I166="","",IF(B$14<E166+1,"",IF(I166=B$15,"",lookup!C159))) -> 157 | F167: =IF(E167="","",IF(B$11="Ordinary",lookup!D159-G167,lookup!F159)) -> 937830.6184 | G167: =IF(E167="","",IF(B$11="Ordinary",lookup!D159-lookup!E158,lookup!F160-lookup!G159)) -> 4689.153092 | H167: =IF(E167="","",lookup!E$2) -> 5264.047939 | I167: =IF(E167="","",lookup!E159) -> 937255.7236
E168: =IF(I167="","",IF(B$14<E167+1,"",IF(I167=B$15,"",lookup!C160))) -> 158 | F168: =IF(E168="","",IF(B$11="Ordinary",lookup!D160-G168,lookup!F160)) -> 937255.7236 | G168: =IF(E168="","",IF(B$11="Ordinary",lookup!D160-lookup!E159,lookup!F161-lookup!G160)) -> 4686.278618 | H168: =IF(E168="","",lookup!E$2) -> 5264.047939 | I168: =IF(E168="","",lookup!E160) -> 936677.9542
E169: =IF(I168="","",IF(B$14<E168+1,"",IF(I168=B$15,"",lookup!C161))) -> 159 | F169: =IF(E169="","",IF(B$11="Ordinary",lookup!D161-G169,lookup!F161)) -> 936677.9542 | G169: =IF(E169="","",IF(B$11="Ordinary",lookup!D161-lookup!E160,lookup!F162-lookup!G161)) -> 4683.389771 | H169: =IF(E169="","",lookup!E$2) -> 5264.047939 | I169: =IF(E169="","",lookup!E161) -> 936097.2961
E170: =IF(I169="","",IF(B$14<E169+1,"",IF(I169=B$15,"",lookup!C162))) -> 160 | F170: =IF(E170="","",IF(B$11="Ordinary",lookup!D162-G170,lookup!F162)) -> 936097.2961 | G170: =IF(E170="","",IF(B$11="Ordinary",lookup!D162-lookup!E161,lookup!F163-lookup!G162)) -> 4680.48648 | H170: =IF(E170="","",lookup!E$2) -> 5264.047939 | I170: =IF(E170="","",lookup!E162) -> 935513.7346
E171: =IF(I170="","",IF(B$14<E170+1,"",IF(I170=B$15,"",lookup!C163))) -> 161 | F171: =IF(E171="","",IF(B$11="Ordinary",lookup!D163-G171,lookup!F163)) -> 935513.7346 | G171: =IF(E171="","",IF(B$11="Ordinary",lookup!D163-lookup!E162,lookup!F164-lookup!G163)) -> 4677.568673 | H171: =IF(E171="","",lookup!E$2) -> 5264.047939 | I171: =IF(E171="","",lookup!E163) -> 934927.2553
E172: =IF(I171="","",IF(B$14<E171+1,"",IF(I171=B$15,"",lookup!C164))) -> 162 | F172: =IF(E172="","",IF(B$11="Ordinary",lookup!D164-G172,lookup!F164)) -> 934927.2553 | G172: =IF(E172="","",IF(B$11="Ordinary",lookup!D164-lookup!E163,lookup!F165-lookup!G164)) -> 4674.636277 | H172: =IF(E172="","",lookup!E$2) -> 5264.047939 | I172: =IF(E172="","",lookup!E164) -> 934337.8437
E173: =IF(I172="","",IF(B$14<E172+1,"",IF(I172=B$15,"",lookup!C165))) -> 163 | F173: =IF(E173="","",IF(B$11="Ordinary",lookup!D165-G173,lookup!F165)) -> 934337.8437 | G173: =IF(E173="","",IF(B$11="Ordinary",lookup!D165-lookup!E164,lookup!F166-lookup!G165)) -> 4671.689218 | H173: =IF(E173="","",lookup!E$2) -> 5264.047939 | I173: =IF(E173="","",lookup!E165) -> 933745.485
E174: =IF(I173="","",IF(B$14<E173+1,"",IF(I173=B$15,"",lookup!C166))) -> 164 | F174: =IF(E174="","",IF(B$11="Ordinary",lookup!D166-G174,lookup!F166)) -> 933745.485 | G174: =IF(E174="","",IF(B$11="Ordinary",lookup!D166-lookup!E165,lookup!F167-lookup!G166)) -> 4668.727425 | H174: =IF(E174="","",lookup!E$2) -> 5264.047939 | I174: =IF(E174="","",lookup!E166) -> 933150.1645
E175: =IF(I174="","",IF(B$14<E174+1,"",IF(I174=B$15,"",lookup!C167))) -> 165 | F175: =IF(E175="","",IF(B$11="Ordinary",lookup!D167-G175,lookup!F167)) -> 933150.1645 | G175: =IF(E175="","",IF(B$11="Ordinary",lookup!D167-lookup!E166,lookup!F168-lookup!G167)) -> 4665.750822 | H175: =IF(E175="","",lookup!E$2) -> 5264.047939 | I175: =IF(E175="","",lookup!E167) -> 932551.8673
E176: =IF(I175="","",IF(B$14<E175+1,"",IF(I175=B$15,"",lookup!C168))) -> 166 | F176: =IF(E176="","",IF(B$11="Ordinary",lookup!D168-G176,lookup!F168)) -> 932551.8673 | G176: =IF(E176="","",IF(B$11="Ordinary",lookup!D168-lookup!E167,lookup!F169-lookup!G168)) -> 4662.759337 | H176: =IF(E176="","",lookup!E$2) -> 5264.047939 | I176: =IF(E176="","",lookup!E168) -> 931950.5787
E177: =IF(I176="","",IF(B$14<E176+1,"",IF(I176=B$15,"",lookup!C169))) -> 167 | F177: =IF(E177="","",IF(B$11="Ordinary",lookup!D169-G177,lookup!F169)) -> 931950.5787 | G177: =IF(E177="","",IF(B$11="Ordinary",lookup!D169-lookup!E168,lookup!F170-lookup!G169)) -> 4659.752894 | H177: =IF(E177="","",lookup!E$2) -> 5264.047939 | I177: =IF(E177="","",lookup!E169) -> 931346.2837
E178: =IF(I177="","",IF(B$14<E177+1,"",IF(I177=B$15,"",lookup!C170))) -> 168 | F178: =IF(E178="","",IF(B$11="Ordinary",lookup!D170-G178,lookup!F170)) -> 931346.2837 | G178: =IF(E178="","",IF(B$11="Ordinary",lookup!D170-lookup!E169,lookup!F171-lookup!G170)) -> 4656.731418 | H178: =IF(E178="","",lookup!E$2) -> 5264.047939 | I178: =IF(E178="","",lookup!E170) -> 930738.9672
E179: =IF(I178="","",IF(B$14<E178+1,"",IF(I178=B$15,"",lookup!C171))) -> 169 | F179: =IF(E179="","",IF(B$11="Ordinary",lookup!D171-G179,lookup!F171)) -> 930738.9672 | G179: =IF(E179="","",IF(B$11="Ordinary",lookup!D171-lookup!E170,lookup!F172-lookup!G171)) -> 4653.694836 | H179: =IF(E179="","",lookup!E$2) -> 5264.047939 | I179: =IF(E179="","",lookup!E171) -> 930128.6141
E180: =IF(I179="","",IF(B$14<E179+1,"",IF(I179=B$15,"",lookup!C172))) -> 170 | F180: =IF(E180="","",IF(B$11="Ordinary",lookup!D172-G180,lookup!F172)) -> 930128.6141 | G180: =IF(E180="","",IF(B$11="Ordinary",lookup!D172-lookup!E171,lookup!F173-lookup!G172)) -> 4650.64307 | H180: =IF(E180="","",lookup!E$2) -> 5264.047939 | I180: =IF(E180="","",lookup!E172) -> 929515.2092
E181: =IF(I180="","",IF(B$14<E180+1,"",IF(I180=B$15,"",lookup!C173))) -> 171 | F181: =IF(E181="","",IF(B$11="Ordinary",lookup!D173-G181,lookup!F173)) -> 929515.2092 | G181: =IF(E181="","",IF(B$11="Ordinary",lookup!D173-lookup!E172,lookup!F174-lookup!G173)) -> 4647.576046 | H181: =IF(E181="","",lookup!E$2) -> 5264.047939 | I181: =IF(E181="","",lookup!E173) -> 928898.7373
E182: =IF(I181="","",IF(B$14<E181+1,"",IF(I181=B$15,"",lookup!C174))) -> 172 | F182: =IF(E182="","",IF(B$11="Ordinary",lookup!D174-G182,lookup!F174)) -> 928898.7373 | G182: =IF(E182="","",IF(B$11="Ordinary",lookup!D174-lookup!E173,lookup!F175-lookup!G174)) -> 4644.493687 | H182: =IF(E182="","",lookup!E$2) -> 5264.047939 | I182: =IF(E182="","",lookup!E174) -> 928279.183
E183: =IF(I182="","",IF(B$14<E182+1,"",IF(I182=B$15,"",lookup!C175))) -> 173 | F183: =IF(E183="","",IF(B$11="Ordinary",lookup!D175-G183,lookup!F175)) -> 928279.183 | G183: =IF(E183="","",IF(B$11="Ordinary",lookup!D175-lookup!E174,lookup!F176-lookup!G175)) -> 4641.395915 | H183: =IF(E183="","",lookup!E$2) -> 5264.047939 | I183: =IF(E183="","",lookup!E175) -> 927656.531
E184: =IF(I183="","",IF(B$14<E183+1,"",IF(I183=B$15,"",lookup!C176))) -> 174 | F184: =IF(E184="","",IF(B$11="Ordinary",lookup!D176-G184,lookup!F176)) -> 927656.531 | G184: =IF(E184="","",IF(B$11="Ordinary",lookup!D176-lookup!E175,lookup!F177-lookup!G176)) -> 4638.282655 | H184: =IF(E184="","",lookup!E$2) -> 5264.047939 | I184: =IF(E184="","",lookup!E176) -> 927030.7657
E185: =IF(I184="","",IF(B$14<E184+1,"",IF(I184=B$15,"",lookup!C177))) -> 175 | F185: =IF(E185="","",IF(B$11="Ordinary",lookup!D177-G185,lookup!F177)) -> 927030.7657 | G185: =IF(E185="","",IF(B$11="Ordinary",lookup!D177-lookup!E176,lookup!F178-lookup!G177)) -> 4635.153829 | H185: =IF(E185="","",lookup!E$2) -> 5264.047939 | I185: =IF(E185="","",lookup!E177) -> 926401.8716
E186: =IF(I185="","",IF(B$14<E185+1,"",IF(I185=B$15,"",lookup!C178))) -> 176 | F186: =IF(E186="","",IF(B$11="Ordinary",lookup!D178-G186,lookup!F178)) -> 926401.8716 | G186: =IF(E186="","",IF(B$11="Ordinary",lookup!D178-lookup!E177,lookup!F179-lookup!G178)) -> 4632.009358 | H186: =IF(E186="","",lookup!E$2) -> 5264.047939 | I186: =IF(E186="","",lookup!E178) -> 925769.8331
E187: =IF(I186="","",IF(B$14<E186+1,"",IF(I186=B$15,"",lookup!C179))) -> 177 | F187: =IF(E187="","",IF(B$11="Ordinary",lookup!D179-G187,lookup!F179)) -> 925769.8331 | G187: =IF(E187="","",IF(B$11="Ordinary",lookup!D179-lookup!E178,lookup!F180-lookup!G179)) -> 4628.849165 | H187: =IF(E187="","",lookup!E$2) -> 5264.047939 | I187: =IF(E187="","",lookup!E179) -> 925134.6343
E188: =IF(I187="","",IF(B$14<E187+1,"",IF(I187=B$15,"",lookup!C180))) -> 178 | F188: =IF(E188="","",IF(B$11="Ordinary",lookup!D180-G188,lookup!F180)) -> 925134.6343 | G188: =IF(E188="","",IF(B$11="Ordinary",lookup!D180-lookup!E179,lookup!F181-lookup!G180)) -> 4625.673171 | H188: =IF(E188="","",lookup!E$2) -> 5264.047939 | I188: =IF(E188="","",lookup!E180) -> 924496.2595
E189: =IF(I188="","",IF(B$14<E188+1,"",IF(I188=B$15,"",lookup!C181))) -> 179 | F189: =IF(E189="","",IF(B$11="Ordinary",lookup!D181-G189,lookup!F181)) -> 924496.2595 | G189: =IF(E189="","",IF(B$11="Ordinary",lookup!D181-lookup!E180,lookup!F182-lookup!G181)) -> 4622.481298 | H189: =IF(E189="","",lookup!E$2) -> 5264.047939 | I189: =IF(E189="","",lookup!E181) -> 923854.6929
E190: =IF(I189="","",IF(B$14<E189+1,"",IF(I189=B$15,"",lookup!C182))) -> 180 | F190: =IF(E190="","",IF(B$11="Ordinary",lookup!D182-G190,lookup!F182)) -> 923854.6929 | G190: =IF(E190="","",IF(B$11="Ordinary",lookup!D182-lookup!E181,lookup!F183-lookup!G182)) -> 4619.273464 | H190: =IF(E190="","",lookup!E$2) -> 5264.047939 | I190: =IF(E190="","",lookup!E182) -> 923209.9184
E191: =IF(I190="","",IF(B$14<E190+1,"",IF(I190=B$15,"",lookup!C183))) -> 181 | F191: =IF(E191="","",IF(B$11="Ordinary",lookup!D183-G191,lookup!F183)) -> 923209.9184 | G191: =IF(E191="","",IF(B$11="Ordinary",lookup!D183-lookup!E182,lookup!F184-lookup!G183)) -> 4616.049592 | H191: =IF(E191="","",lookup!E$2) -> 5264.047939 | I191: =IF(E191="","",lookup!E183) -> 922561.92
E192: =IF(I191="","",IF(B$14<E191+1,"",IF(I191=B$15,"",lookup!C184))) -> 182 | F192: =IF(E192="","",IF(B$11="Ordinary",lookup!D184-G192,lookup!F184)) -> 922561.92 | G192: =IF(E192="","",IF(B$11="Ordinary",lookup!D184-lookup!E183,lookup!F185-lookup!G184)) -> 4612.8096 | H192: =IF(E192="","",lookup!E$2) -> 5264.047939 | I192: =IF(E192="","",lookup!E184) -> 921910.6817
E193: =IF(I192="","",IF(B$14<E192+1,"",IF(I192=B$15,"",lookup!C185))) -> 183 | F193: =IF(E193="","",IF(B$11="Ordinary",lookup!D185-G193,lookup!F185)) -> 921910.6817 | G193: =IF(E193="","",IF(B$11="Ordinary",lookup!D185-lookup!E184,lookup!F186-lookup!G185)) -> 4609.553409 | H193: =IF(E193="","",lookup!E$2) -> 5264.047939 | I193: =IF(E193="","",lookup!E185) -> 921256.1872
E194: =IF(I193="","",IF(B$14<E193+1,"",IF(I193=B$15,"",lookup!C186))) -> 184 | F194: =IF(E194="","",IF(B$11="Ordinary",lookup!D186-G194,lookup!F186)) -> 921256.1872 | G194: =IF(E194="","",IF(B$11="Ordinary",lookup!D186-lookup!E185,lookup!F187-lookup!G186)) -> 4606.280936 | H194: =IF(E194="","",lookup!E$2) -> 5264.047939 | I194: =IF(E194="","",lookup!E186) -> 920598.4202
E195: =IF(I194="","",IF(B$14<E194+1,"",IF(I194=B$15,"",lookup!C187))) -> 185 | F195: =IF(E195="","",IF(B$11="Ordinary",lookup!D187-G195,lookup!F187)) -> 920598.4202 | G195: =IF(E195="","",IF(B$11="Ordinary",lookup!D187-lookup!E186,lookup!F188-lookup!G187)) -> 4602.992101 | H195: =IF(E195="","",lookup!E$2) -> 5264.047939 | I195: =IF(E195="","",lookup!E187) -> 919937.3643
E196: =IF(I195="","",IF(B$14<E195+1,"",IF(I195=B$15,"",lookup!C188))) -> 186 | F196: =IF(E196="","",IF(B$11="Ordinary",lookup!D188-G196,lookup!F188)) -> 919937.3643 | G196: =IF(E196="","",IF(B$11="Ordinary",lookup!D188-lookup!E187,lookup!F189-lookup!G188)) -> 4599.686822 | H196: =IF(E196="","",lookup!E$2) -> 5264.047939 | I196: =IF(E196="","",lookup!E188) -> 919273.0032
E197: =IF(I196="","",IF(B$14<E196+1,"",IF(I196=B$15,"",lookup!C189))) -> 187 | F197: =IF(E197="","",IF(B$11="Ordinary",lookup!D189-G197,lookup!F189)) -> 919273.0032 | G197: =IF(E197="","",IF(B$11="Ordinary",lookup!D189-lookup!E188,lookup!F190-lookup!G189)) -> 4596.365016 | H197: =IF(E197="","",lookup!E$2) -> 5264.047939 | I197: =IF(E197="","",lookup!E189) -> 918605.3203
E198: =IF(I197="","",IF(B$14<E197+1,"",IF(I197=B$15,"",lookup!C190))) -> 188 | F198: =IF(E198="","",IF(B$11="Ordinary",lookup!D190-G198,lookup!F190)) -> 918605.3203 | G198: =IF(E198="","",IF(B$11="Ordinary",lookup!D190-lookup!E189,lookup!F191-lookup!G190)) -> 4593.026601 | H198: =IF(E198="","",lookup!E$2) -> 5264.047939 | I198: =IF(E198="","",lookup!E190) -> 917934.299
E199: =IF(I198="","",IF(B$14<E198+1,"",IF(I198=B$15,"",lookup!C191))) -> 189 | F199: =IF(E199="","",IF(B$11="Ordinary",lookup!D191-G199,lookup!F191)) -> 917934.299 | G199: =IF(E199="","",IF(B$11="Ordinary",lookup!D191-lookup!E190,lookup!F192-lookup!G191)) -> 4589.671495 | H199: =IF(E199="","",lookup!E$2) -> 5264.047939 | I199: =IF(E199="","",lookup!E191) -> 917259.9225
E200: =IF(I199="","",IF(B$14<E199+1,"",IF(I199=B$15,"",lookup!C192))) -> 190 | F200: =IF(E200="","",IF(B$11="Ordinary",lookup!D192-G200,lookup!F192)) -> 917259.9225 | G200: =IF(E200="","",IF(B$11="Ordinary",lookup!D192-lookup!E191,lookup!F193-lookup!G192)) -> 4586.299613 | H200: =IF(E200="","",lookup!E$2) -> 5264.047939 | I200: =IF(E200="","",lookup!E192) -> 916582.1742
E201: =IF(I200="","",IF(B$14<E200+1,"",IF(I200=B$15,"",lookup!C193))) -> 191 | F201: =IF(E201="","",IF(B$11="Ordinary",lookup!D193-G201,lookup!F193)) -> 916582.1742 | G201: =IF(E201="","",IF(B$11="Ordinary",lookup!D193-lookup!E192,lookup!F194-lookup!G193)) -> 4582.910871 | H201: =IF(E201="","",lookup!E$2) -> 5264.047939 | I201: =IF(E201="","",lookup!E193) -> 915901.0371
E202: =IF(I201="","",IF(B$14<E201+1,"",IF(I201=B$15,"",lookup!C194))) -> 192 | F202: =IF(E202="","",IF(B$11="Ordinary",lookup!D194-G202,lookup!F194)) -> 915901.0371 | G202: =IF(E202="","",IF(B$11="Ordinary",lookup!D194-lookup!E193,lookup!F195-lookup!G194)) -> 4579.505186 | H202: =IF(E202="","",lookup!E$2) -> 5264.047939 | I202: =IF(E202="","",lookup!E194) -> 915216.4944
E203: =IF(I202="","",IF(B$14<E202+1,"",IF(I202=B$15,"",lookup!C195))) -> 193 | F203: =IF(E203="","",IF(B$11="Ordinary",lookup!D195-G203,lookup!F195)) -> 915216.4944 | G203: =IF(E203="","",IF(B$11="Ordinary",lookup!D195-lookup!E194,lookup!F196-lookup!G195)) -> 4576.082472 | H203: =IF(E203="","",lookup!E$2) -> 5264.047939 | I203: =IF(E203="","",lookup!E195) -> 914528.5289
E204: =IF(I203="","",IF(B$14<E203+1,"",IF(I203=B$15,"",lookup!C196))) -> 194 | F204: =IF(E204="","",IF(B$11="Ordinary",lookup!D196-G204,lookup!F196)) -> 914528.5289 | G204: =IF(E204="","",IF(B$11="Ordinary",lookup!D196-lookup!E195,lookup!F197-lookup!G196)) -> 4572.642645 | H204: =IF(E204="","",lookup!E$2) -> 5264.047939 | I204: =IF(E204="","",lookup!E196) -> 913837.1236
E205: =IF(I204="","",IF(B$14<E204+1,"",IF(I204=B$15,"",lookup!C197))) -> 195 | F205: =IF(E205="","",IF(B$11="Ordinary",lookup!D197-G205,lookup!F197)) -> 913837.1236 | G205: =IF(E205="","",IF(B$11="Ordinary",lookup!D197-lookup!E196,lookup!F198-lookup!G197)) -> 4569.185618 | H205: =IF(E205="","",lookup!E$2) -> 5264.047939 | I205: =IF(E205="","",lookup!E197) -> 913142.2613
E206: =IF(I205="","",IF(B$14<E205+1,"",IF(I205=B$15,"",lookup!C198))) -> 196 | F206: =IF(E206="","",IF(B$11="Ordinary",lookup!D198-G206,lookup!F198)) -> 913142.2613 | G206: =IF(E206="","",IF(B$11="Ordinary",lookup!D198-lookup!E197,lookup!F199-lookup!G198)) -> 4565.711306 | H206: =IF(E206="","",lookup!E$2) -> 5264.047939 | I206: =IF(E206="","",lookup!E198) -> 912443.9247
E207: =IF(I206="","",IF(B$14<E206+1,"",IF(I206=B$15,"",lookup!C199))) -> 197 | F207: =IF(E207="","",IF(B$11="Ordinary",lookup!D199-G207,lookup!F199)) -> 912443.9247 | G207: =IF(E207="","",IF(B$11="Ordinary",lookup!D199-lookup!E198,lookup!F200-lookup!G199)) -> 4562.219623 | H207: =IF(E207="","",lookup!E$2) -> 5264.047939 | I207: =IF(E207="","",lookup!E199) -> 911742.0963
E208: =IF(I207="","",IF(B$14<E207+1,"",IF(I207=B$15,"",lookup!C200))) -> 198 | F208: =IF(E208="","",IF(B$11="Ordinary",lookup!D200-G208,lookup!F200)) -> 911742.0963 | G208: =IF(E208="","",IF(B$11="Ordinary",lookup!D200-lookup!E199,lookup!F201-lookup!G200)) -> 4558.710482 | H208: =IF(E208="","",lookup!E$2) -> 5264.047939 | I208: =IF(E208="","",lookup!E200) -> 911036.7589
... 402 more rows

Sheet Compound Interest (hidden)
A9: Compound Interest | E9: Month | F9: Deposit | G9: Interest | H9: Total Deposit | I9: Total Interest | J9: Balance
E10: 0 | J10: =B13 -> 10000
A11: Compounded Times per year | B11: Monthly | E11: =lookup!R3 -> 1 | F11: =B$14 -> 1200 | G11: =lookup!T3 -> 23.33333333 | H11: =F11 -> 1200 | I11: =G11 -> 23.33333333 | J11: =lookup!U3 -> 11223.33333
A12: Annual Interest Rate | B12: 2.5 | E12: =IF(J11="","",IF(B$15<E11+1,"",IF(J11=B$16,"",lookup!R4))) -> 2 | F12: =IF(E12="","",B$14) -> 1200 | G12: =IF(E12="","",lookup!T4) -> 25.88194444 | H12: =IF(E12="","",H11+B$14) -> 2400 | I12: =IF(E12="","",I11+G12) -> 49.21527778 | J12: =IF(E12="","",IF(lookup!U4<0,0,lookup!U4)) -> 12449.21528
A13: Base Amount | B13: 10000 | E13: =IF(J12="","",IF(B$15<E12+1,"",IF(J12=B$16,"",lookup!R5))) -> 3 | F13: 1200 | G13: =IF(E13="","",lookup!T5) -> 28.43586516 | H13: 3600 | I13: =IF(E13="","",I12+G13) -> 77.65114294 | J13: =IF(E13="","",IF(lookup!U5<0,0,lookup!U5)) -> 13677.65114
A14: =IF(B11="Yearly","Regular Saving Yearly",IF(B11="Monthly","Regular Saving Monthly",IF(B11="Quarterly","Regular Saving Quarterly",IF(B11="Half-Yearly","Regular Saving Half-Yearly","")))) -> Regular Saving Monthly | B14: 1200 | E14: =IF(J13="","",IF(B$15<E13+1,"",IF(J13=B$16,"",lookup!R6))) -> 4 | F14: 1200 | G14: =IF(E14="","",lookup!T6) -> 30.99510655 | H14: 4800 | I14: 108.6462495 | J14: =IF(E14="","",IF(lookup!U6<0,0,lookup!U6)) -> 14908.64625
A15: Saving Period (Month) | B15: 60 | E15: =IF(J14="","",IF(B$15<E14+1,"",IF(J14=B$16,"",lookup!R7))) -> 5 | F15: 1200 | G15: =IF(E15="","",lookup!T7) -> 33.55967969 | H15: 6000 | I15: 142.2059292 | J15: =IF(E15="","",IF(lookup!U7<0,0,lookup!U7)) -> 16142.20593
A16: Balance | B16: =B13*(1+B12/lookup!A5/100)^(lookup!A5*B15/12)+(B14)*(((1+B12/lookup!A5/100)^(lookup!A5*B15/12+1)-(1+B12/lookup!A5/100))/(B12/lookup!A5/100)) -> 88098.25877 | E16: =IF(J15="","",IF(B$15<E15+1,"",IF(J15=B$16,"",lookup!R8))) -> 6 | F16: 1200 | G16: =IF(E16="","",lookup!T8) -> 36.12959569 | H16: 7200 | I16: 178.3355249 | J16: =IF(E16="","",IF(lookup!U8<0,0,lookup!U8)) -> 17378.33552
E17: =IF(J16="","",IF(B$15<E16+1,"",IF(J16=B$16,"",lookup!R9))) -> 7 | F17: 1200 | G17: =IF(E17="","",lookup!T9) -> 38.70486568 | H17: 8400 | I17: 217.0403905 | J17: =IF(E17="","",IF(lookup!U9<0,0,lookup!U9)) -> 18617.04039
E18: =IF(J17="","",IF(B$15<E17+1,"",IF(J17=B$16,"",lookup!R10))) -> 8 | F18: 1200 | G18: =IF(E18="","",lookup!T10) -> 41.28550081 | H18: 9600 | I18: 258.3258914 | J18: =IF(E18="","",IF(lookup!U10<0,0,lookup!U10)) -> 19858.32589
E19: =IF(J18="","",IF(B$15<E18+1,"",IF(J18=B$16,"",lookup!R11))) -> 9 | F19: 1200 | G19: =IF(E19="","",lookup!T11) -> 43.87151227 | H19: 10800 | I19: 302.1974036 | J19: =IF(E19="","",IF(lookup!U11<0,0,lookup!U11)) -> 21102.1974
E20: =IF(J19="","",IF(B$15<E19+1,"",IF(J19=B$16,"",lookup!R12))) -> 10 | F20: 1200 | G20: =IF(E20="","",lookup!T12) -> 46.46291126 | H20: 12000 | I20: 348.6603149 | J20: =IF(E20="","",IF(lookup!U12<0,0,lookup!U12)) -> 22348.66031
E21: =IF(J20="","",IF(B$15<E20+1,"",IF(J20=B$16,"",lookup!R13))) -> 11 | F21: 1200 | G21: =IF(E21="","",lookup!T13) -> 49.05970899 | H21: 13200 | I21: 397.7200239 | J21: =IF(E21="","",IF(lookup!U13<0,0,lookup!U13)) -> 23597.72002
E22: =IF(J21="","",IF(B$15<E21+1,"",IF(J21=B$16,"",lookup!R14))) -> 12 | F22: 1200 | G22: =IF(E22="","",lookup!T14) -> 51.66191672 | H22: 14400 | I22: 449.3819406 | J22: =IF(E22="","",IF(lookup!U14<0,0,lookup!U14)) -> 24849.38194
E23: =IF(J22="","",IF(B$15<E22+1,"",IF(J22=B$16,"",lookup!R15))) -> 13 | F23: 1200 | G23: =IF(E23="","",lookup!T15) -> 54.26954571 | H23: 15600 | I23: =IF(E23="","",I22+G23) -> 503.6514863 | J23: =IF(E23="","",IF(lookup!U15<0,0,lookup!U15)) -> 26103.65149
E24: =IF(J23="","",IF(B$15<E23+1,"",IF(J23=B$16,"",lookup!R16))) -> 14 | F24: 1200 | G24: =IF(E24="","",lookup!T16) -> 56.88260726 | H24: 16800 | I24: 560.5340936 | J24: =IF(E24="","",IF(lookup!U16<0,0,lookup!U16)) -> 27360.53409
E25: =IF(J24="","",IF(B$15<E24+1,"",IF(J24=B$16,"",lookup!R17))) -> 15 | F25: 1200 | G25: =IF(E25="","",lookup!T17) -> 59.50111269 | H25: 18000 | I25: 620.0352063 | J25: =IF(E25="","",IF(lookup!U17<0,0,lookup!U17)) -> 28620.03521
E26: =IF(J25="","",IF(B$15<E25+1,"",IF(J25=B$16,"",lookup!R18))) -> 16 | F26: 1200 | G26: =IF(E26="","",lookup!T18) -> 62.12507335 | H26: 19200 | I26: 682.1602796 | J26: =IF(E26="","",IF(lookup!U18<0,0,lookup!U18)) -> 29882.16028
E27: =IF(J26="","",IF(B$15<E26+1,"",IF(J26=B$16,"",lookup!R19))) -> 17 | F27: 1200 | G27: =IF(E27="","",lookup!T19) -> 64.75450058 | H27: 20400 | I27: 746.9147802 | J27: =IF(E27="","",IF(lookup!U19<0,0,lookup!U19)) -> 31146.91478
E28: =IF(J27="","",IF(B$15<E27+1,"",IF(J27=B$16,"",lookup!R20))) -> 18 | F28: 1200 | G28: =IF(E28="","",lookup!T20) -> 67.38940579 | H28: 21600 | I28: 814.304186 | J28: =IF(E28="","",IF(lookup!U20<0,0,lookup!U20)) -> 32414.30419
E29: =IF(J28="","",IF(B$15<E28+1,"",IF(J28=B$16,"",lookup!R21))) -> 19 | F29: 1200 | G29: =IF(E29="","",lookup!T21) -> 70.02980039 | H29: 22800 | I29: 884.3339864 | J29: =IF(E29="","",IF(lookup!U21<0,0,lookup!U21)) -> 33684.33399
E30: =IF(J29="","",IF(B$15<E29+1,"",IF(J29=B$16,"",lookup!R22))) -> 20 | F30: 1200 | G30: =IF(E30="","",lookup!T22) -> 72.6756958 | H30: 24000 | I30: 957.0096822 | J30: =IF(E30="","",IF(lookup!U22<0,0,lookup!U22)) -> 34957.00968
E31: =IF(J30="","",IF(B$15<E30+1,"",IF(J30=B$16,"",lookup!R23))) -> 21 | F31: 1200 | G31: =IF(E31="","",lookup!T23) -> 75.3271035 | H31: 25200 | I31: 1032.336786 | J31: =IF(E31="","",IF(lookup!U23<0,0,lookup!U23)) -> 36232.33679
E32: =IF(J31="","",IF(B$15<E31+1,"",IF(J31=B$16,"",lookup!R24))) -> 22 | F32: 1200 | G32: =IF(E32="","",lookup!T24) -> 77.98403497 | H32: 26400 | I32: 1110.320821 | J32: =IF(E32="","",IF(lookup!U24<0,0,lookup!U24)) -> 37510.32082
E33: =IF(J32="","",IF(B$15<E32+1,"",IF(J32=B$16,"",lookup!R25))) -> 23 | F33: 1200 | G33: =IF(E33="","",lookup!T25) -> 80.64650171 | H33: 27600 | I33: 1190.967322 | J33: =IF(E33="","",IF(lookup!U25<0,0,lookup!U25)) -> 38790.96732
E34: =IF(J33="","",IF(B$15<E33+1,"",IF(J33=B$16,"",lookup!R26))) -> 24 | F34: 1200 | G34: =IF(E34="","",lookup!T26) -> 83.31451525 | H34: 28800 | I34: 1274.281838 | J34: =IF(E34="","",IF(lookup!U26<0,0,lookup!U26)) -> 40074.28184
E35: =IF(J34="","",IF(B$15<E34+1,"",IF(J34=B$16,"",lookup!R27))) -> 25 | F35: 1200 | G35: =IF(E35="","",lookup!T27) -> 85.98808716 | H35: 30000 | I35: 1360.269925 | J35: =IF(E35="","",IF(lookup!U27<0,0,lookup!U27)) -> 41360.26992
E36: =IF(J35="","",IF(B$15<E35+1,"",IF(J35=B$16,"",lookup!R28))) -> 26 | F36: 1200 | G36: =IF(E36="","",lookup!T28) -> 88.66722901 | H36: 31200 | I36: 1448.937154 | J36: =IF(E36="","",IF(lookup!U28<0,0,lookup!U28)) -> 42648.93715
E37: =IF(J36="","",IF(B$15<E36+1,"",IF(J36=B$16,"",lookup!R29))) -> 27 | F37: 1200 | G37: =IF(E37="","",lookup!T29) -> 91.3519524 | H37: 32400 | I37: 1540.289106 | J37: =IF(E37="","",IF(lookup!U29<0,0,lookup!U29)) -> 43940.28911
E38: =IF(J37="","",IF(B$15<E37+1,"",IF(J37=B$16,"",lookup!R30))) -> 28 | F38: 1200 | G38: =IF(E38="","",lookup!T30) -> 94.04226897 | H38: 33600 | I38: 1634.331375 | J38: =IF(E38="","",IF(lookup!U30<0,0,lookup!U30)) -> 45234.33138
E39: =IF(J38="","",IF(B$15<E38+1,"",IF(J38=B$16,"",lookup!R31))) -> 29 | F39: 1200 | G39: =IF(E39="","",lookup!T31) -> 96.73819036 | H39: 34800 | I39: 1731.069566 | J39: =IF(E39="","",IF(lookup!U31<0,0,lookup!U31)) -> 46531.06957
E40: =IF(J39="","",IF(B$15<E39+1,"",IF(J39=B$16,"",lookup!R32))) -> 30 | F40: 1200 | G40: =IF(E40="","",lookup!T32) -> 99.43972826 | H40: 36000 | I40: 1830.509294 | J40: =IF(E40="","",IF(lookup!U32<0,0,lookup!U32)) -> 47830.50929
E41: =IF(J40="","",IF(B$15<E40+1,"",IF(J40=B$16,"",lookup!R33))) -> 31 | F41: 1200 | G41: =IF(E41="","",lookup!T33) -> 102.1468944 | H41: 37200 | I41: 1932.656188 | J41: =IF(E41="","",IF(lookup!U33<0,0,lookup!U33)) -> 49132.65619
E42: =IF(J41="","",IF(B$15<E41+1,"",IF(J41=B$16,"",lookup!R34))) -> 32 | F42: 1200 | G42: =IF(E42="","",lookup!T34) -> 104.8597004 | H42: 38400 | I42: 2037.515889 | J42: =IF(E42="","",IF(lookup!U34<0,0,lookup!U34)) -> 50437.51589
E43: =IF(J42="","",IF(B$15<E42+1,"",IF(J42=B$16,"",lookup!R35))) -> 33 | F43: 1200 | G43: =IF(E43="","",lookup!T35) -> 107.5781581 | H43: 39600 | I43: 2145.094047 | J43: =IF(E43="","",IF(lookup!U35<0,0,lookup!U35)) -> 51745.09405
E44: =IF(J43="","",IF(B$15<E43+1,"",IF(J43=B$16,"",lookup!R36))) -> 34 | F44: 1200 | G44: =IF(E44="","",lookup!T36) -> 110.3022793 | H44: 40800 | I44: 2255.396326 | J44: =IF(E44="","",IF(lookup!U36<0,0,lookup!U36)) -> 53055.39633
E45: =IF(J44="","",IF(B$15<E44+1,"",IF(J44=B$16,"",lookup!R37))) -> 35 | F45: 1200 | G45: =IF(E45="","",lookup!T37) -> 113.0320757 | H45: 42000 | I45: 2368.428402 | J45: =IF(E45="","",IF(lookup!U37<0,0,lookup!U37)) -> 54368.4284
E46: =IF(J45="","",IF(B$15<E45+1,"",IF(J45=B$16,"",lookup!R38))) -> 36 | F46: 1200 | G46: =IF(E46="","",lookup!T38) -> 115.7675592 | H46: 43200 | I46: 2484.195961 | J46: =IF(E46="","",IF(lookup!U38<0,0,lookup!U38)) -> 55684.19596
E47: =IF(J46="","",IF(B$15<E46+1,"",IF(J46=B$16,"",lookup!R39))) -> 37 | F47: 1200 | G47: =IF(E47="","",lookup!T39) -> 118.5087416 | H47: 44400 | I47: 2602.704702 | J47: =IF(E47="","",IF(lookup!U39<0,0,lookup!U39)) -> 57002.7047
E48: =IF(J47="","",IF(B$15<E47+1,"",IF(J47=B$16,"",lookup!R40))) -> 38 | F48: 1200 | G48: =IF(E48="","",lookup!T40) -> 121.2556348 | H48: 45600 | I48: 2723.960337 | J48: =IF(E48="","",IF(lookup!U40<0,0,lookup!U40)) -> 58323.96034
E49: =IF(J48="","",IF(B$15<E48+1,"",IF(J48=B$16,"",lookup!R41))) -> 39 | F49: 1200 | G49: =IF(E49="","",lookup!T41) -> 124.0082507 | H49: 46800 | I49: 2847.968588 | J49: =IF(E49="","",IF(lookup!U41<0,0,lookup!U41)) -> 59647.96859
E50: =IF(J49="","",IF(B$15<E49+1,"",IF(J49=B$16,"",lookup!R42))) -> 40 | F50: 1200 | G50: =IF(E50="","",lookup!T42) -> 126.7666012 | H50: 48000 | I50: 2974.735189 | J50: =IF(E50="","",IF(lookup!U42<0,0,lookup!U42)) -> 60974.73519
E51: =IF(J50="","",IF(B$15<E50+1,"",IF(J50=B$16,"",lookup!R43))) -> 41 | F51: 1200 | G51: =IF(E51="","",lookup!T43) -> 129.5306983 | H51: 49200 | I51: 3104.265887 | J51: =IF(E51="","",IF(lookup!U43<0,0,lookup!U43)) -> 62304.26589
E52: =IF(J51="","",IF(B$15<E51+1,"",IF(J51=B$16,"",lookup!R44))) -> 42 | F52: 1200 | G52: =IF(E52="","",lookup!T44) -> 132.3005539 | H52: 50400 | I52: 3236.566441 | J52: =IF(E52="","",IF(lookup!U44<0,0,lookup!U44)) -> 63636.56644
E53: =IF(J52="","",IF(B$15<E52+1,"",IF(J52=B$16,"",lookup!R45))) -> 43 | F53: 1200 | G53: =IF(E53="","",lookup!T45) -> 135.0761801 | H53: 51600 | I53: 3371.642621 | J53: =IF(E53="","",IF(lookup!U45<0,0,lookup!U45)) -> 64971.64262
E54: =IF(J53="","",IF(B$15<E53+1,"",IF(J53=B$16,"",lookup!R46))) -> 44 | F54: 1200 | G54: =IF(E54="","",lookup!T46) -> 137.8575888 | H54: 52800 | I54: 3509.50021 | J54: =IF(E54="","",IF(lookup!U46<0,0,lookup!U46)) -> 66309.50021
E55: =IF(J54="","",IF(B$15<E54+1,"",IF(J54=B$16,"",lookup!R47))) -> 45 | F55: 1200 | G55: =IF(E55="","",lookup!T47) -> 140.6447921 | H55: 54000 | I55: 3650.145002 | J55: =IF(E55="","",IF(lookup!U47<0,0,lookup!U47)) -> 67650.145
E56: =IF(J55="","",IF(B$15<E55+1,"",IF(J55=B$16,"",lookup!R48))) -> 46 | F56: 1200 | G56: =IF(E56="","",lookup!T48) -> 143.4378021 | H56: 55200 | I56: 3793.582804 | J56: =IF(E56="","",IF(lookup!U48<0,0,lookup!U48)) -> 68993.5828
E57: =IF(J56="","",IF(B$15<E56+1,"",IF(J56=B$16,"",lookup!R49))) -> 47 | F57: 1200 | G57: =IF(E57="","",lookup!T49) -> 146.2366308 | H57: 56400 | I57: 3939.819435 | J57: =IF(E57="","",IF(lookup!U49<0,0,lookup!U49)) -> 70339.81944
E58: =IF(J57="","",IF(B$15<E57+1,"",IF(J57=B$16,"",lookup!R50))) -> 48 | F58: 1200 | G58: =IF(E58="","",lookup!T50) -> 149.0412905 | H58: 57600 | I58: 4088.860726 | J58: =IF(E58="","",IF(lookup!U50<0,0,lookup!U50)) -> 71688.86073
E59: =IF(J58="","",IF(B$15<E58+1,"",IF(J58=B$16,"",lookup!R51))) -> 49 | F59: 1200 | G59: =IF(E59="","",lookup!T51) -> 151.8517932 | H59: 58800 | I59: 4240.712519 | J59: =IF(E59="","",IF(lookup!U51<0,0,lookup!U51)) -> 73040.71252
E60: =IF(J59="","",IF(B$15<E59+1,"",IF(J59=B$16,"",lookup!R52))) -> 50 | F60: 1200 | G60: =IF(E60="","",lookup!T52) -> 154.6681511 | H60: 60000 | I60: 4395.38067 | J60: =IF(E60="","",IF(lookup!U52<0,0,lookup!U52)) -> 74395.38067
E61: =IF(J60="","",IF(B$15<E60+1,"",IF(J60=B$16,"",lookup!R53))) -> 51 | F61: 1200 | G61: =IF(E61="","",lookup!T53) -> 157.4903764 | H61: 61200 | I61: 4552.871046 | J61: =IF(E61="","",IF(lookup!U53<0,0,lookup!U53)) -> 75752.87105
E62: =IF(J61="","",IF(B$15<E61+1,"",IF(J61=B$16,"",lookup!R54))) -> 52 | F62: 1200 | G62: =IF(E62="","",lookup!T54) -> 160.3184813 | H62: 62400 | I62: 4713.189528 | J62: =IF(E62="","",IF(lookup!U54<0,0,lookup!U54)) -> 77113.18953
E63: =IF(J62="","",IF(B$15<E62+1,"",IF(J62=B$16,"",lookup!R55))) -> 53 | F63: 1200 | G63: =IF(E63="","",lookup!T55) -> 163.1524782 | H63: 63600 | I63: 4876.342006 | J63: =IF(E63="","",IF(lookup!U55<0,0,lookup!U55)) -> 78476.34201
E64: =IF(J63="","",IF(B$15<E63+1,"",IF(J63=B$16,"",lookup!R56))) -> 54 | F64: 1200 | G64: =IF(E64="","",lookup!T56) -> 165.9923792 | H64: 64800 | I64: 5042.334385 | J64: =IF(E64="","",IF(lookup!U56<0,0,lookup!U56)) -> 79842.33439
E65: =IF(J64="","",IF(B$15<E64+1,"",IF(J64=B$16,"",lookup!R57))) -> 55 | F65: 1200 | G65: =IF(E65="","",lookup!T57) -> 168.8381966 | H65: 66000 | I65: 5211.172582 | J65: =IF(E65="","",IF(lookup!U57<0,0,lookup!U57)) -> 81211.17258
E66: =IF(J65="","",IF(B$15<E65+1,"",IF(J65=B$16,"",lookup!R58))) -> 56 | F66: 1200 | G66: =IF(E66="","",lookup!T58) -> 171.6899429 | H66: 67200 | I66: 5382.862525 | J66: =IF(E66="","",IF(lookup!U58<0,0,lookup!U58)) -> 82582.86252
E67: =IF(J66="","",IF(B$15<E66+1,"",IF(J66=B$16,"",lookup!R59))) -> 57 | F67: 1200 | G67: =IF(E67="","",lookup!T59) -> 174.5476303 | H67: 68400 | I67: 5557.410155 | J67: =IF(E67="","",IF(lookup!U59<0,0,lookup!U59)) -> 83957.41015
E68: =IF(J67="","",IF(B$15<E67+1,"",IF(J67=B$16,"",lookup!R60))) -> 58 | F68: 1200 | G68: =IF(E68="","",lookup!T60) -> 177.4112712 | H68: 69600 | I68: 5734.821426 | J68: =IF(E68="","",IF(lookup!U60<0,0,lookup!U60)) -> 85334.82143
E69: =IF(J68="","",IF(B$15<E68+1,"",IF(J68=B$16,"",lookup!R61))) -> 59 | F69: 1200 | G69: =IF(E69="","",lookup!T61) -> 180.280878 | H69: 70800 | I69: 5915.102304 | J69: =IF(E69="","",IF(lookup!U61<0,0,lookup!U61)) -> 86715.1023
E70: =IF(J69="","",IF(B$15<E69+1,"",IF(J69=B$16,"",lookup!R62))) -> 60 | F70: 1200 | G70: =IF(E70="","",lookup!T62) -> 183.1564631 | H70: 72000 | I70: 6098.258767 | J70: =IF(E70="","",IF(lookup!U62<0,0,lookup!U62)) -> 88098.25877
E71: =IF(J70="","",IF(B$15<E70+1,"",IF(J70=B$16,"",lookup!R63))) ->  | G71: =IF(E71="","",lookup!T63) ->  | J71: =IF(E71="","",IF(lookup!U63<0,0,lookup!U63)) -> 
E72: =IF(J71="","",IF(B$15<E71+1,"",IF(J71=B$16,"",lookup!R64))) ->  | G72: =IF(E72="","",lookup!T64) ->  | J72: =IF(E72="","",IF(lookup!U64<0,0,lookup!U64)) -> 
E73: =IF(J72="","",IF(B$15<E72+1,"",IF(J72=B$16,"",lookup!R65))) ->  | G73: =IF(E73="","",lookup!T65) ->  | J73: =IF(E73="","",IF(lookup!U65<0,0,lookup!U65)) -> 
E74: =IF(J73="","",IF(B$15<E73+1,"",IF(J73=B$16,"",lookup!R66))) ->  | G74: =IF(E74="","",lookup!T66) ->  | J74: =IF(E74="","",IF(lookup!U66<0,0,lookup!U66)) -> 
E75: =IF(J74="","",IF(B$15<E74+1,"",IF(J74=B$16,"",lookup!R67))) ->  | G75: =IF(E75="","",lookup!T67) ->  | J75: =IF(E75="","",IF(lookup!U67<0,0,lookup!U67)) -> 
E76: =IF(J75="","",IF(B$15<E75+1,"",IF(J75=B$16,"",lookup!R68))) ->  | F76: =IF(E76="","",B$14) ->  | G76: =IF(E76="","",lookup!T68) ->  | H76: =IF(E76="","",H75+B$14) ->  | J76: =IF(E76="","",IF(lookup!U68<0,0,lookup!U68)) -> 
E77: =IF(J76="","",IF(B$15<E76+1,"",IF(J76=B$16,"",lookup!R69))) ->  | G77: =IF(E77="","",lookup!T69) ->  | J77: =IF(E77="","",IF(lookup!U69<0,0,lookup!U69)) -> 
E78: =IF(J77="","",IF(B$15<E77+1,"",IF(J77=B$16,"",lookup!R70))) ->  | G78: =IF(E78="","",lookup!T70) ->  | J78: =IF(E78="","",IF(lookup!U70<0,0,lookup!U70)) -> 
E79: =IF(J78="","",IF(B$15<E78+1,"",IF(J78=B$16,"",lookup!R71))) ->  | G79: =IF(E79="","",lookup!T71) ->  | J79: =IF(E79="","",IF(lookup!U71<0,0,lookup!U71)) -> 
E80: =IF(J79="","",IF(B$15<E79+1,"",IF(J79=B$16,"",lookup!R72))) ->  | G80: =IF(E80="","",lookup!T72) ->  | J80: =IF(E80="","",IF(lookup!U72<0,0,lookup!U72)) -> 
E81: =IF(J80="","",IF(B$15<E80+1,"",IF(J80=B$16,"",lookup!R73))) ->  | G81: =IF(E81="","",lookup!T73) ->  | J81: =IF(E81="","",IF(lookup!U73<0,0,lookup!U73)) -> 
E82: =IF(J81="","",IF(B$15<E81+1,"",IF(J81=B$16,"",lookup!R74))) ->  | G82: =IF(E82="","",lookup!T74) ->  | J82: =IF(E82="","",IF(lookup!U74<0,0,lookup!U74)) -> 
E83: =IF(J82="","",IF(B$15<E82+1,"",IF(J82=B$16,"",lookup!R75))) ->  | G83: =IF(E83="","",lookup!T75) ->  | J83: =IF(E83="","",IF(lookup!U75<0,0,lookup!U75)) -> 
E84: =IF(J83="","",IF(B$15<E83+1,"",IF(J83=B$16,"",lookup!R76))) ->  | G84: =IF(E84="","",lookup!T76) ->  | J84: =IF(E84="","",IF(lookup!U76<0,0,lookup!U76)) -> 
E85: =IF(J84="","",IF(B$15<E84+1,"",IF(J84=B$16,"",lookup!R77))) ->  | G85: =IF(E85="","",lookup!T77) ->  | J85: =IF(E85="","",IF(lookup!U77<0,0,lookup!U77)) -> 
E86: =IF(J85="","",IF(B$15<E85+1,"",IF(J85=B$16,"",lookup!R78))) ->  | G86: =IF(E86="","",lookup!T78) ->  | J86: =IF(E86="","",IF(lookup!U78<0,0,lookup!U78)) -> 
E87: =IF(J86="","",IF(B$15<E86+1,"",IF(J86=B$16,"",lookup!R79))) ->  | G87: =IF(E87="","",lookup!T79) ->  | I87: =IF(E87="","",I86+G87) ->  | J87: =IF(E87="","",IF(lookup!U79<0,0,lookup!U79)) -> 
E88: =IF(J87="","",IF(B$15<E87+1,"",IF(J87=B$16,"",lookup!R80))) ->  | G88: =IF(E88="","",lookup!T80) ->  | J88: =IF(E88="","",IF(lookup!U80<0,0,lookup!U80)) -> 
E89: =IF(J88="","",IF(B$15<E88+1,"",IF(J88=B$16,"",lookup!R81))) ->  | G89: =IF(E89="","",lookup!T81) ->  | J89: =IF(E89="","",IF(lookup!U81<0,0,lookup!U81)) -> 
E90: =IF(J89="","",IF(B$15<E89+1,"",IF(J89=B$16,"",lookup!R82))) ->  | G90: =IF(E90="","",lookup!T82) ->  | J90: =IF(E90="","",IF(lookup!U82<0,0,lookup!U82)) -> 
E91: =IF(J90="","",IF(B$15<E90+1,"",IF(J90=B$16,"",lookup!R83))) ->  | G91: =IF(E91="","",lookup!T83) ->  | J91: =IF(E91="","",IF(lookup!U83<0,0,lookup!U83)) -> 
E92: =IF(J91="","",IF(B$15<E91+1,"",IF(J91=B$16,"",lookup!R84))) ->  | G92: =IF(E92="","",lookup!T84) ->  | J92: =IF(E92="","",IF(lookup!U84<0,0,lookup!U84)) -> 
E93: =IF(J92="","",IF(B$15<E92+1,"",IF(J92=B$16,"",lookup!R85))) ->  | G93: =IF(E93="","",lookup!T85) ->  | J93: =IF(E93="","",IF(lookup!U85<0,0,lookup!U85)) -> 
E94: =IF(J93="","",IF(B$15<E93+1,"",IF(J93=B$16,"",lookup!R86))) ->  | G94: =IF(E94="","",lookup!T86) ->  | J94: =IF(E94="","",IF(lookup!U86<0,0,lookup!U86)) -> 
E95: =IF(J94="","",IF(B$15<E94+1,"",IF(J94=B$16,"",lookup!R87))) ->  | G95: =IF(E95="","",lookup!T87) ->  | J95: =IF(E95="","",IF(lookup!U87<0,0,lookup!U87)) -> 
E96: =IF(J95="","",IF(B$15<E95+1,"",IF(J95=B$16,"",lookup!R88))) ->  | G96: =IF(E96="","",lookup!T88) ->  | J96: =IF(E96="","",IF(lookup!U88<0,0,lookup!U88)) -> 
E97: =IF(J96="","",IF(B$15<E96+1,"",IF(J96=B$16,"",lookup!R89))) ->  | G97: =IF(E97="","",lookup!T89) ->  | J97: =IF(E97="","",IF(lookup!U89<0,0,lookup!U89)) -> 
E98: =IF(J97="","",IF(B$15<E97+1,"",IF(J97=B$16,"",lookup!R90))) ->  | G98: =IF(E98="","",lookup!T90) ->  | J98: =IF(E98="","",IF(lookup!U90<0,0,lookup!U90)) -> 
E99: =IF(J98="","",IF(B$15<E98+1,"",IF(J98=B$16,"",lookup!R91))) ->  | G99: =IF(E99="","",lookup!T91) ->  | J99: =IF(E99="","",IF(lookup!U91<0,0,lookup!U91)) -> 
E100: =IF(J99="","",IF(B$15<E99+1,"",IF(J99=B$16,"",lookup!R92))) ->  | G100: =IF(E100="","",lookup!T92) ->  | J100: =IF(E100="","",IF(lookup!U92<0,0,lookup!U92)) -> 
E101: =IF(J100="","",IF(B$15<E100+1,"",IF(J100=B$16,"",lookup!R93))) ->  | G101: =IF(E101="","",lookup!T93) ->  | J101: =IF(E101="","",IF(lookup!U93<0,0,lookup!U93)) -> 
E102: =IF(J101="","",IF(B$15<E101+1,"",IF(J101=B$16,"",lookup!R94))) ->  | G102: =IF(E102="","",lookup!T94) ->  | J102: =IF(E102="","",IF(lookup!U94<0,0,lookup!U94)) -> 
E103: =IF(J102="","",IF(B$15<E102+1,"",IF(J102=B$16,"",lookup!R95))) ->  | G103: =IF(E103="","",lookup!T95) ->  | J103: =IF(E103="","",IF(lookup!U95<0,0,lookup!U95)) -> 
E104: =IF(J103="","",IF(B$15<E103+1,"",IF(J103=B$16,"",lookup!R96))) ->  | G104: =IF(E104="","",lookup!T96) ->  | J104: =IF(E104="","",IF(lookup!U96<0,0,lookup!U96)) -> 
E105: =IF(J104="","",IF(B$15<E104+1,"",IF(J104=B$16,"",lookup!R97))) ->  | G105: =IF(E105="","",lookup!T97) ->  | J105: =IF(E105="","",IF(lookup!U97<0,0,lookup!U97)) -> 
E106: =IF(J105="","",IF(B$15<E105+1,"",IF(J105=B$16,"",lookup!R98))) ->  | G106: =IF(E106="","",lookup!T98) ->  | J106: =IF(E106="","",IF(lookup!U98<0,0,lookup!U98)) -> 
E107: =IF(J106="","",IF(B$15<E106+1,"",IF(J106=B$16,"",lookup!R99))) ->  | G107: =IF(E107="","",lookup!T99) ->  | J107: =IF(E107="","",IF(lookup!U99<0,0,lookup!U99)) -> 
E108: =IF(J107="","",IF(B$15<E107+1,"",IF(J107=B$16,"",lookup!R100))) ->  | G108: =IF(E108="","",lookup!T100) ->  | J108: =IF(E108="","",IF(lookup!U100<0,0,lookup!U100)) -> 
E109: =IF(J108="","",IF(B$15<E108+1,"",IF(J108=B$16,"",lookup!R101))) ->  | G109: =IF(E109="","",lookup!T101) ->  | J109: =IF(E109="","",IF(lookup!U101<0,0,lookup!U101)) -> 
E110: =IF(J109="","",IF(B$15<E109+1,"",IF(J109=B$16,"",lookup!R102))) ->  | G110: =IF(E110="","",lookup!T102) ->  | J110: =IF(E110="","",IF(lookup!U102<0,0,lookup!U102)) -> 
E111: =IF(J110="","",IF(B$15<E110+1,"",IF(J110=B$16,"",lookup!R103))) ->  | G111: =IF(E111="","",lookup!T103) ->  | J111: =IF(E111="","",IF(lookup!U103<0,0,lookup!U103)) -> 
E112: =IF(J111="","",IF(B$15<E111+1,"",IF(J111=B$16,"",lookup!R104))) ->  | G112: =IF(E112="","",lookup!T104) ->  | J112: =IF(E112="","",IF(lookup!U104<0,0,lookup!U104)) -> 
E113: =IF(J112="","",IF(B$15<E112+1,"",IF(J112=B$16,"",lookup!R105))) ->  | G113: =IF(E113="","",lookup!T105) ->  | J113: =IF(E113="","",IF(lookup!U105<0,0,lookup!U105)) -> 
E114: =IF(J113="","",IF(B$15<E113+1,"",IF(J113=B$16,"",lookup!R106))) ->  | G114: =IF(E114="","",lookup!T106) ->  | J114: =IF(E114="","",IF(lookup!U106<0,0,lookup!U106)) -> 
E115: =IF(J114="","",IF(B$15<E114+1,"",IF(J114=B$16,"",lookup!R107))) ->  | G115: =IF(E115="","",lookup!T107) ->  | J115: =IF(E115="","",IF(lookup!U107<0,0,lookup!U107)) -> 
E116: =IF(J115="","",IF(B$15<E115+1,"",IF(J115=B$16,"",lookup!R108))) ->  | G116: =IF(E116="","",lookup!T108) ->  | J116: =IF(E116="","",IF(lookup!U108<0,0,lookup!U108)) -> 
E117: =IF(J116="","",IF(B$15<E116+1,"",IF(J116=B$16,"",lookup!R109))) ->  | G117: =IF(E117="","",lookup!T109) ->  | J117: =IF(E117="","",IF(lookup!U109<0,0,lookup!U109)) -> 
E118: =IF(J117="","",IF(B$15<E117+1,"",IF(J117=B$16,"",lookup!R110))) ->  | G118: =IF(E118="","",lookup!T110) ->  | J118: =IF(E118="","",IF(lookup!U110<0,0,lookup!U110)) -> 
E119: =IF(J118="","",IF(B$15<E118+1,"",IF(J118=B$16,"",lookup!R111))) ->  | G119: =IF(E119="","",lookup!T111) ->  | J119: =IF(E119="","",IF(lookup!U111<0,0,lookup!U111)) -> 
E120: =IF(J119="","",IF(B$15<E119+1,"",IF(J119=B$16,"",lookup!R112))) ->  | G120: =IF(E120="","",lookup!T112) ->  | J120: =IF(E120="","",IF(lookup!U112<0,0,lookup!U112)) -> 
E121: =IF(J120="","",IF(B$15<E120+1,"",IF(J120=B$16,"",lookup!R113))) ->  | G121: =IF(E121="","",lookup!T113) ->  | J121: =IF(E121="","",IF(lookup!U113<0,0,lookup!U113)) -> 
E122: =IF(J121="","",IF(B$15<E121+1,"",IF(J121=B$16,"",lookup!R114))) ->  | G122: =IF(E122="","",lookup!T114) ->  | J122: =IF(E122="","",IF(lookup!U114<0,0,lookup!U114)) -> 
E123: =IF(J122="","",IF(B$15<E122+1,"",IF(J122=B$16,"",lookup!R115))) ->  | G123: =IF(E123="","",lookup!T115) ->  | J123: =IF(E123="","",IF(lookup!U115<0,0,lookup!U115)) -> 
E124: =IF(J123="","",IF(B$15<E123+1,"",IF(J123=B$16,"",lookup!R116))) ->  | G124: =IF(E124="","",lookup!T116) ->  | J124: =IF(E124="","",IF(lookup!U116<0,0,lookup!U116)) -> 
E125: =IF(J124="","",IF(B$15<E124+1,"",IF(J124=B$16,"",lookup!R117))) ->  | G125: =IF(E125="","",lookup!T117) ->  | J125: =IF(E125="","",IF(lookup!U117<0,0,lookup!U117)) -> 
E126: =IF(J125="","",IF(B$15<E125+1,"",IF(J125=B$16,"",lookup!R118))) ->  | G126: =IF(E126="","",lookup!T118) ->  | J126: =IF(E126="","",IF(lookup!U118<0,0,lookup!U118)) -> 
E127: =IF(J126="","",IF(B$15<E126+1,"",IF(J126=B$16,"",lookup!R119))) ->  | G127: =IF(E127="","",lookup!T119) ->  | J127: =IF(E127="","",IF(lookup!U119<0,0,lookup!U119)) -> 
E128: =IF(J127="","",IF(B$15<E127+1,"",IF(J127=B$16,"",lookup!R120))) ->  | G128: =IF(E128="","",lookup!T120) ->  | J128: =IF(E128="","",IF(lookup!U120<0,0,lookup!U120)) -> 
E129: =IF(J128="","",IF(B$15<E128+1,"",IF(J128=B$16,"",lookup!R121))) ->  | G129: =IF(E129="","",lookup!T121) ->  | J129: =IF(E129="","",IF(lookup!U121<0,0,lookup!U121)) -> 
E130: =IF(J129="","",IF(B$15<E129+1,"",IF(J129=B$16,"",lookup!R122))) ->  | G130: =IF(E130="","",lookup!T122) ->  | J130: =IF(E130="","",IF(lookup!U122<0,0,lookup!U122)) -> 
E131: =IF(J130="","",IF(B$15<E130+1,"",IF(J130=B$16,"",lookup!R123))) ->  | G131: =IF(E131="","",lookup!T123) ->  | J131: =IF(E131="","",IF(lookup!U123<0,0,lookup!U123)) -> 
E132: =IF(J131="","",IF(B$15<E131+1,"",IF(J131=B$16,"",lookup!R124))) ->  | G132: =IF(E132="","",lookup!T124) ->  | J132: =IF(E132="","",IF(lookup!U124<0,0,lookup!U124)) -> 
E133: =IF(J132="","",IF(B$15<E132+1,"",IF(J132=B$16,"",lookup!R125))) ->  | G133: =IF(E133="","",lookup!T125) ->  | J133: =IF(E133="","",IF(lookup!U125<0,0,lookup!U125)) -> 
E134: =IF(J133="","",IF(B$15<E133+1,"",IF(J133=B$16,"",lookup!R126))) ->  | G134: =IF(E134="","",lookup!T126) ->  | J134: =IF(E134="","",IF(lookup!U126<0,0,lookup!U126)) -> 
E135: =IF(J134="","",IF(B$15<E134+1,"",IF(J134=B$16,"",lookup!R127))) ->  | G135: =IF(E135="","",lookup!T127) ->  | J135: =IF(E135="","",IF(lookup!U127<0,0,lookup!U127)) -> 
E136: =IF(J135="","",IF(B$15<E135+1,"",IF(J135=B$16,"",lookup!R128))) ->  | G136: =IF(E136="","",lookup!T128) ->  | J136: =IF(E136="","",IF(lookup!U128<0,0,lookup!U128)) -> 
E137: =IF(J136="","",IF(B$15<E136+1,"",IF(J136=B$16,"",lookup!R129))) ->  | G137: =IF(E137="","",lookup!T129) ->  | J137: =IF(E137="","",IF(lookup!U129<0,0,lookup!U129)) -> 
E138: =IF(J137="","",IF(B$15<E137+1,"",IF(J137=B$16,"",lookup!R130))) ->  | G138: =IF(E138="","",lookup!T130) ->  | J138: =IF(E138="","",IF(lookup!U130<0,0,lookup!U130)) -> 
E139: =IF(J138="","",IF(B$15<E138+1,"",IF(J138=B$16,"",lookup!R131))) ->  | G139: =IF(E139="","",lookup!T131) ->  | J139: =IF(E139="","",IF(lookup!U131<0,0,lookup!U131)) -> 
E140: =IF(J139="","",IF(B$15<E139+1,"",IF(J139=B$16,"",lookup!R132))) ->  | F140: =IF(E140="","",B$14) ->  | G140: =IF(E140="","",lookup!T132) ->  | H140: =IF(E140="","",H139+B$14) ->  | J140: =IF(E140="","",IF(lookup!U132<0,0,lookup!U132)) -> 
E141: =IF(J140="","",IF(B$15<E140+1,"",IF(J140=B$16,"",lookup!R133))) ->  | G141: =IF(E141="","",lookup!T133) ->  | J141: =IF(E141="","",IF(lookup!U133<0,0,lookup!U133)) -> 
E142: =IF(J141="","",IF(B$15<E141+1,"",IF(J141=B$16,"",lookup!R134))) ->  | G142: =IF(E142="","",lookup!T134) ->  | J142: =IF(E142="","",IF(lookup!U134<0,0,lookup!U134)) -> 
E143: =IF(J142="","",IF(B$15<E142+1,"",IF(J142=B$16,"",lookup!R135))) ->  | G143: =IF(E143="","",lookup!T135) ->  | J143: =IF(E143="","",IF(lookup!U135<0,0,lookup!U135)) -> 
E144: =IF(J143="","",IF(B$15<E143+1,"",IF(J143=B$16,"",lookup!R136))) ->  | G144: =IF(E144="","",lookup!T136) ->  | J144: =IF(E144="","",IF(lookup!U136<0,0,lookup!U136)) -> 
E145: =IF(J144="","",IF(B$15<E144+1,"",IF(J144=B$16,"",lookup!R137))) ->  | G145: =IF(E145="","",lookup!T137) ->  | J145: =IF(E145="","",IF(lookup!U137<0,0,lookup!U137)) -> 
E146: =IF(J145="","",IF(B$15<E145+1,"",IF(J145=B$16,"",lookup!R138))) ->  | G146: =IF(E146="","",lookup!T138) ->  | J146: =IF(E146="","",IF(lookup!U138<0,0,lookup!U138)) -> 
E147: =IF(J146="","",IF(B$15<E146+1,"",IF(J146=B$16,"",lookup!R139))) ->  | G147: =IF(E147="","",lookup!T139) ->  | J147: =IF(E147="","",IF(lookup!U139<0,0,lookup!U139)) -> 
E148: =IF(J147="","",IF(B$15<E147+1,"",IF(J147=B$16,"",lookup!R140))) ->  | G148: =IF(E148="","",lookup!T140) ->  | J148: =IF(E148="","",IF(lookup!U140<0,0,lookup!U140)) -> 
E149: =IF(J148="","",IF(B$15<E148+1,"",IF(J148=B$16,"",lookup!R141))) ->  | G149: =IF(E149="","",lookup!T141) ->  | J149: =IF(E149="","",IF(lookup!U141<0,0,lookup!U141)) -> 
E150: =IF(J149="","",IF(B$15<E149+1,"",IF(J149=B$16,"",lookup!R142))) ->  | G150: =IF(E150="","",lookup!T142) ->  | J150: =IF(E150="","",IF(lookup!U142<0,0,lookup!U142)) -> 
E151: =IF(J150="","",IF(B$15<E150+1,"",IF(J150=B$16,"",lookup!R143))) ->  | G151: =IF(E151="","",lookup!T143) ->  | I151: =IF(E151="","",I150+G151) ->  | J151: =IF(E151="","",IF(lookup!U143<0,0,lookup!U143)) -> 
E152: =IF(J151="","",IF(B$15<E151+1,"",IF(J151=B$16,"",lookup!R144))) ->  | G152: =IF(E152="","",lookup!T144) ->  | J152: =IF(E152="","",IF(lookup!U144<0,0,lookup!U144)) -> 
E153: =IF(J152="","",IF(B$15<E152+1,"",IF(J152=B$16,"",lookup!R145))) ->  | G153: =IF(E153="","",lookup!T145) ->  | J153: =IF(E153="","",IF(lookup!U145<0,0,lookup!U145)) -> 
E154: =IF(J153="","",IF(B$15<E153+1,"",IF(J153=B$16,"",lookup!R146))) ->  | G154: =IF(E154="","",lookup!T146) ->  | J154: =IF(E154="","",IF(lookup!U146<0,0,lookup!U146)) -> 
E155: =IF(J154="","",IF(B$15<E154+1,"",IF(J154=B$16,"",lookup!R147))) ->  | G155: =IF(E155="","",lookup!T147) ->  | J155: =IF(E155="","",IF(lookup!U147<0,0,lookup!U147)) -> 
E156: =IF(J155="","",IF(B$15<E155+1,"",IF(J155=B$16,"",lookup!R148))) ->  | G156: =IF(E156="","",lookup!T148) ->  | J156: =IF(E156="","",IF(lookup!U148<0,0,lookup!U148)) -> 
E157: =IF(J156="","",IF(B$15<E156+1,"",IF(J156=B$16,"",lookup!R149))) ->  | G157: =IF(E157="","",lookup!T149) ->  | J157: =IF(E157="","",IF(lookup!U149<0,0,lookup!U149)) -> 
E158: =IF(J157="","",IF(B$15<E157+1,"",IF(J157=B$16,"",lookup!R150))) ->  | G158: =IF(E158="","",lookup!T150) ->  | J158: =IF(E158="","",IF(lookup!U150<0,0,lookup!U150)) -> 
E159: =IF(J158="","",IF(B$15<E158+1,"",IF(J158=B$16,"",lookup!R151))) ->  | G159: =IF(E159="","",lookup!T151) ->  | J159: =IF(E159="","",IF(lookup!U151<0,0,lookup!U151)) -> 
E160: =IF(J159="","",IF(B$15<E159+1,"",IF(J159=B$16,"",lookup!R152))) ->  | G160: =IF(E160="","",lookup!T152) ->  | J160: =IF(E160="","",IF(lookup!U152<0,0,lookup!U152)) -> 
E161: =IF(J160="","",IF(B$15<E160+1,"",IF(J160=B$16,"",lookup!R153))) ->  | G161: =IF(E161="","",lookup!T153) ->  | J161: =IF(E161="","",IF(lookup!U153<0,0,lookup!U153)) -> 
E162: =IF(J161="","",IF(B$15<E161+1,"",IF(J161=B$16,"",lookup!R154))) ->  | G162: =IF(E162="","",lookup!T154) ->  | J162: =IF(E162="","",IF(lookup!U154<0,0,lookup!U154)) -> 
E163: =IF(J162="","",IF(B$15<E162+1,"",IF(J162=B$16,"",lookup!R155))) ->  | G163: =IF(E163="","",lookup!T155) ->  | J163: =IF(E163="","",IF(lookup!U155<0,0,lookup!U155)) -> 
E164: =IF(J163="","",IF(B$15<E163+1,"",IF(J163=B$16,"",lookup!R156))) ->  | G164: =IF(E164="","",lookup!T156) ->  | J164: =IF(E164="","",IF(lookup!U156<0,0,lookup!U156)) -> 
E165: =IF(J164="","",IF(B$15<E164+1,"",IF(J164=B$16,"",lookup!R157))) ->  | G165: =IF(E165="","",lookup!T157) ->  | J165: =IF(E165="","",IF(lookup!U157<0,0,lookup!U157)) -> 
E166: =IF(J165="","",IF(B$15<E165+1,"",IF(J165=B$16,"",lookup!R158))) ->  | G166: =IF(E166="","",lookup!T158) ->  | J166: =IF(E166="","",IF(lookup!U158<0,0,lookup!U158)) -> 
E167: =IF(J166="","",IF(B$15<E166+1,"",IF(J166=B$16,"",lookup!R159))) ->  | G167: =IF(E167="","",lookup!T159) ->  | J167: =IF(E167="","",IF(lookup!U159<0,0,lookup!U159)) -> 
E168: =IF(J167="","",IF(B$15<E167+1,"",IF(J167=B$16,"",lookup!R160))) ->  | G168: =IF(E168="","",lookup!T160) ->  | J168: =IF(E168="","",IF(lookup!U160<0,0,lookup!U160)) -> 
E169: =IF(J168="","",IF(B$15<E168+1,"",IF(J168=B$16,"",lookup!R161))) ->  | G169: =IF(E169="","",lookup!T161) ->  | J169: =IF(E169="","",IF(lookup!U161<0,0,lookup!U161)) -> 
E170: =IF(J169="","",IF(B$15<E169+1,"",IF(J169=B$16,"",lookup!R162))) ->  | G170: =IF(E170="","",lookup!T162) ->  | J170: =IF(E170="","",IF(lookup!U162<0,0,lookup!U162)) -> 
E171: =IF(J170="","",IF(B$15<E170+1,"",IF(J170=B$16,"",lookup!R163))) ->  | G171: =IF(E171="","",lookup!T163) ->  | J171: =IF(E171="","",IF(lookup!U163<0,0,lookup!U163)) -> 
E172: =IF(J171="","",IF(B$15<E171+1,"",IF(J171=B$16,"",lookup!R164))) ->  | G172: =IF(E172="","",lookup!T164) ->  | J172: =IF(E172="","",IF(lookup!U164<0,0,lookup!U164)) -> 
E173: =IF(J172="","",IF(B$15<E172+1,"",IF(J172=B$16,"",lookup!R165))) ->  | G173: =IF(E173="","",lookup!T165) ->  | J173: =IF(E173="","",IF(lookup!U165<0,0,lookup!U165)) -> 
E174: =IF(J173="","",IF(B$15<E173+1,"",IF(J173=B$16,"",lookup!R166))) ->  | G174: =IF(E174="","",lookup!T166) ->  | J174: =IF(E174="","",IF(lookup!U166<0,0,lookup!U166)) -> 
E175: =IF(J174="","",IF(B$15<E174+1,"",IF(J174=B$16,"",lookup!R167))) ->  | G175: =IF(E175="","",lookup!T167) ->  | J175: =IF(E175="","",IF(lookup!U167<0,0,lookup!U167)) -> 
E176: =IF(J175="","",IF(B$15<E175+1,"",IF(J175=B$16,"",lookup!R168))) ->  | G176: =IF(E176="","",lookup!T168) ->  | J176: =IF(E176="","",IF(lookup!U168<0,0,lookup!U168)) -> 
E177: =IF(J176="","",IF(B$15<E176+1,"",IF(J176=B$16,"",lookup!R169))) ->  | G177: =IF(E177="","",lookup!T169) ->  | J177: =IF(E177="","",IF(lookup!U169<0,0,lookup!U169)) -> 
E178: =IF(J177="","",IF(B$15<E177+1,"",IF(J177=B$16,"",lookup!R170))) ->  | G178: =IF(E178="","",lookup!T170) ->  | J178: =IF(E178="","",IF(lookup!U170<0,0,lookup!U170)) -> 
E179: =IF(J178="","",IF(B$15<E178+1,"",IF(J178=B$16,"",lookup!R171))) ->  | G179: =IF(E179="","",lookup!T171) ->  | J179: =IF(E179="","",IF(lookup!U171<0,0,lookup!U171)) -> 
E180: =IF(J179="","",IF(B$15<E179+1,"",IF(J179=B$16,"",lookup!R172))) ->  | G180: =IF(E180="","",lookup!T172) ->  | J180: =IF(E180="","",IF(lookup!U172<0,0,lookup!U172)) -> 
E181: =IF(J180="","",IF(B$15<E180+1,"",IF(J180=B$16,"",lookup!R173))) ->  | G181: =IF(E181="","",lookup!T173) ->  | J181: =IF(E181="","",IF(lookup!U173<0,0,lookup!U173)) -> 
E182: =IF(J181="","",IF(B$15<E181+1,"",IF(J181=B$16,"",lookup!R174))) ->  | G182: =IF(E182="","",lookup!T174) ->  | J182: =IF(E182="","",IF(lookup!U174<0,0,lookup!U174)) -> 
E183: =IF(J182="","",IF(B$15<E182+1,"",IF(J182=B$16,"",lookup!R175))) ->  | G183: =IF(E183="","",lookup!T175) ->  | J183: =IF(E183="","",IF(lookup!U175<0,0,lookup!U175)) -> 
E184: =IF(J183="","",IF(B$15<E183+1,"",IF(J183=B$16,"",lookup!R176))) ->  | G184: =IF(E184="","",lookup!T176) ->  | J184: =IF(E184="","",IF(lookup!U176<0,0,lookup!U176)) -> 
E185: =IF(J184="","",IF(B$15<E184+1,"",IF(J184=B$16,"",lookup!R177))) ->  | G185: =IF(E185="","",lookup!T177) ->  | J185: =IF(E185="","",IF(lookup!U177<0,0,lookup!U177)) -> 
E186: =IF(J185="","",IF(B$15<E185+1,"",IF(J185=B$16,"",lookup!R178))) ->  | G186: =IF(E186="","",lookup!T178) ->  | J186: =IF(E186="","",IF(lookup!U178<0,0,lookup!U178)) -> 
E187: =IF(J186="","",IF(B$15<E186+1,"",IF(J186=B$16,"",lookup!R179))) ->  | G187: =IF(E187="","",lookup!T179) ->  | J187: =IF(E187="","",IF(lookup!U179<0,0,lookup!U179)) -> 
E188: =IF(J187="","",IF(B$15<E187+1,"",IF(J187=B$16,"",lookup!R180))) ->  | G188: =IF(E188="","",lookup!T180) ->  | J188: =IF(E188="","",IF(lookup!U180<0,0,lookup!U180)) -> 
E189: =IF(J188="","",IF(B$15<E188+1,"",IF(J188=B$16,"",lookup!R181))) ->  | G189: =IF(E189="","",lookup!T181) ->  | J189: =IF(E189="","",IF(lookup!U181<0,0,lookup!U181)) -> 
E190: =IF(J189="","",IF(B$15<E189+1,"",IF(J189=B$16,"",lookup!R182))) ->  | G190: =IF(E190="","",lookup!T182) ->  | J190: =IF(E190="","",IF(lookup!U182<0,0,lookup!U182)) -> 
E191: =IF(J190="","",IF(B$15<E190+1,"",IF(J190=B$16,"",lookup!R183))) ->  | G191: =IF(E191="","",lookup!T183) ->  | J191: =IF(E191="","",IF(lookup!U183<0,0,lookup!U183)) -> 
E192: =IF(J191="","",IF(B$15<E191+1,"",IF(J191=B$16,"",lookup!R184))) ->  | G192: =IF(E192="","",lookup!T184) ->  | J192: =IF(E192="","",IF(lookup!U184<0,0,lookup!U184)) -> 
E193: =IF(J192="","",IF(B$15<E192+1,"",IF(J192=B$16,"",lookup!R185))) ->  | G193: =IF(E193="","",lookup!T185) ->  | J193: =IF(E193="","",IF(lookup!U185<0,0,lookup!U185)) -> 
E194: =IF(J193="","",IF(B$15<E193+1,"",IF(J193=B$16,"",lookup!R186))) ->  | G194: =IF(E194="","",lookup!T186) ->  | J194: =IF(E194="","",IF(lookup!U186<0,0,lookup!U186)) -> 
E195: =IF(J194="","",IF(B$15<E194+1,"",IF(J194=B$16,"",lookup!R187))) ->  | G195: =IF(E195="","",lookup!T187) ->  | J195: =IF(E195="","",IF(lookup!U187<0,0,lookup!U187)) -> 
E196: =IF(J195="","",IF(B$15<E195+1,"",IF(J195=B$16,"",lookup!R188))) ->  | G196: =IF(E196="","",lookup!T188) ->  | J196: =IF(E196="","",IF(lookup!U188<0,0,lookup!U188)) -> 
E197: =IF(J196="","",IF(B$15<E196+1,"",IF(J196=B$16,"",lookup!R189))) ->  | G197: =IF(E197="","",lookup!T189) ->  | J197: =IF(E197="","",IF(lookup!U189<0,0,lookup!U189)) -> 
E198: =IF(J197="","",IF(B$15<E197+1,"",IF(J197=B$16,"",lookup!R190))) ->  | G198: =IF(E198="","",lookup!T190) ->  | J198: =IF(E198="","",IF(lookup!U190<0,0,lookup!U190)) -> 
E199: =IF(J198="","",IF(B$15<E198+1,"",IF(J198=B$16,"",lookup!R191))) ->  | G199: =IF(E199="","",lookup!T191) ->  | J199: =IF(E199="","",IF(lookup!U191<0,0,lookup!U191)) -> 
E200: =IF(J199="","",IF(B$15<E199+1,"",IF(J199=B$16,"",lookup!R192))) ->  | G200: =IF(E200="","",lookup!T192) ->  | J200: =IF(E200="","",IF(lookup!U192<0,0,lookup!U192)) -> 
E201: =IF(J200="","",IF(B$15<E200+1,"",IF(J200=B$16,"",lookup!R193))) ->  | G201: =IF(E201="","",lookup!T193) ->  | J201: =IF(E201="","",IF(lookup!U193<0,0,lookup!U193)) -> 
E202: =IF(J201="","",IF(B$15<E201+1,"",IF(J201=B$16,"",lookup!R194))) ->  | G202: =IF(E202="","",lookup!T194) ->  | J202: =IF(E202="","",IF(lookup!U194<0,0,lookup!U194)) -> 
E203: =IF(J202="","",IF(B$15<E202+1,"",IF(J202=B$16,"",lookup!R195))) ->  | G203: =IF(E203="","",lookup!T195) ->  | J203: =IF(E203="","",IF(lookup!U195<0,0,lookup!U195)) -> 
E204: =IF(J203="","",IF(B$15<E203+1,"",IF(J203=B$16,"",lookup!R196))) ->  | F204: =IF(E204="","",B$14) ->  | G204: =IF(E204="","",lookup!T196) ->  | H204: =IF(E204="","",H203+B$14) ->  | J204: =IF(E204="","",IF(lookup!U196<0,0,lookup!U196)) -> 
E205: =IF(J204="","",IF(B$15<E204+1,"",IF(J204=B$16,"",lookup!R197))) ->  | G205: =IF(E205="","",lookup!T197) ->  | J205: =IF(E205="","",IF(lookup!U197<0,0,lookup!U197)) -> 
E206: =IF(J205="","",IF(B$15<E205+1,"",IF(J205=B$16,"",lookup!R198))) ->  | G206: =IF(E206="","",lookup!T198) ->  | J206: =IF(E206="","",IF(lookup!U198<0,0,lookup!U198)) -> 
E207: =IF(J206="","",IF(B$15<E206+1,"",IF(J206=B$16,"",lookup!R199))) ->  | G207: =IF(E207="","",lookup!T199) ->  | J207: =IF(E207="","",IF(lookup!U199<0,0,lookup!U199)) -> 
E208: =IF(J207="","",IF(B$15<E207+1,"",IF(J207=B$16,"",lookup!R200))) ->  | G208: =IF(E208="","",lookup!T200) ->  | J208: =IF(E208="","",IF(lookup!U200<0,0,lookup!U200)) -> 
... 402 more rows

Sheet Loan (by paid amount) (hidden)
A9: LOAN (by paid amount) | E9: Month | F9: Payment | G9: Interest paid | H9: Total interest | I9: Principal paid | J9: Balance
E10: 0 | J10: =B12 -> 5600
A11: APR | B11: 12 | E11: =lookup!X3 -> 1 | F11: =lookup!Y3 -> 500 | G11: =lookup!Y$1 -> 56 | H11: =G11 -> 56 | I11: =F11-G11 -> 444 | J11: =lookup!AA3 -> 5156.092803
A12: Loan Amount | B12: 5600 | E12: =IF(J11="","",IF(J11<=0,"",lookup!X4)) -> 2 | F12: =IF(E12="","",IF(J12<=0,lookup!Y4+lookup!AA4,lookup!Y4)) -> 500 | G12: =IF(E12="","",lookup!Z3) -> 51.56 | H12: =IF(E12="","",H11+G12) -> 107.56 | I12: =IF(E12="","",F12-G12) -> 448.44 | J12: =IF(E12="","",IF(lookup!AA4<0,0,lookup!AA4)) -> 4707.746534
A13: Amount paid | B13: 500 | C13: =IF(B14="","Amnt to be higher than the interest!","") ->  | E13: =IF(J12="","",IF(J12<=0,"",lookup!X5)) -> 3 | F13: =IF(E13="","",IF(J13<=0,lookup!Y5+lookup!AA5,lookup!Y5)) -> 500 | G13: =IF(E13="","",lookup!Z4) -> 47.08 | H13: 154.64 | I13: 452.92 | J13: =IF(E13="","",IF(lookup!AA5<0,0,lookup!AA5)) -> 4254.916803
A14: Months to clear | B14: =IF(lookup!X1="","",ROUNDUP(lookup!X1,0)) -> 12 | E14: =IF(J13="","",IF(J13<=0,"",lookup!X6)) -> 4 | F14: =IF(E14="","",IF(J14<=0,lookup!Y6+lookup!AA6,lookup!Y6)) -> 500 | G14: =IF(E14="","",lookup!Z5) -> 42.55 | H14: 197.19 | I14: 457.45 | J14: =IF(E14="","",IF(lookup!AA6<0,0,lookup!AA6)) -> 3797.558774
E15: =IF(J14="","",IF(J14<=0,"",lookup!X7)) -> 5 | F15: =IF(E15="","",IF(J15<=0,lookup!Y7+lookup!AA7,lookup!Y7)) -> 500 | G15: =IF(E15="","",lookup!Z6) -> 37.98 | H15: 235.17 | I15: 462.02 | J15: =IF(E15="","",IF(lookup!AA7<0,0,lookup!AA7)) -> 3335.627164
E16: =IF(J15="","",IF(J15<=0,"",lookup!X8)) -> 6 | F16: =IF(E16="","",IF(J16<=0,lookup!Y8+lookup!AA8,lookup!Y8)) -> 500 | G16: =IF(E16="","",lookup!Z7) -> 33.36 | H16: 268.53 | I16: 466.64 | J16: =IF(E16="","",IF(lookup!AA8<0,0,lookup!AA8)) -> 2869.076239
E17: =IF(J16="","",IF(J16<=0,"",lookup!X9)) -> 7 | F17: =IF(E17="","",IF(J17<=0,lookup!Y9+lookup!AA9,lookup!Y9)) -> 500 | G17: =IF(E17="","",lookup!Z8) -> 28.69 | H17: 297.22 | I17: 471.31 | J17: =IF(E17="","",IF(lookup!AA9<0,0,lookup!AA9)) -> 2397.859804
E18: =IF(J17="","",IF(J17<=0,"",lookup!X10)) -> 8 | F18: =IF(E18="","",IF(J18<=0,lookup!Y10+lookup!AA10,lookup!Y10)) -> 500 | G18: =IF(E18="","",lookup!Z9) -> 23.98 | H18: 321.2 | I18: 476.02 | J18: =IF(E18="","",IF(lookup!AA10<0,0,lookup!AA10)) -> 1921.931206
E19: =IF(J18="","",IF(J18<=0,"",lookup!X11)) -> 9 | F19: =IF(E19="","",IF(J19<=0,lookup!Y11+lookup!AA11,lookup!Y11)) -> 500 | G19: =IF(E19="","",lookup!Z10) -> 19.22 | H19: 340.42 | I19: 480.78 | J19: =IF(E19="","",IF(lookup!AA11<0,0,lookup!AA11)) -> 1441.243321
E20: =IF(J19="","",IF(J19<=0,"",lookup!X12)) -> 10 | F20: =IF(E20="","",IF(J20<=0,lookup!Y12+lookup!AA12,lookup!Y12)) -> 500 | G20: =IF(E20="","",lookup!Z11) -> 14.41 | H20: 354.83 | I20: 485.59 | J20: =IF(E20="","",IF(lookup!AA12<0,0,lookup!AA12)) -> 955.7485569
E21: =IF(J20="","",IF(J20<=0,"",lookup!X13)) -> 11 | F21: =IF(E21="","",IF(J21<=0,lookup!Y13+lookup!AA13,lookup!Y13)) -> 500 | G21: =IF(E21="","",lookup!Z12) -> 9.56 | H21: 364.39 | I21: 490.44 | J21: =IF(E21="","",IF(lookup!AA13<0,0,lookup!AA13)) -> 465.3988455
E22: =IF(J21="","",IF(J21<=0,"",lookup!X14)) -> 12 | F22: =IF(E22="","",IF(J22<=0,lookup!Y14+lookup!AA14,lookup!Y14)) -> 470.145637 | G22: =IF(E22="","",lookup!Z13) -> 4.65 | H22: 369.04 | I22: 465.495637 | J22: =IF(E22="","",IF(lookup!AA14<0,0,lookup!AA14)) -> 0
E23: =IF(J22="","",IF(J22<=0,"",lookup!X15)) ->  | F23: =IF(E23="","",IF(J23<=0,lookup!Y15+lookup!AA15,lookup!Y15)) ->  | G23: =IF(E23="","",lookup!Z14) ->  | J23: =IF(E23="","",IF(lookup!AA15<0,0,lookup!AA15)) -> 
E24: =IF(J23="","",IF(J23<=0,"",lookup!X16)) ->  | F24: =IF(E24="","",IF(J24<=0,lookup!Y16+lookup!AA16,lookup!Y16)) ->  | G24: =IF(E24="","",lookup!Z15) ->  | J24: =IF(E24="","",IF(lookup!AA16<0,0,lookup!AA16)) -> 
E25: =IF(J24="","",IF(J24<=0,"",lookup!X17)) ->  | F25: =IF(E25="","",IF(J25<=0,lookup!Y17+lookup!AA17,lookup!Y17)) ->  | G25: =IF(E25="","",lookup!Z16) ->  | J25: =IF(E25="","",IF(lookup!AA17<0,0,lookup!AA17)) -> 
E26: =IF(J25="","",IF(J25<=0,"",lookup!X18)) ->  | F26: =IF(E26="","",IF(J26<=0,lookup!Y18+lookup!AA18,lookup!Y18)) ->  | G26: =IF(E26="","",lookup!Z17) ->  | J26: =IF(E26="","",IF(lookup!AA18<0,0,lookup!AA18)) -> 
E27: =IF(J26="","",IF(J26<=0,"",lookup!X19)) ->  | F27: =IF(E27="","",IF(J27<=0,lookup!Y19+lookup!AA19,lookup!Y19)) ->  | G27: =IF(E27="","",lookup!Z18) ->  | J27: =IF(E27="","",IF(lookup!AA19<0,0,lookup!AA19)) -> 
E28: =IF(J27="","",IF(J27<=0,"",lookup!X20)) ->  | F28: =IF(E28="","",IF(J28<=0,lookup!Y20+lookup!AA20,lookup!Y20)) ->  | G28: =IF(E28="","",lookup!Z19) ->  | J28: =IF(E28="","",IF(lookup!AA20<0,0,lookup!AA20)) -> 
E29: =IF(J28="","",IF(J28<=0,"",lookup!X21)) ->  | F29: =IF(E29="","",IF(J29<=0,lookup!Y21+lookup!AA21,lookup!Y21)) ->  | G29: =IF(E29="","",lookup!Z20) ->  | J29: =IF(E29="","",IF(lookup!AA21<0,0,lookup!AA21)) -> 
E30: =IF(J29="","",IF(J29<=0,"",lookup!X22)) ->  | F30: =IF(E30="","",IF(J30<=0,lookup!Y22+lookup!AA22,lookup!Y22)) ->  | G30: =IF(E30="","",lookup!Z21) ->  | J30: =IF(E30="","",IF(lookup!AA22<0,0,lookup!AA22)) -> 
E31: =IF(J30="","",IF(J30<=0,"",lookup!X23)) ->  | F31: =IF(E31="","",IF(J31<=0,lookup!Y23+lookup!AA23,lookup!Y23)) ->  | G31: =IF(E31="","",lookup!Z22) ->  | J31: =IF(E31="","",IF(lookup!AA23<0,0,lookup!AA23)) -> 
E32: =IF(J31="","",IF(J31<=0,"",lookup!X24)) ->  | F32: =IF(E32="","",IF(J32<=0,lookup!Y24+lookup!AA24,lookup!Y24)) ->  | G32: =IF(E32="","",lookup!Z23) ->  | J32: =IF(E32="","",IF(lookup!AA24<0,0,lookup!AA24)) -> 
E33: =IF(J32="","",IF(J32<=0,"",lookup!X25)) ->  | F33: =IF(E33="","",IF(J33<=0,lookup!Y25+lookup!AA25,lookup!Y25)) ->  | G33: =IF(E33="","",lookup!Z24) ->  | J33: =IF(E33="","",IF(lookup!AA25<0,0,lookup!AA25)) -> 
E34: =IF(J33="","",IF(J33<=0,"",lookup!X26)) ->  | F34: =IF(E34="","",IF(J34<=0,lookup!Y26+lookup!AA26,lookup!Y26)) ->  | G34: =IF(E34="","",lookup!Z25) ->  | J34: =IF(E34="","",IF(lookup!AA26<0,0,lookup!AA26)) -> 
E35: =IF(J34="","",IF(J34<=0,"",lookup!X27)) ->  | F35: =IF(E35="","",IF(J35<=0,lookup!Y27+lookup!AA27,lookup!Y27)) ->  | G35: =IF(E35="","",lookup!Z26) ->  | J35: =IF(E35="","",IF(lookup!AA27<0,0,lookup!AA27)) -> 
E36: =IF(J35="","",IF(J35<=0,"",lookup!X28)) ->  | F36: =IF(E36="","",IF(J36<=0,lookup!Y28+lookup!AA28,lookup!Y28)) ->  | G36: =IF(E36="","",lookup!Z27) ->  | J36: =IF(E36="","",IF(lookup!AA28<0,0,lookup!AA28)) -> 
E37: =IF(J36="","",IF(J36<=0,"",lookup!X29)) ->  | F37: =IF(E37="","",IF(J37<=0,lookup!Y29+lookup!AA29,lookup!Y29)) ->  | G37: =IF(E37="","",lookup!Z28) ->  | J37: =IF(E37="","",IF(lookup!AA29<0,0,lookup!AA29)) -> 
E38: =IF(J37="","",IF(J37<=0,"",lookup!X30)) ->  | F38: =IF(E38="","",IF(J38<=0,lookup!Y30+lookup!AA30,lookup!Y30)) ->  | G38: =IF(E38="","",lookup!Z29) ->  | J38: =IF(E38="","",IF(lookup!AA30<0,0,lookup!AA30)) -> 
E39: =IF(J38="","",IF(J38<=0,"",lookup!X31)) ->  | F39: =IF(E39="","",IF(J39<=0,lookup!Y31+lookup!AA31,lookup!Y31)) ->  | G39: =IF(E39="","",lookup!Z30) ->  | J39: =IF(E39="","",IF(lookup!AA31<0,0,lookup!AA31)) -> 
E40: =IF(J39="","",IF(J39<=0,"",lookup!X32)) ->  | F40: =IF(E40="","",IF(J40<=0,lookup!Y32+lookup!AA32,lookup!Y32)) ->  | G40: =IF(E40="","",lookup!Z31) ->  | J40: =IF(E40="","",IF(lookup!AA32<0,0,lookup!AA32)) -> 
E41: =IF(J40="","",IF(J40<=0,"",lookup!X33)) ->  | F41: =IF(E41="","",IF(J41<=0,lookup!Y33+lookup!AA33,lookup!Y33)) ->  | G41: =IF(E41="","",lookup!Z32) ->  | J41: =IF(E41="","",IF(lookup!AA33<0,0,lookup!AA33)) -> 
E42: =IF(J41="","",IF(J41<=0,"",lookup!X34)) ->  | F42: =IF(E42="","",IF(J42<=0,lookup!Y34+lookup!AA34,lookup!Y34)) ->  | G42: =IF(E42="","",lookup!Z33) ->  | J42: =IF(E42="","",IF(lookup!AA34<0,0,lookup!AA34)) -> 
E43: =IF(J42="","",IF(J42<=0,"",lookup!X35)) ->  | F43: =IF(E43="","",IF(J43<=0,lookup!Y35+lookup!AA35,lookup!Y35)) ->  | G43: =IF(E43="","",lookup!Z34) ->  | J43: =IF(E43="","",IF(lookup!AA35<0,0,lookup!AA35)) -> 
E44: =IF(J43="","",IF(J43<=0,"",lookup!X36)) ->  | F44: =IF(E44="","",IF(J44<=0,lookup!Y36+lookup!AA36,lookup!Y36)) ->  | G44: =IF(E44="","",lookup!Z35) ->  | J44: =IF(E44="","",IF(lookup!AA36<0,0,lookup!AA36)) -> 
E45: =IF(J44="","",IF(J44<=0,"",lookup!X37)) ->  | F45: =IF(E45="","",IF(J45<=0,lookup!Y37+lookup!AA37,lookup!Y37)) ->  | G45: =IF(E45="","",lookup!Z36) ->  | J45: =IF(E45="","",IF(lookup!AA37<0,0,lookup!AA37)) -> 
E46: =IF(J45="","",IF(J45<=0,"",lookup!X38)) ->  | F46: =IF(E46="","",IF(J46<=0,lookup!Y38+lookup!AA38,lookup!Y38)) ->  | G46: =IF(E46="","",lookup!Z37) ->  | J46: =IF(E46="","",IF(lookup!AA38<0,0,lookup!AA38)) -> 
E47: =IF(J46="","",IF(J46<=0,"",lookup!X39)) ->  | F47: =IF(E47="","",IF(J47<=0,lookup!Y39+lookup!AA39,lookup!Y39)) ->  | G47: =IF(E47="","",lookup!Z38) ->  | J47: =IF(E47="","",IF(lookup!AA39<0,0,lookup!AA39)) -> 
E48: =IF(J47="","",IF(J47<=0,"",lookup!X40)) ->  | F48: =IF(E48="","",IF(J48<=0,lookup!Y40+lookup!AA40,lookup!Y40)) ->  | G48: =IF(E48="","",lookup!Z39) ->  | J48: =IF(E48="","",IF(lookup!AA40<0,0,lookup!AA40)) -> 
E49: =IF(J48="","",IF(J48<=0,"",lookup!X41)) ->  | F49: =IF(E49="","",IF(J49<=0,lookup!Y41+lookup!AA41,lookup!Y41)) ->  | G49: =IF(E49="","",lookup!Z40) ->  | J49: =IF(E49="","",IF(lookup!AA41<0,0,lookup!AA41)) -> 
E50: =IF(J49="","",IF(J49<=0,"",lookup!X42)) ->  | F50: =IF(E50="","",IF(J50<=0,lookup!Y42+lookup!AA42,lookup!Y42)) ->  | G50: =IF(E50="","",lookup!Z41) ->  | J50: =IF(E50="","",IF(lookup!AA42<0,0,lookup!AA42)) -> 
E51: =IF(J50="","",IF(J50<=0,"",lookup!X43)) ->  | F51: =IF(E51="","",IF(J51<=0,lookup!Y43+lookup!AA43,lookup!Y43)) ->  | G51: =IF(E51="","",lookup!Z42) ->  | J51: =IF(E51="","",IF(lookup!AA43<0,0,lookup!AA43)) -> 
E52: =IF(J51="","",IF(J51<=0,"",lookup!X44)) ->  | F52: =IF(E52="","",IF(J52<=0,lookup!Y44+lookup!AA44,lookup!Y44)) ->  | G52: =IF(E52="","",lookup!Z43) ->  | J52: =IF(E52="","",IF(lookup!AA44<0,0,lookup!AA44)) -> 
E53: =IF(J52="","",IF(J52<=0,"",lookup!X45)) ->  | F53: =IF(E53="","",IF(J53<=0,lookup!Y45+lookup!AA45,lookup!Y45)) ->  | G53: =IF(E53="","",lookup!Z44) ->  | J53: =IF(E53="","",IF(lookup!AA45<0,0,lookup!AA45)) -> 
E54: =IF(J53="","",IF(J53<=0,"",lookup!X46)) ->  | F54: =IF(E54="","",IF(J54<=0,lookup!Y46+lookup!AA46,lookup!Y46)) ->  | G54: =IF(E54="","",lookup!Z45) ->  | J54: =IF(E54="","",IF(lookup!AA46<0,0,lookup!AA46)) -> 
E55: =IF(J54="","",IF(J54<=0,"",lookup!X47)) ->  | F55: =IF(E55="","",IF(J55<=0,lookup!Y47+lookup!AA47,lookup!Y47)) ->  | G55: =IF(E55="","",lookup!Z46) ->  | J55: =IF(E55="","",IF(lookup!AA47<0,0,lookup!AA47)) -> 
E56: =IF(J55="","",IF(J55<=0,"",lookup!X48)) ->  | F56: =IF(E56="","",IF(J56<=0,lookup!Y48+lookup!AA48,lookup!Y48)) ->  | G56: =IF(E56="","",lookup!Z47) ->  | J56: =IF(E56="","",IF(lookup!AA48<0,0,lookup!AA48)) -> 
E57: =IF(J56="","",IF(J56<=0,"",lookup!X49)) ->  | F57: =IF(E57="","",IF(J57<=0,lookup!Y49+lookup!AA49,lookup!Y49)) ->  | G57: =IF(E57="","",lookup!Z48) ->  | J57: =IF(E57="","",IF(lookup!AA49<0,0,lookup!AA49)) -> 
E58: =IF(J57="","",IF(J57<=0,"",lookup!X50)) ->  | F58: =IF(E58="","",IF(J58<=0,lookup!Y50+lookup!AA50,lookup!Y50)) ->  | G58: =IF(E58="","",lookup!Z49) ->  | J58: =IF(E58="","",IF(lookup!AA50<0,0,lookup!AA50)) -> 
E59: =IF(J58="","",IF(J58<=0,"",lookup!X51)) ->  | F59: =IF(E59="","",IF(J59<=0,lookup!Y51+lookup!AA51,lookup!Y51)) ->  | G59: =IF(E59="","",lookup!Z50) ->  | J59: =IF(E59="","",IF(lookup!AA51<0,0,lookup!AA51)) -> 
E60: =IF(J59="","",IF(J59<=0,"",lookup!X52)) ->  | F60: =IF(E60="","",IF(J60<=0,lookup!Y52+lookup!AA52,lookup!Y52)) ->  | G60: =IF(E60="","",lookup!Z51) ->  | J60: =IF(E60="","",IF(lookup!AA52<0,0,lookup!AA52)) -> 
E61: =IF(J60="","",IF(J60<=0,"",lookup!X53)) ->  | F61: =IF(E61="","",IF(J61<=0,lookup!Y53+lookup!AA53,lookup!Y53)) ->  | G61: =IF(E61="","",lookup!Z52) ->  | J61: =IF(E61="","",IF(lookup!AA53<0,0,lookup!AA53)) -> 
E62: =IF(J61="","",IF(J61<=0,"",lookup!X54)) ->  | F62: =IF(E62="","",IF(J62<=0,lookup!Y54+lookup!AA54,lookup!Y54)) ->  | G62: =IF(E62="","",lookup!Z53) ->  | J62: =IF(E62="","",IF(lookup!AA54<0,0,lookup!AA54)) -> 
E63: =IF(J62="","",IF(J62<=0,"",lookup!X55)) ->  | F63: =IF(E63="","",IF(J63<=0,lookup!Y55+lookup!AA55,lookup!Y55)) ->  | G63: =IF(E63="","",lookup!Z54) ->  | J63: =IF(E63="","",IF(lookup!AA55<0,0,lookup!AA55)) -> 
E64: =IF(J63="","",IF(J63<=0,"",lookup!X56)) ->  | F64: =IF(E64="","",IF(J64<=0,lookup!Y56+lookup!AA56,lookup!Y56)) ->  | G64: =IF(E64="","",lookup!Z55) ->  | J64: =IF(E64="","",IF(lookup!AA56<0,0,lookup!AA56)) -> 
E65: =IF(J64="","",IF(J64<=0,"",lookup!X57)) ->  | F65: =IF(E65="","",IF(J65<=0,lookup!Y57+lookup!AA57,lookup!Y57)) ->  | G65: =IF(E65="","",lookup!Z56) ->  | J65: =IF(E65="","",IF(lookup!AA57<0,0,lookup!AA57)) -> 
E66: =IF(J65="","",IF(J65<=0,"",lookup!X58)) ->  | F66: =IF(E66="","",IF(J66<=0,lookup!Y58+lookup!AA58,lookup!Y58)) ->  | G66: =IF(E66="","",lookup!Z57) ->  | J66: =IF(E66="","",IF(lookup!AA58<0,0,lookup!AA58)) -> 
E67: =IF(J66="","",IF(J66<=0,"",lookup!X59)) ->  | F67: =IF(E67="","",IF(J67<=0,lookup!Y59+lookup!AA59,lookup!Y59)) ->  | G67: =IF(E67="","",lookup!Z58) ->  | J67: =IF(E67="","",IF(lookup!AA59<0,0,lookup!AA59)) -> 
E68: =IF(J67="","",IF(J67<=0,"",lookup!X60)) ->  | F68: =IF(E68="","",IF(J68<=0,lookup!Y60+lookup!AA60,lookup!Y60)) ->  | G68: =IF(E68="","",lookup!Z59) ->  | J68: =IF(E68="","",IF(lookup!AA60<0,0,lookup!AA60)) -> 
E69: =IF(J68="","",IF(J68<=0,"",lookup!X61)) ->  | F69: =IF(E69="","",IF(J69<=0,lookup!Y61+lookup!AA61,lookup!Y61)) ->  | G69: =IF(E69="","",lookup!Z60) ->  | J69: =IF(E69="","",IF(lookup!AA61<0,0,lookup!AA61)) -> 
E70: =IF(J69="","",IF(J69<=0,"",lookup!X62)) ->  | F70: =IF(E70="","",IF(J70<=0,lookup!Y62+lookup!AA62,lookup!Y62)) ->  | G70: =IF(E70="","",lookup!Z61) ->  | J70: =IF(E70="","",IF(lookup!AA62<0,0,lookup!AA62)) -> 
E71: =IF(J70="","",IF(J70<=0,"",lookup!X63)) ->  | F71: =IF(E71="","",IF(J71<=0,lookup!Y63+lookup!AA63,lookup!Y63)) ->  | G71: =IF(E71="","",lookup!Z62) ->  | J71: =IF(E71="","",IF(lookup!AA63<0,0,lookup!AA63)) -> 
E72: =IF(J71="","",IF(J71<=0,"",lookup!X64)) ->  | F72: =IF(E72="","",IF(J72<=0,lookup!Y64+lookup!AA64,lookup!Y64)) ->  | G72: =IF(E72="","",lookup!Z63) ->  | J72: =IF(E72="","",IF(lookup!AA64<0,0,lookup!AA64)) -> 
E73: =IF(J72="","",IF(J72<=0,"",lookup!X65)) ->  | F73: =IF(E73="","",IF(J73<=0,lookup!Y65+lookup!AA65,lookup!Y65)) ->  | G73: =IF(E73="","",lookup!Z64) ->  | J73: =IF(E73="","",IF(lookup!AA65<0,0,lookup!AA65)) -> 
E74: =IF(J73="","",IF(J73<=0,"",lookup!X66)) ->  | F74: =IF(E74="","",IF(J74<=0,lookup!Y66+lookup!AA66,lookup!Y66)) ->  | G74: =IF(E74="","",lookup!Z65) ->  | J74: =IF(E74="","",IF(lookup!AA66<0,0,lookup!AA66)) -> 
E75: =IF(J74="","",IF(J74<=0,"",lookup!X67)) ->  | F75: =IF(E75="","",IF(J75<=0,lookup!Y67+lookup!AA67,lookup!Y67)) ->  | G75: =IF(E75="","",lookup!Z66) ->  | J75: =IF(E75="","",IF(lookup!AA67<0,0,lookup!AA67)) -> 
E76: =IF(J75="","",IF(J75<=0,"",lookup!X68)) ->  | F76: =IF(E76="","",IF(J76<=0,lookup!Y68+lookup!AA68,lookup!Y68)) ->  | G76: =IF(E76="","",lookup!Z67) ->  | H76: =IF(E76="","",H75+G76) ->  | I76: =IF(E76="","",F76-G76) ->  | J76: =IF(E76="","",IF(lookup!AA68<0,0,lookup!AA68)) -> 
E77: =IF(J76="","",IF(J76<=0,"",lookup!X69)) ->  | F77: =IF(E77="","",IF(J77<=0,lookup!Y69+lookup!AA69,lookup!Y69)) ->  | G77: =IF(E77="","",lookup!Z68) ->  | J77: =IF(E77="","",IF(lookup!AA69<0,0,lookup!AA69)) -> 
E78: =IF(J77="","",IF(J77<=0,"",lookup!X70)) ->  | F78: =IF(E78="","",IF(J78<=0,lookup!Y70+lookup!AA70,lookup!Y70)) ->  | G78: =IF(E78="","",lookup!Z69) ->  | J78: =IF(E78="","",IF(lookup!AA70<0,0,lookup!AA70)) -> 
E79: =IF(J78="","",IF(J78<=0,"",lookup!X71)) ->  | F79: =IF(E79="","",IF(J79<=0,lookup!Y71+lookup!AA71,lookup!Y71)) ->  | G79: =IF(E79="","",lookup!Z70) ->  | J79: =IF(E79="","",IF(lookup!AA71<0,0,lookup!AA71)) -> 
E80: =IF(J79="","",IF(J79<=0,"",lookup!X72)) ->  | F80: =IF(E80="","",IF(J80<=0,lookup!Y72+lookup!AA72,lookup!Y72)) ->  | G80: =IF(E80="","",lookup!Z71) ->  | J80: =IF(E80="","",IF(lookup!AA72<0,0,lookup!AA72)) -> 
E81: =IF(J80="","",IF(J80<=0,"",lookup!X73)) ->  | F81: =IF(E81="","",IF(J81<=0,lookup!Y73+lookup!AA73,lookup!Y73)) ->  | G81: =IF(E81="","",lookup!Z72) ->  | J81: =IF(E81="","",IF(lookup!AA73<0,0,lookup!AA73)) -> 
E82: =IF(J81="","",IF(J81<=0,"",lookup!X74)) ->  | F82: =IF(E82="","",IF(J82<=0,lookup!Y74+lookup!AA74,lookup!Y74)) ->  | G82: =IF(E82="","",lookup!Z73) ->  | J82: =IF(E82="","",IF(lookup!AA74<0,0,lookup!AA74)) -> 
E83: =IF(J82="","",IF(J82<=0,"",lookup!X75)) ->  | F83: =IF(E83="","",IF(J83<=0,lookup!Y75+lookup!AA75,lookup!Y75)) ->  | G83: =IF(E83="","",lookup!Z74) ->  | J83: =IF(E83="","",IF(lookup!AA75<0,0,lookup!AA75)) -> 
E84: =IF(J83="","",IF(J83<=0,"",lookup!X76)) ->  | F84: =IF(E84="","",IF(J84<=0,lookup!Y76+lookup!AA76,lookup!Y76)) ->  | G84: =IF(E84="","",lookup!Z75) ->  | J84: =IF(E84="","",IF(lookup!AA76<0,0,lookup!AA76)) -> 
E85: =IF(J84="","",IF(J84<=0,"",lookup!X77)) ->  | F85: =IF(E85="","",IF(J85<=0,lookup!Y77+lookup!AA77,lookup!Y77)) ->  | G85: =IF(E85="","",lookup!Z76) ->  | J85: =IF(E85="","",IF(lookup!AA77<0,0,lookup!AA77)) -> 
E86: =IF(J85="","",IF(J85<=0,"",lookup!X78)) ->  | F86: =IF(E86="","",IF(J86<=0,lookup!Y78+lookup!AA78,lookup!Y78)) ->  | G86: =IF(E86="","",lookup!Z77) ->  | J86: =IF(E86="","",IF(lookup!AA78<0,0,lookup!AA78)) -> 
E87: =IF(J86="","",IF(J86<=0,"",lookup!X79)) ->  | F87: =IF(E87="","",IF(J87<=0,lookup!Y79+lookup!AA79,lookup!Y79)) ->  | G87: =IF(E87="","",lookup!Z78) ->  | J87: =IF(E87="","",IF(lookup!AA79<0,0,lookup!AA79)) -> 
E88: =IF(J87="","",IF(J87<=0,"",lookup!X80)) ->  | F88: =IF(E88="","",IF(J88<=0,lookup!Y80+lookup!AA80,lookup!Y80)) ->  | G88: =IF(E88="","",lookup!Z79) ->  | J88: =IF(E88="","",IF(lookup!AA80<0,0,lookup!AA80)) -> 
E89: =IF(J88="","",IF(J88<=0,"",lookup!X81)) ->  | F89: =IF(E89="","",IF(J89<=0,lookup!Y81+lookup!AA81,lookup!Y81)) ->  | G89: =IF(E89="","",lookup!Z80) ->  | J89: =IF(E89="","",IF(lookup!AA81<0,0,lookup!AA81)) -> 
E90: =IF(J89="","",IF(J89<=0,"",lookup!X82)) ->  | F90: =IF(E90="","",IF(J90<=0,lookup!Y82+lookup!AA82,lookup!Y82)) ->  | G90: =IF(E90="","",lookup!Z81) ->  | J90: =IF(E90="","",IF(lookup!AA82<0,0,lookup!AA82)) -> 
E91: =IF(J90="","",IF(J90<=0,"",lookup!X83)) ->  | F91: =IF(E91="","",IF(J91<=0,lookup!Y83+lookup!AA83,lookup!Y83)) ->  | G91: =IF(E91="","",lookup!Z82) ->  | J91: =IF(E91="","",IF(lookup!AA83<0,0,lookup!AA83)) -> 
E92: =IF(J91="","",IF(J91<=0,"",lookup!X84)) ->  | F92: =IF(E92="","",IF(J92<=0,lookup!Y84+lookup!AA84,lookup!Y84)) ->  | G92: =IF(E92="","",lookup!Z83) ->  | J92: =IF(E92="","",IF(lookup!AA84<0,0,lookup!AA84)) -> 
E93: =IF(J92="","",IF(J92<=0,"",lookup!X85)) ->  | F93: =IF(E93="","",IF(J93<=0,lookup!Y85+lookup!AA85,lookup!Y85)) ->  | G93: =IF(E93="","",lookup!Z84) ->  | J93: =IF(E93="","",IF(lookup!AA85<0,0,lookup!AA85)) -> 
E94: =IF(J93="","",IF(J93<=0,"",lookup!X86)) ->  | F94: =IF(E94="","",IF(J94<=0,lookup!Y86+lookup!AA86,lookup!Y86)) ->  | G94: =IF(E94="","",lookup!Z85) ->  | J94: =IF(E94="","",IF(lookup!AA86<0,0,lookup!AA86)) -> 
E95: =IF(J94="","",IF(J94<=0,"",lookup!X87)) ->  | F95: =IF(E95="","",IF(J95<=0,lookup!Y87+lookup!AA87,lookup!Y87)) ->  | G95: =IF(E95="","",lookup!Z86) ->  | J95: =IF(E95="","",IF(lookup!AA87<0,0,lookup!AA87)) -> 
E96: =IF(J95="","",IF(J95<=0,"",lookup!X88)) ->  | F96: =IF(E96="","",IF(J96<=0,lookup!Y88+lookup!AA88,lookup!Y88)) ->  | G96: =IF(E96="","",lookup!Z87) ->  | J96: =IF(E96="","",IF(lookup!AA88<0,0,lookup!AA88)) -> 
E97: =IF(J96="","",IF(J96<=0,"",lookup!X89)) ->  | F97: =IF(E97="","",IF(J97<=0,lookup!Y89+lookup!AA89,lookup!Y89)) ->  | G97: =IF(E97="","",lookup!Z88) ->  | J97: =IF(E97="","",IF(lookup!AA89<0,0,lookup!AA89)) -> 
E98: =IF(J97="","",IF(J97<=0,"",lookup!X90)) ->  | F98: =IF(E98="","",IF(J98<=0,lookup!Y90+lookup!AA90,lookup!Y90)) ->  | G98: =IF(E98="","",lookup!Z89) ->  | J98: =IF(E98="","",IF(lookup!AA90<0,0,lookup!AA90)) -> 
E99: =IF(J98="","",IF(J98<=0,"",lookup!X91)) ->  | F99: =IF(E99="","",IF(J99<=0,lookup!Y91+lookup!AA91,lookup!Y91)) ->  | G99: =IF(E99="","",lookup!Z90) ->  | J99: =IF(E99="","",IF(lookup!AA91<0,0,lookup!AA91)) -> 
E100: =IF(J99="","",IF(J99<=0,"",lookup!X92)) ->  | F100: =IF(E100="","",IF(J100<=0,lookup!Y92+lookup!AA92,lookup!Y92)) ->  | G100: =IF(E100="","",lookup!Z91) ->  | J100: =IF(E100="","",IF(lookup!AA92<0,0,lookup!AA92)) -> 
E101: =IF(J100="","",IF(J100<=0,"",lookup!X93)) ->  | F101: =IF(E101="","",IF(J101<=0,lookup!Y93+lookup!AA93,lookup!Y93)) ->  | G101: =IF(E101="","",lookup!Z92) ->  | J101: =IF(E101="","",IF(lookup!AA93<0,0,lookup!AA93)) -> 
E102: =IF(J101="","",IF(J101<=0,"",lookup!X94)) ->  | F102: =IF(E102="","",IF(J102<=0,lookup!Y94+lookup!AA94,lookup!Y94)) ->  | G102: =IF(E102="","",lookup!Z93) ->  | J102: =IF(E102="","",IF(lookup!AA94<0,0,lookup!AA94)) -> 
E103: =IF(J102="","",IF(J102<=0,"",lookup!X95)) ->  | F103: =IF(E103="","",IF(J103<=0,lookup!Y95+lookup!AA95,lookup!Y95)) ->  | G103: =IF(E103="","",lookup!Z94) ->  | J103: =IF(E103="","",IF(lookup!AA95<0,0,lookup!AA95)) -> 
E104: =IF(J103="","",IF(J103<=0,"",lookup!X96)) ->  | F104: =IF(E104="","",IF(J104<=0,lookup!Y96+lookup!AA96,lookup!Y96)) ->  | G104: =IF(E104="","",lookup!Z95) ->  | J104: =IF(E104="","",IF(lookup!AA96<0,0,lookup!AA96)) -> 
E105: =IF(J104="","",IF(J104<=0,"",lookup!X97)) ->  | F105: =IF(E105="","",IF(J105<=0,lookup!Y97+lookup!AA97,lookup!Y97)) ->  | G105: =IF(E105="","",lookup!Z96) ->  | J105: =IF(E105="","",IF(lookup!AA97<0,0,lookup!AA97)) -> 
E106: =IF(J105="","",IF(J105<=0,"",lookup!X98)) ->  | F106: =IF(E106="","",IF(J106<=0,lookup!Y98+lookup!AA98,lookup!Y98)) ->  | G106: =IF(E106="","",lookup!Z97) ->  | J106: =IF(E106="","",IF(lookup!AA98<0,0,lookup!AA98)) -> 
E107: =IF(J106="","",IF(J106<=0,"",lookup!X99)) ->  | F107: =IF(E107="","",IF(J107<=0,lookup!Y99+lookup!AA99,lookup!Y99)) ->  | G107: =IF(E107="","",lookup!Z98) ->  | J107: =IF(E107="","",IF(lookup!AA99<0,0,lookup!AA99)) -> 
E108: =IF(J107="","",IF(J107<=0,"",lookup!X100)) ->  | F108: =IF(E108="","",IF(J108<=0,lookup!Y100+lookup!AA100,lookup!Y100)) ->  | G108: =IF(E108="","",lookup!Z99) ->  | J108: =IF(E108="","",IF(lookup!AA100<0,0,lookup!AA100)) -> 
E109: =IF(J108="","",IF(J108<=0,"",lookup!X101)) ->  | F109: =IF(E109="","",IF(J109<=0,lookup!Y101+lookup!AA101,lookup!Y101)) ->  | G109: =IF(E109="","",lookup!Z100) ->  | J109: =IF(E109="","",IF(lookup!AA101<0,0,lookup!AA101)) -> 
E110: =IF(J109="","",IF(J109<=0,"",lookup!X102)) ->  | F110: =IF(E110="","",IF(J110<=0,lookup!Y102+lookup!AA102,lookup!Y102)) ->  | G110: =IF(E110="","",lookup!Z101) ->  | J110: =IF(E110="","",IF(lookup!AA102<0,0,lookup!AA102)) -> 
E111: =IF(J110="","",IF(J110<=0,"",lookup!X103)) ->  | F111: =IF(E111="","",IF(J111<=0,lookup!Y103+lookup!AA103,lookup!Y103)) ->  | G111: =IF(E111="","",lookup!Z102) ->  | J111: =IF(E111="","",IF(lookup!AA103<0,0,lookup!AA103)) -> 
E112: =IF(J111="","",IF(J111<=0,"",lookup!X104)) ->  | F112: =IF(E112="","",IF(J112<=0,lookup!Y104+lookup!AA104,lookup!Y104)) ->  | G112: =IF(E112="","",lookup!Z103) ->  | J112: =IF(E112="","",IF(lookup!AA104<0,0,lookup!AA104)) -> 
E113: =IF(J112="","",IF(J112<=0,"",lookup!X105)) ->  | F113: =IF(E113="","",IF(J113<=0,lookup!Y105+lookup!AA105,lookup!Y105)) ->  | G113: =IF(E113="","",lookup!Z104) ->  | J113: =IF(E113="","",IF(lookup!AA105<0,0,lookup!AA105)) -> 
E114: =IF(J113="","",IF(J113<=0,"",lookup!X106)) ->  | F114: =IF(E114="","",IF(J114<=0,lookup!Y106+lookup!AA106,lookup!Y106)) ->  | G114: =IF(E114="","",lookup!Z105) ->  | J114: =IF(E114="","",IF(lookup!AA106<0,0,lookup!AA106)) -> 
E115: =IF(J114="","",IF(J114<=0,"",lookup!X107)) ->  | F115: =IF(E115="","",IF(J115<=0,lookup!Y107+lookup!AA107,lookup!Y107)) ->  | G115: =IF(E115="","",lookup!Z106) ->  | J115: =IF(E115="","",IF(lookup!AA107<0,0,lookup!AA107)) -> 
E116: =IF(J115="","",IF(J115<=0,"",lookup!X108)) ->  | F116: =IF(E116="","",IF(J116<=0,lookup!Y108+lookup!AA108,lookup!Y108)) ->  | G116: =IF(E116="","",lookup!Z107) ->  | J116: =IF(E116="","",IF(lookup!AA108<0,0,lookup!AA108)) -> 
E117: =IF(J116="","",IF(J116<=0,"",lookup!X109)) ->  | F117: =IF(E117="","",IF(J117<=0,lookup!Y109+lookup!AA109,lookup!Y109)) ->  | G117: =IF(E117="","",lookup!Z108) ->  | J117: =IF(E117="","",IF(lookup!AA109<0,0,lookup!AA109)) -> 
E118: =IF(J117="","",IF(J117<=0,"",lookup!X110)) ->  | F118: =IF(E118="","",IF(J118<=0,lookup!Y110+lookup!AA110,lookup!Y110)) ->  | G118: =IF(E118="","",lookup!Z109) ->  | J118: =IF(E118="","",IF(lookup!AA110<0,0,lookup!AA110)) -> 
E119: =IF(J118="","",IF(J118<=0,"",lookup!X111)) ->  | F119: =IF(E119="","",IF(J119<=0,lookup!Y111+lookup!AA111,lookup!Y111)) ->  | G119: =IF(E119="","",lookup!Z110) ->  | J119: =IF(E119="","",IF(lookup!AA111<0,0,lookup!AA111)) -> 
E120: =IF(J119="","",IF(J119<=0,"",lookup!X112)) ->  | F120: =IF(E120="","",IF(J120<=0,lookup!Y112+lookup!AA112,lookup!Y112)) ->  | G120: =IF(E120="","",lookup!Z111) ->  | J120: =IF(E120="","",IF(lookup!AA112<0,0,lookup!AA112)) -> 
E121: =IF(J120="","",IF(J120<=0,"",lookup!X113)) ->  | F121: =IF(E121="","",IF(J121<=0,lookup!Y113+lookup!AA113,lookup!Y113)) ->  | G121: =IF(E121="","",lookup!Z112) ->  | J121: =IF(E121="","",IF(lookup!AA113<0,0,lookup!AA113)) -> 
E122: =IF(J121="","",IF(J121<=0,"",lookup!X114)) ->  | F122: =IF(E122="","",IF(J122<=0,lookup!Y114+lookup!AA114,lookup!Y114)) ->  | G122: =IF(E122="","",lookup!Z113) ->  | J122: =IF(E122="","",IF(lookup!AA114<0,0,lookup!AA114)) -> 
E123: =IF(J122="","",IF(J122<=0,"",lookup!X115)) ->  | F123: =IF(E123="","",IF(J123<=0,lookup!Y115+lookup!AA115,lookup!Y115)) ->  | G123: =IF(E123="","",lookup!Z114) ->  | J123: =IF(E123="","",IF(lookup!AA115<0,0,lookup!AA115)) -> 
E124: =IF(J123="","",IF(J123<=0,"",lookup!X116)) ->  | F124: =IF(E124="","",IF(J124<=0,lookup!Y116+lookup!AA116,lookup!Y116)) ->  | G124: =IF(E124="","",lookup!Z115) ->  | J124: =IF(E124="","",IF(lookup!AA116<0,0,lookup!AA116)) -> 
E125: =IF(J124="","",IF(J124<=0,"",lookup!X117)) ->  | F125: =IF(E125="","",IF(J125<=0,lookup!Y117+lookup!AA117,lookup!Y117)) ->  | G125: =IF(E125="","",lookup!Z116) ->  | J125: =IF(E125="","",IF(lookup!AA117<0,0,lookup!AA117)) -> 
E126: =IF(J125="","",IF(J125<=0,"",lookup!X118)) ->  | F126: =IF(E126="","",IF(J126<=0,lookup!Y118+lookup!AA118,lookup!Y118)) ->  | G126: =IF(E126="","",lookup!Z117) ->  | J126: =IF(E126="","",IF(lookup!AA118<0,0,lookup!AA118)) -> 
E127: =IF(J126="","",IF(J126<=0,"",lookup!X119)) ->  | F127: =IF(E127="","",IF(J127<=0,lookup!Y119+lookup!AA119,lookup!Y119)) ->  | G127: =IF(E127="","",lookup!Z118) ->  | J127: =IF(E127="","",IF(lookup!AA119<0,0,lookup!AA119)) -> 
E128: =IF(J127="","",IF(J127<=0,"",lookup!X120)) ->  | F128: =IF(E128="","",IF(J128<=0,lookup!Y120+lookup!AA120,lookup!Y120)) ->  | G128: =IF(E128="","",lookup!Z119) ->  | J128: =IF(E128="","",IF(lookup!AA120<0,0,lookup!AA120)) -> 
E129: =IF(J128="","",IF(J128<=0,"",lookup!X121)) ->  | F129: =IF(E129="","",IF(J129<=0,lookup!Y121+lookup!AA121,lookup!Y121)) ->  | G129: =IF(E129="","",lookup!Z120) ->  | J129: =IF(E129="","",IF(lookup!AA121<0,0,lookup!AA121)) -> 
E130: =IF(J129="","",IF(J129<=0,"",lookup!X122)) ->  | F130: =IF(E130="","",IF(J130<=0,lookup!Y122+lookup!AA122,lookup!Y122)) ->  | G130: =IF(E130="","",lookup!Z121) ->  | J130: =IF(E130="","",IF(lookup!AA122<0,0,lookup!AA122)) -> 
E131: =IF(J130="","",IF(J130<=0,"",lookup!X123)) ->  | F131: =IF(E131="","",IF(J131<=0,lookup!Y123+lookup!AA123,lookup!Y123)) ->  | G131: =IF(E131="","",lookup!Z122) ->  | J131: =IF(E131="","",IF(lookup!AA123<0,0,lookup!AA123)) -> 
E132: =IF(J131="","",IF(J131<=0,"",lookup!X124)) ->  | F132: =IF(E132="","",IF(J132<=0,lookup!Y124+lookup!AA124,lookup!Y124)) ->  | G132: =IF(E132="","",lookup!Z123) ->  | J132: =IF(E132="","",IF(lookup!AA124<0,0,lookup!AA124)) -> 
E133: =IF(J132="","",IF(J132<=0,"",lookup!X125)) ->  | F133: =IF(E133="","",IF(J133<=0,lookup!Y125+lookup!AA125,lookup!Y125)) ->  | G133: =IF(E133="","",lookup!Z124) ->  | J133: =IF(E133="","",IF(lookup!AA125<0,0,lookup!AA125)) -> 
E134: =IF(J133="","",IF(J133<=0,"",lookup!X126)) ->  | F134: =IF(E134="","",IF(J134<=0,lookup!Y126+lookup!AA126,lookup!Y126)) ->  | G134: =IF(E134="","",lookup!Z125) ->  | J134: =IF(E134="","",IF(lookup!AA126<0,0,lookup!AA126)) -> 
E135: =IF(J134="","",IF(J134<=0,"",lookup!X127)) ->  | F135: =IF(E135="","",IF(J135<=0,lookup!Y127+lookup!AA127,lookup!Y127)) ->  | G135: =IF(E135="","",lookup!Z126) ->  | J135: =IF(E135="","",IF(lookup!AA127<0,0,lookup!AA127)) -> 
E136: =IF(J135="","",IF(J135<=0,"",lookup!X128)) ->  | F136: =IF(E136="","",IF(J136<=0,lookup!Y128+lookup!AA128,lookup!Y128)) ->  | G136: =IF(E136="","",lookup!Z127) ->  | J136: =IF(E136="","",IF(lookup!AA128<0,0,lookup!AA128)) -> 
E137: =IF(J136="","",IF(J136<=0,"",lookup!X129)) ->  | F137: =IF(E137="","",IF(J137<=0,lookup!Y129+lookup!AA129,lookup!Y129)) ->  | G137: =IF(E137="","",lookup!Z128) ->  | J137: =IF(E137="","",IF(lookup!AA129<0,0,lookup!AA129)) -> 
E138: =IF(J137="","",IF(J137<=0,"",lookup!X130)) ->  | F138: =IF(E138="","",IF(J138<=0,lookup!Y130+lookup!AA130,lookup!Y130)) ->  | G138: =IF(E138="","",lookup!Z129) ->  | J138: =IF(E138="","",IF(lookup!AA130<0,0,lookup!AA130)) -> 
E139: =IF(J138="","",IF(J138<=0,"",lookup!X131)) ->  | F139: =IF(E139="","",IF(J139<=0,lookup!Y131+lookup!AA131,lookup!Y131)) ->  | G139: =IF(E139="","",lookup!Z130) ->  | J139: =IF(E139="","",IF(lookup!AA131<0,0,lookup!AA131)) -> 
E140: =IF(J139="","",IF(J139<=0,"",lookup!X132)) ->  | F140: =IF(E140="","",IF(J140<=0,lookup!Y132+lookup!AA132,lookup!Y132)) ->  | G140: =IF(E140="","",lookup!Z131) ->  | H140: =IF(E140="","",H139+G140) ->  | I140: =IF(E140="","",F140-G140) ->  | J140: =IF(E140="","",IF(lookup!AA132<0,0,lookup!AA132)) -> 
E141: =IF(J140="","",IF(J140<=0,"",lookup!X133)) ->  | F141: =IF(E141="","",IF(J141<=0,lookup!Y133+lookup!AA133,lookup!Y133)) ->  | G141: =IF(E141="","",lookup!Z132) ->  | J141: =IF(E141="","",IF(lookup!AA133<0,0,lookup!AA133)) -> 
E142: =IF(J141="","",IF(J141<=0,"",lookup!X134)) ->  | F142: =IF(E142="","",IF(J142<=0,lookup!Y134+lookup!AA134,lookup!Y134)) ->  | G142: =IF(E142="","",lookup!Z133) ->  | J142: =IF(E142="","",IF(lookup!AA134<0,0,lookup!AA134)) -> 
E143: =IF(J142="","",IF(J142<=0,"",lookup!X135)) ->  | F143: =IF(E143="","",IF(J143<=0,lookup!Y135+lookup!AA135,lookup!Y135)) ->  | G143: =IF(E143="","",lookup!Z134) ->  | J143: =IF(E143="","",IF(lookup!AA135<0,0,lookup!AA135)) -> 
E144: =IF(J143="","",IF(J143<=0,"",lookup!X136)) ->  | F144: =IF(E144="","",IF(J144<=0,lookup!Y136+lookup!AA136,lookup!Y136)) ->  | G144: =IF(E144="","",lookup!Z135) ->  | J144: =IF(E144="","",IF(lookup!AA136<0,0,lookup!AA136)) -> 
E145: =IF(J144="","",IF(J144<=0,"",lookup!X137)) ->  | F145: =IF(E145="","",IF(J145<=0,lookup!Y137+lookup!AA137,lookup!Y137)) ->  | G145: =IF(E145="","",lookup!Z136) ->  | J145: =IF(E145="","",IF(lookup!AA137<0,0,lookup!AA137)) -> 
E146: =IF(J145="","",IF(J145<=0,"",lookup!X138)) ->  | F146: =IF(E146="","",IF(J146<=0,lookup!Y138+lookup!AA138,lookup!Y138)) ->  | G146: =IF(E146="","",lookup!Z137) ->  | J146: =IF(E146="","",IF(lookup!AA138<0,0,lookup!AA138)) -> 
E147: =IF(J146="","",IF(J146<=0,"",lookup!X139)) ->  | F147: =IF(E147="","",IF(J147<=0,lookup!Y139+lookup!AA139,lookup!Y139)) ->  | G147: =IF(E147="","",lookup!Z138) ->  | J147: =IF(E147="","",IF(lookup!AA139<0,0,lookup!AA139)) -> 
E148: =IF(J147="","",IF(J147<=0,"",lookup!X140)) ->  | F148: =IF(E148="","",IF(J148<=0,lookup!Y140+lookup!AA140,lookup!Y140)) ->  | G148: =IF(E148="","",lookup!Z139) ->  | J148: =IF(E148="","",IF(lookup!AA140<0,0,lookup!AA140)) -> 
E149: =IF(J148="","",IF(J148<=0,"",lookup!X141)) ->  | F149: =IF(E149="","",IF(J149<=0,lookup!Y141+lookup!AA141,lookup!Y141)) ->  | G149: =IF(E149="","",lookup!Z140) ->  | J149: =IF(E149="","",IF(lookup!AA141<0,0,lookup!AA141)) -> 
E150: =IF(J149="","",IF(J149<=0,"",lookup!X142)) ->  | F150: =IF(E150="","",IF(J150<=0,lookup!Y142+lookup!AA142,lookup!Y142)) ->  | G150: =IF(E150="","",lookup!Z141) ->  | J150: =IF(E150="","",IF(lookup!AA142<0,0,lookup!AA142)) -> 
E151: =IF(J150="","",IF(J150<=0,"",lookup!X143)) ->  | F151: =IF(E151="","",IF(J151<=0,lookup!Y143+lookup!AA143,lookup!Y143)) ->  | G151: =IF(E151="","",lookup!Z142) ->  | J151: =IF(E151="","",IF(lookup!AA143<0,0,lookup!AA143)) -> 
E152: =IF(J151="","",IF(J151<=0,"",lookup!X144)) ->  | F152: =IF(E152="","",IF(J152<=0,lookup!Y144+lookup!AA144,lookup!Y144)) ->  | G152: =IF(E152="","",lookup!Z143) ->  | J152: =IF(E152="","",IF(lookup!AA144<0,0,lookup!AA144)) -> 
E153: =IF(J152="","",IF(J152<=0,"",lookup!X145)) ->  | F153: =IF(E153="","",IF(J153<=0,lookup!Y145+lookup!AA145,lookup!Y145)) ->  | G153: =IF(E153="","",lookup!Z144) ->  | J153: =IF(E153="","",IF(lookup!AA145<0,0,lookup!AA145)) -> 
E154: =IF(J153="","",IF(J153<=0,"",lookup!X146)) ->  | F154: =IF(E154="","",IF(J154<=0,lookup!Y146+lookup!AA146,lookup!Y146)) ->  | G154: =IF(E154="","",lookup!Z145) ->  | J154: =IF(E154="","",IF(lookup!AA146<0,0,lookup!AA146)) -> 
E155: =IF(J154="","",IF(J154<=0,"",lookup!X147)) ->  | F155: =IF(E155="","",IF(J155<=0,lookup!Y147+lookup!AA147,lookup!Y147)) ->  | G155: =IF(E155="","",lookup!Z146) ->  | J155: =IF(E155="","",IF(lookup!AA147<0,0,lookup!AA147)) -> 
E156: =IF(J155="","",IF(J155<=0,"",lookup!X148)) ->  | F156: =IF(E156="","",IF(J156<=0,lookup!Y148+lookup!AA148,lookup!Y148)) ->  | G156: =IF(E156="","",lookup!Z147) ->  | J156: =IF(E156="","",IF(lookup!AA148<0,0,lookup!AA148)) -> 
E157: =IF(J156="","",IF(J156<=0,"",lookup!X149)) ->  | F157: =IF(E157="","",IF(J157<=0,lookup!Y149+lookup!AA149,lookup!Y149)) ->  | G157: =IF(E157="","",lookup!Z148) ->  | J157: =IF(E157="","",IF(lookup!AA149<0,0,lookup!AA149)) -> 
E158: =IF(J157="","",IF(J157<=0,"",lookup!X150)) ->  | F158: =IF(E158="","",IF(J158<=0,lookup!Y150+lookup!AA150,lookup!Y150)) ->  | G158: =IF(E158="","",lookup!Z149) ->  | J158: =IF(E158="","",IF(lookup!AA150<0,0,lookup!AA150)) -> 
E159: =IF(J158="","",IF(J158<=0,"",lookup!X151)) ->  | F159: =IF(E159="","",IF(J159<=0,lookup!Y151+lookup!AA151,lookup!Y151)) ->  | G159: =IF(E159="","",lookup!Z150) ->  | J159: =IF(E159="","",IF(lookup!AA151<0,0,lookup!AA151)) -> 
E160: =IF(J159="","",IF(J159<=0,"",lookup!X152)) ->  | F160: =IF(E160="","",IF(J160<=0,lookup!Y152+lookup!AA152,lookup!Y152)) ->  | G160: =IF(E160="","",lookup!Z151) ->  | J160: =IF(E160="","",IF(lookup!AA152<0,0,lookup!AA152)) -> 
E161: =IF(J160="","",IF(J160<=0,"",lookup!X153)) ->  | F161: =IF(E161="","",IF(J161<=0,lookup!Y153+lookup!AA153,lookup!Y153)) ->  | G161: =IF(E161="","",lookup!Z152) ->  | J161: =IF(E161="","",IF(lookup!AA153<0,0,lookup!AA153)) -> 
E162: =IF(J161="","",IF(J161<=0,"",lookup!X154)) ->  | F162: =IF(E162="","",IF(J162<=0,lookup!Y154+lookup!AA154,lookup!Y154)) ->  | G162: =IF(E162="","",lookup!Z153) ->  | J162: =IF(E162="","",IF(lookup!AA154<0,0,lookup!AA154)) -> 
E163: =IF(J162="","",IF(J162<=0,"",lookup!X155)) ->  | F163: =IF(E163="","",IF(J163<=0,lookup!Y155+lookup!AA155,lookup!Y155)) ->  | G163: =IF(E163="","",lookup!Z154) ->  | J163: =IF(E163="","",IF(lookup!AA155<0,0,lookup!AA155)) -> 
E164: =IF(J163="","",IF(J163<=0,"",lookup!X156)) ->  | F164: =IF(E164="","",IF(J164<=0,lookup!Y156+lookup!AA156,lookup!Y156)) ->  | G164: =IF(E164="","",lookup!Z155) ->  | J164: =IF(E164="","",IF(lookup!AA156<0,0,lookup!AA156)) -> 
E165: =IF(J164="","",IF(J164<=0,"",lookup!X157)) ->  | F165: =IF(E165="","",IF(J165<=0,lookup!Y157+lookup!AA157,lookup!Y157)) ->  | G165: =IF(E165="","",lookup!Z156) ->  | J165: =IF(E165="","",IF(lookup!AA157<0,0,lookup!AA157)) -> 
E166: =IF(J165="","",IF(J165<=0,"",lookup!X158)) ->  | F166: =IF(E166="","",IF(J166<=0,lookup!Y158+lookup!AA158,lookup!Y158)) ->  | G166: =IF(E166="","",lookup!Z157) ->  | J166: =IF(E166="","",IF(lookup!AA158<0,0,lookup!AA158)) -> 
E167: =IF(J166="","",IF(J166<=0,"",lookup!X159)) ->  | F167: =IF(E167="","",IF(J167<=0,lookup!Y159+lookup!AA159,lookup!Y159)) ->  | G167: =IF(E167="","",lookup!Z158) ->  | J167: =IF(E167="","",IF(lookup!AA159<0,0,lookup!AA159)) -> 
E168: =IF(J167="","",IF(J167<=0,"",lookup!X160)) ->  | F168: =IF(E168="","",IF(J168<=0,lookup!Y160+lookup!AA160,lookup!Y160)) ->  | G168: =IF(E168="","",lookup!Z159) ->  | J168: =IF(E168="","",IF(lookup!AA160<0,0,lookup!AA160)) -> 
E169: =IF(J168="","",IF(J168<=0,"",lookup!X161)) ->  | F169: =IF(E169="","",IF(J169<=0,lookup!Y161+lookup!AA161,lookup!Y161)) ->  | G169: =IF(E169="","",lookup!Z160) ->  | J169: =IF(E169="","",IF(lookup!AA161<0,0,lookup!AA161)) -> 
E170: =IF(J169="","",IF(J169<=0,"",lookup!X162)) ->  | F170: =IF(E170="","",IF(J170<=0,lookup!Y162+lookup!AA162,lookup!Y162)) ->  | G170: =IF(E170="","",lookup!Z161) ->  | J170: =IF(E170="","",IF(lookup!AA162<0,0,lookup!AA162)) -> 
E171: =IF(J170="","",IF(J170<=0,"",lookup!X163)) ->  | F171: =IF(E171="","",IF(J171<=0,lookup!Y163+lookup!AA163,lookup!Y163)) ->  | G171: =IF(E171="","",lookup!Z162) ->  | J171: =IF(E171="","",IF(lookup!AA163<0,0,lookup!AA163)) -> 
E172: =IF(J171="","",IF(J171<=0,"",lookup!X164)) ->  | F172: =IF(E172="","",IF(J172<=0,lookup!Y164+lookup!AA164,lookup!Y164)) ->  | G172: =IF(E172="","",lookup!Z163) ->  | J172: =IF(E172="","",IF(lookup!AA164<0,0,lookup!AA164)) -> 
E173: =IF(J172="","",IF(J172<=0,"",lookup!X165)) ->  | F173: =IF(E173="","",IF(J173<=0,lookup!Y165+lookup!AA165,lookup!Y165)) ->  | G173: =IF(E173="","",lookup!Z164) ->  | J173: =IF(E173="","",IF(lookup!AA165<0,0,lookup!AA165)) -> 
E174: =IF(J173="","",IF(J173<=0,"",lookup!X166)) ->  | F174: =IF(E174="","",IF(J174<=0,lookup!Y166+lookup!AA166,lookup!Y166)) ->  | G174: =IF(E174="","",lookup!Z165) ->  | J174: =IF(E174="","",IF(lookup!AA166<0,0,lookup!AA166)) -> 
E175: =IF(J174="","",IF(J174<=0,"",lookup!X167)) ->  | F175: =IF(E175="","",IF(J175<=0,lookup!Y167+lookup!AA167,lookup!Y167)) ->  | G175: =IF(E175="","",lookup!Z166) ->  | J175: =IF(E175="","",IF(lookup!AA167<0,0,lookup!AA167)) -> 
E176: =IF(J175="","",IF(J175<=0,"",lookup!X168)) ->  | F176: =IF(E176="","",IF(J176<=0,lookup!Y168+lookup!AA168,lookup!Y168)) ->  | G176: =IF(E176="","",lookup!Z167) ->  | J176: =IF(E176="","",IF(lookup!AA168<0,0,lookup!AA168)) -> 
E177: =IF(J176="","",IF(J176<=0,"",lookup!X169)) ->  | F177: =IF(E177="","",IF(J177<=0,lookup!Y169+lookup!AA169,lookup!Y169)) ->  | G177: =IF(E177="","",lookup!Z168) ->  | J177: =IF(E177="","",IF(lookup!AA169<0,0,lookup!AA169)) -> 
E178: =IF(J177="","",IF(J177<=0,"",lookup!X170)) ->  | F178: =IF(E178="","",IF(J178<=0,lookup!Y170+lookup!AA170,lookup!Y170)) ->  | G178: =IF(E178="","",lookup!Z169) ->  | J178: =IF(E178="","",IF(lookup!AA170<0,0,lookup!AA170)) -> 
E179: =IF(J178="","",IF(J178<=0,"",lookup!X171)) ->  | F179: =IF(E179="","",IF(J179<=0,lookup!Y171+lookup!AA171,lookup!Y171)) ->  | G179: =IF(E179="","",lookup!Z170) ->  | J179: =IF(E179="","",IF(lookup!AA171<0,0,lookup!AA171)) -> 
E180: =IF(J179="","",IF(J179<=0,"",lookup!X172)) ->  | F180: =IF(E180="","",IF(J180<=0,lookup!Y172+lookup!AA172,lookup!Y172)) ->  | G180: =IF(E180="","",lookup!Z171) ->  | J180: =IF(E180="","",IF(lookup!AA172<0,0,lookup!AA172)) -> 
E181: =IF(J180="","",IF(J180<=0,"",lookup!X173)) ->  | F181: =IF(E181="","",IF(J181<=0,lookup!Y173+lookup!AA173,lookup!Y173)) ->  | G181: =IF(E181="","",lookup!Z172) ->  | J181: =IF(E181="","",IF(lookup!AA173<0,0,lookup!AA173)) -> 
E182: =IF(J181="","",IF(J181<=0,"",lookup!X174)) ->  | F182: =IF(E182="","",IF(J182<=0,lookup!Y174+lookup!AA174,lookup!Y174)) ->  | G182: =IF(E182="","",lookup!Z173) ->  | J182: =IF(E182="","",IF(lookup!AA174<0,0,lookup!AA174)) -> 
E183: =IF(J182="","",IF(J182<=0,"",lookup!X175)) ->  | F183: =IF(E183="","",IF(J183<=0,lookup!Y175+lookup!AA175,lookup!Y175)) ->  | G183: =IF(E183="","",lookup!Z174) ->  | J183: =IF(E183="","",IF(lookup!AA175<0,0,lookup!AA175)) -> 
E184: =IF(J183="","",IF(J183<=0,"",lookup!X176)) ->  | F184: =IF(E184="","",IF(J184<=0,lookup!Y176+lookup!AA176,lookup!Y176)) ->  | G184: =IF(E184="","",lookup!Z175) ->  | J184: =IF(E184="","",IF(lookup!AA176<0,0,lookup!AA176)) -> 
E185: =IF(J184="","",IF(J184<=0,"",lookup!X177)) ->  | F185: =IF(E185="","",IF(J185<=0,lookup!Y177+lookup!AA177,lookup!Y177)) ->  | G185: =IF(E185="","",lookup!Z176) ->  | J185: =IF(E185="","",IF(lookup!AA177<0,0,lookup!AA177)) -> 
E186: =IF(J185="","",IF(J185<=0,"",lookup!X178)) ->  | F186: =IF(E186="","",IF(J186<=0,lookup!Y178+lookup!AA178,lookup!Y178)) ->  | G186: =IF(E186="","",lookup!Z177) ->  | J186: =IF(E186="","",IF(lookup!AA178<0,0,lookup!AA178)) -> 
E187: =IF(J186="","",IF(J186<=0,"",lookup!X179)) ->  | F187: =IF(E187="","",IF(J187<=0,lookup!Y179+lookup!AA179,lookup!Y179)) ->  | G187: =IF(E187="","",lookup!Z178) ->  | J187: =IF(E187="","",IF(lookup!AA179<0,0,lookup!AA179)) -> 
E188: =IF(J187="","",IF(J187<=0,"",lookup!X180)) ->  | F188: =IF(E188="","",IF(J188<=0,lookup!Y180+lookup!AA180,lookup!Y180)) ->  | G188: =IF(E188="","",lookup!Z179) ->  | J188: =IF(E188="","",IF(lookup!AA180<0,0,lookup!AA180)) -> 
E189: =IF(J188="","",IF(J188<=0,"",lookup!X181)) ->  | F189: =IF(E189="","",IF(J189<=0,lookup!Y181+lookup!AA181,lookup!Y181)) ->  | G189: =IF(E189="","",lookup!Z180) ->  | J189: =IF(E189="","",IF(lookup!AA181<0,0,lookup!AA181)) -> 
E190: =IF(J189="","",IF(J189<=0,"",lookup!X182)) ->  | F190: =IF(E190="","",IF(J190<=0,lookup!Y182+lookup!AA182,lookup!Y182)) ->  | G190: =IF(E190="","",lookup!Z181) ->  | J190: =IF(E190="","",IF(lookup!AA182<0,0,lookup!AA182)) -> 
E191: =IF(J190="","",IF(J190<=0,"",lookup!X183)) ->  | F191: =IF(E191="","",IF(J191<=0,lookup!Y183+lookup!AA183,lookup!Y183)) ->  | G191: =IF(E191="","",lookup!Z182) ->  | J191: =IF(E191="","",IF(lookup!AA183<0,0,lookup!AA183)) -> 
E192: =IF(J191="","",IF(J191<=0,"",lookup!X184)) ->  | F192: =IF(E192="","",IF(J192<=0,lookup!Y184+lookup!AA184,lookup!Y184)) ->  | G192: =IF(E192="","",lookup!Z183) ->  | J192: =IF(E192="","",IF(lookup!AA184<0,0,lookup!AA184)) -> 
E193: =IF(J192="","",IF(J192<=0,"",lookup!X185)) ->  | F193: =IF(E193="","",IF(J193<=0,lookup!Y185+lookup!AA185,lookup!Y185)) ->  | G193: =IF(E193="","",lookup!Z184) ->  | J193: =IF(E193="","",IF(lookup!AA185<0,0,lookup!AA185)) -> 
E194: =IF(J193="","",IF(J193<=0,"",lookup!X186)) ->  | F194: =IF(E194="","",IF(J194<=0,lookup!Y186+lookup!AA186,lookup!Y186)) ->  | G194: =IF(E194="","",lookup!Z185) ->  | J194: =IF(E194="","",IF(lookup!AA186<0,0,lookup!AA186)) -> 
E195: =IF(J194="","",IF(J194<=0,"",lookup!X187)) ->  | F195: =IF(E195="","",IF(J195<=0,lookup!Y187+lookup!AA187,lookup!Y187)) ->  | G195: =IF(E195="","",lookup!Z186) ->  | J195: =IF(E195="","",IF(lookup!AA187<0,0,lookup!AA187)) -> 
E196: =IF(J195="","",IF(J195<=0,"",lookup!X188)) ->  | F196: =IF(E196="","",IF(J196<=0,lookup!Y188+lookup!AA188,lookup!Y188)) ->  | G196: =IF(E196="","",lookup!Z187) ->  | J196: =IF(E196="","",IF(lookup!AA188<0,0,lookup!AA188)) -> 
E197: =IF(J196="","",IF(J196<=0,"",lookup!X189)) ->  | F197: =IF(E197="","",IF(J197<=0,lookup!Y189+lookup!AA189,lookup!Y189)) ->  | G197: =IF(E197="","",lookup!Z188) ->  | J197: =IF(E197="","",IF(lookup!AA189<0,0,lookup!AA189)) -> 
E198: =IF(J197="","",IF(J197<=0,"",lookup!X190)) ->  | F198: =IF(E198="","",IF(J198<=0,lookup!Y190+lookup!AA190,lookup!Y190)) ->  | G198: =IF(E198="","",lookup!Z189) ->  | J198: =IF(E198="","",IF(lookup!AA190<0,0,lookup!AA190)) -> 
E199: =IF(J198="","",IF(J198<=0,"",lookup!X191)) ->  | F199: =IF(E199="","",IF(J199<=0,lookup!Y191+lookup!AA191,lookup!Y191)) ->  | G199: =IF(E199="","",lookup!Z190) ->  | J199: =IF(E199="","",IF(lookup!AA191<0,0,lookup!AA191)) -> 
E200: =IF(J199="","",IF(J199<=0,"",lookup!X192)) ->  | F200: =IF(E200="","",IF(J200<=0,lookup!Y192+lookup!AA192,lookup!Y192)) ->  | G200: =IF(E200="","",lookup!Z191) ->  | J200: =IF(E200="","",IF(lookup!AA192<0,0,lookup!AA192)) -> 
E201: =IF(J200="","",IF(J200<=0,"",lookup!X193)) ->  | F201: =IF(E201="","",IF(J201<=0,lookup!Y193+lookup!AA193,lookup!Y193)) ->  | G201: =IF(E201="","",lookup!Z192) ->  | J201: =IF(E201="","",IF(lookup!AA193<0,0,lookup!AA193)) -> 
E202: =IF(J201="","",IF(J201<=0,"",lookup!X194)) ->  | F202: =IF(E202="","",IF(J202<=0,lookup!Y194+lookup!AA194,lookup!Y194)) ->  | G202: =IF(E202="","",lookup!Z193) ->  | J202: =IF(E202="","",IF(lookup!AA194<0,0,lookup!AA194)) -> 
E203: =IF(J202="","",IF(J202<=0,"",lookup!X195)) ->  | F203: =IF(E203="","",IF(J203<=0,lookup!Y195+lookup!AA195,lookup!Y195)) ->  | G203: =IF(E203="","",lookup!Z194) ->  | J203: =IF(E203="","",IF(lookup!AA195<0,0,lookup!AA195)) -> 
E204: =IF(J203="","",IF(J203<=0,"",lookup!X196)) ->  | F204: =IF(E204="","",IF(J204<=0,lookup!Y196+lookup!AA196,lookup!Y196)) ->  | G204: =IF(E204="","",lookup!Z195) ->  | H204: =IF(E204="","",H203+G204) ->  | I204: =IF(E204="","",F204-G204) ->  | J204: =IF(E204="","",IF(lookup!AA196<0,0,lookup!AA196)) -> 
E205: =IF(J204="","",IF(J204<=0,"",lookup!X197)) ->  | F205: =IF(E205="","",IF(J205<=0,lookup!Y197+lookup!AA197,lookup!Y197)) ->  | G205: =IF(E205="","",lookup!Z196) ->  | J205: =IF(E205="","",IF(lookup!AA197<0,0,lookup!AA197)) -> 
E206: =IF(J205="","",IF(J205<=0,"",lookup!X198)) ->  | F206: =IF(E206="","",IF(J206<=0,lookup!Y198+lookup!AA198,lookup!Y198)) ->  | G206: =IF(E206="","",lookup!Z197) ->  | J206: =IF(E206="","",IF(lookup!AA198<0,0,lookup!AA198)) -> 
E207: =IF(J206="","",IF(J206<=0,"",lookup!X199)) ->  | F207: =IF(E207="","",IF(J207<=0,lookup!Y199+lookup!AA199,lookup!Y199)) ->  | G207: =IF(E207="","",lookup!Z198) ->  | J207: =IF(E207="","",IF(lookup!AA199<0,0,lookup!AA199)) -> 
E208: =IF(J207="","",IF(J207<=0,"",lookup!X200)) ->  | F208: =IF(E208="","",IF(J208<=0,lookup!Y200+lookup!AA200,lookup!Y200)) ->  | G208: =IF(E208="","",lookup!Z199) ->  | J208: =IF(E208="","",IF(lookup!AA200<0,0,lookup!AA200)) -> 
... 402 more rows

Sheet Loan (by loan terms) (hidden)
A9: LOAN (by loan terms) (Max 50 years) | E9: Month | F9: Payment | G9: Interest paid | H9: Total interest | I9: Principal paid | J9: Balance
E10: 0 | J10: =B12 -> 10000
A11: APR | B11: 15 | E11: =lookup!AC3 -> 1 | F11: =lookup!AD3 -> 237.8993009 | G11: =lookup!AE$1 -> 125 | H11: =G11 -> 125 | I11: =F11-G11 -> 112.8993009 | J11: =lookup!AF3 -> 9887.100699
A12: Loan Amount | B12: 10000 | E12: =IF(J11="","",IF(J11<=0,"",lookup!AC4)) -> 2 | F12: =IF(E12="","",IF(J12<=0,lookup!AD4+lookup!AF4,lookup!AD4)) -> 237.8993009 | G12: =IF(E12="","",lookup!AE3) -> 123.59 | H12: =IF(E12="","",H11+G12) -> 248.59 | I12: =IF(E12="","",F12-G12) -> 114.3093009 | J12: =IF(E12="","",IF(lookup!AF4<0,0,lookup!AF4)) -> 9772.790157
A13: Loan term (months) | B13: 60 | E13: =IF(J12="","",IF(J12<=0,"",lookup!AC5)) -> 3 | F13: =IF(E13="","",IF(J13<=0,lookup!AD5+lookup!AF5,lookup!AD5)) -> 237.8993009 | G13: =IF(E13="","",lookup!AE4) -> 122.16 | H13: 370.75 | I13: 115.7393009 | J13: =IF(E13="","",IF(lookup!AF5<0,0,lookup!AF5)) -> 9657.050733
A14: Monthly payment | B14: =B12*(B11/12/100)/(1-(1+(B11/12/100))^(-B13)) -> 237.8993009 | E14: =IF(J13="","",IF(J13<=0,"",lookup!AC6)) -> 4 | F14: =IF(E14="","",IF(J14<=0,lookup!AD6+lookup!AF6,lookup!AD6)) -> 237.8993009 | G14: =IF(E14="","",lookup!AE5) -> 120.71 | H14: 491.46 | I14: 117.1893009 | J14: =IF(E14="","",IF(lookup!AF6<0,0,lookup!AF6)) -> 9539.864566
E15: =IF(J14="","",IF(J14<=0,"",lookup!AC7)) -> 5 | F15: =IF(E15="","",IF(J15<=0,lookup!AD7+lookup!AF7,lookup!AD7)) -> 237.8993009 | G15: =IF(E15="","",lookup!AE6) -> 119.25 | H15: 610.71 | I15: 118.6493009 | J15: =IF(E15="","",IF(lookup!AF7<0,0,lookup!AF7)) -> 9421.213573
E16: =IF(J15="","",IF(J15<=0,"",lookup!AC8)) -> 6 | F16: =IF(E16="","",IF(J16<=0,lookup!AD8+lookup!AF8,lookup!AD8)) -> 237.8993009 | G16: =IF(E16="","",lookup!AE7) -> 117.77 | H16: 728.48 | I16: 120.1293009 | J16: =IF(E16="","",IF(lookup!AF8<0,0,lookup!AF8)) -> 9301.079441
E17: =IF(J16="","",IF(J16<=0,"",lookup!AC9)) -> 7 | F17: =IF(E17="","",IF(J17<=0,lookup!AD9+lookup!AF9,lookup!AD9)) -> 237.8993009 | G17: =IF(E17="","",lookup!AE8) -> 116.26 | H17: 844.74 | I17: 121.6393009 | J17: =IF(E17="","",IF(lookup!AF9<0,0,lookup!AF9)) -> 9179.443634
E18: =IF(J17="","",IF(J17<=0,"",lookup!AC10)) -> 8 | F18: =IF(E18="","",IF(J18<=0,lookup!AD10+lookup!AF10,lookup!AD10)) -> 237.8993009 | G18: =IF(E18="","",lookup!AE9) -> 114.74 | H18: 959.48 | I18: 123.1593009 | J18: =IF(E18="","",IF(lookup!AF10<0,0,lookup!AF10)) -> 9056.287378
E19: =IF(J18="","",IF(J18<=0,"",lookup!AC11)) -> 9 | F19: =IF(E19="","",IF(J19<=0,lookup!AD11+lookup!AF11,lookup!AD11)) -> 237.8993009 | G19: =IF(E19="","",lookup!AE10) -> 113.2 | H19: 1072.68 | I19: 124.6993009 | J19: =IF(E19="","",IF(lookup!AF11<0,0,lookup!AF11)) -> 8931.591669
E20: =IF(J19="","",IF(J19<=0,"",lookup!AC12)) -> 10 | F20: =IF(E20="","",IF(J20<=0,lookup!AD12+lookup!AF12,lookup!AD12)) -> 237.8993009 | G20: =IF(E20="","",lookup!AE11) -> 111.64 | H20: 1184.32 | I20: 126.2593009 | J20: =IF(E20="","",IF(lookup!AF12<0,0,lookup!AF12)) -> 8805.337265
E21: =IF(J20="","",IF(J20<=0,"",lookup!AC13)) -> 11 | F21: =IF(E21="","",IF(J21<=0,lookup!AD13+lookup!AF13,lookup!AD13)) -> 237.8993009 | G21: =IF(E21="","",lookup!AE12) -> 110.07 | H21: 1294.39 | I21: 127.8293009 | J21: =IF(E21="","",IF(lookup!AF13<0,0,lookup!AF13)) -> 8677.504679
E22: =IF(J21="","",IF(J21<=0,"",lookup!AC14)) -> 12 | F22: =IF(E22="","",IF(J22<=0,lookup!AD14+lookup!AF14,lookup!AD14)) -> 237.8993009 | G22: =IF(E22="","",lookup!AE13) -> 108.47 | H22: 1402.86 | I22: 129.4293009 | J22: =IF(E22="","",IF(lookup!AF14<0,0,lookup!AF14)) -> 8548.074187
E23: =IF(J22="","",IF(J22<=0,"",lookup!AC15)) -> 13 | F23: =IF(E23="","",IF(J23<=0,lookup!AD15+lookup!AF15,lookup!AD15)) -> 237.8993009 | G23: =IF(E23="","",lookup!AE14) -> 106.85 | H23: 1509.71 | I23: 131.0493009 | J23: =IF(E23="","",IF(lookup!AF15<0,0,lookup!AF15)) -> 8417.025814
E24: =IF(J23="","",IF(J23<=0,"",lookup!AC16)) -> 14 | F24: =IF(E24="","",IF(J24<=0,lookup!AD16+lookup!AF16,lookup!AD16)) -> 237.8993009 | G24: =IF(E24="","",lookup!AE15) -> 105.21 | H24: 1614.92 | I24: 132.6893009 | J24: =IF(E24="","",IF(lookup!AF16<0,0,lookup!AF16)) -> 8284.339335
E25: =IF(J24="","",IF(J24<=0,"",lookup!AC17)) -> 15 | F25: =IF(E25="","",IF(J25<=0,lookup!AD17+lookup!AF17,lookup!AD17)) -> 237.8993009 | G25: =IF(E25="","",lookup!AE16) -> 103.55 | H25: 1718.47 | I25: 134.3493009 | J25: =IF(E25="","",IF(lookup!AF17<0,0,lookup!AF17)) -> 8149.994276
E26: =IF(J25="","",IF(J25<=0,"",lookup!AC18)) -> 16 | F26: =IF(E26="","",IF(J26<=0,lookup!AD18+lookup!AF18,lookup!AD18)) -> 237.8993009 | G26: =IF(E26="","",lookup!AE17) -> 101.87 | H26: 1820.34 | I26: 136.0293009 | J26: =IF(E26="","",IF(lookup!AF18<0,0,lookup!AF18)) -> 8013.969904
E27: =IF(J26="","",IF(J26<=0,"",lookup!AC19)) -> 17 | F27: =IF(E27="","",IF(J27<=0,lookup!AD19+lookup!AF19,lookup!AD19)) -> 237.8993009 | G27: =IF(E27="","",lookup!AE18) -> 100.17 | H27: 1920.51 | I27: 137.7293009 | J27: =IF(E27="","",IF(lookup!AF19<0,0,lookup!AF19)) -> 7876.245227
E28: =IF(J27="","",IF(J27<=0,"",lookup!AC20)) -> 18 | F28: =IF(E28="","",IF(J28<=0,lookup!AD20+lookup!AF20,lookup!AD20)) -> 237.8993009 | G28: =IF(E28="","",lookup!AE19) -> 98.45 | H28: 2018.96 | I28: 139.4493009 | J28: =IF(E28="","",IF(lookup!AF20<0,0,lookup!AF20)) -> 7736.798991
E29: =IF(J28="","",IF(J28<=0,"",lookup!AC21)) -> 19 | F29: =IF(E29="","",IF(J29<=0,lookup!AD21+lookup!AF21,lookup!AD21)) -> 237.8993009 | G29: =IF(E29="","",lookup!AE20) -> 96.71 | H29: 2115.67 | I29: 141.1893009 | J29: =IF(E29="","",IF(lookup!AF21<0,0,lookup!AF21)) -> 7595.609678
E30: =IF(J29="","",IF(J29<=0,"",lookup!AC22)) -> 20 | F30: =IF(E30="","",IF(J30<=0,lookup!AD22+lookup!AF22,lookup!AD22)) -> 237.8993009 | G30: =IF(E30="","",lookup!AE21) -> 94.95 | H30: 2210.62 | I30: 142.9493009 | J30: =IF(E30="","",IF(lookup!AF22<0,0,lookup!AF22)) -> 7452.655498
E31: =IF(J30="","",IF(J30<=0,"",lookup!AC23)) -> 21 | F31: =IF(E31="","",IF(J31<=0,lookup!AD23+lookup!AF23,lookup!AD23)) -> 237.8993009 | G31: =IF(E31="","",lookup!AE22) -> 93.16 | H31: 2303.78 | I31: 144.7393009 | J31: =IF(E31="","",IF(lookup!AF23<0,0,lookup!AF23)) -> 7307.914391
E32: =IF(J31="","",IF(J31<=0,"",lookup!AC24)) -> 22 | F32: =IF(E32="","",IF(J32<=0,lookup!AD24+lookup!AF24,lookup!AD24)) -> 237.8993009 | G32: =IF(E32="","",lookup!AE23) -> 91.35 | H32: 2395.13 | I32: 146.5493009 | J32: =IF(E32="","",IF(lookup!AF24<0,0,lookup!AF24)) -> 7161.36402
E33: =IF(J32="","",IF(J32<=0,"",lookup!AC25)) -> 23 | F33: =IF(E33="","",IF(J33<=0,lookup!AD25+lookup!AF25,lookup!AD25)) -> 237.8993009 | G33: =IF(E33="","",lookup!AE24) -> 89.52 | H33: 2484.65 | I33: 148.3793009 | J33: =IF(E33="","",IF(lookup!AF25<0,0,lookup!AF25)) -> 7012.981769
E34: =IF(J33="","",IF(J33<=0,"",lookup!AC26)) -> 24 | F34: =IF(E34="","",IF(J34<=0,lookup!AD26+lookup!AF26,lookup!AD26)) -> 237.8993009 | G34: =IF(E34="","",lookup!AE25) -> 87.66 | H34: 2572.31 | I34: 150.2393009 | J34: =IF(E34="","",IF(lookup!AF26<0,0,lookup!AF26)) -> 6862.74474
E35: =IF(J34="","",IF(J34<=0,"",lookup!AC27)) -> 25 | F35: =IF(E35="","",IF(J35<=0,lookup!AD27+lookup!AF27,lookup!AD27)) -> 237.8993009 | G35: =IF(E35="","",lookup!AE26) -> 85.78 | H35: 2658.09 | I35: 152.1193009 | J35: =IF(E35="","",IF(lookup!AF27<0,0,lookup!AF27)) -> 6710.629749
E36: =IF(J35="","",IF(J35<=0,"",lookup!AC28)) -> 26 | F36: =IF(E36="","",IF(J36<=0,lookup!AD28+lookup!AF28,lookup!AD28)) -> 237.8993009 | G36: =IF(E36="","",lookup!AE27) -> 83.88 | H36: 2741.97 | I36: 154.0193009 | J36: =IF(E36="","",IF(lookup!AF28<0,0,lookup!AF28)) -> 6556.61332
E37: =IF(J36="","",IF(J36<=0,"",lookup!AC29)) -> 27 | F37: =IF(E37="","",IF(J37<=0,lookup!AD29+lookup!AF29,lookup!AD29)) -> 237.8993009 | G37: =IF(E37="","",lookup!AE28) -> 81.96 | H37: 2823.93 | I37: 155.9393009 | J37: =IF(E37="","",IF(lookup!AF29<0,0,lookup!AF29)) -> 6400.671685
E38: =IF(J37="","",IF(J37<=0,"",lookup!AC30)) -> 28 | F38: =IF(E38="","",IF(J38<=0,lookup!AD30+lookup!AF30,lookup!AD30)) -> 237.8993009 | G38: =IF(E38="","",lookup!AE29) -> 80.01 | H38: 2903.94 | I38: 157.8893009 | J38: =IF(E38="","",IF(lookup!AF30<0,0,lookup!AF30)) -> 6242.780781
E39: =IF(J38="","",IF(J38<=0,"",lookup!AC31)) -> 29 | F39: =IF(E39="","",IF(J39<=0,lookup!AD31+lookup!AF31,lookup!AD31)) -> 237.8993009 | G39: =IF(E39="","",lookup!AE30) -> 78.03 | H39: 2981.97 | I39: 159.8693009 | J39: =IF(E39="","",IF(lookup!AF31<0,0,lookup!AF31)) -> 6082.916239
E40: =IF(J39="","",IF(J39<=0,"",lookup!AC32)) -> 30 | F40: =IF(E40="","",IF(J40<=0,lookup!AD32+lookup!AF32,lookup!AD32)) -> 237.8993009 | G40: =IF(E40="","",lookup!AE31) -> 76.04 | H40: 3058.01 | I40: 161.8593009 | J40: =IF(E40="","",IF(lookup!AF32<0,0,lookup!AF32)) -> 5921.053392
E41: =IF(J40="","",IF(J40<=0,"",lookup!AC33)) -> 31 | F41: =IF(E41="","",IF(J41<=0,lookup!AD33+lookup!AF33,lookup!AD33)) -> 237.8993009 | G41: =IF(E41="","",lookup!AE32) -> 74.01 | H41: 3132.02 | I41: 163.8893009 | J41: =IF(E41="","",IF(lookup!AF33<0,0,lookup!AF33)) -> 5757.167258
E42: =IF(J41="","",IF(J41<=0,"",lookup!AC34)) -> 32 | F42: =IF(E42="","",IF(J42<=0,lookup!AD34+lookup!AF34,lookup!AD34)) -> 237.8993009 | G42: =IF(E42="","",lookup!AE33) -> 71.96 | H42: 3203.98 | I42: 165.9393009 | J42: =IF(E42="","",IF(lookup!AF34<0,0,lookup!AF34)) -> 5591.232548
E43: =IF(J42="","",IF(J42<=0,"",lookup!AC35)) -> 33 | F43: =IF(E43="","",IF(J43<=0,lookup!AD35+lookup!AF35,lookup!AD35)) -> 237.8993009 | G43: =IF(E43="","",lookup!AE34) -> 69.89 | H43: 3273.87 | I43: 168.0093009 | J43: =IF(E43="","",IF(lookup!AF35<0,0,lookup!AF35)) -> 5423.223654
E44: =IF(J43="","",IF(J43<=0,"",lookup!AC36)) -> 34 | F44: =IF(E44="","",IF(J44<=0,lookup!AD36+lookup!AF36,lookup!AD36)) -> 237.8993009 | G44: =IF(E44="","",lookup!AE35) -> 67.79 | H44: 3341.66 | I44: 170.1093009 | J44: =IF(E44="","",IF(lookup!AF36<0,0,lookup!AF36)) -> 5253.114649
E45: =IF(J44="","",IF(J44<=0,"",lookup!AC37)) -> 35 | F45: =IF(E45="","",IF(J45<=0,lookup!AD37+lookup!AF37,lookup!AD37)) -> 237.8993009 | G45: =IF(E45="","",lookup!AE36) -> 65.66 | H45: 3407.32 | I45: 172.2393009 | J45: =IF(E45="","",IF(lookup!AF37<0,0,lookup!AF37)) -> 5080.879281
E46: =IF(J45="","",IF(J45<=0,"",lookup!AC38)) -> 36 | F46: =IF(E46="","",IF(J46<=0,lookup!AD38+lookup!AF38,lookup!AD38)) -> 237.8993009 | G46: =IF(E46="","",lookup!AE37) -> 63.51 | H46: 3470.83 | I46: 174.3893009 | J46: =IF(E46="","",IF(lookup!AF38<0,0,lookup!AF38)) -> 4906.490971
E47: =IF(J46="","",IF(J46<=0,"",lookup!AC39)) -> 37 | F47: =IF(E47="","",IF(J47<=0,lookup!AD39+lookup!AF39,lookup!AD39)) -> 237.8993009 | G47: =IF(E47="","",lookup!AE38) -> 61.33 | H47: 3532.16 | I47: 176.5693009 | J47: =IF(E47="","",IF(lookup!AF39<0,0,lookup!AF39)) -> 4729.922807
E48: =IF(J47="","",IF(J47<=0,"",lookup!AC40)) -> 38 | F48: =IF(E48="","",IF(J48<=0,lookup!AD40+lookup!AF40,lookup!AD40)) -> 237.8993009 | G48: =IF(E48="","",lookup!AE39) -> 59.12 | H48: 3591.28 | I48: 178.7793009 | J48: =IF(E48="","",IF(lookup!AF40<0,0,lookup!AF40)) -> 4551.147542
E49: =IF(J48="","",IF(J48<=0,"",lookup!AC41)) -> 39 | F49: =IF(E49="","",IF(J49<=0,lookup!AD41+lookup!AF41,lookup!AD41)) -> 237.8993009 | G49: =IF(E49="","",lookup!AE40) -> 56.89 | H49: 3648.17 | I49: 181.0093009 | J49: =IF(E49="","",IF(lookup!AF41<0,0,lookup!AF41)) -> 4370.137585
E50: =IF(J49="","",IF(J49<=0,"",lookup!AC42)) -> 40 | F50: =IF(E50="","",IF(J50<=0,lookup!AD42+lookup!AF42,lookup!AD42)) -> 237.8993009 | G50: =IF(E50="","",lookup!AE41) -> 54.63 | H50: 3702.8 | I50: 183.2693009 | J50: =IF(E50="","",IF(lookup!AF42<0,0,lookup!AF42)) -> 4186.865004
E51: =IF(J50="","",IF(J50<=0,"",lookup!AC43)) -> 41 | F51: =IF(E51="","",IF(J51<=0,lookup!AD43+lookup!AF43,lookup!AD43)) -> 237.8993009 | G51: =IF(E51="","",lookup!AE42) -> 52.34 | H51: 3755.14 | I51: 185.5593009 | J51: =IF(E51="","",IF(lookup!AF43<0,0,lookup!AF43)) -> 4001.301516
E52: =IF(J51="","",IF(J51<=0,"",lookup!AC44)) -> 42 | F52: =IF(E52="","",IF(J52<=0,lookup!AD44+lookup!AF44,lookup!AD44)) -> 237.8993009 | G52: =IF(E52="","",lookup!AE43) -> 50.02 | H52: 3805.16 | I52: 187.8793009 | J52: =IF(E52="","",IF(lookup!AF44<0,0,lookup!AF44)) -> 3813.418484
E53: =IF(J52="","",IF(J52<=0,"",lookup!AC45)) -> 43 | F53: =IF(E53="","",IF(J53<=0,lookup!AD45+lookup!AF45,lookup!AD45)) -> 237.8993009 | G53: =IF(E53="","",lookup!AE44) -> 47.67 | H53: 3852.83 | I53: 190.2293009 | J53: =IF(E53="","",IF(lookup!AF45<0,0,lookup!AF45)) -> 3623.186914
E54: =IF(J53="","",IF(J53<=0,"",lookup!AC46)) -> 44 | F54: =IF(E54="","",IF(J54<=0,lookup!AD46+lookup!AF46,lookup!AD46)) -> 237.8993009 | G54: =IF(E54="","",lookup!AE45) -> 45.29 | H54: 3898.12 | I54: 192.6093009 | J54: =IF(E54="","",IF(lookup!AF46<0,0,lookup!AF46)) -> 3430.57745
E55: =IF(J54="","",IF(J54<=0,"",lookup!AC47)) -> 45 | F55: =IF(E55="","",IF(J55<=0,lookup!AD47+lookup!AF47,lookup!AD47)) -> 237.8993009 | G55: =IF(E55="","",lookup!AE46) -> 42.88 | H55: 3941 | I55: 195.0193009 | J55: =IF(E55="","",IF(lookup!AF47<0,0,lookup!AF47)) -> 3235.560367
E56: =IF(J55="","",IF(J55<=0,"",lookup!AC48)) -> 46 | F56: =IF(E56="","",IF(J56<=0,lookup!AD48+lookup!AF48,lookup!AD48)) -> 237.8993009 | G56: =IF(E56="","",lookup!AE47) -> 40.44 | H56: 3981.44 | I56: 197.4593009 | J56: =IF(E56="","",IF(lookup!AF48<0,0,lookup!AF48)) -> 3038.10557
E57: =IF(J56="","",IF(J56<=0,"",lookup!AC49)) -> 47 | F57: =IF(E57="","",IF(J57<=0,lookup!AD49+lookup!AF49,lookup!AD49)) -> 237.8993009 | G57: =IF(E57="","",lookup!AE48) -> 37.98 | H57: 4019.42 | I57: 199.9193009 | J57: =IF(E57="","",IF(lookup!AF49<0,0,lookup!AF49)) -> 2838.182589
E58: =IF(J57="","",IF(J57<=0,"",lookup!AC50)) -> 48 | F58: =IF(E58="","",IF(J58<=0,lookup!AD50+lookup!AF50,lookup!AD50)) -> 237.8993009 | G58: =IF(E58="","",lookup!AE49) -> 35.48 | H58: 4054.9 | I58: 202.4193009 | J58: =IF(E58="","",IF(lookup!AF50<0,0,lookup!AF50)) -> 2635.760571
E59: =IF(J58="","",IF(J58<=0,"",lookup!AC51)) -> 49 | F59: =IF(E59="","",IF(J59<=0,lookup!AD51+lookup!AF51,lookup!AD51)) -> 237.8993009 | G59: =IF(E59="","",lookup!AE50) -> 32.95 | H59: 4087.85 | I59: 204.9493009 | J59: =IF(E59="","",IF(lookup!AF51<0,0,lookup!AF51)) -> 2430.808277
E60: =IF(J59="","",IF(J59<=0,"",lookup!AC52)) -> 50 | F60: =IF(E60="","",IF(J60<=0,lookup!AD52+lookup!AF52,lookup!AD52)) -> 237.8993009 | G60: =IF(E60="","",lookup!AE51) -> 30.39 | H60: 4118.24 | I60: 207.5093009 | J60: =IF(E60="","",IF(lookup!AF52<0,0,lookup!AF52)) -> 2223.29408
E61: =IF(J60="","",IF(J60<=0,"",lookup!AC53)) -> 51 | F61: =IF(E61="","",IF(J61<=0,lookup!AD53+lookup!AF53,lookup!AD53)) -> 237.8993009 | G61: =IF(E61="","",lookup!AE52) -> 27.79 | H61: 4146.03 | I61: 210.1093009 | J61: =IF(E61="","",IF(lookup!AF53<0,0,lookup!AF53)) -> 2013.185955
E62: =IF(J61="","",IF(J61<=0,"",lookup!AC54)) -> 52 | F62: =IF(E62="","",IF(J62<=0,lookup!AD54+lookup!AF54,lookup!AD54)) -> 237.8993009 | G62: =IF(E62="","",lookup!AE53) -> 25.16 | H62: 4171.19 | I62: 212.7393009 | J62: =IF(E62="","",IF(lookup!AF54<0,0,lookup!AF54)) -> 1800.451478
E63: =IF(J62="","",IF(J62<=0,"",lookup!AC55)) -> 53 | F63: =IF(E63="","",IF(J63<=0,lookup!AD55+lookup!AF55,lookup!AD55)) -> 237.8993009 | G63: =IF(E63="","",lookup!AE54) -> 22.51 | H63: 4193.7 | I63: 215.3893009 | J63: =IF(E63="","",IF(lookup!AF55<0,0,lookup!AF55)) -> 1585.057821
E64: =IF(J63="","",IF(J63<=0,"",lookup!AC56)) -> 54 | F64: =IF(E64="","",IF(J64<=0,lookup!AD56+lookup!AF56,lookup!AD56)) -> 237.8993009 | G64: =IF(E64="","",lookup!AE55) -> 19.81 | H64: 4213.51 | I64: 218.0893009 | J64: =IF(E64="","",IF(lookup!AF56<0,0,lookup!AF56)) -> 1366.971743
E65: =IF(J64="","",IF(J64<=0,"",lookup!AC57)) -> 55 | F65: =IF(E65="","",IF(J65<=0,lookup!AD57+lookup!AF57,lookup!AD57)) -> 237.8993009 | G65: =IF(E65="","",lookup!AE56) -> 17.09 | H65: 4230.6 | I65: 220.8093009 | J65: =IF(E65="","",IF(lookup!AF57<0,0,lookup!AF57)) -> 1146.159589
E66: =IF(J65="","",IF(J65<=0,"",lookup!AC58)) -> 56 | F66: =IF(E66="","",IF(J66<=0,lookup!AD58+lookup!AF58,lookup!AD58)) -> 237.8993009 | G66: =IF(E66="","",lookup!AE57) -> 14.33 | H66: 4244.93 | I66: 223.5693009 | J66: =IF(E66="","",IF(lookup!AF58<0,0,lookup!AF58)) -> 922.5872828
E67: =IF(J66="","",IF(J66<=0,"",lookup!AC59)) -> 57 | F67: =IF(E67="","",IF(J67<=0,lookup!AD59+lookup!AF59,lookup!AD59)) -> 237.8993009 | G67: =IF(E67="","",lookup!AE58) -> 11.53 | H67: 4256.46 | I67: 226.3693009 | J67: =IF(E67="","",IF(lookup!AF59<0,0,lookup!AF59)) -> 696.2203229
E68: =IF(J67="","",IF(J67<=0,"",lookup!AC60)) -> 58 | F68: =IF(E68="","",IF(J68<=0,lookup!AD60+lookup!AF60,lookup!AD60)) -> 237.8993009 | G68: =IF(E68="","",lookup!AE59) -> 8.7 | H68: 4265.16 | I68: 229.1993009 | J68: =IF(E68="","",IF(lookup!AF60<0,0,lookup!AF60)) -> 467.0237761
E69: =IF(J68="","",IF(J68<=0,"",lookup!AC61)) -> 59 | F69: =IF(E69="","",IF(J69<=0,lookup!AD61+lookup!AF61,lookup!AD61)) -> 237.8993009 | G69: =IF(E69="","",lookup!AE60) -> 5.84 | H69: 4271 | I69: 232.0593009 | J69: =IF(E69="","",IF(lookup!AF61<0,0,lookup!AF61)) -> 234.9622725
E70: =IF(J69="","",IF(J69<=0,"",lookup!AC62)) -> 60 | F70: =IF(E70="","",IF(J70<=0,lookup!AD62+lookup!AF62,lookup!AD62)) -> 237.8993009 | G70: =IF(E70="","",lookup!AE61) -> 2.94 | H70: 4273.94 | I70: 234.9593009 | J70: =IF(E70="","",IF(lookup!AF62<0,0,lookup!AF62)) -> 0
E71: =IF(J70="","",IF(J70<=0,"",lookup!AC63)) ->  | F71: =IF(E71="","",IF(J71<=0,lookup!AD63+lookup!AF63,lookup!AD63)) ->  | G71: =IF(E71="","",lookup!AE62) ->  | J71: =IF(E71="","",IF(lookup!AF63<0,0,lookup!AF63)) -> 
E72: =IF(J71="","",IF(J71<=0,"",lookup!AC64)) ->  | F72: =IF(E72="","",IF(J72<=0,lookup!AD64+lookup!AF64,lookup!AD64)) ->  | G72: =IF(E72="","",lookup!AE63) ->  | J72: =IF(E72="","",IF(lookup!AF64<0,0,lookup!AF64)) -> 
E73: =IF(J72="","",IF(J72<=0,"",lookup!AC65)) ->  | F73: =IF(E73="","",IF(J73<=0,lookup!AD65+lookup!AF65,lookup!AD65)) ->  | G73: =IF(E73="","",lookup!AE64) ->  | J73: =IF(E73="","",IF(lookup!AF65<0,0,lookup!AF65)) -> 
E74: =IF(J73="","",IF(J73<=0,"",lookup!AC66)) ->  | F74: =IF(E74="","",IF(J74<=0,lookup!AD66+lookup!AF66,lookup!AD66)) ->  | G74: =IF(E74="","",lookup!AE65) ->  | J74: =IF(E74="","",IF(lookup!AF66<0,0,lookup!AF66)) -> 
E75: =IF(J74="","",IF(J74<=0,"",lookup!AC67)) ->  | F75: =IF(E75="","",IF(J75<=0,lookup!AD67+lookup!AF67,lookup!AD67)) ->  | G75: =IF(E75="","",lookup!AE66) ->  | J75: =IF(E75="","",IF(lookup!AF67<0,0,lookup!AF67)) -> 
E76: =IF(J75="","",IF(J75<=0,"",lookup!AC68)) ->  | F76: =IF(E76="","",IF(J76<=0,lookup!AD68+lookup!AF68,lookup!AD68)) ->  | G76: =IF(E76="","",lookup!AE67) ->  | H76: =IF(E76="","",H75+G76) ->  | I76: =IF(E76="","",F76-G76) ->  | J76: =IF(E76="","",IF(lookup!AF68<0,0,lookup!AF68)) -> 
E77: =IF(J76="","",IF(J76<=0,"",lookup!AC69)) ->  | F77: =IF(E77="","",IF(J77<=0,lookup!AD69+lookup!AF69,lookup!AD69)) ->  | G77: =IF(E77="","",lookup!AE68) ->  | J77: =IF(E77="","",IF(lookup!AF69<0,0,lookup!AF69)) -> 
E78: =IF(J77="","",IF(J77<=0,"",lookup!AC70)) ->  | F78: =IF(E78="","",IF(J78<=0,lookup!AD70+lookup!AF70,lookup!AD70)) ->  | G78: =IF(E78="","",lookup!AE69) ->  | J78: =IF(E78="","",IF(lookup!AF70<0,0,lookup!AF70)) -> 
E79: =IF(J78="","",IF(J78<=0,"",lookup!AC71)) ->  | F79: =IF(E79="","",IF(J79<=0,lookup!AD71+lookup!AF71,lookup!AD71)) ->  | G79: =IF(E79="","",lookup!AE70) ->  | J79: =IF(E79="","",IF(lookup!AF71<0,0,lookup!AF71)) -> 
E80: =IF(J79="","",IF(J79<=0,"",lookup!AC72)) ->  | F80: =IF(E80="","",IF(J80<=0,lookup!AD72+lookup!AF72,lookup!AD72)) ->  | G80: =IF(E80="","",lookup!AE71) ->  | J80: =IF(E80="","",IF(lookup!AF72<0,0,lookup!AF72)) -> 
E81: =IF(J80="","",IF(J80<=0,"",lookup!AC73)) ->  | F81: =IF(E81="","",IF(J81<=0,lookup!AD73+lookup!AF73,lookup!AD73)) ->  | G81: =IF(E81="","",lookup!AE72) ->  | J81: =IF(E81="","",IF(lookup!AF73<0,0,lookup!AF73)) -> 
E82: =IF(J81="","",IF(J81<=0,"",lookup!AC74)) ->  | F82: =IF(E82="","",IF(J82<=0,lookup!AD74+lookup!AF74,lookup!AD74)) ->  | G82: =IF(E82="","",lookup!AE73) ->  | J82: =IF(E82="","",IF(lookup!AF74<0,0,lookup!AF74)) -> 
E83: =IF(J82="","",IF(J82<=0,"",lookup!AC75)) ->  | F83: =IF(E83="","",IF(J83<=0,lookup!AD75+lookup!AF75,lookup!AD75)) ->  | G83: =IF(E83="","",lookup!AE74) ->  | J83: =IF(E83="","",IF(lookup!AF75<0,0,lookup!AF75)) -> 
E84: =IF(J83="","",IF(J83<=0,"",lookup!AC76)) ->  | F84: =IF(E84="","",IF(J84<=0,lookup!AD76+lookup!AF76,lookup!AD76)) ->  | G84: =IF(E84="","",lookup!AE75) ->  | J84: =IF(E84="","",IF(lookup!AF76<0,0,lookup!AF76)) -> 
E85: =IF(J84="","",IF(J84<=0,"",lookup!AC77)) ->  | F85: =IF(E85="","",IF(J85<=0,lookup!AD77+lookup!AF77,lookup!AD77)) ->  | G85: =IF(E85="","",lookup!AE76) ->  | J85: =IF(E85="","",IF(lookup!AF77<0,0,lookup!AF77)) -> 
E86: =IF(J85="","",IF(J85<=0,"",lookup!AC78)) ->  | F86: =IF(E86="","",IF(J86<=0,lookup!AD78+lookup!AF78,lookup!AD78)) ->  | G86: =IF(E86="","",lookup!AE77) ->  | J86: =IF(E86="","",IF(lookup!AF78<0,0,lookup!AF78)) -> 
E87: =IF(J86="","",IF(J86<=0,"",lookup!AC79)) ->  | F87: =IF(E87="","",IF(J87<=0,lookup!AD79+lookup!AF79,lookup!AD79)) ->  | G87: =IF(E87="","",lookup!AE78) ->  | J87: =IF(E87="","",IF(lookup!AF79<0,0,lookup!AF79)) -> 
E88: =IF(J87="","",IF(J87<=0,"",lookup!AC80)) ->  | F88: =IF(E88="","",IF(J88<=0,lookup!AD80+lookup!AF80,lookup!AD80)) ->  | G88: =IF(E88="","",lookup!AE79) ->  | J88: =IF(E88="","",IF(lookup!AF80<0,0,lookup!AF80)) -> 
E89: =IF(J88="","",IF(J88<=0,"",lookup!AC81)) ->  | F89: =IF(E89="","",IF(J89<=0,lookup!AD81+lookup!AF81,lookup!AD81)) ->  | G89: =IF(E89="","",lookup!AE80) ->  | J89: =IF(E89="","",IF(lookup!AF81<0,0,lookup!AF81)) -> 
E90: =IF(J89="","",IF(J89<=0,"",lookup!AC82)) ->  | F90: =IF(E90="","",IF(J90<=0,lookup!AD82+lookup!AF82,lookup!AD82)) ->  | G90: =IF(E90="","",lookup!AE81) ->  | J90: =IF(E90="","",IF(lookup!AF82<0,0,lookup!AF82)) -> 
E91: =IF(J90="","",IF(J90<=0,"",lookup!AC83)) ->  | F91: =IF(E91="","",IF(J91<=0,lookup!AD83+lookup!AF83,lookup!AD83)) ->  | G91: =IF(E91="","",lookup!AE82) ->  | J91: =IF(E91="","",IF(lookup!AF83<0,0,lookup!AF83)) -> 
E92: =IF(J91="","",IF(J91<=0,"",lookup!AC84)) ->  | F92: =IF(E92="","",IF(J92<=0,lookup!AD84+lookup!AF84,lookup!AD84)) ->  | G92: =IF(E92="","",lookup!AE83) ->  | J92: =IF(E92="","",IF(lookup!AF84<0,0,lookup!AF84)) -> 
E93: =IF(J92="","",IF(J92<=0,"",lookup!AC85)) ->  | F93: =IF(E93="","",IF(J93<=0,lookup!AD85+lookup!AF85,lookup!AD85)) ->  | G93: =IF(E93="","",lookup!AE84) ->  | J93: =IF(E93="","",IF(lookup!AF85<0,0,lookup!AF85)) -> 
E94: =IF(J93="","",IF(J93<=0,"",lookup!AC86)) ->  | F94: =IF(E94="","",IF(J94<=0,lookup!AD86+lookup!AF86,lookup!AD86)) ->  | G94: =IF(E94="","",lookup!AE85) ->  | J94: =IF(E94="","",IF(lookup!AF86<0,0,lookup!AF86)) -> 
E95: =IF(J94="","",IF(J94<=0,"",lookup!AC87)) ->  | F95: =IF(E95="","",IF(J95<=0,lookup!AD87+lookup!AF87,lookup!AD87)) ->  | G95: =IF(E95="","",lookup!AE86) ->  | J95: =IF(E95="","",IF(lookup!AF87<0,0,lookup!AF87)) -> 
E96: =IF(J95="","",IF(J95<=0,"",lookup!AC88)) ->  | F96: =IF(E96="","",IF(J96<=0,lookup!AD88+lookup!AF88,lookup!AD88)) ->  | G96: =IF(E96="","",lookup!AE87) ->  | J96: =IF(E96="","",IF(lookup!AF88<0,0,lookup!AF88)) -> 
E97: =IF(J96="","",IF(J96<=0,"",lookup!AC89)) ->  | F97: =IF(E97="","",IF(J97<=0,lookup!AD89+lookup!AF89,lookup!AD89)) ->  | G97: =IF(E97="","",lookup!AE88) ->  | J97: =IF(E97="","",IF(lookup!AF89<0,0,lookup!AF89)) -> 
E98: =IF(J97="","",IF(J97<=0,"",lookup!AC90)) ->  | F98: =IF(E98="","",IF(J98<=0,lookup!AD90+lookup!AF90,lookup!AD90)) ->  | G98: =IF(E98="","",lookup!AE89) ->  | J98: =IF(E98="","",IF(lookup!AF90<0,0,lookup!AF90)) -> 
E99: =IF(J98="","",IF(J98<=0,"",lookup!AC91)) ->  | F99: =IF(E99="","",IF(J99<=0,lookup!AD91+lookup!AF91,lookup!AD91)) ->  | G99: =IF(E99="","",lookup!AE90) ->  | J99: =IF(E99="","",IF(lookup!AF91<0,0,lookup!AF91)) -> 
E100: =IF(J99="","",IF(J99<=0,"",lookup!AC92)) ->  | F100: =IF(E100="","",IF(J100<=0,lookup!AD92+lookup!AF92,lookup!AD92)) ->  | G100: =IF(E100="","",lookup!AE91) ->  | J100: =IF(E100="","",IF(lookup!AF92<0,0,lookup!AF92)) -> 
E101: =IF(J100="","",IF(J100<=0,"",lookup!AC93)) ->  | F101: =IF(E101="","",IF(J101<=0,lookup!AD93+lookup!AF93,lookup!AD93)) ->  | G101: =IF(E101="","",lookup!AE92) ->  | J101: =IF(E101="","",IF(lookup!AF93<0,0,lookup!AF93)) -> 
E102: =IF(J101="","",IF(J101<=0,"",lookup!AC94)) ->  | F102: =IF(E102="","",IF(J102<=0,lookup!AD94+lookup!AF94,lookup!AD94)) ->  | G102: =IF(E102="","",lookup!AE93) ->  | J102: =IF(E102="","",IF(lookup!AF94<0,0,lookup!AF94)) -> 
E103: =IF(J102="","",IF(J102<=0,"",lookup!AC95)) ->  | F103: =IF(E103="","",IF(J103<=0,lookup!AD95+lookup!AF95,lookup!AD95)) ->  | G103: =IF(E103="","",lookup!AE94) ->  | J103: =IF(E103="","",IF(lookup!AF95<0,0,lookup!AF95)) -> 
E104: =IF(J103="","",IF(J103<=0,"",lookup!AC96)) ->  | F104: =IF(E104="","",IF(J104<=0,lookup!AD96+lookup!AF96,lookup!AD96)) ->  | G104: =IF(E104="","",lookup!AE95) ->  | J104: =IF(E104="","",IF(lookup!AF96<0,0,lookup!AF96)) -> 
E105: =IF(J104="","",IF(J104<=0,"",lookup!AC97)) ->  | F105: =IF(E105="","",IF(J105<=0,lookup!AD97+lookup!AF97,lookup!AD97)) ->  | G105: =IF(E105="","",lookup!AE96) ->  | J105: =IF(E105="","",IF(lookup!AF97<0,0,lookup!AF97)) -> 
E106: =IF(J105="","",IF(J105<=0,"",lookup!AC98)) ->  | F106: =IF(E106="","",IF(J106<=0,lookup!AD98+lookup!AF98,lookup!AD98)) ->  | G106: =IF(E106="","",lookup!AE97) ->  | J106: =IF(E106="","",IF(lookup!AF98<0,0,lookup!AF98)) -> 
E107: =IF(J106="","",IF(J106<=0,"",lookup!AC99)) ->  | F107: =IF(E107="","",IF(J107<=0,lookup!AD99+lookup!AF99,lookup!AD99)) ->  | G107: =IF(E107="","",lookup!AE98) ->  | J107: =IF(E107="","",IF(lookup!AF99<0,0,lookup!AF99)) -> 
E108: =IF(J107="","",IF(J107<=0,"",lookup!AC100)) ->  | F108: =IF(E108="","",IF(J108<=0,lookup!AD100+lookup!AF100,lookup!AD100)) ->  | G108: =IF(E108="","",lookup!AE99) ->  | J108: =IF(E108="","",IF(lookup!AF100<0,0,lookup!AF100)) -> 
E109: =IF(J108="","",IF(J108<=0,"",lookup!AC101)) ->  | F109: =IF(E109="","",IF(J109<=0,lookup!AD101+lookup!AF101,lookup!AD101)) ->  | G109: =IF(E109="","",lookup!AE100) ->  | J109: =IF(E109="","",IF(lookup!AF101<0,0,lookup!AF101)) -> 
E110: =IF(J109="","",IF(J109<=0,"",lookup!AC102)) ->  | F110: =IF(E110="","",IF(J110<=0,lookup!AD102+lookup!AF102,lookup!AD102)) ->  | G110: =IF(E110="","",lookup!AE101) ->  | J110: =IF(E110="","",IF(lookup!AF102<0,0,lookup!AF102)) -> 
E111: =IF(J110="","",IF(J110<=0,"",lookup!AC103)) ->  | F111: =IF(E111="","",IF(J111<=0,lookup!AD103+lookup!AF103,lookup!AD103)) ->  | G111: =IF(E111="","",lookup!AE102) ->  | J111: =IF(E111="","",IF(lookup!AF103<0,0,lookup!AF103)) -> 
E112: =IF(J111="","",IF(J111<=0,"",lookup!AC104)) ->  | F112: =IF(E112="","",IF(J112<=0,lookup!AD104+lookup!AF104,lookup!AD104)) ->  | G112: =IF(E112="","",lookup!AE103) ->  | J112: =IF(E112="","",IF(lookup!AF104<0,0,lookup!AF104)) -> 
E113: =IF(J112="","",IF(J112<=0,"",lookup!AC105)) ->  | F113: =IF(E113="","",IF(J113<=0,lookup!AD105+lookup!AF105,lookup!AD105)) ->  | G113: =IF(E113="","",lookup!AE104) ->  | J113: =IF(E113="","",IF(lookup!AF105<0,0,lookup!AF105)) -> 
E114: =IF(J113="","",IF(J113<=0,"",lookup!AC106)) ->  | F114: =IF(E114="","",IF(J114<=0,lookup!AD106+lookup!AF106,lookup!AD106)) ->  | G114: =IF(E114="","",lookup!AE105) ->  | J114: =IF(E114="","",IF(lookup!AF106<0,0,lookup!AF106)) -> 
E115: =IF(J114="","",IF(J114<=0,"",lookup!AC107)) ->  | F115: =IF(E115="","",IF(J115<=0,lookup!AD107+lookup!AF107,lookup!AD107)) ->  | G115: =IF(E115="","",lookup!AE106) ->  | J115: =IF(E115="","",IF(lookup!AF107<0,0,lookup!AF107)) -> 
E116: =IF(J115="","",IF(J115<=0,"",lookup!AC108)) ->  | F116: =IF(E116="","",IF(J116<=0,lookup!AD108+lookup!AF108,lookup!AD108)) ->  | G116: =IF(E116="","",lookup!AE107) ->  | J116: =IF(E116="","",IF(lookup!AF108<0,0,lookup!AF108)) -> 
E117: =IF(J116="","",IF(J116<=0,"",lookup!AC109)) ->  | F117: =IF(E117="","",IF(J117<=0,lookup!AD109+lookup!AF109,lookup!AD109)) ->  | G117: =IF(E117="","",lookup!AE108) ->  | J117: =IF(E117="","",IF(lookup!AF109<0,0,lookup!AF109)) -> 
E118: =IF(J117="","",IF(J117<=0,"",lookup!AC110)) ->  | F118: =IF(E118="","",IF(J118<=0,lookup!AD110+lookup!AF110,lookup!AD110)) ->  | G118: =IF(E118="","",lookup!AE109) ->  | J118: =IF(E118="","",IF(lookup!AF110<0,0,lookup!AF110)) -> 
E119: =IF(J118="","",IF(J118<=0,"",lookup!AC111)) ->  | F119: =IF(E119="","",IF(J119<=0,lookup!AD111+lookup!AF111,lookup!AD111)) ->  | G119: =IF(E119="","",lookup!AE110) ->  | J119: =IF(E119="","",IF(lookup!AF111<0,0,lookup!AF111)) -> 
E120: =IF(J119="","",IF(J119<=0,"",lookup!AC112)) ->  | F120: =IF(E120="","",IF(J120<=0,lookup!AD112+lookup!AF112,lookup!AD112)) ->  | G120: =IF(E120="","",lookup!AE111) ->  | J120: =IF(E120="","",IF(lookup!AF112<0,0,lookup!AF112)) -> 
E121: =IF(J120="","",IF(J120<=0,"",lookup!AC113)) ->  | F121: =IF(E121="","",IF(J121<=0,lookup!AD113+lookup!AF113,lookup!AD113)) ->  | G121: =IF(E121="","",lookup!AE112) ->  | J121: =IF(E121="","",IF(lookup!AF113<0,0,lookup!AF113)) -> 
E122: =IF(J121="","",IF(J121<=0,"",lookup!AC114)) ->  | F122: =IF(E122="","",IF(J122<=0,lookup!AD114+lookup!AF114,lookup!AD114)) ->  | G122: =IF(E122="","",lookup!AE113) ->  | J122: =IF(E122="","",IF(lookup!AF114<0,0,lookup!AF114)) -> 
E123: =IF(J122="","",IF(J122<=0,"",lookup!AC115)) ->  | F123: =IF(E123="","",IF(J123<=0,lookup!AD115+lookup!AF115,lookup!AD115)) ->  | G123: =IF(E123="","",lookup!AE114) ->  | J123: =IF(E123="","",IF(lookup!AF115<0,0,lookup!AF115)) -> 
E124: =IF(J123="","",IF(J123<=0,"",lookup!AC116)) ->  | F124: =IF(E124="","",IF(J124<=0,lookup!AD116+lookup!AF116,lookup!AD116)) ->  | G124: =IF(E124="","",lookup!AE115) ->  | J124: =IF(E124="","",IF(lookup!AF116<0,0,lookup!AF116)) -> 
E125: =IF(J124="","",IF(J124<=0,"",lookup!AC117)) ->  | F125: =IF(E125="","",IF(J125<=0,lookup!AD117+lookup!AF117,lookup!AD117)) ->  | G125: =IF(E125="","",lookup!AE116) ->  | J125: =IF(E125="","",IF(lookup!AF117<0,0,lookup!AF117)) -> 
E126: =IF(J125="","",IF(J125<=0,"",lookup!AC118)) ->  | F126: =IF(E126="","",IF(J126<=0,lookup!AD118+lookup!AF118,lookup!AD118)) ->  | G126: =IF(E126="","",lookup!AE117) ->  | J126: =IF(E126="","",IF(lookup!AF118<0,0,lookup!AF118)) -> 
E127: =IF(J126="","",IF(J126<=0,"",lookup!AC119)) ->  | F127: =IF(E127="","",IF(J127<=0,lookup!AD119+lookup!AF119,lookup!AD119)) ->  | G127: =IF(E127="","",lookup!AE118) ->  | J127: =IF(E127="","",IF(lookup!AF119<0,0,lookup!AF119)) -> 
E128: =IF(J127="","",IF(J127<=0,"",lookup!AC120)) ->  | F128: =IF(E128="","",IF(J128<=0,lookup!AD120+lookup!AF120,lookup!AD120)) ->  | G128: =IF(E128="","",lookup!AE119) ->  | J128: =IF(E128="","",IF(lookup!AF120<0,0,lookup!AF120)) -> 
E129: =IF(J128="","",IF(J128<=0,"",lookup!AC121)) ->  | F129: =IF(E129="","",IF(J129<=0,lookup!AD121+lookup!AF121,lookup!AD121)) ->  | G129: =IF(E129="","",lookup!AE120) ->  | J129: =IF(E129="","",IF(lookup!AF121<0,0,lookup!AF121)) -> 
E130: =IF(J129="","",IF(J129<=0,"",lookup!AC122)) ->  | F130: =IF(E130="","",IF(J130<=0,lookup!AD122+lookup!AF122,lookup!AD122)) ->  | G130: =IF(E130="","",lookup!AE121) ->  | J130: =IF(E130="","",IF(lookup!AF122<0,0,lookup!AF122)) -> 
E131: =IF(J130="","",IF(J130<=0,"",lookup!AC123)) ->  | F131: =IF(E131="","",IF(J131<=0,lookup!AD123+lookup!AF123,lookup!AD123)) ->  | G131: =IF(E131="","",lookup!AE122) ->  | J131: =IF(E131="","",IF(lookup!AF123<0,0,lookup!AF123)) -> 
E132: =IF(J131="","",IF(J131<=0,"",lookup!AC124)) ->  | F132: =IF(E132="","",IF(J132<=0,lookup!AD124+lookup!AF124,lookup!AD124)) ->  | G132: =IF(E132="","",lookup!AE123) ->  | J132: =IF(E132="","",IF(lookup!AF124<0,0,lookup!AF124)) -> 
E133: =IF(J132="","",IF(J132<=0,"",lookup!AC125)) ->  | F133: =IF(E133="","",IF(J133<=0,lookup!AD125+lookup!AF125,lookup!AD125)) ->  | G133: =IF(E133="","",lookup!AE124) ->  | J133: =IF(E133="","",IF(lookup!AF125<0,0,lookup!AF125)) -> 
E134: =IF(J133="","",IF(J133<=0,"",lookup!AC126)) ->  | F134: =IF(E134="","",IF(J134<=0,lookup!AD126+lookup!AF126,lookup!AD126)) ->  | G134: =IF(E134="","",lookup!AE125) ->  | J134: =IF(E134="","",IF(lookup!AF126<0,0,lookup!AF126)) -> 
E135: =IF(J134="","",IF(J134<=0,"",lookup!AC127)) ->  | F135: =IF(E135="","",IF(J135<=0,lookup!AD127+lookup!AF127,lookup!AD127)) ->  | G135: =IF(E135="","",lookup!AE126) ->  | J135: =IF(E135="","",IF(lookup!AF127<0,0,lookup!AF127)) -> 
E136: =IF(J135="","",IF(J135<=0,"",lookup!AC128)) ->  | F136: =IF(E136="","",IF(J136<=0,lookup!AD128+lookup!AF128,lookup!AD128)) ->  | G136: =IF(E136="","",lookup!AE127) ->  | J136: =IF(E136="","",IF(lookup!AF128<0,0,lookup!AF128)) -> 
E137: =IF(J136="","",IF(J136<=0,"",lookup!AC129)) ->  | F137: =IF(E137="","",IF(J137<=0,lookup!AD129+lookup!AF129,lookup!AD129)) ->  | G137: =IF(E137="","",lookup!AE128) ->  | J137: =IF(E137="","",IF(lookup!AF129<0,0,lookup!AF129)) -> 
E138: =IF(J137="","",IF(J137<=0,"",lookup!AC130)) ->  | F138: =IF(E138="","",IF(J138<=0,lookup!AD130+lookup!AF130,lookup!AD130)) ->  | G138: =IF(E138="","",lookup!AE129) ->  | J138: =IF(E138="","",IF(lookup!AF130<0,0,lookup!AF130)) -> 
E139: =IF(J138="","",IF(J138<=0,"",lookup!AC131)) ->  | F139: =IF(E139="","",IF(J139<=0,lookup!AD131+lookup!AF131,lookup!AD131)) ->  | G139: =IF(E139="","",lookup!AE130) ->  | J139: =IF(E139="","",IF(lookup!AF131<0,0,lookup!AF131)) -> 
E140: =IF(J139="","",IF(J139<=0,"",lookup!AC132)) ->  | F140: =IF(E140="","",IF(J140<=0,lookup!AD132+lookup!AF132,lookup!AD132)) ->  | G140: =IF(E140="","",lookup!AE131) ->  | H140: =IF(E140="","",H139+G140) ->  | I140: =IF(E140="","",F140-G140) ->  | J140: =IF(E140="","",IF(lookup!AF132<0,0,lookup!AF132)) -> 
E141: =IF(J140="","",IF(J140<=0,"",lookup!AC133)) ->  | F141: =IF(E141="","",IF(J141<=0,lookup!AD133+lookup!AF133,lookup!AD133)) ->  | G141: =IF(E141="","",lookup!AE132) ->  | J141: =IF(E141="","",IF(lookup!AF133<0,0,lookup!AF133)) -> 
E142: =IF(J141="","",IF(J141<=0,"",lookup!AC134)) ->  | F142: =IF(E142="","",IF(J142<=0,lookup!AD134+lookup!AF134,lookup!AD134)) ->  | G142: =IF(E142="","",lookup!AE133) ->  | J142: =IF(E142="","",IF(lookup!AF134<0,0,lookup!AF134)) -> 
E143: =IF(J142="","",IF(J142<=0,"",lookup!AC135)) ->  | F143: =IF(E143="","",IF(J143<=0,lookup!AD135+lookup!AF135,lookup!AD135)) ->  | G143: =IF(E143="","",lookup!AE134) ->  | J143: =IF(E143="","",IF(lookup!AF135<0,0,lookup!AF135)) -> 
E144: =IF(J143="","",IF(J143<=0,"",lookup!AC136)) ->  | F144: =IF(E144="","",IF(J144<=0,lookup!AD136+lookup!AF136,lookup!AD136)) ->  | G144: =IF(E144="","",lookup!AE135) ->  | J144: =IF(E144="","",IF(lookup!AF136<0,0,lookup!AF136)) -> 
E145: =IF(J144="","",IF(J144<=0,"",lookup!AC137)) ->  | F145: =IF(E145="","",IF(J145<=0,lookup!AD137+lookup!AF137,lookup!AD137)) ->  | G145: =IF(E145="","",lookup!AE136) ->  | J145: =IF(E145="","",IF(lookup!AF137<0,0,lookup!AF137)) -> 
E146: =IF(J145="","",IF(J145<=0,"",lookup!AC138)) ->  | F146: =IF(E146="","",IF(J146<=0,lookup!AD138+lookup!AF138,lookup!AD138)) ->  | G146: =IF(E146="","",lookup!AE137) ->  | J146: =IF(E146="","",IF(lookup!AF138<0,0,lookup!AF138)) -> 
E147: =IF(J146="","",IF(J146<=0,"",lookup!AC139)) ->  | F147: =IF(E147="","",IF(J147<=0,lookup!AD139+lookup!AF139,lookup!AD139)) ->  | G147: =IF(E147="","",lookup!AE138) ->  | J147: =IF(E147="","",IF(lookup!AF139<0,0,lookup!AF139)) -> 
E148: =IF(J147="","",IF(J147<=0,"",lookup!AC140)) ->  | F148: =IF(E148="","",IF(J148<=0,lookup!AD140+lookup!AF140,lookup!AD140)) ->  | G148: =IF(E148="","",lookup!AE139) ->  | J148: =IF(E148="","",IF(lookup!AF140<0,0,lookup!AF140)) -> 
E149: =IF(J148="","",IF(J148<=0,"",lookup!AC141)) ->  | F149: =IF(E149="","",IF(J149<=0,lookup!AD141+lookup!AF141,lookup!AD141)) ->  | G149: =IF(E149="","",lookup!AE140) ->  | J149: =IF(E149="","",IF(lookup!AF141<0,0,lookup!AF141)) -> 
E150: =IF(J149="","",IF(J149<=0,"",lookup!AC142)) ->  | F150: =IF(E150="","",IF(J150<=0,lookup!AD142+lookup!AF142,lookup!AD142)) ->  | G150: =IF(E150="","",lookup!AE141) ->  | J150: =IF(E150="","",IF(lookup!AF142<0,0,lookup!AF142)) -> 
E151: =IF(J150="","",IF(J150<=0,"",lookup!AC143)) ->  | F151: =IF(E151="","",IF(J151<=0,lookup!AD143+lookup!AF143,lookup!AD143)) ->  | G151: =IF(E151="","",lookup!AE142) ->  | J151: =IF(E151="","",IF(lookup!AF143<0,0,lookup!AF143)) -> 
E152: =IF(J151="","",IF(J151<=0,"",lookup!AC144)) ->  | F152: =IF(E152="","",IF(J152<=0,lookup!AD144+lookup!AF144,lookup!AD144)) ->  | G152: =IF(E152="","",lookup!AE143) ->  | J152: =IF(E152="","",IF(lookup!AF144<0,0,lookup!AF144)) -> 
E153: =IF(J152="","",IF(J152<=0,"",lookup!AC145)) ->  | F153: =IF(E153="","",IF(J153<=0,lookup!AD145+lookup!AF145,lookup!AD145)) ->  | G153: =IF(E153="","",lookup!AE144) ->  | J153: =IF(E153="","",IF(lookup!AF145<0,0,lookup!AF145)) -> 
E154: =IF(J153="","",IF(J153<=0,"",lookup!AC146)) ->  | F154: =IF(E154="","",IF(J154<=0,lookup!AD146+lookup!AF146,lookup!AD146)) ->  | G154: =IF(E154="","",lookup!AE145) ->  | J154: =IF(E154="","",IF(lookup!AF146<0,0,lookup!AF146)) -> 
E155: =IF(J154="","",IF(J154<=0,"",lookup!AC147)) ->  | F155: =IF(E155="","",IF(J155<=0,lookup!AD147+lookup!AF147,lookup!AD147)) ->  | G155: =IF(E155="","",lookup!AE146) ->  | J155: =IF(E155="","",IF(lookup!AF147<0,0,lookup!AF147)) -> 
E156: =IF(J155="","",IF(J155<=0,"",lookup!AC148)) ->  | F156: =IF(E156="","",IF(J156<=0,lookup!AD148+lookup!AF148,lookup!AD148)) ->  | G156: =IF(E156="","",lookup!AE147) ->  | J156: =IF(E156="","",IF(lookup!AF148<0,0,lookup!AF148)) -> 
E157: =IF(J156="","",IF(J156<=0,"",lookup!AC149)) ->  | F157: =IF(E157="","",IF(J157<=0,lookup!AD149+lookup!AF149,lookup!AD149)) ->  | G157: =IF(E157="","",lookup!AE148) ->  | J157: =IF(E157="","",IF(lookup!AF149<0,0,lookup!AF149)) -> 
E158: =IF(J157="","",IF(J157<=0,"",lookup!AC150)) ->  | F158: =IF(E158="","",IF(J158<=0,lookup!AD150+lookup!AF150,lookup!AD150)) ->  | G158: =IF(E158="","",lookup!AE149) ->  | J158: =IF(E158="","",IF(lookup!AF150<0,0,lookup!AF150)) -> 
E159: =IF(J158="","",IF(J158<=0,"",lookup!AC151)) ->  | F159: =IF(E159="","",IF(J159<=0,lookup!AD151+lookup!AF151,lookup!AD151)) ->  | G159: =IF(E159="","",lookup!AE150) ->  | J159: =IF(E159="","",IF(lookup!AF151<0,0,lookup!AF151)) -> 
E160: =IF(J159="","",IF(J159<=0,"",lookup!AC152)) ->  | F160: =IF(E160="","",IF(J160<=0,lookup!AD152+lookup!AF152,lookup!AD152)) ->  | G160: =IF(E160="","",lookup!AE151) ->  | J160: =IF(E160="","",IF(lookup!AF152<0,0,lookup!AF152)) -> 
E161: =IF(J160="","",IF(J160<=0,"",lookup!AC153)) ->  | F161: =IF(E161="","",IF(J161<=0,lookup!AD153+lookup!AF153,lookup!AD153)) ->  | G161: =IF(E161="","",lookup!AE152) ->  | J161: =IF(E161="","",IF(lookup!AF153<0,0,lookup!AF153)) -> 
E162: =IF(J161="","",IF(J161<=0,"",lookup!AC154)) ->  | F162: =IF(E162="","",IF(J162<=0,lookup!AD154+lookup!AF154,lookup!AD154)) ->  | G162: =IF(E162="","",lookup!AE153) ->  | J162: =IF(E162="","",IF(lookup!AF154<0,0,lookup!AF154)) -> 
E163: =IF(J162="","",IF(J162<=0,"",lookup!AC155)) ->  | F163: =IF(E163="","",IF(J163<=0,lookup!AD155+lookup!AF155,lookup!AD155)) ->  | G163: =IF(E163="","",lookup!AE154) ->  | J163: =IF(E163="","",IF(lookup!AF155<0,0,lookup!AF155)) -> 
E164: =IF(J163="","",IF(J163<=0,"",lookup!AC156)) ->  | F164: =IF(E164="","",IF(J164<=0,lookup!AD156+lookup!AF156,lookup!AD156)) ->  | G164: =IF(E164="","",lookup!AE155) ->  | J164: =IF(E164="","",IF(lookup!AF156<0,0,lookup!AF156)) -> 
E165: =IF(J164="","",IF(J164<=0,"",lookup!AC157)) ->  | F165: =IF(E165="","",IF(J165<=0,lookup!AD157+lookup!AF157,lookup!AD157)) ->  | G165: =IF(E165="","",lookup!AE156) ->  | J165: =IF(E165="","",IF(lookup!AF157<0,0,lookup!AF157)) -> 
E166: =IF(J165="","",IF(J165<=0,"",lookup!AC158)) ->  | F166: =IF(E166="","",IF(J166<=0,lookup!AD158+lookup!AF158,lookup!AD158)) ->  | G166: =IF(E166="","",lookup!AE157) ->  | J166: =IF(E166="","",IF(lookup!AF158<0,0,lookup!AF158)) -> 
E167: =IF(J166="","",IF(J166<=0,"",lookup!AC159)) ->  | F167: =IF(E167="","",IF(J167<=0,lookup!AD159+lookup!AF159,lookup!AD159)) ->  | G167: =IF(E167="","",lookup!AE158) ->  | J167: =IF(E167="","",IF(lookup!AF159<0,0,lookup!AF159)) -> 
E168: =IF(J167="","",IF(J167<=0,"",lookup!AC160)) ->  | F168: =IF(E168="","",IF(J168<=0,lookup!AD160+lookup!AF160,lookup!AD160)) ->  | G168: =IF(E168="","",lookup!AE159) ->  | J168: =IF(E168="","",IF(lookup!AF160<0,0,lookup!AF160)) -> 
E169: =IF(J168="","",IF(J168<=0,"",lookup!AC161)) ->  | F169: =IF(E169="","",IF(J169<=0,lookup!AD161+lookup!AF161,lookup!AD161)) ->  | G169: =IF(E169="","",lookup!AE160) ->  | J169: =IF(E169="","",IF(lookup!AF161<0,0,lookup!AF161)) -> 
E170: =IF(J169="","",IF(J169<=0,"",lookup!AC162)) ->  | F170: =IF(E170="","",IF(J170<=0,lookup!AD162+lookup!AF162,lookup!AD162)) ->  | G170: =IF(E170="","",lookup!AE161) ->  | J170: =IF(E170="","",IF(lookup!AF162<0,0,lookup!AF162)) -> 
E171: =IF(J170="","",IF(J170<=0,"",lookup!AC163)) ->  | F171: =IF(E171="","",IF(J171<=0,lookup!AD163+lookup!AF163,lookup!AD163)) ->  | G171: =IF(E171="","",lookup!AE162) ->  | J171: =IF(E171="","",IF(lookup!AF163<0,0,lookup!AF163)) -> 
E172: =IF(J171="","",IF(J171<=0,"",lookup!AC164)) ->  | F172: =IF(E172="","",IF(J172<=0,lookup!AD164+lookup!AF164,lookup!AD164)) ->  | G172: =IF(E172="","",lookup!AE163) ->  | J172: =IF(E172="","",IF(lookup!AF164<0,0,lookup!AF164)) -> 
E173: =IF(J172="","",IF(J172<=0,"",lookup!AC165)) ->  | F173: =IF(E173="","",IF(J173<=0,lookup!AD165+lookup!AF165,lookup!AD165)) ->  | G173: =IF(E173="","",lookup!AE164) ->  | J173: =IF(E173="","",IF(lookup!AF165<0,0,lookup!AF165)) -> 
E174: =IF(J173="","",IF(J173<=0,"",lookup!AC166)) ->  | F174: =IF(E174="","",IF(J174<=0,lookup!AD166+lookup!AF166,lookup!AD166)) ->  | G174: =IF(E174="","",lookup!AE165) ->  | J174: =IF(E174="","",IF(lookup!AF166<0,0,lookup!AF166)) -> 
E175: =IF(J174="","",IF(J174<=0,"",lookup!AC167)) ->  | F175: =IF(E175="","",IF(J175<=0,lookup!AD167+lookup!AF167,lookup!AD167)) ->  | G175: =IF(E175="","",lookup!AE166) ->  | J175: =IF(E175="","",IF(lookup!AF167<0,0,lookup!AF167)) -> 
E176: =IF(J175="","",IF(J175<=0,"",lookup!AC168)) ->  | F176: =IF(E176="","",IF(J176<=0,lookup!AD168+lookup!AF168,lookup!AD168)) ->  | G176: =IF(E176="","",lookup!AE167) ->  | J176: =IF(E176="","",IF(lookup!AF168<0,0,lookup!AF168)) -> 
E177: =IF(J176="","",IF(J176<=0,"",lookup!AC169)) ->  | F177: =IF(E177="","",IF(J177<=0,lookup!AD169+lookup!AF169,lookup!AD169)) ->  | G177: =IF(E177="","",lookup!AE168) ->  | J177: =IF(E177="","",IF(lookup!AF169<0,0,lookup!AF169)) -> 
E178: =IF(J177="","",IF(J177<=0,"",lookup!AC170)) ->  | F178: =IF(E178="","",IF(J178<=0,lookup!AD170+lookup!AF170,lookup!AD170)) ->  | G178: =IF(E178="","",lookup!AE169) ->  | J178: =IF(E178="","",IF(lookup!AF170<0,0,lookup!AF170)) -> 
E179: =IF(J178="","",IF(J178<=0,"",lookup!AC171)) ->  | F179: =IF(E179="","",IF(J179<=0,lookup!AD171+lookup!AF171,lookup!AD171)) ->  | G179: =IF(E179="","",lookup!AE170) ->  | J179: =IF(E179="","",IF(lookup!AF171<0,0,lookup!AF171)) -> 
E180: =IF(J179="","",IF(J179<=0,"",lookup!AC172)) ->  | F180: =IF(E180="","",IF(J180<=0,lookup!AD172+lookup!AF172,lookup!AD172)) ->  | G180: =IF(E180="","",lookup!AE171) ->  | J180: =IF(E180="","",IF(lookup!AF172<0,0,lookup!AF172)) -> 
E181: =IF(J180="","",IF(J180<=0,"",lookup!AC173)) ->  | F181: =IF(E181="","",IF(J181<=0,lookup!AD173+lookup!AF173,lookup!AD173)) ->  | G181: =IF(E181="","",lookup!AE172) ->  | J181: =IF(E181="","",IF(lookup!AF173<0,0,lookup!AF173)) -> 
E182: =IF(J181="","",IF(J181<=0,"",lookup!AC174)) ->  | F182: =IF(E182="","",IF(J182<=0,lookup!AD174+lookup!AF174,lookup!AD174)) ->  | G182: =IF(E182="","",lookup!AE173) ->  | J182: =IF(E182="","",IF(lookup!AF174<0,0,lookup!AF174)) -> 
E183: =IF(J182="","",IF(J182<=0,"",lookup!AC175)) ->  | F183: =IF(E183="","",IF(J183<=0,lookup!AD175+lookup!AF175,lookup!AD175)) ->  | G183: =IF(E183="","",lookup!AE174) ->  | J183: =IF(E183="","",IF(lookup!AF175<0,0,lookup!AF175)) -> 
E184: =IF(J183="","",IF(J183<=0,"",lookup!AC176)) ->  | F184: =IF(E184="","",IF(J184<=0,lookup!AD176+lookup!AF176,lookup!AD176)) ->  | G184: =IF(E184="","",lookup!AE175) ->  | J184: =IF(E184="","",IF(lookup!AF176<0,0,lookup!AF176)) -> 
E185: =IF(J184="","",IF(J184<=0,"",lookup!AC177)) ->  | F185: =IF(E185="","",IF(J185<=0,lookup!AD177+lookup!AF177,lookup!AD177)) ->  | G185: =IF(E185="","",lookup!AE176) ->  | J185: =IF(E185="","",IF(lookup!AF177<0,0,lookup!AF177)) -> 
E186: =IF(J185="","",IF(J185<=0,"",lookup!AC178)) ->  | F186: =IF(E186="","",IF(J186<=0,lookup!AD178+lookup!AF178,lookup!AD178)) ->  | G186: =IF(E186="","",lookup!AE177) ->  | J186: =IF(E186="","",IF(lookup!AF178<0,0,lookup!AF178)) -> 
E187: =IF(J186="","",IF(J186<=0,"",lookup!AC179)) ->  | F187: =IF(E187="","",IF(J187<=0,lookup!AD179+lookup!AF179,lookup!AD179)) ->  | G187: =IF(E187="","",lookup!AE178) ->  | J187: =IF(E187="","",IF(lookup!AF179<0,0,lookup!AF179)) -> 
E188: =IF(J187="","",IF(J187<=0,"",lookup!AC180)) ->  | F188: =IF(E188="","",IF(J188<=0,lookup!AD180+lookup!AF180,lookup!AD180)) ->  | G188: =IF(E188="","",lookup!AE179) ->  | J188: =IF(E188="","",IF(lookup!AF180<0,0,lookup!AF180)) -> 
E189: =IF(J188="","",IF(J188<=0,"",lookup!AC181)) ->  | F189: =IF(E189="","",IF(J189<=0,lookup!AD181+lookup!AF181,lookup!AD181)) ->  | G189: =IF(E189="","",lookup!AE180) ->  | J189: =IF(E189="","",IF(lookup!AF181<0,0,lookup!AF181)) -> 
E190: =IF(J189="","",IF(J189<=0,"",lookup!AC182)) ->  | F190: =IF(E190="","",IF(J190<=0,lookup!AD182+lookup!AF182,lookup!AD182)) ->  | G190: =IF(E190="","",lookup!AE181) ->  | J190: =IF(E190="","",IF(lookup!AF182<0,0,lookup!AF182)) -> 
E191: =IF(J190="","",IF(J190<=0,"",lookup!AC183)) ->  | F191: =IF(E191="","",IF(J191<=0,lookup!AD183+lookup!AF183,lookup!AD183)) ->  | G191: =IF(E191="","",lookup!AE182) ->  | J191: =IF(E191="","",IF(lookup!AF183<0,0,lookup!AF183)) -> 
E192: =IF(J191="","",IF(J191<=0,"",lookup!AC184)) ->  | F192: =IF(E192="","",IF(J192<=0,lookup!AD184+lookup!AF184,lookup!AD184)) ->  | G192: =IF(E192="","",lookup!AE183) ->  | J192: =IF(E192="","",IF(lookup!AF184<0,0,lookup!AF184)) -> 
E193: =IF(J192="","",IF(J192<=0,"",lookup!AC185)) ->  | F193: =IF(E193="","",IF(J193<=0,lookup!AD185+lookup!AF185,lookup!AD185)) ->  | G193: =IF(E193="","",lookup!AE184) ->  | J193: =IF(E193="","",IF(lookup!AF185<0,0,lookup!AF185)) -> 
E194: =IF(J193="","",IF(J193<=0,"",lookup!AC186)) ->  | F194: =IF(E194="","",IF(J194<=0,lookup!AD186+lookup!AF186,lookup!AD186)) ->  | G194: =IF(E194="","",lookup!AE185) ->  | J194: =IF(E194="","",IF(lookup!AF186<0,0,lookup!AF186)) -> 
E195: =IF(J194="","",IF(J194<=0,"",lookup!AC187)) ->  | F195: =IF(E195="","",IF(J195<=0,lookup!AD187+lookup!AF187,lookup!AD187)) ->  | G195: =IF(E195="","",lookup!AE186) ->  | J195: =IF(E195="","",IF(lookup!AF187<0,0,lookup!AF187)) -> 
E196: =IF(J195="","",IF(J195<=0,"",lookup!AC188)) ->  | F196: =IF(E196="","",IF(J196<=0,lookup!AD188+lookup!AF188,lookup!AD188)) ->  | G196: =IF(E196="","",lookup!AE187) ->  | J196: =IF(E196="","",IF(lookup!AF188<0,0,lookup!AF188)) -> 
E197: =IF(J196="","",IF(J196<=0,"",lookup!AC189)) ->  | F197: =IF(E197="","",IF(J197<=0,lookup!AD189+lookup!AF189,lookup!AD189)) ->  | G197: =IF(E197="","",lookup!AE188) ->  | J197: =IF(E197="","",IF(lookup!AF189<0,0,lookup!AF189)) -> 
E198: =IF(J197="","",IF(J197<=0,"",lookup!AC190)) ->  | F198: =IF(E198="","",IF(J198<=0,lookup!AD190+lookup!AF190,lookup!AD190)) ->  | G198: =IF(E198="","",lookup!AE189) ->  | J198: =IF(E198="","",IF(lookup!AF190<0,0,lookup!AF190)) -> 
E199: =IF(J198="","",IF(J198<=0,"",lookup!AC191)) ->  | F199: =IF(E199="","",IF(J199<=0,lookup!AD191+lookup!AF191,lookup!AD191)) ->  | G199: =IF(E199="","",lookup!AE190) ->  | J199: =IF(E199="","",IF(lookup!AF191<0,0,lookup!AF191)) -> 
E200: =IF(J199="","",IF(J199<=0,"",lookup!AC192)) ->  | F200: =IF(E200="","",IF(J200<=0,lookup!AD192+lookup!AF192,lookup!AD192)) ->  | G200: =IF(E200="","",lookup!AE191) ->  | J200: =IF(E200="","",IF(lookup!AF192<0,0,lookup!AF192)) -> 
E201: =IF(J200="","",IF(J200<=0,"",lookup!AC193)) ->  | F201: =IF(E201="","",IF(J201<=0,lookup!AD193+lookup!AF193,lookup!AD193)) ->  | G201: =IF(E201="","",lookup!AE192) ->  | J201: =IF(E201="","",IF(lookup!AF193<0,0,lookup!AF193)) -> 
E202: =IF(J201="","",IF(J201<=0,"",lookup!AC194)) ->  | F202: =IF(E202="","",IF(J202<=0,lookup!AD194+lookup!AF194,lookup!AD194)) ->  | G202: =IF(E202="","",lookup!AE193) ->  | J202: =IF(E202="","",IF(lookup!AF194<0,0,lookup!AF194)) -> 
E203: =IF(J202="","",IF(J202<=0,"",lookup!AC195)) ->  | F203: =IF(E203="","",IF(J203<=0,lookup!AD195+lookup!AF195,lookup!AD195)) ->  | G203: =IF(E203="","",lookup!AE194) ->  | J203: =IF(E203="","",IF(lookup!AF195<0,0,lookup!AF195)) -> 
E204: =IF(J203="","",IF(J203<=0,"",lookup!AC196)) ->  | F204: =IF(E204="","",IF(J204<=0,lookup!AD196+lookup!AF196,lookup!AD196)) ->  | G204: =IF(E204="","",lookup!AE195) ->  | H204: =IF(E204="","",H203+G204) ->  | I204: =IF(E204="","",F204-G204) ->  | J204: =IF(E204="","",IF(lookup!AF196<0,0,lookup!AF196)) -> 
E205: =IF(J204="","",IF(J204<=0,"",lookup!AC197)) ->  | F205: =IF(E205="","",IF(J205<=0,lookup!AD197+lookup!AF197,lookup!AD197)) ->  | G205: =IF(E205="","",lookup!AE196) ->  | J205: =IF(E205="","",IF(lookup!AF197<0,0,lookup!AF197)) -> 
E206: =IF(J205="","",IF(J205<=0,"",lookup!AC198)) ->  | F206: =IF(E206="","",IF(J206<=0,lookup!AD198+lookup!AF198,lookup!AD198)) ->  | G206: =IF(E206="","",lookup!AE197) ->  | J206: =IF(E206="","",IF(lookup!AF198<0,0,lookup!AF198)) -> 
E207: =IF(J206="","",IF(J206<=0,"",lookup!AC199)) ->  | F207: =IF(E207="","",IF(J207<=0,lookup!AD199+lookup!AF199,lookup!AD199)) ->  | G207: =IF(E207="","",lookup!AE198) ->  | J207: =IF(E207="","",IF(lookup!AF199<0,0,lookup!AF199)) -> 
E208: =IF(J207="","",IF(J207<=0,"",lookup!AC200)) ->  | F208: =IF(E208="","",IF(J208<=0,lookup!AD200+lookup!AF200,lookup!AD200)) ->  | G208: =IF(E208="","",lookup!AE199) ->  | J208: =IF(E208="","",IF(lookup!AF200<0,0,lookup!AF200)) -> 
... 402 more rows

Sheet lookup (hidden)
A1: Monthly | D1: ='Annuity Value'!B12 -> 0.5 | E1: ='Annuity Value'!B13 -> 1000000 | F1: ='Annuity Value'!B12 -> 0.5 | G1: ='Annuity Value'!B13 -> 1000000 | J1: ='Present Value'!B11/100 -> 0.1 | K1: ='Present Value'!B12 -> 1000000 | N1: ='Future Value'!B11/100 -> 0.1 | O1: ='Future Value'!B14 -> 30448.16395 | S1: ='Compound Interest'!B14 -> 1200 | T1: ='Compound Interest'!B13 -> 10000 | W1: =(1-'Loan (by paid amount)'!B12*'Loan (by paid amount)'!B11/12/100/'Loan (by paid amount)'!B13) -> 0.888 | X1: =IF(W1<0,"",ROUND(-LOG(W1,10)/LOG(W2,10),2)) -> 11.94 | Y1: =('Loan (by paid amount)'!B11/12)/100*Z1 -> 56 | Z1: ='Loan (by paid amount)'!B12 -> 5600 | AC1: ='Loan (by loan terms)'!B13 -> 60 | AE1: =('Loan (by loan terms)'!B11/12)/100*AF1 -> 125 | AF1: ='Loan (by loan terms)'!B12 -> 10000
A2: Quarterly | C2: ='Annuity Value'!B14 -> 600 | E2: =IF('Annuity Value'!B11="Ordinary",E$1*(D$1/100)*(1+D$1/100)^(C2)/((1+D$1/100)^C2-1),G2) -> 5264.047939 | G2: =G$1*(F$1/100)*(1+F$1/100)^(C2-1)/((1+F$1/100)^C2-1) -> 5237.858646 | K2: ='Present Value'!B14 -> 318630.8177 | O2: ='Future Value'!B12 -> 100 | S2: ='Compound Interest'!B12/A5/100 -> 0.002083333333 | W2: =1+'Loan (by paid amount)'!B11/12/100 -> 1.01 | Y2: ='Loan (by paid amount)'!B11/12/100 -> 0.01 | AE2: ='Loan (by loan terms)'!B11/12/100 -> 0.0125
